Workbook

Sheet Cover

Sheet GSR Alterations
C1: Sheet | D1: Cells | E1: Values
B2: Subsidies | C2: Control | D2: Rows 69,73,76,81 / Col's D:H | E2: From Subsidies Working Sheet
C3: Appliance Costs | D3: Rows 1,3,7,11,15 / Col's D:J | E3: Links to control sheet, note in Col J appliance costs 'bounce back up' to their normal trajectory
B4: Growth Related Policy | C4: Control | D4: K17 | E4: 0, 1 and 2 per cent test cases | G4: 0 | H4: 0.01 | I4: 0.02
B5: Wholesale Gas Prices | C5: Scenarios | D5: J48 | E5: Max cumulative percentage escalation per year, before gas volumes go to zero in 2040 under each Growth Related Policy test case | G5: 0.02305 | H5: 0.02646 | I5: 0.02942
B6: S-Curve | C6: Scenarios | D6: J:M28 | E6: Same values as 'Dual Fuel' and 'Muddling Through' | G6: NOTE - We had to reshape the S-Curves to calibrate the model back to meeting the KPMG scenario narrative outcomes, ie ending before 2050 for Dual Fuel. This has resulted in a much steeper S-Curve than previously. Since we are using Dual Fuel as the 'middle S-Curve' case to match the GSR narrative the recalibrated Dual Fuel S-Curve supplants Electric dream's S-Curve.
B8: 100% Electrification | C8: RES S curve-disconnect | D8: C113:CD132 | E8: Make a copy of original model and hardcode to 1
C9: RES S curve-connect | D9: C113:CD133 | E9: Make a copy of original model and hardcode to 0

Sheet Control
A1: Customer discount rates | B1: % | K1: Cumulative DF assuming 15 years
A2: High income | B2: =Scenarios!G4 -> 0.06646118392 | D2: Recoonections as share of gross connections | E2: 0.25 | G2: Asset lives | H2: Years | J2: High income | K2: =((1+$B2)^-1+(1+$B2)^-2+(1+$B2)^-3+(1+$B2)^-4+(1+$B2)^-5+(1+$B2)^-6+(1+$B2)^-7+(1+$B2)^-8+(1+$B2)^-9+(1+$B2)^-10+(1+$B2)^-11+(1+$B2)^-12+(1+$B2)^-13+(1+$B2)^-14+(1+$B2)^-15) -> 9.31503711
A3: Medium income | B3: =Scenarios!G5 -> 0.09704565749 | G3: Cooking | H3: 15 | J3: Medium income | K3: =((1+$B3)^-1+(1+$B3)^-2+(1+$B3)^-3+(1+$B3)^-4+(1+$B3)^-5+(1+$B3)^-6+(1+$B3)^-7+(1+$B3)^-8+(1+$B3)^-9+(1+$B3)^-10+(1+$B3)^-11+(1+$B3)^-12+(1+$B3)^-13+(1+$B3)^-14+(1+$B3)^-15) -> 7.736083147
A4: Low income | B4: =Scenarios!G6 -> 0.1735068414 | D4: Appliance capital costs | G4: Hot water | H4: 12 | J4: Low income | K4: 5.240585136
A5: Commercial | B5: =Scenarios!G7 -> 0.0472 | D5: Cooking | E5: $ real 2021 | G5: Room heating | H5: 15 | J5: Commercial | K5: 10.5789295
D6: Electric cooktop (induction) | E6: 2286.666667 | G6: Ducted heating | H6: 15
D7: Gas stove | E7: 1386.111111 | G7: Service charge | H7: 15
D9: Hot water | G9: Decision point | H9: 15
D10: Heat pump hot water | E10: 4622.222222
D11: Gas instant hot water | E11: 2230 | G11: Elasticities | H11: Residential | I11: Commercial
G12: Weather | H12: =Scenarios!G46 -> 0.3555523 | I12: =Scenarios!G50 -> 0.1551871
D13: Room heating | G13: Gas price | H13: =Scenarios!G47 -> -0.8 | I13: =Scenarios!G51 -> -0.9
D14: RCAC split system | E14: 3324.421687 | G14: Elecricity price | H14: =Scenarios!G48 -> 0.008 | I14: =Scenarios!G52 -> 0.008
D15: Gas wall furnace | E15: 2322.2
K16: Residential | L16: Commercial
D17: Ducted heating | G17: Distribution share of retail fixed charge | H17: % | J17: Non-Appliance Cost Related Growth | K17: 0.02 | L17: 0.02
D18: Ducted RCAC | E18: 6388.552083 | G18: Residential | H18: 0.3 | J18: Non-Appliance Cost Related Disconnections | K18: 0.005 | L18: 0.005
D19: Ducted gas heating | E19: 4578.333333 | G19: Commercial | H19: 0.29
D21: Gas disconnection charge | E21: 100
D22: Electricity connection upgrade | E22: 2225
A27: Appliance consumption | D27: Appliance efficiency | H27: Maintenance costs (p/a) | J27: Maintenance costs
A28: Cooking | B28: Average consumption | D28: Cooking | E28: % change (p.a.) | G28: Cooking | H28: $ | J28: Cooking | K28: real % change (p.a.)
A29: Electric cooktop (induction) kWh | B29: 133.3 | D29: Electric cooktop (induction) | E29: =Scenarios!G11 -> 0.0064 | G29: Electric cooktop (induction) | H29: 0 | J29: Electric cooktop (induction) | K29: =Scenarios!G29 -> -0.0064
A30: Gas stove (GJ) | B30: 1.2 | D30: Gas stove | E30: =Scenarios!G12 -> 0 | G30: Gas stove | H30: 2.160528801 | J30: Gas stove | K30: =Scenarios!G30 -> 0
B31: 0
A32: Hot water | B32: 0 | D32: Hot water | G32: Hot water | J32: Hot water
A33: Heat pump hot water (kWh) | B33: 2200 | D33: Heat pump hot water | E33: =Scenarios!G15 -> 0.0064 | G33: Heat pump hot water | H33: 43.21057602 | J33: Heat pump hot water | K33: =Scenarios!G33 -> -0.0064
A34: Gas instant hot water (GJ) | B34: 20.6 | D34: Gas instant hot water | E34: =Scenarios!G16 -> 0 | G34: Gas instant hot water | H34: 32.40793201 | J34: Gas instant hot water | K34: =Scenarios!G34 -> 0
B35: 0
A36: Room heating | B36: 0 | D36: Room heating | G36: Room heating | J36: Room heating
A37: RCAC split system (kWh) | B37: 1170 | D37: RCAC split system | E37: =Scenarios!G19 -> 0 | G37: RCAC split system | H37: 29.16713881 | J37: RCAC split system | K37: =Scenarios!G37 -> 0
A38: Gas wall furnace (GJ) | B38: 19.36551724 | D38: Gas wall furnace | E38: =Scenarios!G20 -> 0 | G38: Gas wall furnace | H38: 25.92634561 | J38: Gas wall furnace | K38: =Scenarios!G38 -> 0
B39: 0
A40: Ducted heating | B40: 0 | D40: Ducted heating | G40: Ducted heating | J40: Ducted heating
A41: Ducted RCAC (kWh) | B41: 4735.714286 | D41: Ducted RCAC | E41: =Scenarios!G23 -> 0.0029 | G41: Ducted RCAC | H41: 29.16713881 | J41: Ducted RCAC | K41: =Scenarios!G41 -> -0.0029
A42: Ducted gas heating (GJ) | B42: 68.5862069 | D42: Ducted gas heating | E42: =Scenarios!G24 -> 0 | G42: Ducted gas heating | H42: 29.16713881 | J42: Ducted gas heating | K42: =Scenarios!G42 -> 0
A45: LGA | B45: Income class
A46: Bass Coast (S) | B46: L | C46: Bass Coast (S) | D46: M-L (Low)
A47: Bayside (C) | B47: H | C47: Bayside (C) | D47: M (Medium)
A48: Boroondara (C) | B48: H | C48: Boroondara (C) | D48: M-H (High)
A49: Cardinia (S) | B49: L | C49: Cardinia (S)
A50: Casey (C) | B50: M | C50: Casey (C)
A51: Frankston (C) | B51: L | C51: Frankston (C)
A52: Glen Eira (C) | B52: H | C52: Glen Eira (C)
A53: Greater Dandenong (C) | B53: L | C53: Greater Dandenong (C)
A54: Kingston (C) | B54: M | C54: Kingston (C)
A55: Knox (C) | B55: M | C55: Knox (C)
A56: Manningham (C) | B56: M | C56: Manningham (C)
A57: Maroondah (C) | B57: M | C57: Maroondah (C)
A58: Melbourne (C) | B58: L | C58: Melbourne (C)
A59: Monash (C) | B59: M | C59: Monash (C)
A60: Nillumbik (S) | B60: H | C60: Nillumbik (S)
A61: Port Phillip (C) | B61: H | C61: Port Phillip (C)
A62: South Gippsland (S) | B62: L | C62: South Gippsland (S)
A63: Stonnington (C) | B63: H | C63: Stonnington (C)
A64: Whitehorse (C) | B64: M | C64: Whitehorse (C)
A65: Yarra Ranges (S) | B65: M | C65: Yarra Ranges (S)
A67: Appliance costs
A68: Cooking | B68: real % change (p.a.) | C68: 2022 | D68: 2023 | E68: 2024 | F68: 2025 | G68: 2026 | H68: 2027 | I68: 2028 | J68: 2029 | K68: 2030 | L68: 2031 | M68: 2032 | N68: 2033 | O68: 2034 | P68: 2035 | Q68: 2036 | R68: 2037 | S68: 2038 | T68: 2039 | U68: 2040 | V68: 2041 | W68: 2042 | X68: 2043 | Y68: 2044 | Z68: 2045 | AA68: 2046 | AB68: 2047 | AC68: 2048 | AD68: 2049 | AE68: 2050 | AF68: 2051 | AG68: 2052 | AH68: 2053 | AI68: 2054 | AJ68: 2055 | AK68: 2056 | AL68: 2057 | AM68: 2058 | AN68: 2059 | AO68: 2060 | AP68: 2061 | AQ68: 2062 | AR68: 2063 | AS68: 2064 | AT68: 2065 | AU68: 2066 | AV68: 2067 | AW68: 2068 | AX68: 2069 | AY68: 2070 | AZ68: 2071 | BA68: 2072 | BB68: 2073 | BC68: 2074 | BD68: 2075 | BE68: 2076 | BF68: 2077 | BG68: 2078 | BH68: 2079 | BI68: 2080 | BJ68: 2081 | BK68: 2082 | BL68: 2083 | BM68: 2084 | BN68: 2085 | BO68: 2086 | BP68: 2087 | BQ68: 2088 | BR68: 2089 | BS68: 2090 | BT68: 2091 | BU68: 2092 | BV68: 2093 | BW68: 2094 | BX68: 2095 | BY68: 2096 | BZ68: 2097 | CA68: 2098 | CB68: 2099 | CC68: 2100
A69: Electric cooktop (induction) | B69: =Scenarios!K11 -> -0.005 | C69: 0 | D69: 0 | E69: 0 | F69: 0 | G69: 0 | H69: 0 | I69: =$B69 -> -0.005 | J69: -0.005 | K69: -0.005 | L69: -0.005 | M69: -0.005 | N69: -0.005 | O69: -0.005 | P69: -0.005 | Q69: -0.005 | R69: -0.005 | S69: -0.005 | T69: -0.005 | U69: -0.005 | V69: -0.005 | W69: -0.005 | X69: -0.005 | Y69: -0.005 | Z69: -0.005 | AA69: -0.005 | AB69: -0.005 | AC69: -0.005 | AD69: -0.005 | AE69: -0.005 | AF69: 0 | AG69: 0 | AH69: 0 | AI69: 0 | AJ69: 0 | AK69: 0 | AL69: 0 | AM69: 0 | AN69: 0 | AO69: 0 | AP69: 0 | AQ69: 0 | AR69: 0 | AS69: 0 | AT69: 0 | AU69: 0 | AV69: 0 | AW69: 0 | AX69: 0 | AY69: 0 | AZ69: 0 | BA69: 0 | BB69: 0 | BC69: 0 | BD69: 0 | BE69: 0 | BF69: 0 | BG69: 0 | BH69: 0 | BI69: 0 | BJ69: 0 | BK69: 0 | BL69: 0 | BM69: 0 | BN69: 0 | BO69: 0 | BP69: 0 | BQ69: 0 | BR69: 0 | BS69: 0 | BT69: 0 | BU69: 0 | BV69: 0 | BW69: 0 | BX69: 0 | BY69: 0 | BZ69: 0 | CA69: 0 | CB69: 0 | CC69: 0
A70: Gas stove | B70: =Scenarios!K12 -> 0
A72: Hot water
A73: Heat pump hot water | B73: =Scenarios!K15 -> -0.005 | C73: 0 | D73: -0.1108885695 | E73: -0.1108885695 | F73: -0.1108885695 | G73: -0.1108885695 | H73: -0.1108885695 | I73: =$B73 -> -0.005 | J73: -0.005 | K73: -0.005 | L73: -0.005 | M73: -0.005 | N73: -0.005 | O73: -0.005 | P73: -0.005 | Q73: -0.005 | R73: -0.005 | S73: -0.005 | T73: -0.005 | U73: -0.005 | V73: -0.005 | W73: -0.005 | X73: -0.005 | Y73: -0.005 | Z73: -0.005 | AA73: -0.005 | AB73: -0.005 | AC73: -0.005 | AD73: -0.005 | AE73: -0.005 | AF73: 0 | AG73: 0 | AH73: 0 | AI73: 0 | AJ73: 0 | AK73: 0 | AL73: 0 | AM73: 0 | AN73: 0 | AO73: 0 | AP73: 0 | AQ73: 0 | AR73: 0 | AS73: 0 | AT73: 0 | AU73: 0 | AV73: 0 | AW73: 0 | AX73: 0 | AY73: 0 | AZ73: 0 | BA73: 0 | BB73: 0 | BC73: 0 | BD73: 0 | BE73: 0 | BF73: 0 | BG73: 0 | BH73: 0 | BI73: 0 | BJ73: 0 | BK73: 0 | BL73: 0 | BM73: 0 | BN73: 0 | BO73: 0 | BP73: 0 | BQ73: 0 | BR73: 0 | BS73: 0 | BT73: 0 | BU73: 0 | BV73: 0 | BW73: 0 | BX73: 0 | BY73: 0 | BZ73: 0 | CA73: 0 | CB73: 0 | CC73: 0
A74: Gas instant hot water | B74: =Scenarios!K16 -> 0
A76: Room heating
A77: RCAC split system | B77: =Scenarios!K19 -> -0.005 | C77: 0 | D77: -0.07219300756 | E77: -0.07219300756 | F77: -0.07219300756 | G77: 0 | H77: 0 | I77: =$B77 -> -0.005 | J77: -0.005 | K77: -0.005 | L77: -0.005 | M77: -0.005 | N77: -0.005 | O77: -0.005 | P77: -0.005 | Q77: -0.005 | R77: -0.005 | S77: -0.005 | T77: -0.005 | U77: -0.005 | V77: -0.005 | W77: -0.005 | X77: -0.005 | Y77: -0.005 | Z77: -0.005 | AA77: -0.005 | AB77: -0.005 | AC77: -0.005 | AD77: -0.005 | AE77: -0.005 | AF77: 0 | AG77: 0 | AH77: 0 | AI77: 0 | AJ77: 0 | AK77: 0 | AL77: 0 | AM77: 0 | AN77: 0 | AO77: 0 | AP77: 0 | AQ77: 0 | AR77: 0 | AS77: 0 | AT77: 0 | AU77: 0 | AV77: 0 | AW77: 0 | AX77: 0 | AY77: 0 | AZ77: 0 | BA77: 0 | BB77: 0 | BC77: 0 | BD77: 0 | BE77: 0 | BF77: 0 | BG77: 0 | BH77: 0 | BI77: 0 | BJ77: 0 | BK77: 0 | BL77: 0 | BM77: 0 | BN77: 0 | BO77: 0 | BP77: 0 | BQ77: 0 | BR77: 0 | BS77: 0 | BT77: 0 | BU77: 0 | BV77: 0 | BW77: 0 | BX77: 0 | BY77: 0 | BZ77: 0 | CA77: 0 | CB77: 0 | CC77: 0
A78: Gas wall furnace | B78: =Scenarios!K20 -> 0
A80: Ducted heating
A81: Ducted RCAC | B81: =Scenarios!K23 -> -0.005 | C81: 0 | D81: -0.2097501879 | E81: -0.2097501879 | F81: 0 | G81: 0 | H81: 0 | I81: =$B81 -> -0.005 | J81: -0.005 | K81: -0.005 | L81: -0.005 | M81: -0.005 | N81: -0.005 | O81: -0.005 | P81: -0.005 | Q81: -0.005 | R81: -0.005 | S81: -0.005 | T81: -0.005 | U81: -0.005 | V81: -0.005 | W81: -0.005 | X81: -0.005 | Y81: -0.005 | Z81: -0.005 | AA81: -0.005 | AB81: -0.005 | AC81: -0.005 | AD81: -0.005 | AE81: -0.005 | AF81: 0 | AG81: 0 | AH81: 0 | AI81: 0 | AJ81: 0 | AK81: 0 | AL81: 0 | AM81: 0 | AN81: 0 | AO81: 0 | AP81: 0 | AQ81: 0 | AR81: 0 | AS81: 0 | AT81: 0 | AU81: 0 | AV81: 0 | AW81: 0 | AX81: 0 | AY81: 0 | AZ81: 0 | BA81: 0 | BB81: 0 | BC81: 0 | BD81: 0 | BE81: 0 | BF81: 0 | BG81: 0 | BH81: 0 | BI81: 0 | BJ81: 0 | BK81: 0 | BL81: 0 | BM81: 0 | BN81: 0 | BO81: 0 | BP81: 0 | BQ81: 0 | BR81: 0 | BS81: 0 | BT81: 0 | BU81: 0 | BV81: 0 | BW81: 0 | BX81: 0 | BY81: 0 | BZ81: 0 | CA81: 0 | CB81: 0 | CC81: 0
A82: Ducted gas heating | B82: =Scenarios!K24 -> 0
A84: Gas disconnection charge | B84: 0
A85: Electricity connection upgrade | B85: 0
D86: =(1+$D$67)^(D68-$C$68)-1 -> 0 | E86: =(1+$D$67)^(E68-$C$68)-1 -> 0 | F86: 0 | G86: 0 | H86: 0
B87: Average Appliance Cost | C87: =AVERAGE(E6,E10,E14,E18) -> 4155.465665 | D87: =D86*$C$87 -> 0 | E87: =E86*$C$87 -> 0 | F87: 0 | G87: 0 | H87: 0
B88: Annual Replacement max | C88: =700000/15 -> 46666.66667 | D88: =$C$88*D87 -> 0 | E88: =$C$88*E87 -> 0 | F88: 0 | G88: 0 | H88: 0 | I88: =SUM(D88:H88) -> 0
B89: 5 Year Replacement | C89: =C88*5 -> 233333.3333
C90: =C87*C89 -> 969608655.1

Sheet Summary
A2: Customers | B2: 2020 | C2: =B2+1 -> 2021 | D2: =C2+1 -> 2022 | E2: 2023 | F2: 2024 | G2: 2025 | H2: 2026 | I2: 2027 | J2: 2028 | K2: 2029 | L2: 2030 | M2: 2031 | N2: 2032 | O2: 2033 | P2: 2034 | Q2: 2035 | R2: 2036 | S2: 2037 | T2: 2038 | U2: 2039 | V2: 2040 | W2: 2041 | X2: 2042 | Y2: 2043 | Z2: 2044 | AA2: 2045 | AB2: 2046 | AC2: 2047 | AD2: 2048 | AE2: 2049 | AF2: 2050 | AG2: 2051 | AH2: 2052 | AI2: 2053 | AJ2: 2054 | AK2: 2055 | AL2: 2056 | AM2: 2057 | AN2: 2058 | AO2: 2059 | AP2: 2060 | AQ2: 2061 | AR2: 2062 | AS2: 2063 | AT2: 2064 | AU2: 2065 | AV2: 2066 | AW2: 2067 | AX2: 2068 | AY2: 2069 | AZ2: 2070 | BA2: 2071 | BB2: 2072 | BC2: 2073 | BD2: 2074 | BE2: 2075 | BF2: 2076 | BG2: 2077 | BH2: 2078 | BI2: 2079 | BJ2: 2080 | BK2: 2081 | BL2: 2082 | BM2: 2083 | BN2: 2084 | BO2: 2085 | BP2: =BO2+1 -> 2086 | BQ2: 2087 | BR2: 2088 | BS2: 2089 | BT2: 2090 | BU2: 2091 | BV2: 2092 | BW2: 2093 | BX2: 2094 | BY2: 2095 | BZ2: 2096 | CA2: 2097 | CB2: 2098 | CC2: 2099 | CD2: 2100
A3: Residential | B3: =Forecasts!J47 -> 690940 | C3: =Forecasts!K47 -> 701280.3 | D3: =Forecasts!L47 -> 711784.8985 | E3: =Forecasts!M47 -> 722438.974 | F3: =Forecasts!N47 -> 733247.7791 | G3: =Forecasts!O47 -> 744234.5402 | H3: =Forecasts!P47 -> 755386.3675 | I3: =Forecasts!Q47 -> 766701.4357 | J3: =Forecasts!R47 -> 778191.9285 | K3: =Forecasts!S47 -> 789839.9689 | L3: =Forecasts!T47 -> 801671.769 | M3: =Forecasts!U47 -> 797663.4102 | N3: =Forecasts!V47 -> 793675.0931 | O3: =Forecasts!W47 -> 789706.7177 | P3: =Forecasts!X47 -> 785758.1841 | Q3: =Forecasts!Y47 -> 781825.3932 | R3: =Forecasts!Z47 -> 777905.2662 | S3: =Forecasts!AA47 -> 773968.7399 | T3: =Forecasts!AB47 -> 769999.8962 | U3: =Forecasts!AC47 -> 765914.8967 | V3: =Forecasts!AD47 -> 761663.3222 | W3: =Forecasts!AE47 -> 757189.0056 | X3: =Forecasts!AF47 -> 751552.0606 | Y3: =Forecasts!AG47 -> 742945.3003 | Z3: =Forecasts!AH47 -> 730842.5738 | AA3: =Forecasts!AI47 -> 714177.3609 | AB3: =Forecasts!AJ47 -> 693588.4741 | AC3: =Forecasts!AK47 -> 669171.5317 | AD3: =Forecasts!AL47 -> 641548.6741 | AE3: =Forecasts!AM47 -> 611152.9307 | AF3: =Forecasts!AN47 -> 578212.166 | AG3: =Forecasts!AO47 -> 545267.1052 | AH3: =Forecasts!AP47 -> 512623.7697 | AI3: =Forecasts!AQ47 -> 481201.6508 | AJ3: =Forecasts!AR47 -> 451366.6426 | AK3: =Forecasts!AS47 -> 423138.8094 | AL3: =Forecasts!AT47 -> 399034.1153 | AM3: =Forecasts!AU47 -> 377014.9447 | AN3: =Forecasts!AV47 -> 355462.87 | AO3: =Forecasts!AW47 -> 334621.5557 | AP3: =Forecasts!AX47 -> 314745.4479 | AQ3: =Forecasts!AY47 -> 295834.7207 | AR3: =Forecasts!AZ47 -> 277794.547 | AS3: =Forecasts!BA47 -> 260467.5743 | AT3: =Forecasts!BB47 -> 243713.2364 | AU3: =Forecasts!BC47 -> 227467.6703 | AV3: =Forecasts!BD47 -> 211825.3319 | AW3: =Forecasts!BE47 -> 196949.2052 | AX3: =Forecasts!BF47 -> 182964.4592 | AY3: =Forecasts!BG47 -> 169911.6369 | AZ3: =Forecasts!BH47 -> 157768.0787 | BA3: =Forecasts!BI47 -> 146489.2383 | BB3: =Forecasts!BJ47 -> 136019.7922 | BC3: =Forecasts!BK47 -> 126299.6932 | BD3: =Forecasts!BL47 -> 117276.1947 | BE3: =Forecasts!BM47 -> 108897.8138 | BF3: =Forecasts!BN47 -> 101110.3247 | BG3: =Forecasts!BO47 -> 93877.77306 | BH3: =Forecasts!BP47 -> 87167.3842 | BI3: =Forecasts!BQ47 -> 80934.54728 | BJ3: =Forecasts!BR47 -> 75149.87454 | BK3: =Forecasts!BS47 -> 69774.12517 | BL3: =Forecasts!BT47 -> 69394.25454 | BM3: =Forecasts!BU47 -> 69015.28327 | BN3: =Forecasts!BV47 -> 68637.20685 | BO3: =Forecasts!BW47 -> 68261.02082 | BP3: =Forecasts!BX47 -> 67886.71571 | BQ3: =Forecasts!BY47 -> 67514.28214 | BR3: =Forecasts!BZ47 -> 67143.71072 | BS3: =Forecasts!CA47 -> 66774.99217 | BT3: =Forecasts!CB47 -> 66408.11721 | BU3: =Forecasts!CC47 -> 66041.07662 | BV3: =Forecasts!CD47 -> 65675.87124 | BW3: =Forecasts!CE47 -> 65312.49188 | BX3: =Forecasts!CF47 -> 64950.92943 | BY3: =Forecasts!CG47 -> 64591.17478 | BZ3: =Forecasts!CH47 -> 64233.2189 | CA3: =Forecasts!CI47 -> 63876.05281 | CB3: =Forecasts!CJ47 -> 63519.67255 | CC3: =Forecasts!CK47 -> 63165.07418 | CD3: =Forecasts!CL47 -> 62822.24881
A4: Gross new connections | B4: =CustomersRes!J47 -> 11908 | C4: =CustomersRes!K47 -> 13795 | D4: =CustomersRes!L47 -> 14011 | E4: =CustomersRes!M47 -> 14213 | F4: =CustomersRes!N47 -> 14421 | G4: =CustomersRes!O47 -> 14653 | H4: =CustomersRes!P47 -> 14873 | I4: =CustomersRes!Q47 -> 15092 | J4: =CustomersRes!R47 -> 15324 | K4: =CustomersRes!S47 -> 15539 | L4: =CustomersRes!T47 -> 15781 | M4: =CustomersRes!U47 -> 0 | N4: =CustomersRes!V47 -> 0 | O4: =CustomersRes!W47 -> 0 | P4: =CustomersRes!X47 -> 0 | Q4: =CustomersRes!Y47 -> 0 | R4: =CustomersRes!Z47 -> 0 | S4: =CustomersRes!AA47 -> 0 | T4: =CustomersRes!AB47 -> 0 | U4: =CustomersRes!AC47 -> 0 | V4: =CustomersRes!AD47 -> 0 | W4: =CustomersRes!AE47 -> 0 | X4: =CustomersRes!AF47 -> 0 | Y4: =CustomersRes!AG47 -> 0 | Z4: =CustomersRes!AH47 -> 0 | AA4: =CustomersRes!AI47 -> 0 | AB4: =CustomersRes!AJ47 -> 0 | AC4: =CustomersRes!AK47 -> 0 | AD4: =CustomersRes!AL47 -> 0 | AE4: =CustomersRes!AM47 -> 0 | AF4: =CustomersRes!AN47 -> 0 | AG4: =CustomersRes!AO47 -> 0 | AH4: =CustomersRes!AP47 -> 0 | AI4: =CustomersRes!AQ47 -> 0 | AJ4: =CustomersRes!AR47 -> 0 | AK4: =CustomersRes!AS47 -> 0 | AL4: =CustomersRes!AT47 -> 0 | AM4: =CustomersRes!AU47 -> 0 | AN4: =CustomersRes!AV47 -> 0 | AO4: =CustomersRes!AW47 -> 0 | AP4: =CustomersRes!AX47 -> 0 | AQ4: =CustomersRes!AY47 -> 0 | AR4: =CustomersRes!AZ47 -> 0 | AS4: =CustomersRes!BA47 -> 0 | AT4: =CustomersRes!BB47 -> 0 | AU4: =CustomersRes!BC47 -> 0 | AV4: =CustomersRes!BD47 -> 0 | AW4: =CustomersRes!BE47 -> 0 | AX4: =CustomersRes!BF47 -> 0 | AY4: =CustomersRes!BG47 -> 0 | AZ4: =CustomersRes!BH47 -> 0 | BA4: =CustomersRes!BI47 -> 0 | BB4: =CustomersRes!BJ47 -> 0 | BC4: =CustomersRes!BK47 -> 0 | BD4: =CustomersRes!BL47 -> 0 | BE4: =CustomersRes!BM47 -> 0 | BF4: =CustomersRes!BN47 -> 0 | BG4: =CustomersRes!BO47 -> 0 | BH4: =CustomersRes!BP47 -> 0 | BI4: =CustomersRes!BQ47 -> 0 | BJ4: =CustomersRes!BR47 -> 0 | BK4: =CustomersRes!BS47 -> 0 | BL4: =CustomersRes!BT47 -> 0 | BM4: =CustomersRes!BU47 -> 0 | BN4: =CustomersRes!BV47 -> 0 | BO4: =CustomersRes!BW47 -> 0 | BP4: =CustomersRes!BX47 -> 0 | BQ4: =CustomersRes!BY47 -> 0 | BR4: =CustomersRes!BZ47 -> 0 | BS4: =CustomersRes!CA47 -> 0 | BT4: =CustomersRes!CB47 -> 0 | BU4: =CustomersRes!CC47 -> 0 | BV4: =CustomersRes!CD47 -> 0 | BW4: =CustomersRes!CE47 -> 0 | BX4: =CustomersRes!CF47 -> 0 | BY4: =CustomersRes!CG47 -> 0 | BZ4: =CustomersRes!CH47 -> 0 | CA4: =CustomersRes!CI47 -> 0 | CB4: =CustomersRes!CJ47 -> 0 | CC4: =CustomersRes!CK47 -> 0 | CD4: =CustomersRes!CL47 -> 0
A5: Disconnections | B5: =CustomersRes!J71 -> 6499 | C5: =-((C3-B3)-C4) -> 3454.7 | D5: =-((D3-C3)-D4) -> 3506.4015 | E5: 3558.924492 | F5: 3612.19487 | G5: 3666.238896 | H5: 3721.172701 | I5: 3776.931838 | J5: 3833.507179 | K5: 3890.959643 | L5: 3949.199844 | M5: 4008.358845 | N5: 3988.317051 | O5: 3968.375466 | P5: 3948.533588 | Q5: 3932.79092 | R5: 3920.126966 | S5: 3936.526331 | T5: 3968.843699 | U5: 4084.999481 | V5: 4251.574483 | W5: 4474.316611 | X5: =-((X3-W3)-X4) -> 5636.945028 | Y5: =-((Y3-X3)-Y4) -> 8606.760303 | Z5: 12102.7265 | AA5: =-((AA3-Z3)-AA4) -> 16665.21287 | AB5: =-((AB3-AA3)-AB4) -> 20588.8868 | AC5: =-((AC3-AB3)-AC4) -> 24416.94237 | AD5: =-((AD3-AC3)-AD4) -> 27622.85766 | AE5: =-((AE3-AD3)-AE4) -> 30395.74337 | AF5: =-((AF3-AE3)-AF4) -> 32940.76465 | AG5: =-((AG3-AF3)-AG4) -> 32945.06083 | AH5: =-((AH3-AG3)-AH4) -> 32643.33553 | AI5: =-((AI3-AH3)-AI4) -> 31422.11885 | AJ5: =-((AJ3-AI3)-AJ4) -> 29835.00825 | AK5: =-((AK3-AJ3)-AK4) -> 28227.83321 | AL5: =-((AL3-AK3)-AL4) -> 24104.69405 | AM5: =-((AM3-AL3)-AM4) -> 22019.17058 | AN5: =-((AN3-AM3)-AN4) -> 21552.07472 | AO5: =-((AO3-AN3)-AO4) -> 20841.31435 | AP5: =-((AP3-AO3)-AP4) -> 19876.10778 | AQ5: =-((AQ3-AP3)-AQ4) -> 18910.72724 | AR5: =-((AR3-AQ3)-AR4) -> 18040.1736 | AS5: =-((AS3-AR3)-AS4) -> 17326.97274 | AT5: =-((AT3-AS3)-AT4) -> 16754.33787 | AU5: 16245.56618 | AV5: =-((AV3-AU3)-AV4) -> 15642.33835 | AW5: 14876.12666 | AX5: =-((AX3-AW3)-AX4) -> 13984.74603 | AY5: =-((AY3-AX3)-AY4) -> 13052.8223 | AZ5: =-((AZ3-AY3)-AZ4) -> 12143.55818 | BA5: =-((BA3-AZ3)-BA4) -> 11278.84039 | BB5: =-((BB3-BA3)-BB4) -> 10469.44619 | BC5: =-((BC3-BB3)-BC4) -> 9720.098961 | BD5: =-((BD3-BC3)-BD4) -> 9023.498466 | BE5: =-((BE3-BD3)-BE4) -> 8378.380974 | BF5: =-((BF3-BE3)-BF4) -> 7787.489069 | BG5: =-((BG3-BF3)-BG4) -> 7232.551623 | BH5: =-((BH3-BG3)-BH4) -> 6710.388865 | BI5: =-((BI3-BH3)-BI4) -> 6232.836921 | BJ5: =-((BJ3-BI3)-BJ4) -> 5784.672736 | BK5: =-((BK3-BJ3)-BK4) -> 5375.749373 | BL5: =-((BL3-BK3)-BL4) -> 379.8706258 | BM5: =-((BM3-BL3)-BM4) -> 378.9712727 | BN5: =-((BN3-BM3)-BN4) -> 378.0764163 | BO5: =-((BO3-BN3)-BO4) -> 376.1860343 | BP5: =-((BP3-BO3)-BP4) -> 374.3051041 | BQ5: =-((BQ3-BP3)-BQ4) -> 372.4335786 | BR5: 370.5714107 | BS5: =-((BS3-BR3)-BS4) -> 368.7185536 | BT5: 366.8749609 | BU5: =-((BU3-BT3)-BU4) -> 367.040586 | BV5: =-((BV3-BU3)-BV4) -> 365.2053831 | BW5: =-((BW3-BV3)-BW4) -> 363.3793562 | BX5: =-((BX3-BW3)-BX4) -> 361.5624594 | BY5: =-((BY3-BX3)-BY4) -> 359.7546471 | BZ5: =-((BZ3-BY3)-BZ4) -> 357.9558739 | CA5: =-((CA3-BZ3)-CA4) -> 357.1660945 | CB5: =-((CB3-CA3)-CB4) -> 356.380264 | CC5: =-((CC3-CB3)-CC4) -> 354.5983627 | CD5: =-((CD3-CC3)-CD4) -> 342.8253709
A6: Commercial | B6: =Forecasts!J118 -> 14439 | C6: =Forecasts!K118 -> 14156.66667 | D6: =Forecasts!L118 -> 14051.88167 | E6: =Forecasts!M118 -> 13111.62059 | F6: =Forecasts!N118 -> 12204.06082 | G6: =Forecasts!O118 -> 12155.03885 | H6: =Forecasts!P118 -> 12042.26199 | I6: =Forecasts!Q118 -> 11448.04901 | J6: =Forecasts!R118 -> 10865.8071 | K6: =Forecasts!S118 -> 10115.4764 | L6: =Forecasts!T118 -> 9417.897351 | M6: =Forecasts!U118 -> 8835.806198 | N6: =Forecasts!V118 -> 8285.6255 | O6: =Forecasts!W118 -> 7718.195706 | P6: =Forecasts!X118 -> 7191.603061 | Q6: =Forecasts!Y118 -> 6924.643379 | R6: =Forecasts!Z118 -> 6556.018495 | S6: =Forecasts!AA118 -> 6134.236736 | T6: =Forecasts!AB118 -> 5723.563886 | U6: =Forecasts!AC118 -> 5340.9444 | V6: =Forecasts!AD118 -> 4984.238011 | W6: =Forecasts!AE118 -> 4653.315154 | X6: =Forecasts!AF118 -> 4347.046912 | Y6: =Forecasts!AG118 -> 4061.310011 | Z6: =Forecasts!AH118 -> 3799.001794 | AA6: =Forecasts!AI118 -> 3553.005118 | AB6: =Forecasts!AJ118 -> 3324.238426 | AC6: =Forecasts!AK118 -> 3109.615567 | AD6: =Forecasts!AL118 -> 2910.065823 | AE6: =Forecasts!AM118 -> 2727.513827 | AF6: =Forecasts!AN118 -> 2556.874591 | AG6: =Forecasts!AO118 -> 2399.088551 | AH6: =Forecasts!AP118 -> 2251.091442 | AI6: =Forecasts!AQ118 -> 2114.834318 | AJ6: =Forecasts!AR118 -> 1989.25848 | AK6: =Forecasts!AS118 -> 1872.310521 | AL6: =Forecasts!AT118 -> 1762.947302 | AM6: =Forecasts!AU118 -> 1661.130898 | AN6: =Forecasts!AV118 -> 1568.823577 | AO6: =Forecasts!AW118 -> 1481.977793 | AP6: =Forecasts!AX118 -> 1403.566237 | AQ6: =Forecasts!AY118 -> 1328.546739 | AR6: =Forecasts!AZ118 -> 1260.902339 | AS6: =Forecasts!BA118 -> 1197.59616 | AT6: =Forecasts!BB118 -> 1137.606513 | AU6: =Forecasts!BC118 -> 1081.916814 | AV6: =Forecasts!BD118 -> 1029.505563 | AW6: =Forecasts!BE118 -> 981.3563685 | AX6: =Forecasts!BF118 -> 939.44792 | AY6: =Forecasts!BG118 -> 899.7490137 | AZ6: =Forecasts!BH118 -> 862.248602 | BA6: =Forecasts!BI118 -> 826.9356923 | BB6: =Forecasts!BJ118 -> 794.7993472 | BC6: =Forecasts!BK118 -> 764.8236838 | BD6: =Forecasts!BL118 -> 736.9978987 | BE6: =Forecasts!BM118 -> 710.3112426 | BF6: =Forecasts!BN118 -> 684.7580197 | BG6: =Forecasts!BO118 -> 661.3325629 | BH6: =Forecasts!BP118 -> 640.0242334 | BI6: =Forecasts!BQ118 -> 620.8224456 | BJ6: =Forecasts!BR118 -> 603.7166667 | BK6: =Forecasts!BS118 -> 588.6964167 | BL6: =Forecasts!BT118 -> 574.751268 | BM6: =Forecasts!BU118 -> 560.8758449 | BN6: =Forecasts!BV118 -> 548.0697991 | BO6: =Forecasts!BW118 -> 536.3277834 | BP6: =Forecasts!BX118 -> 524.6444778 | BQ6: =Forecasts!BY118 -> 513.0195888 | BR6: =Forecasts!BZ118 -> 501.4528241 | BS6: =Forecasts!CA118 -> 491.9438934 | BT6: =Forecasts!CB118 -> 482.4825072 | BU6: =Forecasts!CC118 -> 477.068428 | BV6: =Forecasts!CD118 -> 471.6814192 | BW6: =Forecasts!CE118 -> 467.3213455 | BX6: =Forecasts!CF118 -> 464.9830721 | BY6: =Forecasts!CG118 -> 462.65649 | BZ6: =Forecasts!CH118 -> 460.3415409 | CA6: =Forecasts!CI118 -> 458.0381665 | CB6: =Forecasts!CJ118 -> 455.746309 | CC6: =Forecasts!CK118 -> 453.4659108 | CD6: =Forecasts!CL118 -> 451.1969146
A7: Gross new connections | B7: =CustomersCOM!J45 -> 314 | C7: =CustomersCOM!K45 -> 261 | D7: =CustomersCOM!L45 -> 139 | E7: =CustomersCOM!M45 -> 0 | F7: =CustomersCOM!N45 -> 0 | G7: =CustomersCOM!O45 -> 133 | H7: =CustomersCOM!P45 -> 109 | I7: =CustomersCOM!Q45 -> 15 | J7: =CustomersCOM!R45 -> 13 | K7: =CustomersCOM!S45 -> 0 | L7: =CustomersCOM!T45 -> 0 | M7: =CustomersCOM!U45 -> 0 | N7: =CustomersCOM!V45 -> 0 | O7: =CustomersCOM!W45 -> 0 | P7: =CustomersCOM!X45 -> 0 | Q7: =CustomersCOM!Y45 -> 0 | R7: =CustomersCOM!Z45 -> 0 | S7: =CustomersCOM!AA45 -> 0 | T7: =CustomersCOM!AB45 -> 0 | U7: =CustomersCOM!AC45 -> 0 | V7: =CustomersCOM!AD45 -> 0 | W7: =CustomersCOM!AE45 -> 0 | X7: =CustomersCOM!AF45 -> 0 | Y7: =CustomersCOM!AG45 -> 0 | Z7: =CustomersCOM!AH45 -> 0 | AA7: =CustomersCOM!AI45 -> 0 | AB7: =CustomersCOM!AJ45 -> 0 | AC7: =CustomersCOM!AK45 -> 0 | AD7: =CustomersCOM!AL45 -> 0 | AE7: =CustomersCOM!AM45 -> 0 | AF7: =CustomersCOM!AN45 -> 0 | AG7: =CustomersCOM!AO45 -> 0 | AH7: =CustomersCOM!AP45 -> 0 | AI7: =CustomersCOM!AQ45 -> 0 | AJ7: =CustomersCOM!AR45 -> 0 | AK7: =CustomersCOM!AS45 -> 0 | AL7: =CustomersCOM!AT45 -> 0 | AM7: =CustomersCOM!AU45 -> 0 | AN7: =CustomersCOM!AV45 -> 0 | AO7: =CustomersCOM!AW45 -> 0 | AP7: =CustomersCOM!AX45 -> 0 | AQ7: =CustomersCOM!AY45 -> 0 | AR7: =CustomersCOM!AZ45 -> 0 | AS7: =CustomersCOM!BA45 -> 0 | AT7: =CustomersCOM!BB45 -> 0 | AU7: =CustomersCOM!BC45 -> 0 | AV7: =CustomersCOM!BD45 -> 0 | AW7: =CustomersCOM!BE45 -> 0 | AX7: =CustomersCOM!BF45 -> 0 | AY7: =CustomersCOM!BG45 -> 0 | AZ7: =CustomersCOM!BH45 -> 0 | BA7: =CustomersCOM!BI45 -> 0 | BB7: =CustomersCOM!BJ45 -> 0 | BC7: =CustomersCOM!BK45 -> 0 | BD7: =CustomersCOM!BL45 -> 0 | BE7: =CustomersCOM!BM45 -> 0 | BF7: =CustomersCOM!BN45 -> 0 | BG7: =CustomersCOM!BO45 -> 0 | BH7: =CustomersCOM!BP45 -> 0 | BI7: =CustomersCOM!BQ45 -> 0 | BJ7: =CustomersCOM!BR45 -> 0 | BK7: =CustomersCOM!BS45 -> 0 | BL7: =CustomersCOM!BT45 -> 0 | BM7: =CustomersCOM!BU45 -> 0 | BN7: =CustomersCOM!BV45 -> 0 | BO7: =CustomersCOM!BW45 -> 0 | BP7: =CustomersCOM!BX45 -> 0 | BQ7: =CustomersCOM!BY45 -> 0 | BR7: =CustomersCOM!BZ45 -> 0 | BS7: =CustomersCOM!CA45 -> 0 | BT7: =CustomersCOM!CB45 -> 0 | BU7: =CustomersCOM!CC45 -> 0 | BV7: =CustomersCOM!CD45 -> 0 | BW7: =CustomersCOM!CE45 -> 0 | BX7: =CustomersCOM!CF45 -> 0 | BY7: =CustomersCOM!CG45 -> 0 | BZ7: =CustomersCOM!CH45 -> 0 | CA7: =CustomersCOM!CI45 -> 0 | CB7: =CustomersCOM!CJ45 -> 0 | CC7: =CustomersCOM!CK45 -> 0 | CD7: =CustomersCOM!CL45 -> 0
A8: Disconnections | B8: =CustomersCOM!J68 -> 435 | C8: =-((C6-B6)-C7) -> 543.3333333 | D8: =-((D6-C6)-D7) -> 243.785 | E8: 940.261075 | F8: 907.5597696 | G8: 182.0219708 | H8: 221.7768609 | I8: 609.2129766 | J8: 595.2419117 | K8: 750.3307022 | L8: 697.5790487 | M8: 582.0911534 | N8: 550.1806977 | O8: 567.4297942 | P8: 526.5926452 | Q8: 266.959682 | R8: 368.6248836 | S8: 421.7817591 | T8: 410.6728503 | U8: 382.6194861 | V8: =-((V6-U6)-V7) -> 356.7063887 | W8: =-((W6-V6)-W7) -> 330.9228567 | X8: =-((X6-W6)-X7) -> 306.2682424 | Y8: =-((Y6-X6)-Y7) -> 285.7369012 | Z8: =-((Z6-Y6)-Z7) -> 262.3082167 | AA8: =-((AA6-Z6)-AA7) -> 245.9966756 | AB8: =-((AB6-AA6)-AB7) -> 228.7666923 | AC8: =-((AC6-AB6)-AC7) -> 214.6228588 | AD8: =-((AD6-AC6)-AD7) -> 199.5497445 | AE8: =-((AE6-AD6)-AE7) -> 182.5519958 | AF8: =-((AF6-AE6)-AF7) -> 170.6392358 | AG8: =-((AG6-AF6)-AG7) -> 157.7860396 | AH8: =-((AH6-AG6)-AH7) -> 147.9971094 | AI8: =-((AI6-AH6)-AI7) -> 136.2571239 | AJ8: =-((AJ6-AI6)-AJ7) -> 125.5758383 | AK8: =-((AK6-AJ6)-AK7) -> 116.9479591 | AL8: =-((AL6-AK6)-AL7) -> 109.3632193 | AM8: =-((AM6-AL6)-AM7) -> 101.8164032 | AN8: =-((AN6-AM6)-AN7) -> 92.30732116 | AO8: =-((AO6-AN6)-AO7) -> 86.84578455 | AP8: =-((AP6-AO6)-AP7) -> 78.41155563 | AQ8: =-((AQ6-AP6)-AQ7) -> 75.01949785 | AR8: =-((AR6-AQ6)-AR7) -> 67.64440036 | AS8: =-((AS6-AR6)-AS7) -> 63.30617836 | AT8: =-((AT6-AS6)-AT7) -> 59.98964747 | AU8: =-((AU6-AT6)-AU7) -> 55.68969923 | AV8: =-((AV6-AU6)-AV7) -> 52.41125074 | AW8: =-((AW6-AV6)-AW7) -> 48.14919448 | AX8: =-((AX6-AW6)-AX7) -> 41.90844851 | AY8: =-((AY6-AX6)-AY7) -> 39.69890627 | AZ8: =-((AZ6-AY6)-AZ7) -> 37.50041174 | BA8: =-((BA6-AZ6)-BA7) -> 35.31290968 | BB8: =-((BB6-BA6)-BB7) -> 32.13634513 | BC8: =-((BC6-BB6)-BC7) -> 29.9756634 | BD8: =-((BD6-BC6)-BD7) -> 27.82578509 | BE8: =-((BE6-BD6)-BE7) -> 26.68665616 | BF8: =-((BF6-BE6)-BF7) -> 25.55322288 | BG8: =-((BG6-BF6)-BG7) -> 23.42545677 | BH8: =-((BH6-BG6)-BH7) -> 21.30832948 | BI8: =-((BI6-BH6)-BI7) -> 19.20178783 | BJ8: =-((BJ6-BI6)-BJ7) -> 17.10577889 | BK8: =-((BK6-BJ6)-BK7) -> 15.02025 | BL8: =-((BL6-BK6)-BL7) -> 13.94514875 | BM8: =-((BM6-BL6)-BM7) -> 13.87542301 | BN8: =-((BN6-BM6)-BN7) -> 12.80604589 | BO8: =-((BO6-BN6)-BO7) -> 11.74201566 | BP8: =-((BP6-BO6)-BP7) -> 11.68330558 | BQ8: =-((BQ6-BP6)-BQ7) -> 11.62488906 | BR8: =-((BR6-BQ6)-BR7) -> 11.56676461 | BS8: =-((BS6-BR6)-BS7) -> 9.508930787 | BT8: =-((BT6-BS6)-BT7) -> 9.461386133 | BU8: =-((BU6-BT6)-BU7) -> 5.414079203 | BV8: =-((BV6-BU6)-BV7) -> 5.387008807 | BW8: =-((BW6-BV6)-BW7) -> 4.360073763 | BX8: =-((BX6-BW6)-BX7) -> 2.338273394 | BY8: =-((BY6-BX6)-BY7) -> 2.326582027 | BZ8: =-((BZ6-BY6)-BZ7) -> 2.314949117 | CA8: =-((CA6-BZ6)-CA7) -> 2.303374371 | CB8: =-((CB6-CA6)-CB7) -> 2.291857499 | CC8: =-((CC6-CB6)-CC7) -> 2.280398212 | CD8: =-((CD6-CC6)-CD7) -> 2.268996221
A9: Multinet | B9: =SUM(B3:B6) -> 723786 | C9: =SUM(C3:C6) -> 732686.6667 | D9: 743354.1817 | E9: 753322.5191 | F9: 763485.0348 | G9: 774708.818 | H9: 786022.8022 | I9: 797018.4166 | J9: 808215.2428 | K9: 819385.4049 | L9: 830819.8662 | M9: 810507.5752 | N9: 805949.0357 | O9: 801393.2888 | P9: 796898.3207 | Q9: 792682.8275 | R9: 788381.4117 | S9: 784039.5029 | T9: 779692.3038 | U9: 775340.8406 | V9: 770899.1347 | W9: 766316.6374 | X9: 761536.0525 | Y9: 755613.3706 | Z9: 746744.3021 | AA9: 734395.5789 | AB9: 717501.5993 | AC9: 696698.0897 | AD9: 672081.5975 | AE9: 644276.1879 | AF9: 613709.8053 | AG9: 580611.2546 | AH9: 547518.1966 | AI9: 514738.604 | AJ9: 483190.9093 | AK9: 453238.9531 | AL9: 424901.7567 | AM9: 400695.2462 | AN9: 378583.7683 | AO9: 356944.8478 | AP9: 336025.1219 | AQ9: 316073.9946 | AR9: 297095.623 | AS9: 278992.1432 | AT9: 261605.1808 | AU9: 244795.1533 | AV9: 228497.1758 | AW9: 212806.6883 | AX9: 197888.6532 | AY9: 183864.2082 | AZ9: 170773.8855 | BA9: 158595.0144 | BB9: 147284.0377 | BC9: 136784.6158 | BD9: 127036.6911 | BE9: 117986.506 | BF9: 109582.5718 | BG9: 101771.6572 | BH9: 94517.7973 | BI9: 87788.20664 | BJ9: 81538.26394 | BK9: 75738.57096 | BL9: 70348.87643 | BM9: 69955.13039 | BN9: 69563.35307 | BO9: =SUM(BO3:BO6) -> 69173.53464 | BP9: 68785.6653 | BQ9: 68399.7353 | BR9: 68015.73496 | BS9: 67635.65462 | BT9: 67257.47468 | BU9: 66885.18564 | BV9: 66512.75804 | BW9: 66143.19259 | BX9: 65777.47496 | BY9: 65413.58592 | BZ9: 65051.51632 | CA9: 64691.25707 | CB9: 64331.79912 | CC9: 63973.13846 | CD9: =SUM(CD3:CD6) -> 63616.2711
A11: Volumes (TJ) | B11: 2020 | C11: =B11+1 -> 2021 | D11: =C11+1 -> 2022 | E11: =D11+1 -> 2023 | F11: =E11+1 -> 2024 | G11: =F11+1 -> 2025 | H11: =G11+1 -> 2026 | I11: =H11+1 -> 2027 | J11: =I11+1 -> 2028 | K11: =J11+1 -> 2029 | L11: =K11+1 -> 2030 | M11: =L11+1 -> 2031 | N11: =M11+1 -> 2032 | O11: =N11+1 -> 2033 | P11: =O11+1 -> 2034 | Q11: =P11+1 -> 2035 | R11: =Q11+1 -> 2036 | S11: =R11+1 -> 2037 | T11: =S11+1 -> 2038 | U11: =T11+1 -> 2039 | V11: =U11+1 -> 2040 | W11: =V11+1 -> 2041 | X11: =W11+1 -> 2042 | Y11: =X11+1 -> 2043 | Z11: =Y11+1 -> 2044 | AA11: =Z11+1 -> 2045 | AB11: =AA11+1 -> 2046 | AC11: =AB11+1 -> 2047 | AD11: =AC11+1 -> 2048 | AE11: =AD11+1 -> 2049 | AF11: =AE11+1 -> 2050 | AG11: =AF11+1 -> 2051 | AH11: =AG11+1 -> 2052 | AI11: =AH11+1 -> 2053 | AJ11: =AI11+1 -> 2054 | AK11: =AJ11+1 -> 2055 | AL11: =AK11+1 -> 2056 | AM11: =AL11+1 -> 2057 | AN11: =AM11+1 -> 2058 | AO11: =AN11+1 -> 2059 | AP11: =AO11+1 -> 2060 | AQ11: =AP11+1 -> 2061 | AR11: =AQ11+1 -> 2062 | AS11: =AR11+1 -> 2063 | AT11: =AS11+1 -> 2064 | AU11: =AT11+1 -> 2065 | AV11: =AU11+1 -> 2066 | AW11: =AV11+1 -> 2067 | AX11: =AW11+1 -> 2068 | AY11: =AX11+1 -> 2069 | AZ11: =AY11+1 -> 2070 | BA11: =AZ11+1 -> 2071 | BB11: =BA11+1 -> 2072 | BC11: =BB11+1 -> 2073 | BD11: =BC11+1 -> 2074 | BE11: =BD11+1 -> 2075 | BF11: =BE11+1 -> 2076 | BG11: =BF11+1 -> 2077 | BH11: =BG11+1 -> 2078 | BI11: =BH11+1 -> 2079 | BJ11: =BI11+1 -> 2080 | BK11: =BJ11+1 -> 2081 | BL11: =BK11+1 -> 2082 | BM11: =BL11+1 -> 2083 | BN11: =BM11+1 -> 2084 | BO11: =BN11+1 -> 2085 | BP11: =BO11+1 -> 2086 | BQ11: =BP11+1 -> 2087 | BR11: =BQ11+1 -> 2088 | BS11: =BR11+1 -> 2089 | BT11: =BS11+1 -> 2090 | BU11: =BT11+1 -> 2091 | BV11: =BU11+1 -> 2092 | BW11: =BV11+1 -> 2093 | BX11: =BW11+1 -> 2094 | BY11: =BX11+1 -> 2095 | BZ11: =BY11+1 -> 2096 | CA11: =BZ11+1 -> 2097 | CB11: =CA11+1 -> 2098 | CC11: =CB11+1 -> 2099 | CD11: =CC11+1 -> 2100
A12: Residential | B12: =Forecasts!J71 -> 41525.20579 | C12: =Forecasts!K71 -> 40861.15179 | D12: =Forecasts!L71 -> 39462.58293 | E12: =Forecasts!M71 -> 41815.63452 | F12: =Forecasts!N71 -> 42889.97155 | G12: =Forecasts!O71 -> 44575.14124 | H12: =Forecasts!P71 -> 45396.25042 | I12: =Forecasts!Q71 -> 45176.29972 | J12: =Forecasts!R71 -> 43596.34403 | K12: =Forecasts!S71 -> 42417.25391 | L12: =Forecasts!T71 -> 42068.36814 | M12: =Forecasts!U71 -> 44688.95287 | N12: =Forecasts!V71 -> 44943.68437 | O12: =Forecasts!W71 -> 44231.3779 | P12: =Forecasts!X71 -> 43197.8457 | Q12: =Forecasts!Y71 -> 41721.45912 | R12: =Forecasts!Z71 -> 40876.39263 | S12: =Forecasts!AA71 -> 39571.22164 | T12: =Forecasts!AB71 -> 38973.49008 | U12: =Forecasts!AC71 -> 38396.35883 | V12: =Forecasts!AD71 -> 38213.33669 | W12: =Forecasts!AE71 -> 37829.53503 | X12: =Forecasts!AF71 -> 36731.09309 | Y12: =Forecasts!AG71 -> 35548.25817 | Z12: =Forecasts!AH71 -> 34595.02841 | AA12: =Forecasts!AI71 -> 33464.14787 | AB12: =Forecasts!AJ71 -> 32103.70615 | AC12: =Forecasts!AK71 -> 30616.35613 | AD12: =Forecasts!AL71 -> 29042.59963 | AE12: =Forecasts!AM71 -> 27366.22555 | AF12: =Forecasts!AN71 -> 25494.14758 | AG12: =Forecasts!AO71 -> 23713.38122 | AH12: =Forecasts!AP71 -> 21870.39786 | AI12: =Forecasts!AQ71 -> 20196.75458 | AJ12: =Forecasts!AR71 -> 18662.72183 | AK12: =Forecasts!AS71 -> 17225.81651 | AL12: =Forecasts!AT71 -> 16875.75053 | AM12: =Forecasts!AU71 -> 16012.85485 | AN12: =Forecasts!AV71 -> 14873.29332 | AO12: =Forecasts!AW71 -> 13749.60972 | AP12: =Forecasts!AX71 -> 12713.80476 | AQ12: =Forecasts!AY71 -> 11742.04477 | AR12: =Forecasts!AZ71 -> 10819.8047 | AS12: =Forecasts!BA71 -> 9939.469335 | AT12: =Forecasts!BB71 -> 9095.637098 | AU12: =Forecasts!BC71 -> 8285.322426 | AV12: =Forecasts!BD71 -> 7511.138265 | AW12: =Forecasts!BE71 -> 6778.969692 | AX12: =Forecasts!BF71 -> 6093.914121 | AY12: =Forecasts!BG71 -> 5457.554662 | AZ12: =Forecasts!BH71 -> 4868.471071 | BA12: =Forecasts!BI71 -> 4323.641806 | BB12: =Forecasts!BJ71 -> 3819.750915 | BC12: =Forecasts!BK71 -> 3353.329262 | BD12: =Forecasts!BL71 -> 2956.421068 | BE12: =Forecasts!BM71 -> 2624.079256 | BF12: =Forecasts!BN71 -> 2331.898496 | BG12: =Forecasts!BO71 -> 2066.069284 | BH12: =Forecasts!BP71 -> 1819.795274 | BI12: =Forecasts!BQ71 -> 1572.664729 | BJ12: =Forecasts!BR71 -> 1323.523124 | BK12: =Forecasts!BS71 -> 1076.025285 | BL12: =Forecasts!BT71 -> 1700.777525 | BM12: =Forecasts!BU71 -> 1687.137168 | BN12: =Forecasts!BV71 -> 1673.55019 | BO12: =Forecasts!BW71 -> 1660.045768 | BP12: =Forecasts!BX71 -> 1646.623358 | BQ12: =Forecasts!BY71 -> 1633.28242 | BR12: =Forecasts!BZ71 -> 1620.022413 | BS12: =Forecasts!CA71 -> 1606.842802 | BT12: =Forecasts!CB71 -> 1593.743053 | BU12: =Forecasts!CC71 -> 1580.679788 | BV12: =Forecasts!CD71 -> 1567.695771 | BW12: =Forecasts!CE71 -> 1554.790472 | BX12: =Forecasts!CF71 -> 1541.963365 | BY12: =Forecasts!CG71 -> 1529.213923 | BZ12: =Forecasts!CH71 -> 1516.541625 | CA12: =Forecasts!CI71 -> 1503.920382 | CB12: =Forecasts!CJ71 -> 1491.353256 | CC12: =Forecasts!CK71 -> 1478.862226 | CD12: =Forecasts!CL71 -> 1479.004922
A13: Commercial | B13: =Forecasts!J141 -> 5036.21707 | C13: =Forecasts!K141 -> 4810.308686 | D13: =Forecasts!L141 -> 4376.648588 | E13: =Forecasts!M141 -> 4209.991005 | F13: =Forecasts!N141 -> 3908.822636 | G13: =Forecasts!O141 -> 4009.316649 | H13: =Forecasts!P141 -> 3984.314606 | I13: =Forecasts!Q141 -> 3693.648949 | J13: =Forecasts!R141 -> 3283.922552 | K13: =Forecasts!S141 -> 2894.552016 | L13: =Forecasts!T141 -> 2593.0223 | M13: =Forecasts!U141 -> 2600.671828 | N13: =Forecasts!V141 -> 2444.852037 | O13: =Forecasts!W141 -> 2234.810331 | P13: =Forecasts!X141 -> 2020.263521 | Q13: =Forecasts!Y141 -> 2159.302864 | R13: =Forecasts!Z141 -> 2021.956342 | S13: =Forecasts!AA141 -> 1862.527836 | T13: =Forecasts!AB141 -> 1696.318565 | U13: =Forecasts!AC141 -> 1561.821799 | V13: =Forecasts!AD141 -> 1462.497414 | W13: =Forecasts!AE141 -> 1356.693119 | X13: =Forecasts!AF141 -> 1231.634343 | Y13: =Forecasts!AG141 -> 1126.043271 | Z13: =Forecasts!AH141 -> 1045.127252 | AA13: =Forecasts!AI141 -> 967.9365679 | AB13: =Forecasts!AJ141 -> 896.9817794 | AC13: =Forecasts!AK141 -> 833.4979617 | AD13: =Forecasts!AL141 -> 776.2093031 | AE13: =Forecasts!AM141 -> 725.1316184 | AF13: =Forecasts!AN141 -> 674.5386729 | AG13: =Forecasts!AO141 -> 631.8339372 | AH13: =Forecasts!AP141 -> 586.7067825 | AI13: =Forecasts!AQ141 -> 549.9901963 | AJ13: =Forecasts!AR141 -> 516.0741252 | AK13: =Forecasts!AS141 -> 485.0216054 | AL13: =Forecasts!AT141 -> 455.8775795 | AM13: =Forecasts!AU141 -> 428.8616224 | AN13: =Forecasts!AV141 -> 404.2782206 | AO13: =Forecasts!AW141 -> 381.3347254 | AP13: =Forecasts!AX141 -> 360.4907196 | AQ13: =Forecasts!AY141 -> 340.5897316 | AR13: =Forecasts!AZ141 -> 322.5886286 | AS13: =Forecasts!BA141 -> 305.7084468 | AT13: =Forecasts!BB141 -> 289.6657511 | AU13: =Forecasts!BC141 -> 274.9051176 | AV13: =Forecasts!BD141 -> 260.8140495 | AW13: =Forecasts!BE141 -> 247.7410777 | AX13: =Forecasts!BF141 -> 236.4351302 | AY13: =Forecasts!BG141 -> 226.3303052 | AZ13: =Forecasts!BH141 -> 216.6465793 | BA13: =Forecasts!BI141 -> 207.6294587 | BB13: =Forecasts!BJ141 -> 199.3144603 | BC13: =Forecasts!BK141 -> 191.6445615 | BD13: =Forecasts!BL141 -> 184.5184096 | BE13: =Forecasts!BM141 -> 177.6514747 | BF13: =Forecasts!BN141 -> 171.1936055 | BG13: =Forecasts!BO141 -> 165.1529114 | BH13: =Forecasts!BP141 -> 159.6146241 | BI13: =Forecasts!BQ141 -> 154.6963269 | BJ13: =Forecasts!BR141 -> 150.3111619 | BK13: =Forecasts!BS141 -> 146.3788505 | BL13: =Forecasts!BT141 -> 142.8307865 | BM13: =Forecasts!BU141 -> 139.3081118 | BN13: =Forecasts!BV141 -> 135.9820607 | BO13: =Forecasts!BW141 -> 132.9200157 | BP13: =Forecasts!BX141 -> 129.8798011 | BQ13: =Forecasts!BY141 -> 126.8613124 | BR13: =Forecasts!BZ141 -> 123.864446 | BS13: =Forecasts!CA141 -> 121.2529917 | BT13: =Forecasts!CB141 -> 118.6601032 | BU13: =Forecasts!CC141 -> 117.1057423 | BV13: =Forecasts!CD141 -> 115.56175 | BW13: =Forecasts!CE141 -> 114.2656234 | BX13: =Forecasts!CF141 -> 113.529639 | BY13: =Forecasts!CG141 -> 112.7976381 | BZ13: =Forecasts!CH141 -> 112.0695943 | CA13: =Forecasts!CI141 -> 111.3454814 | CB13: =Forecasts!CJ141 -> 110.6252734 | CC13: =Forecasts!CK141 -> 109.9089442 | CD13: =Forecasts!CL141 -> 109.196468
A14: Multinet | B14: =SUM(B12:B13) -> 46561.42286 | C14: 45671.46048 | D14: 43839.23152 | E14: 46025.62552 | F14: 46798.79419 | G14: 48584.45789 | H14: 49380.56502 | I14: 48869.94866 | J14: 46880.26659 | K14: 45311.80592 | L14: 44661.39044 | M14: 47289.6247 | N14: 47388.5364 | O14: 46466.18823 | P14: 45218.10922 | Q14: 43880.76199 | R14: 42898.34897 | S14: 41433.74948 | T14: 40669.80865 | U14: 39958.18063 | V14: 39675.8341 | W14: 39186.22814 | X14: 37962.72744 | Y14: 36674.30145 | Z14: 35640.15567 | AA14: 34432.08444 | AB14: 33000.68793 | AC14: 31449.85409 | AD14: 29818.80894 | AE14: 28091.35716 | AF14: 26168.68625 | AG14: 24345.21516 | AH14: =SUM(AH12:AH13) -> 22457.10464 | AI14: 20746.74477 | AJ14: 19178.79595 | AK14: 17710.83811 | AL14: 17331.62811 | AM14: 16441.71647 | AN14: 15277.57154 | AO14: 14130.94445 | AP14: 13074.29548 | AQ14: 12082.6345 | AR14: 11142.39333 | AS14: 10245.17778 | AT14: 9385.302849 | AU14: 8560.227544 | AV14: 7771.952315 | AW14: 7026.71077 | AX14: 6330.349251 | AY14: 5683.884967 | AZ14: 5085.11765 | BA14: 4531.271264 | BB14: 4019.065375 | BC14: 3544.973823 | BD14: 3140.939478 | BE14: 2801.730731 | BF14: 2503.092102 | BG14: 2231.222196 | BH14: 1979.409898 | BI14: 1727.361055 | BJ14: 1473.834285 | BK14: 1222.404135 | BL14: 1843.608312 | BM14: 1826.44528 | BN14: =SUM(BN12:BN13) -> 1809.532251 | BO14: 1792.965784 | BP14: 1776.50316 | BQ14: 1760.143732 | BR14: 1743.886859 | BS14: 1728.095794 | BT14: 1712.403156 | BU14: 1697.785531 | BV14: 1683.257521 | BW14: 1669.056096 | BX14: 1655.493004 | BY14: 1642.011561 | BZ14: 1628.61122 | CA14: 1615.265863 | CB14: 1601.97853 | CC14: 1588.77117 | CD14: 1588.20139
A49: Residential | D49: 2022 | E49: =D49+1 -> 2023 | F49: =E49+1 -> 2024 | G49: =F49+1 -> 2025 | H49: =G49+1 -> 2026 | I49: =H49+1 -> 2027 | J49: =I49+1 -> 2028 | K49: =J49+1 -> 2029 | L49: =K49+1 -> 2030 | M49: =L49+1 -> 2031 | N49: =M49+1 -> 2032 | O49: =N49+1 -> 2033 | P49: =O49+1 -> 2034 | Q49: =P49+1 -> 2035 | R49: =Q49+1 -> 2036 | S49: =R49+1 -> 2037 | T49: =S49+1 -> 2038 | U49: =T49+1 -> 2039 | V49: =U49+1 -> 2040 | W49: =V49+1 -> 2041 | X49: =W49+1 -> 2042 | Y49: =X49+1 -> 2043 | Z49: =Y49+1 -> 2044 | AA49: =Z49+1 -> 2045 | AB49: =AA49+1 -> 2046 | AC49: =AB49+1 -> 2047 | AD49: =AC49+1 -> 2048 | AE49: =AD49+1 -> 2049 | AF49: =AE49+1 -> 2050 | AG49: =AF49+1 -> 2051 | AH49: =AG49+1 -> 2052 | AI49: =AH49+1 -> 2053 | AJ49: =AI49+1 -> 2054 | AK49: =AJ49+1 -> 2055 | AL49: =AK49+1 -> 2056 | AM49: =AL49+1 -> 2057 | AN49: =AM49+1 -> 2058 | AO49: =AN49+1 -> 2059 | AP49: =AO49+1 -> 2060 | AQ49: =AP49+1 -> 2061 | AR49: =AQ49+1 -> 2062 | AS49: =AR49+1 -> 2063 | AT49: =AS49+1 -> 2064 | AU49: =AT49+1 -> 2065 | AV49: =AU49+1 -> 2066 | AW49: =AV49+1 -> 2067 | AX49: =AW49+1 -> 2068 | AY49: =AX49+1 -> 2069 | AZ49: =AY49+1 -> 2070 | BA49: =AZ49+1 -> 2071 | BB49: =BA49+1 -> 2072 | BC49: =BB49+1 -> 2073 | BD49: =BC49+1 -> 2074 | BE49: =BD49+1 -> 2075 | BF49: =BE49+1 -> 2076 | BG49: =BF49+1 -> 2077 | BH49: =BG49+1 -> 2078 | BI49: =BH49+1 -> 2079 | BJ49: =BI49+1 -> 2080 | BK49: =BJ49+1 -> 2081 | BL49: =BK49+1 -> 2082 | BM49: =BL49+1 -> 2083 | BN49: =BM49+1 -> 2084 | BO49: =BN49+1 -> 2085 | BP49: =BO49+1 -> 2086 | BQ49: =BP49+1 -> 2087 | BR49: =BQ49+1 -> 2088 | BS49: =BR49+1 -> 2089 | BT49: =BS49+1 -> 2090 | BU49: =BT49+1 -> 2091 | BV49: =BU49+1 -> 2092 | BW49: =BV49+1 -> 2093 | BX49: =BW49+1 -> 2094 | BY49: =BX49+1 -> 2095 | BZ49: =BY49+1 -> 2096 | CA49: =BZ49+1 -> 2097 | CB49: =CA49+1 -> 2098 | CC49: =CB49+1 -> 2099 | CD49: =CC49+1 -> 2100
A50: Daily supply charge | D50: ='[15]ACIL Input-Output Interface'!D$87/365 -> 0.188 | E50: ='[15]ACIL Input-Output Interface'!E$87/365 -> 0.1496966222 | F50: ='[15]ACIL Input-Output Interface'!F$87/365 -> 0.1411267972 | G50: ='[15]ACIL Input-Output Interface'!G$87/365 -> 0.1479086649 | H50: ='[15]ACIL Input-Output Interface'!H$87/365 -> 0.1461627065 | I50: ='[15]ACIL Input-Output Interface'!I$87/365 -> 0.1481921509 | J50: ='[15]ACIL Input-Output Interface'!J$87/365 -> 0.1524325125 | K50: ='[15]ACIL Input-Output Interface'!K$87/365 -> 0.1544424755 | L50: ='[15]ACIL Input-Output Interface'!L$87/365 -> 0.1486301483 | M50: ='[15]ACIL Input-Output Interface'!M$87/365 -> 0.1401072384 | N50: ='[15]ACIL Input-Output Interface'!N$87/365 -> 0.1341040972 | O50: ='[15]ACIL Input-Output Interface'!O$87/365 -> 0.1393311826 | P50: ='[15]ACIL Input-Output Interface'!P$87/365 -> 0.1423300047 | Q50: ='[15]ACIL Input-Output Interface'!Q$87/365 -> 0.1496118622 | R50: ='[15]ACIL Input-Output Interface'!R$87/365 -> 0.1520773592 | S50: ='[15]ACIL Input-Output Interface'!S$87/365 -> 0.1648035424 | T50: ='[15]ACIL Input-Output Interface'!T$87/365 -> 0.1514900539 | U50: ='[15]ACIL Input-Output Interface'!U$87/365 -> 0.1483577864 | V50: ='[15]ACIL Input-Output Interface'!V$87/365 -> 0.1473099857 | W50: ='[15]ACIL Input-Output Interface'!W$87/365 -> 0.1453740495 | X50: ='[15]ACIL Input-Output Interface'!X$87/365 -> 0.1451874281 | Y50: ='[15]ACIL Input-Output Interface'!Y$87/365 -> 0.146694126 | Z50: ='[15]ACIL Input-Output Interface'!Z$87/365 -> 0.1473507817 | AA50: ='[15]ACIL Input-Output Interface'!AA$87/365 -> 0.147529597 | AB50: ='[15]ACIL Input-Output Interface'!AB$87/365 -> 0.1504212256 | AC50: ='[15]ACIL Input-Output Interface'!AC$87/365 -> 0.1543328798 | AD50: ='[15]ACIL Input-Output Interface'!AD$87/365 -> 0.1588097024 | AE50: ='[15]ACIL Input-Output Interface'!AE$87/365 -> 0.1641067362 | AF50: ='[15]ACIL Input-Output Interface'!AF$87/365 -> 0.1705782238 | AG50: ='[15]ACIL Input-Output Interface'!AG$87/365 -> 0.1791856509 | AH50: ='[15]ACIL Input-Output Interface'!AH$87/365 -> 0.1871004459 | AI50: ='[15]ACIL Input-Output Interface'!AI$87/365 -> 0.1969453428 | AJ50: ='[15]ACIL Input-Output Interface'!AJ$87/365 -> 0.2058339034 | AK50: ='[15]ACIL Input-Output Interface'!AK$87/365 -> 0.2154653628 | AL50: ='[15]ACIL Input-Output Interface'!AL$87/365 -> 0.1687655527 | AM50: ='[15]ACIL Input-Output Interface'!AM$87/365 -> 0.1686362267 | AN50: ='[15]ACIL Input-Output Interface'!AN$87/365 -> 0.1816170884 | AO50: ='[15]ACIL Input-Output Interface'!AO$87/365 -> 0.1938958242 | AP50: ='[15]ACIL Input-Output Interface'!AP$87/365 -> 0.2042386322 | AQ50: ='[15]ACIL Input-Output Interface'!AQ$87/365 -> 0.2151394226 | AR50: ='[15]ACIL Input-Output Interface'!AR$87/365 -> 0.2271509149 | AS50: ='[15]ACIL Input-Output Interface'!AS$87/365 -> 0.2403304585 | AT50: ='[15]ACIL Input-Output Interface'!AT$87/365 -> 0.2548072931 | AU50: ='[15]ACIL Input-Output Interface'!AU$87/365 -> 0.2708350065 | AV50: ='[15]ACIL Input-Output Interface'!AV$87/365 -> 0.2886696373 | AW50: ='[15]ACIL Input-Output Interface'!AW$87/365 -> 0.3083428929 | AX50: ='[15]ACIL Input-Output Interface'!AX$87/365 -> 0.3297571271 | AY50: ='[15]ACIL Input-Output Interface'!AY$87/365 -> 0.3528484492 | AZ50: ='[15]ACIL Input-Output Interface'!AZ$87/365 -> 0.3777012524 | BA50: ='[15]ACIL Input-Output Interface'!BA$87/365 -> 0.4045148281 | BB50: ='[15]ACIL Input-Output Interface'!BB$87/365 -> 0.4335130652 | BC50: ='[15]ACIL Input-Output Interface'!BC$87/365 -> 0.4649054529 | BD50: ='[15]ACIL Input-Output Interface'!BD$87/365 -> 0.4871588419 | BE50: ='[15]ACIL Input-Output Interface'!BE$87/365 -> 0.5044173768 | BF50: ='[15]ACIL Input-Output Interface'!BF$87/365 -> 0.5241721623 | BG50: ='[15]ACIL Input-Output Interface'!BG$87/365 -> 0.5474967284 | BH50: ='[15]ACIL Input-Output Interface'!BH$87/365 -> 0.5745659036 | BI50: ='[15]ACIL Input-Output Interface'!BI$87/365 -> 0.6160409889 | BJ50: ='[15]ACIL Input-Output Interface'!BJ$87/365 -> 0.6674792507 | BK50: ='[15]ACIL Input-Output Interface'!BK$87/365 -> 0.724959973 | BL50: ='[15]ACIL Input-Output Interface'!BL$87/365 -> 0 | BM50: ='[15]ACIL Input-Output Interface'!BM$87/365 -> 0 | BN50: ='[15]ACIL Input-Output Interface'!BN$87/365 -> 0 | BO50: ='[15]ACIL Input-Output Interface'!BO$87/365 -> 0 | BP50: ='[15]ACIL Input-Output Interface'!BP$87/365 -> 0 | BQ50: ='[15]ACIL Input-Output Interface'!BQ$87/365 -> 0 | BR50: ='[15]ACIL Input-Output Interface'!BR$87/365 -> 0 | BS50: ='[15]ACIL Input-Output Interface'!BS$87/365 -> 0 | BT50: ='[15]ACIL Input-Output Interface'!BT$87/365 -> 0 | BU50: ='[15]ACIL Input-Output Interface'!BU$87/365 -> 0 | BV50: ='[15]ACIL Input-Output Interface'!BV$87/365 -> 0 | BW50: ='[15]ACIL Input-Output Interface'!BW$87/365 -> 0 | BX50: ='[15]ACIL Input-Output Interface'!BX$87/365 -> 0 | BY50: ='[15]ACIL Input-Output Interface'!BY$87/365 -> 0 | BZ50: ='[15]ACIL Input-Output Interface'!BZ$87/365 -> 0 | CA50: ='[15]ACIL Input-Output Interface'!CA$87/365 -> 0 | CB50: ='[15]ACIL Input-Output Interface'!CB$87/365 -> 0 | CC50: ='[15]ACIL Input-Output Interface'!CC$87/365 -> 0 | CD50: ='[15]ACIL Input-Output Interface'!CD$87/365 -> 0
A51: Average volumetric charge $/GJ | D51: ='[15]ACIL Input-Output Interface'!D$88 -> 4.342559263 | E51: ='[15]ACIL Input-Output Interface'!E$88 -> 3.456357656 | F51: ='[15]ACIL Input-Output Interface'!F$88 -> 3.131064481 | G51: ='[15]ACIL Input-Output Interface'!G$88 -> 3.249220059 | H51: ='[15]ACIL Input-Output Interface'!H$88 -> 3.140231661 | I51: ='[15]ACIL Input-Output Interface'!I$88 -> 3.174091755 | J51: ='[15]ACIL Input-Output Interface'!J$88 -> 3.329985344 | K51: ='[15]ACIL Input-Output Interface'!K$88 -> 3.553166632 | L51: ='[15]ACIL Input-Output Interface'!L$88 -> 3.569788494 | M51: ='[15]ACIL Input-Output Interface'!M$88 -> 3.443976345 | N51: ='[15]ACIL Input-Output Interface'!N$88 -> 3.097959721 | O51: ='[15]ACIL Input-Output Interface'!O$88 -> 3.184270907 | P51: ='[15]ACIL Input-Output Interface'!P$88 -> 3.289208129 | Q51: ='[15]ACIL Input-Output Interface'!Q$88 -> 3.524197026 | R51: ='[15]ACIL Input-Output Interface'!R$88 -> 3.694751766 | S51: ='[15]ACIL Input-Output Interface'!S$88 -> 4.067573789 | T51: ='[15]ACIL Input-Output Interface'!T$88 -> 3.846569344 | U51: ='[15]ACIL Input-Output Interface'!U$88 -> 3.805717145 | V51: ='[15]ACIL Input-Output Interface'!V$88 -> 3.815756423 | W51: ='[15]ACIL Input-Output Interface'!W$88 -> 3.762314311 | X51: ='[15]ACIL Input-Output Interface'!X$88 -> 3.773248469 | Y51: ='[15]ACIL Input-Output Interface'!Y$88 -> 3.900033632 | Z51: ='[15]ACIL Input-Output Interface'!Z$88 -> 4.0047067 | AA51: ='[15]ACIL Input-Output Interface'!AA$88 -> 4.053894715 | AB51: ='[15]ACIL Input-Output Interface'!AB$88 -> 4.17659536 | AC51: ='[15]ACIL Input-Output Interface'!AC$88 -> 4.339944781 | AD51: ='[15]ACIL Input-Output Interface'!AD$88 -> 4.51984521 | AE51: ='[15]ACIL Input-Output Interface'!AE$88 -> 4.722009799 | AF51: ='[15]ACIL Input-Output Interface'!AF$88 -> 4.963886552 | AG51: ='[15]ACIL Input-Output Interface'!AG$88 -> 5.30103558 | AH51: ='[15]ACIL Input-Output Interface'!AH$88 -> 5.615865648 | AI51: ='[15]ACIL Input-Output Interface'!AI$88 -> 6.035620363 | AJ51: ='[15]ACIL Input-Output Interface'!AJ$88 -> 6.418763839 | AK51: ='[15]ACIL Input-Output Interface'!AK$88 -> 6.825364061 | AL51: ='[15]ACIL Input-Output Interface'!AL$88 -> 5.433505432 | AM51: ='[15]ACIL Input-Output Interface'!AM$88 -> 5.20031824 | AN51: ='[15]ACIL Input-Output Interface'!AN$88 -> 5.563908488 | AO51: ='[15]ACIL Input-Output Interface'!AO$88 -> 6.030962179 | AP51: ='[15]ACIL Input-Output Interface'!AP$88 -> 6.473109268 | AQ51: ='[15]ACIL Input-Output Interface'!AQ$88 -> 6.938312044 | AR51: ='[15]ACIL Input-Output Interface'!AR$88 -> 7.457204076 | AS51: ='[15]ACIL Input-Output Interface'!AS$88 -> 8.042774637 | AT51: ='[15]ACIL Input-Output Interface'!AT$88 -> 8.707194579 | AU51: ='[15]ACIL Input-Output Interface'!AU$88 -> 9.468202655 | AV51: ='[15]ACIL Input-Output Interface'!AV$88 -> 10.34785833 | AW51: ='[15]ACIL Input-Output Interface'!AW$88 -> 11.36544605 | AX51: ='[15]ACIL Input-Output Interface'!AX$88 -> 12.53889411 | AY51: ='[15]ACIL Input-Output Interface'!AY$88 -> 13.89000811 | AZ51: ='[15]ACIL Input-Output Interface'!AZ$88 -> 15.45211642 | BA51: ='[15]ACIL Input-Output Interface'!BA$88 -> 17.27396349 | BB51: ='[15]ACIL Input-Output Interface'!BB$88 -> 19.42370344 | BC51: ='[15]ACIL Input-Output Interface'!BC$88 -> 21.99313062 | BD51: ='[15]ACIL Input-Output Interface'!BD$88 -> 24.52091868 | BE51: ='[15]ACIL Input-Output Interface'!BE$88 -> 26.84684267 | BF51: ='[15]ACIL Input-Output Interface'!BF$88 -> 29.22209341 | BG51: ='[15]ACIL Input-Output Interface'!BG$88 -> 31.89329376 | BH51: ='[15]ACIL Input-Output Interface'!BH$88 -> 35.07760421 | BI51: ='[15]ACIL Input-Output Interface'!BI$88 -> 39.68552313 | BJ51: ='[15]ACIL Input-Output Interface'!BJ$88 -> 46.49695331 | BK51: ='[15]ACIL Input-Output Interface'!BK$88 -> 56.63938709 | BL51: ='[15]ACIL Input-Output Interface'!BL$88 -> 0 | BM51: ='[15]ACIL Input-Output Interface'!BM$88 -> 0 | BN51: ='[15]ACIL Input-Output Interface'!BN$88 -> 0 | BO51: ='[15]ACIL Input-Output Interface'!BO$88 -> 0 | BP51: ='[15]ACIL Input-Output Interface'!BP$88 -> 0 | BQ51: ='[15]ACIL Input-Output Interface'!BQ$88 -> 0 | BR51: ='[15]ACIL Input-Output Interface'!BR$88 -> 0 | BS51: ='[15]ACIL Input-Output Interface'!BS$88 -> 0 | BT51: ='[15]ACIL Input-Output Interface'!BT$88 -> 0 | BU51: ='[15]ACIL Input-Output Interface'!BU$88 -> 0 | BV51: ='[15]ACIL Input-Output Interface'!BV$88 -> 0 | BW51: ='[15]ACIL Input-Output Interface'!BW$88 -> 0 | BX51: ='[15]ACIL Input-Output Interface'!BX$88 -> 0 | BY51: ='[15]ACIL Input-Output Interface'!BY$88 -> 0 | BZ51: ='[15]ACIL Input-Output Interface'!BZ$88 -> 0 | CA51: ='[15]ACIL Input-Output Interface'!CA$88 -> 0 | CB51: ='[15]ACIL Input-Output Interface'!CB$88 -> 0 | CC51: ='[15]ACIL Input-Output Interface'!CC$88 -> 0 | CD51: ='[15]ACIL Input-Output Interface'!CD$88 -> 0
A52: Commercial
A53: Daily supply charge | D53: ='[15]ACIL Input-Output Interface'!D$89/365 -> 0.3099917545 | E53: ='[15]ACIL Input-Output Interface'!E$89/365 -> 0.2539957529 | F53: ='[15]ACIL Input-Output Interface'!F$89/365 -> 0.2596011388 | G53: ='[15]ACIL Input-Output Interface'!G$89/365 -> 0.295539338 | H53: ='[15]ACIL Input-Output Interface'!H$89/365 -> 0.297482406 | I53: ='[15]ACIL Input-Output Interface'!I$89/365 -> 0.3086756717 | J53: ='[15]ACIL Input-Output Interface'!J$89/365 -> 0.3376032023 | K53: ='[15]ACIL Input-Output Interface'!K$89/365 -> 0.3641476417 | L53: ='[15]ACIL Input-Output Interface'!L$89/365 -> 0.3799622516 | M53: ='[15]ACIL Input-Output Interface'!M$89/365 -> 0.3880408083 | N53: ='[15]ACIL Input-Output Interface'!N$89/365 -> 0.3912941227 | O53: ='[15]ACIL Input-Output Interface'!O$89/365 -> 0.4282463088 | P53: ='[15]ACIL Input-Output Interface'!P$89/365 -> 0.4633732637 | Q53: ='[15]ACIL Input-Output Interface'!Q$89/365 -> 0 | R53: ='[15]ACIL Input-Output Interface'!R$89/365 -> 0 | S53: ='[15]ACIL Input-Output Interface'!S$89/365 -> 0 | T53: ='[15]ACIL Input-Output Interface'!T$89/365 -> 0 | U53: ='[15]ACIL Input-Output Interface'!U$89/365 -> 0 | V53: ='[15]ACIL Input-Output Interface'!V$89/365 -> 0 | W53: ='[15]ACIL Input-Output Interface'!W$89/365 -> 0 | X53: ='[15]ACIL Input-Output Interface'!X$89/365 -> 0 | Y53: ='[15]ACIL Input-Output Interface'!Y$89/365 -> 0 | Z53: ='[15]ACIL Input-Output Interface'!Z$89/365 -> 0 | AA53: ='[15]ACIL Input-Output Interface'!AA$89/365 -> 0 | AB53: ='[15]ACIL Input-Output Interface'!AB$89/365 -> 0 | AC53: ='[15]ACIL Input-Output Interface'!AC$89/365 -> 0 | AD53: ='[15]ACIL Input-Output Interface'!AD$89/365 -> 0 | AE53: ='[15]ACIL Input-Output Interface'!AE$89/365 -> 0 | AF53: ='[15]ACIL Input-Output Interface'!AF$89/365 -> 0 | AG53: ='[15]ACIL Input-Output Interface'!AG$89/365 -> 0 | AH53: ='[15]ACIL Input-Output Interface'!AH$89/365 -> 0 | AI53: ='[15]ACIL Input-Output Interface'!AI$89/365 -> 0 | AJ53: ='[15]ACIL Input-Output Interface'!AJ$89/365 -> 0 | AK53: ='[15]ACIL Input-Output Interface'!AK$89/365 -> 0 | AL53: ='[15]ACIL Input-Output Interface'!AL$89/365 -> 0 | AM53: ='[15]ACIL Input-Output Interface'!AM$89/365 -> 0 | AN53: ='[15]ACIL Input-Output Interface'!AN$89/365 -> 0 | AO53: ='[15]ACIL Input-Output Interface'!AO$89/365 -> 0 | AP53: ='[15]ACIL Input-Output Interface'!AP$89/365 -> 0 | AQ53: ='[15]ACIL Input-Output Interface'!AQ$89/365 -> 0 | AR53: ='[15]ACIL Input-Output Interface'!AR$89/365 -> 0 | AS53: ='[15]ACIL Input-Output Interface'!AS$89/365 -> 0 | AT53: ='[15]ACIL Input-Output Interface'!AT$89/365 -> 0 | AU53: ='[15]ACIL Input-Output Interface'!AU$89/365 -> 0 | AV53: ='[15]ACIL Input-Output Interface'!AV$89/365 -> 0 | AW53: ='[15]ACIL Input-Output Interface'!AW$89/365 -> 0 | AX53: ='[15]ACIL Input-Output Interface'!AX$89/365 -> 0 | AY53: ='[15]ACIL Input-Output Interface'!AY$89/365 -> 0 | AZ53: ='[15]ACIL Input-Output Interface'!AZ$89/365 -> 0 | BA53: ='[15]ACIL Input-Output Interface'!BA$89/365 -> 0 | BB53: ='[15]ACIL Input-Output Interface'!BB$89/365 -> 0 | BC53: ='[15]ACIL Input-Output Interface'!BC$89/365 -> 0 | BD53: ='[15]ACIL Input-Output Interface'!BD$89/365 -> 0 | BE53: ='[15]ACIL Input-Output Interface'!BE$89/365 -> 0 | BF53: ='[15]ACIL Input-Output Interface'!BF$89/365 -> 0 | BG53: ='[15]ACIL Input-Output Interface'!BG$89/365 -> 0 | BH53: ='[15]ACIL Input-Output Interface'!BH$89/365 -> 0 | BI53: ='[15]ACIL Input-Output Interface'!BI$89/365 -> 0 | BJ53: ='[15]ACIL Input-Output Interface'!BJ$89/365 -> 0 | BK53: ='[15]ACIL Input-Output Interface'!BK$89/365 -> 0 | BL53: ='[15]ACIL Input-Output Interface'!BL$89/365 -> 0 | BM53: ='[15]ACIL Input-Output Interface'!BM$89/365 -> 0 | BN53: ='[15]ACIL Input-Output Interface'!BN$89/365 -> 0 | BO53: ='[15]ACIL Input-Output Interface'!BO$89/365 -> 0 | BP53: ='[15]ACIL Input-Output Interface'!BP$89/365 -> 0 | BQ53: ='[15]ACIL Input-Output Interface'!BQ$89/365 -> 0 | BR53: ='[15]ACIL Input-Output Interface'!BR$89/365 -> 0 | BS53: ='[15]ACIL Input-Output Interface'!BS$89/365 -> 0 | BT53: ='[15]ACIL Input-Output Interface'!BT$89/365 -> 0 | BU53: ='[15]ACIL Input-Output Interface'!BU$89/365 -> 0 | BV53: ='[15]ACIL Input-Output Interface'!BV$89/365 -> 0 | BW53: ='[15]ACIL Input-Output Interface'!BW$89/365 -> 0 | BX53: ='[15]ACIL Input-Output Interface'!BX$89/365 -> 0 | BY53: ='[15]ACIL Input-Output Interface'!BY$89/365 -> 0 | BZ53: ='[15]ACIL Input-Output Interface'!BZ$89/365 -> 0 | CA53: ='[15]ACIL Input-Output Interface'!CA$89/365 -> 0 | CB53: ='[15]ACIL Input-Output Interface'!CB$89/365 -> 0 | CC53: ='[15]ACIL Input-Output Interface'!CC$89/365 -> 0 | CD53: ='[15]ACIL Input-Output Interface'!CD$89/365 -> 0
A54: Average volumetric charge $/GJ | D54: ='[15]ACIL Input-Output Interface'!D$90 -> 1.582424981 | E54: ='[15]ACIL Input-Output Interface'!E$90 -> 1.231081141 | F54: ='[15]ACIL Input-Output Interface'!F$90 -> 1.226527854 | G54: ='[15]ACIL Input-Output Interface'!G$90 -> 1.41361151 | H54: ='[15]ACIL Input-Output Interface'!H$90 -> 1.383174575 | I54: ='[15]ACIL Input-Output Interface'!I$90 -> 1.432365227 | J54: ='[15]ACIL Input-Output Interface'!J$90 -> 1.623128086 | K54: ='[15]ACIL Input-Output Interface'!K$90 -> 1.907090028 | L54: ='[15]ACIL Input-Output Interface'!L$90 -> 2.152271435 | M54: ='[15]ACIL Input-Output Interface'!M$90 -> 2.330160079 | N54: ='[15]ACIL Input-Output Interface'!N$90 -> 2.212454485 | O54: ='[15]ACIL Input-Output Interface'!O$90 -> 2.442664379 | P54: ='[15]ACIL Input-Output Interface'!P$90 -> 2.740056792 | Q54: ='[15]ACIL Input-Output Interface'!Q$90 -> 0 | R54: ='[15]ACIL Input-Output Interface'!R$90 -> 0 | S54: ='[15]ACIL Input-Output Interface'!S$90 -> 0 | T54: ='[15]ACIL Input-Output Interface'!T$90 -> 0 | U54: ='[15]ACIL Input-Output Interface'!U$90 -> 0 | V54: ='[15]ACIL Input-Output Interface'!V$90 -> 0 | W54: ='[15]ACIL Input-Output Interface'!W$90 -> 0 | X54: ='[15]ACIL Input-Output Interface'!X$90 -> 0 | Y54: ='[15]ACIL Input-Output Interface'!Y$90 -> 0 | Z54: ='[15]ACIL Input-Output Interface'!Z$90 -> 0 | AA54: ='[15]ACIL Input-Output Interface'!AA$90 -> 0 | AB54: ='[15]ACIL Input-Output Interface'!AB$90 -> 0 | AC54: ='[15]ACIL Input-Output Interface'!AC$90 -> 0 | AD54: ='[15]ACIL Input-Output Interface'!AD$90 -> 0 | AE54: ='[15]ACIL Input-Output Interface'!AE$90 -> 0 | AF54: ='[15]ACIL Input-Output Interface'!AF$90 -> 0 | AG54: ='[15]ACIL Input-Output Interface'!AG$90 -> 0 | AH54: ='[15]ACIL Input-Output Interface'!AH$90 -> 0 | AI54: ='[15]ACIL Input-Output Interface'!AI$90 -> 0 | AJ54: ='[15]ACIL Input-Output Interface'!AJ$90 -> 0 | AK54: ='[15]ACIL Input-Output Interface'!AK$90 -> 0 | AL54: ='[15]ACIL Input-Output Interface'!AL$90 -> 0 | AM54: ='[15]ACIL Input-Output Interface'!AM$90 -> 0 | AN54: ='[15]ACIL Input-Output Interface'!AN$90 -> 0 | AO54: ='[15]ACIL Input-Output Interface'!AO$90 -> 0 | AP54: ='[15]ACIL Input-Output Interface'!AP$90 -> 0 | AQ54: ='[15]ACIL Input-Output Interface'!AQ$90 -> 0 | AR54: ='[15]ACIL Input-Output Interface'!AR$90 -> 0 | AS54: ='[15]ACIL Input-Output Interface'!AS$90 -> 0 | AT54: ='[15]ACIL Input-Output Interface'!AT$90 -> 0 | AU54: ='[15]ACIL Input-Output Interface'!AU$90 -> 0 | AV54: ='[15]ACIL Input-Output Interface'!AV$90 -> 0 | AW54: ='[15]ACIL Input-Output Interface'!AW$90 -> 0 | AX54: ='[15]ACIL Input-Output Interface'!AX$90 -> 0 | AY54: ='[15]ACIL Input-Output Interface'!AY$90 -> 0 | AZ54: ='[15]ACIL Input-Output Interface'!AZ$90 -> 0 | BA54: ='[15]ACIL Input-Output Interface'!BA$90 -> 0 | BB54: ='[15]ACIL Input-Output Interface'!BB$90 -> 0 | BC54: ='[15]ACIL Input-Output Interface'!BC$90 -> 0 | BD54: ='[15]ACIL Input-Output Interface'!BD$90 -> 0 | BE54: ='[15]ACIL Input-Output Interface'!BE$90 -> 0 | BF54: ='[15]ACIL Input-Output Interface'!BF$90 -> 0 | BG54: ='[15]ACIL Input-Output Interface'!BG$90 -> 0 | BH54: ='[15]ACIL Input-Output Interface'!BH$90 -> 0 | BI54: ='[15]ACIL Input-Output Interface'!BI$90 -> 0 | BJ54: ='[15]ACIL Input-Output Interface'!BJ$90 -> 0 | BK54: ='[15]ACIL Input-Output Interface'!BK$90 -> 0 | BL54: ='[15]ACIL Input-Output Interface'!BL$90 -> 0 | BM54: ='[15]ACIL Input-Output Interface'!BM$90 -> 0 | BN54: ='[15]ACIL Input-Output Interface'!BN$90 -> 0 | BO54: ='[15]ACIL Input-Output Interface'!BO$90 -> 0 | BP54: ='[15]ACIL Input-Output Interface'!BP$90 -> 0 | BQ54: ='[15]ACIL Input-Output Interface'!BQ$90 -> 0 | BR54: ='[15]ACIL Input-Output Interface'!BR$90 -> 0 | BS54: ='[15]ACIL Input-Output Interface'!BS$90 -> 0 | BT54: ='[15]ACIL Input-Output Interface'!BT$90 -> 0 | BU54: ='[15]ACIL Input-Output Interface'!BU$90 -> 0 | BV54: ='[15]ACIL Input-Output Interface'!BV$90 -> 0 | BW54: ='[15]ACIL Input-Output Interface'!BW$90 -> 0 | BX54: ='[15]ACIL Input-Output Interface'!BX$90 -> 0 | BY54: ='[15]ACIL Input-Output Interface'!BY$90 -> 0 | BZ54: ='[15]ACIL Input-Output Interface'!BZ$90 -> 0 | CA54: ='[15]ACIL Input-Output Interface'!CA$90 -> 0 | CB54: ='[15]ACIL Input-Output Interface'!CB$90 -> 0 | CC54: ='[15]ACIL Input-Output Interface'!CC$90 -> 0 | CD54: ='[15]ACIL Input-Output Interface'!CD$90 -> 0

Sheet Scenarios
A1: Scenario | B1: ='[15]ACIL Input-Output Interface'!$C$31 -> 1 | F1: 5 is not a Scenario, it’s a baseline for model calibration
A3: Discount Factor | B3: 1 | C3: 2 | D3: 3 | E3: 4 | F3: 5 | G3: Selected Input
A4: High income | B4: 0.06646118392 | C4: 0.06646118392 | D4: 0.07646118392 | E4: 0.07146118392 | F4: 0.05 | G4: =IF($B$1=$B$3,B4,IF($B$1=$C$3,C4,IF($B$1=$D$3,D4,IF($B$1=E4,$E$3,F4)))) -> 0.06646118392
A5: Medium income | B5: 0.09704565749 | C5: 0.09704565749 | D5: 0.1070456575 | E5: 0.1020456575 | F5: 0.1 | G5: =IF($B$1=$B$3,B5,IF($B$1=$C$3,C5,IF($B$1=$D$3,D5,IF($B$1=E5,$E$3,F5)))) -> 0.09704565749
A6: Low income | B6: 0.1735068414 | C6: 0.1735068414 | D6: 0.1835068414 | E6: 0.1785068414 | F6: 0.15 | G6: 0.1735068414
A7: Commercial | B7: 0.0472 | C7: 0.0472 | D7: 0.0572 | E7: 0.0522 | F7: 0.03 | G7: 0.0472
F8: *In original ACIL model
A9: Appliance efficiency | B9: 1 | C9: 2 | D9: 3 | E9: 4 | F9: 5 | G9: Selected Input | I9: Appliance costs | J9: -0.005
A10: Cooking | I10: Cooking | J10: real % change (p.a.)
A11: Electric cooktop (induction) | B11: 0.0064 | C11: 0.006 | D11: 0.0057 | E11: 0 | F11: 0 | G11: =IF($B$1=$B$9,B11,IF($B$1=$C$9,C11,IF($B$1=$D$9,D11,IF($B$1=$E$9,E11,F11)))) -> 0.0064 | I11: Electric cooktop (induction) | J11: =J9 -> -0.005 | K11: =IF(AND($B$1=5,$J$9=0),0,J11) -> -0.005
A12: Gas stove | B12: 0 | C12: 0 | D12: 0.0057 | E12: 0.0064 | F12: 0 | G12: =IF($B$1=$B$9,B12,IF($B$1=$C$9,C12,IF($B$1=$D$9,D12,IF($B$1=$E$9,E12,F12)))) -> 0 | I12: Gas stove | J12: 0 | K12: =IF(AND($B$1=5,$J$9=0),0,J12) -> 0
A14: Hot water | I14: Hot water
A15: Heat pump hot water | B15: 0.0064 | C15: 0.0064 | D15: 0 | E15: 0 | F15: 0 | G15: =IF($B$1=$B$9,B15,IF($B$1=$C$9,C15,IF($B$1=$D$9,D15,IF($B$1=$E$9,E15,F15)))) -> 0.0064 | I15: Heat pump hot water | J15: =J9 -> -0.005 | K15: =IF(AND($B$1=5,$J$9=0),0,J15) -> -0.005
A16: Gas instant hot water | B16: 0 | C16: 0 | D16: 0 | E16: 0.0082 | F16: 0 | G16: 0 | I16: Gas instant hot water | J16: 0 | K16: 0
A18: Room heating | I18: Room heating
A19: RCAC split system | B19: 0 | C19: 0 | D19: 0 | E19: 0.002 | F19: 0 | G19: 0 | I19: RCAC split system | J19: =J9 -> -0.005 | K19: -0.005
A20: Gas wall furnace | B20: 0 | C20: 0 | D20: 0 | E20: 0 | F20: 0 | G20: 0 | I20: Gas wall furnace | J20: 0 | K20: 0
A22: Ducted heating | I22: Ducted heating
A23: Ducted RCAC | B23: 0.0029 | C23: 0.0029 | D23: 0.002 | E23: 0 | F23: 0 | G23: 0.0029 | I23: Ducted RCAC | J23: =J9 -> -0.005 | K23: -0.005
A24: Ducted gas heating | B24: 0 | C24: 0 | D24: 0.002 | E24: 0.002 | F24: 0 | G24: 0 | I24: Ducted gas heating | J24: 0 | K24: 0
A27: Maintenance costs | B27: 1 | C27: 2 | D27: 3 | E27: 4 | F27: 5 | G27: Selected Input | I27: Connection/Disconnection Sensitity | J27: Residential | L27: Commercial
A28: Cooking | I28: 1 | J28: 0.86 | K28: -0.0024 | L28: 0.86 | M28: -0.0005942857143
A29: Electric cooktop (induction) | B29: -0.0064 | C29: -0.006 | D29: -0.0057 | E29: 0 | F29: 0 | G29: =IF($B$1=$B$27,B29,IF($B$1=$C$27,C29,IF($B$1=$D$27,D29,IF($B$1=$E$27,E29,F29)))) -> -0.0064 | I29: 2 | J29: 0.86 | K29: -0.0024 | L29: 0.86 | M29: -0.0005942857143
A30: Gas stove | B30: 0 | C30: 0 | D30: -0.0057 | E30: -0.0064 | F30: 0 | G30: =IF($B$1=$B$27,B30,IF($B$1=$C$27,C30,IF($B$1=$D$27,D30,IF($B$1=$E$27,E30,F30)))) -> 0 | I30: 3 | J30: Not used for GSR
I31: 4 | J31: Not used for GSR
A32: Hot water | I32: Selected Input | J32: =IF($B$1=1,J28,IF($B$1=2,J29,IF($B$1=3,J30,IF($B$1=4,J31,J30)))) -> 0.86 | K32: =IF($B$1=1,K28,IF($B$1=2,K29,IF($B$1=3,K30,IF($B$1=4,K31,K30)))) -> -0.0024 | L32: =IF($B$1=1,L28,IF($B$1=2,L29,IF($B$1=3,L30,IF($B$1=4,L31,L30)))) -> 0.86 | M32: =IF($B$1=1,M28,IF($B$1=2,M29,IF($B$1=3,M30,IF($B$1=4,M31,M30)))) -> -0.0005942857143
A33: Heat pump hot water | B33: -0.0064 | C33: -0.0064 | D33: 0 | E33: 0 | F33: 0 | G33: -0.0064
A34: Gas instant hot water | B34: 0 | C34: 0 | D34: 0 | E34: -0.0082 | F34: 0 | G34: 0
A36: Room heating
A37: RCAC split system | B37: 0 | C37: 0 | D37: 0 | E37: -0.002 | F37: 0 | G37: 0
A38: Gas wall furnace | B38: 0 | C38: 0 | D38: 0 | E38: 0 | F38: 0 | G38: 0
A40: Ducted heating
A41: Ducted RCAC | B41: -0.0029 | C41: -0.0029 | D41: -0.002 | E41: 0 | F41: 0 | G41: -0.0029
A42: Ducted gas heating | B42: 0 | C42: 0 | D42: -0.002 | E42: -0.002 | F42: 0 | G42: 0
A44: Elasticities | B44: 1 | C44: 2 | D44: 3 | E44: 4 | F44: 5 | G44: Selected Input
A45: Residential
A46: Weather | B46: 0.3555523 | C46: 0.3555523 | D46: 0.3555523 | E46: 0.3555523 | F46: 0.3555523 | G46: =IF($B$1=$B$44,B46,IF($B$1=$C$44,C46,IF($B$1=$D$44,D46,IF($B$1=$E$44,E46,F46)))) -> 0.3555523
A47: Gas price | B47: -0.8 | C47: -0.7 | D47: -0.6 | E47: -0.4 | F47: -0.1 | G47: =IF($B$1=$B$44,B47,IF($B$1=$C$44,C47,IF($B$1=$D$44,D47,IF($B$1=$E$44,E47,F47)))) -> -0.8
A48: Electricity price | B48: 0.008 | C48: 0.008 | D48: 0.008 | E48: 0.008 | F48: 0.08 | G48: 0.008 | I48: Gas Price | J48: 0
A49: Commercial
A50: Weather | B50: 0.1551871 | C50: 0.1551871 | D50: 0.1551871 | E50: 0.1551871 | F50: 0.1551871 | G50: 0.1551871
A51: Gas price | B51: -0.9 | C51: -0.8 | D51: -0.7 | E51: -0.5 | F51: -0.35 | G51: -0.9 | I51: Percent of status quo in prices | J51: 0
A52: Electricity price | B52: 0.008 | C52: 0.008 | D52: 0.008 | E52: 0.008 | F52: 0.3 | G52: 0.008 | I52: Upper NPV electrification threshold | J52: 1
F53: *In original ACIL model | I53: Electric Variable Charge Growth | J53: 0
E54: =(1+J48) -> 1 | F54: =(1+$J$48)*E54 -> 1 | G54: =(1+$J$48)*F54 -> 1 | H54: 1 | I54: 1 | J54: 1 | K54: 1 | L54: 1 | M54: 1 | N54: 1 | O54: 1 | P54: 1 | Q54: 1 | R54: 1 | S54: 1 | T54: 1 | U54: 1 | V54: 1 | W54: 1 | X54: 1 | Y54: 1 | Z54: 1 | AA54: 1 | AB54: 1 | AC54: 1 | AD54: 1 | AE54: 1 | AF54: 1 | AG54: 1 | AH54: 1 | AI54: 1 | AJ54: 1 | AK54: 1 | AL54: 1 | AM54: 1 | AN54: 1 | AO54: 1 | AP54: 1 | AQ54: 1 | AR54: 1 | AS54: 1 | AT54: 1 | AU54: 1 | AV54: 1 | AW54: 1 | AX54: 1 | AY54: 1 | AZ54: 1 | BA54: 1 | BB54: 1 | BC54: 1 | BD54: 1 | BE54: 1 | BF54: 1 | BG54: 1 | BH54: 1 | BI54: 1 | BJ54: 1 | BK54: 1 | BL54: 1 | BM54: 1 | BN54: 1 | BO54: 1 | BP54: 1 | BQ54: 1 | BR54: 1 | BS54: =(1+$J$48)*BR54 -> 1 | BT54: 1 | BU54: 1 | BV54: 1 | BW54: 1 | BX54: 1 | BY54: 1 | BZ54: 1 | CA54: 1 | CB54: 1 | CC54: 1 | CD54: 1
A55: Gas (Energy only) Prices | B55: Selected Input | C55: 2021 | D55: =C55+1 -> 2022 | E55: 2023 | F55: 2024 | G55: 2025 | H55: 2026 | I55: 2027 | J55: 2028 | K55: 2029 | L55: 2030 | M55: 2031 | N55: 2032 | O55: 2033 | P55: 2034 | Q55: 2035 | R55: 2036 | S55: 2037 | T55: 2038 | U55: 2039 | V55: 2040 | W55: 2041 | X55: 2042 | Y55: 2043 | Z55: 2044 | AA55: 2045 | AB55: 2046 | AC55: 2047 | AD55: 2048 | AE55: 2049 | AF55: 2050 | AG55: 2051 | AH55: 2052 | AI55: 2053 | AJ55: 2054 | AK55: 2055 | AL55: 2056 | AM55: 2057 | AN55: 2058 | AO55: 2059 | AP55: 2060 | AQ55: 2061 | AR55: 2062 | AS55: 2063 | AT55: 2064 | AU55: 2065 | AV55: 2066 | AW55: 2067 | AX55: 2068 | AY55: 2069 | AZ55: 2070 | BA55: 2071 | BB55: 2072 | BC55: 2073 | BD55: 2074 | BE55: 2075 | BF55: 2076 | BG55: 2077 | BH55: 2078 | BI55: 2079 | BJ55: 2080 | BK55: 2081 | BL55: 2082 | BM55: 2083 | BN55: 2084 | BO55: 2085 | BP55: =BO55+1 -> 2086 | BQ55: 2087 | BR55: 2088 | BS55: 2089 | BT55: 2090 | BU55: 2091 | BV55: 2092 | BW55: 2093 | BX55: 2094 | BY55: 2095 | BZ55: 2096 | CA55: 2097 | CB55: 2098 | CC55: 2099 | CD55: 2100
B56: =B1 -> 1 | C56: =AVERAGE(C57:C60) -> 10.16197608 | D56: =AVERAGE(D57:D60) -> 11.62970001 | E56: =IF($B$56=$A57,E57,IF($B$56=$A58,E58,IF($B$56=$A59,E59,IF($B$56=$A60,E60,E61))))*E54 -> 11.38981972 | F56: =IF($B$56=$A57,F57,IF($B$56=$A58,F58,IF($B$56=$A59,F59,IF($B$56=$A60,F60,F61))))*F54 -> 11.37981776 | G56: 10.59030594 | H56: 10.48546923 | I56: 10.72866274 | J56: 11.45228294 | K56: 11.88190859 | L56: 11.99294215 | M56: 12.06319845 | N56: 12.0862355 | O56: 12.19320762 | P56: 12.46416773 | Q56: 12.88398648 | R56: 13.02757082 | S56: 13.2813354 | T56: 13.67979633 | U56: 13.90355677 | V56: 13.83861915 | W56: 13.94677157 | X56: 14.45428997 | Y56: 14.83732464 | Z56: 14.98226033 | AA56: 15.16731385 | AB56: 15.34080103 | AC56: 15.42752572 | AD56: 15.50171047 | AE56: 15.56567181 | AF56: 15.72149476 | AG56: 15.75702868 | AH56: 15.95011434 | AI56: 15.96011434 | AJ56: 15.97011434 | AK56: 15.98011434 | AL56: 15.99011434 | AM56: 16.00011434 | AN56: 16.01011434 | AO56: 16.02011434 | AP56: 16.03011434 | AQ56: 16.04011434 | AR56: 16.05011434 | AS56: 16.06011434 | AT56: 16.07011434 | AU56: 16.08011434 | AV56: 16.09011434 | AW56: 16.10011434 | AX56: 16.11011434 | AY56: 16.12011434 | AZ56: 16.13011434 | BA56: 16.14011434 | BB56: 16.15011434 | BC56: 16.16011434 | BD56: 16.17011434 | BE56: 16.18011434 | BF56: 16.19011434 | BG56: 16.20011434 | BH56: 16.21011434 | BI56: 16.22011434 | BJ56: 16.23011434 | BK56: 16.24011434 | BL56: 16.25011434 | BM56: 16.26011434 | BN56: 16.27011434 | BO56: 16.28011434 | BP56: 16.29011434 | BQ56: 16.30011434 | BR56: =IF($B$56=$A57,BR57,IF($B$56=$A58,BR58,IF($B$56=$A59,BR59,IF($B$56=$A60,BR60,BR61))))*BR54 -> 16.31011434 | BS56: 16.32011434 | BT56: 16.33011434 | BU56: 16.34011434 | BV56: 16.35011434 | BW56: 16.36011434 | BX56: 16.37011434 | BY56: 16.38011434 | BZ56: 16.39011434 | CA56: 16.40011434 | CB56: 16.41011434 | CC56: 16.42011434 | CD56: 16.43011434
A57: 1 | C57: 9.943105725 | D57: 11.21295063 | E57: 11.38981972 | F57: 11.37981776 | G57: 10.59030594 | H57: 10.48546923 | I57: 10.72866274 | J57: 11.45228294 | K57: 11.88190859 | L57: 11.99294215 | M57: 12.06319845 | N57: 12.0862355 | O57: 12.19320762 | P57: 12.46416773 | Q57: 12.88398648 | R57: 13.02757082 | S57: 13.2813354 | T57: 13.67979633 | U57: 13.90355677 | V57: 13.83861915 | W57: 13.94677157 | X57: 14.45428997 | Y57: 14.83732464 | Z57: 14.98226033 | AA57: 15.16731385 | AB57: 15.34080103 | AC57: 15.42752572 | AD57: 15.50171047 | AE57: 15.56567181 | AF57: 15.72149476 | AG57: 15.75702868 | AH57: 15.95011434 | AI57: 15.96011434 | AJ57: 15.97011434 | AK57: 15.98011434 | AL57: 15.99011434 | AM57: 16.00011434 | AN57: 16.01011434 | AO57: 16.02011434 | AP57: 16.03011434 | AQ57: 16.04011434 | AR57: 16.05011434 | AS57: 16.06011434 | AT57: 16.07011434 | AU57: 16.08011434 | AV57: 16.09011434 | AW57: 16.10011434 | AX57: 16.11011434 | AY57: 16.12011434 | AZ57: 16.13011434 | BA57: 16.14011434 | BB57: 16.15011434 | BC57: 16.16011434 | BD57: 16.17011434 | BE57: 16.18011434 | BF57: 16.19011434 | BG57: 16.20011434 | BH57: 16.21011434 | BI57: 16.22011434 | BJ57: 16.23011434 | BK57: 16.24011434 | BL57: 16.25011434 | BM57: 16.26011434 | BN57: 16.27011434 | BO57: 16.28011434 | BP57: 16.29011434 | BQ57: 16.30011434 | BR57: 16.31011434 | BS57: 16.32011434 | BT57: 16.33011434 | BU57: 16.34011434 | BV57: 16.35011434 | BW57: 16.36011434 | BX57: 16.37011434 | BY57: 16.38011434 | BZ57: 16.39011434 | CA57: 16.40011434 | CB57: 16.41011434 | CC57: 16.42011434 | CD57: 16.43011434
A58: 2 | C58: 10.21513934 | D58: 11.68361466 | E58: 12.01521931 | F58: 12.11807133 | G58: 11.42711455 | H58: 11.40831186 | I58: 11.68606806 | J58: 12.36299793 | K58: 12.73636981 | L58: 12.68998509 | M58: 12.70381279 | N58: 12.67994315 | O58: 12.73461507 | P58: 12.93987619 | Q58: 13.28151009 | R58: 13.37633301 | S58: 13.57151815 | T58: 13.89873 | U58: 14.07051142 | V58: 15.27707343 | W58: 15.03622708 | X58: 14.79319348 | Y58: 14.56434713 | Z58: 14.34150078 | AA58: 14.12246717 | AB58: 13.91162083 | AC58: 13.67484188 | AD58: 13.36287574 | AE58: 13.05090961 | AF58: 12.73894348 | AG58: 12.63176975 | AH58: 12.53289069 | AI58: 12.4416105 | AJ58: 12.35729896 | AK58: 12.27938431 | AL58: 12.20734702 | AM58: 12.14071435 | AN58: 12.07905552 | AO58: 12.02197746 | AP58: 11.96912109 | AQ58: 11.920158 | AR58: 11.87478748 | AS58: 11.83273393 | AT58: 11.79374447 | AU58: 11.75758693 | AV58: 11.7240479 | AW58: 11.69293108 | AX58: 11.66405581 | AY58: 11.63725565 | AZ58: 11.61237718 | BA58: 11.58927892 | BB58: 11.56783028 | BC58: 11.54791069 | BD58: 11.52940876 | BE58: 11.51222153 | BF58: 11.49625381 | BG58: 11.48141751 | BH58: 11.46763114 | BI58: 11.45481925 | BJ58: 11.44291197 | BK58: 11.43184455 | BL58: 11.42155702 | BM58: 11.41199377 | BN58: 11.40310326 | BO58: 11.39483767 | BP58: 11.38715267 | BQ58: 11.38000712 | BR58: 11.37336283 | BS58: 11.36718438 | BT58: 11.36143886 | BU58: 11.35609574 | BV58: 11.35112667 | BW58: 11.3465053 | BX58: 11.34220717 | BY58: 11.33820957 | BZ58: 11.33449138 | CA58: 11.33103299 | CB58: 11.32781616 | CC58: 11.32482398 | CD58: 11.32204068
A59: 3 | C59: 10.29402256 | D59: 11.97577401 | E59: 13.09689272 | F59: 13.54505837 | G59: 12.79843077 | H59: 12.44733938 | I59: 12.37809083 | J59: 12.82196799 | K59: 13.17472965 | L59: 13.31768384 | M59: 13.41009411 | N59: 13.52640455 | O59: 13.66117212 | P59: 13.69465442 | Q59: 13.72315322 | R59: 13.74118173 | S59: 13.83136187 | T59: 14.02614983 | U59: 14.23895289 | V59: 14.30723522 | W59: 14.2371059 | X59: 14.15485933 | Y59: 14.16155765 | Z59: 14.24274986 | AA59: 14.29946127 | AB59: 14.28291787 | AC59: 14.37135777 | AD59: 14.789627 | AE59: 15.34783957 | AF59: 15.64408599 | AG59: 15.57720365 | AH59: 15.7170457 | AI59: 15.71480827 | AJ59: 15.71342875 | AK59: 15.71283674 | AL59: 15.71296829 | AM59: 15.71376519 | AN59: 15.71517442 | AO59: 15.71714759 | AP59: 15.71964049 | AQ59: 15.72261268 | AR59: 15.72602715 | AS59: 15.72984998 | AT59: 15.73405002 | AU59: 15.73859869 | AV59: 15.74346973 | AW59: 15.74863896 | AX59: 15.75408415 | AY59: 15.75978481 | AZ59: 15.76572204 | BA59: 15.77187843 | BB59: 15.77823791 | BC59: 15.78478562 | BD59: 15.79150786 | BE59: 15.79839196 | BF59: 15.80542618 | BG59: 15.8125997 | BH59: 15.81990247 | BI59: 15.82732521 | BJ59: 15.83485931 | BK59: 15.84249681 | BL59: 15.85023032 | BM59: 15.858053 | BN59: 15.8659585 | BO59: 15.87394093 | BP59: 15.88199483 | BQ59: 15.89011515 | BR59: 15.89829718 | BS59: 15.90653655 | BT59: 15.91482923 | BU59: 15.92317144 | BV59: 15.9315597 | BW59: 15.93999077 | BX59: 15.94846163 | BY59: 15.95696949 | BZ59: 15.96551174 | CA59: 15.97408598 | CB59: 15.98268996 | CC59: 15.9913216 | CD59: 15.99997895
A60: 4 | C60: 10.19563669 | D60: 11.64646075 | E60: 11.96349589 | F60: 12.05280958 | G60: 11.35221642 | H60: 11.31918412 | I60: 11.58296069 | J60: 12.24944183 | K60: 12.60974419 | L60: 12.52673366 | M60: 12.53921247 | N60: 12.51519395 | O60: 12.57046699 | P60: 12.77707923 | Q60: 13.12066424 | R60: 13.21788828 | S60: 13.41577454 | T60: 13.74613751 | U60: 13.92152005 | V60: 13.82317089 | W60: 13.60889193 | X60: 13.39324592 | Y60: 13.19396696 | Z60: 13.00218799 | AA60: 12.81654198 | AB60: 12.63976302 | AC60: 12.41963198 | AD60: 12.10551697 | AE60: 11.79140195 | AF60: 11.47728694 | AG60: 11.38072762 | AH60: 11.29164148 | AI60: 11.20940162 | AJ60: 11.13344024 | AK60: 11.0632422 | AL60: 10.99833944 | AM60: 10.93830603 | AN60: 10.88275384 | AO60: 10.83132876 | AP60: 10.78370725 | AQ60: 10.73959343 | AR60: 10.69871638 | AS60: 10.66082778 | AT60: 10.62569982 | AU60: 10.59312329 | AV60: 10.56290594 | AW60: 10.53487092 | AX60: 10.50885543 | AY60: 10.48470954 | AZ60: 10.46229502 | BA60: 10.4414844 | BB60: 10.42216002 | BC60: 10.40421325 | BD60: 10.38754374 | BE60: 10.37205872 | BF60: 10.35767243 | BG60: 10.34430551 | BH60: 10.33188454 | BI60: 10.32034153 | BJ60: 10.30961353 | BK60: 10.29964222 | BL60: 10.29037356 | BM60: 10.28175745 | BN60: 10.27374745 | BO60: 10.26630048 | BP60: 10.2593766 | BQ60: 10.25293874 | BR60: 10.2469525 | BS60: 10.24138595 | BT60: 10.23620947 | BU60: 10.23139553 | BV60: 10.22691858 | BW60: 10.22275491 | BX60: 10.21888247 | BY60: 10.21528079 | BZ60: 10.21193085 | CA60: 10.20881497 | CB60: 10.20591674 | CC60: 10.2032209 | CD60: 10.20071326
A61: 5 | C61: =C56 -> 10.16197608 | D61: =D56 -> 11.62970001 | E61: =D61 -> 11.62970001 | F61: =E61 -> 11.62970001 | G61: 11.62970001 | H61: 11.62970001 | I61: 11.62970001 | J61: 11.62970001 | K61: 11.62970001 | L61: 11.62970001 | M61: 11.62970001 | N61: 11.62970001 | O61: 11.62970001 | P61: 11.62970001 | Q61: 11.62970001 | R61: 11.62970001 | S61: 11.62970001 | T61: 11.62970001 | U61: 11.62970001 | V61: 11.62970001 | W61: 11.62970001 | X61: 11.62970001 | Y61: 11.62970001 | Z61: 11.62970001 | AA61: 11.62970001 | AB61: 11.62970001 | AC61: 11.62970001 | AD61: 11.62970001 | AE61: 11.62970001 | AF61: 11.62970001 | AG61: 11.62970001 | AH61: 11.62970001 | AI61: 11.62970001 | AJ61: 11.62970001 | AK61: 11.62970001 | AL61: 11.62970001 | AM61: 11.62970001 | AN61: 11.62970001 | AO61: 11.62970001 | AP61: 11.62970001 | AQ61: 11.62970001 | AR61: 11.62970001 | AS61: 11.62970001 | AT61: 11.62970001 | AU61: 11.62970001 | AV61: 11.62970001 | AW61: 11.62970001 | AX61: 11.62970001 | AY61: 11.62970001 | AZ61: 11.62970001 | BA61: 11.62970001 | BB61: 11.62970001 | BC61: 11.62970001 | BD61: 11.62970001 | BE61: 11.62970001 | BF61: 11.62970001 | BG61: 11.62970001 | BH61: 11.62970001 | BI61: 11.62970001 | BJ61: 11.62970001 | BK61: 11.62970001 | BL61: 11.62970001 | BM61: 11.62970001 | BN61: 11.62970001 | BO61: 11.62970001 | BP61: 11.62970001 | BQ61: 11.62970001 | BR61: =BQ61 -> 11.62970001 | BS61: 11.62970001 | BT61: 11.62970001 | BU61: 11.62970001 | BV61: 11.62970001 | BW61: 11.62970001 | BX61: 11.62970001 | BY61: 11.62970001 | BZ61: 11.62970001 | CA61: 11.62970001 | CB61: 11.62970001 | CC61: 11.62970001 | CD61: 11.62970001
D62: =Prices!AB3/Prices!$AB$3 -> 1 | E62: =Prices!AC3/Prices!$AB$3*'[16]ACIL Input-Output Interface'!E$120 -> 0.9429748008 | F62: =Prices!AD3/Prices!$AB$3*'[16]ACIL Input-Output Interface'!F$120 -> 0.9283376285 | G62: =Prices!AE3/Prices!$AB$3*'[16]ACIL Input-Output Interface'!G$120 -> 0.8986962235 | H62: =Prices!AF3/Prices!$AB$3*'[16]ACIL Input-Output Interface'!H$120 -> 0.8930143013 | I62: =Prices!AG3/Prices!$AB$3*'[16]ACIL Input-Output Interface'!I$120 -> 0.9128153752 | J62: =Prices!AH3/Prices!$AB$3*'[16]ACIL Input-Output Interface'!J$120 -> 0.9675374007 | K62: =Prices!AI3/Prices!$AB$3*'[16]ACIL Input-Output Interface'!K$120 -> 1.01559267 | L62: =Prices!AJ3/Prices!$AB$3*'[16]ACIL Input-Output Interface'!L$120 -> 1.043135556 | M62: =Prices!AK3/Prices!$AB$3*'[16]ACIL Input-Output Interface'!M$120 -> 0.9525216021 | N62: =Prices!AL3/Prices!$AB$3*'[16]ACIL Input-Output Interface'!N$120 -> 0.9376763617 | O62: =Prices!AM3/Prices!$AB$3*'[16]ACIL Input-Output Interface'!O$120 -> 0.9481806576 | P62: =Prices!AN3/Prices!$AB$3*'[16]ACIL Input-Output Interface'!P$120 -> 0.9679103465 | Q62: =Prices!AO3/Prices!$AB$3*'[16]ACIL Input-Output Interface'!Q$120 -> 1.001114444 | R62: =Prices!AP3/Prices!$AB$3*'[16]ACIL Input-Output Interface'!R$120 -> 1.01801887 | S62: =Prices!AQ3/Prices!$AB$3*'[16]ACIL Input-Output Interface'!S$120 -> 1.050048437 | T62: =Prices!AR3/Prices!$AB$3*'[16]ACIL Input-Output Interface'!T$120 -> 1.060770365 | U62: =Prices!AS3/Prices!$AB$3*'[16]ACIL Input-Output Interface'!U$120 -> 1.070949529 | V62: =Prices!AT3/Prices!$AB$3*'[16]ACIL Input-Output Interface'!V$120 -> 1.067358565 | W62: =Prices!AU3/Prices!$AB$3*'[16]ACIL Input-Output Interface'!W$120 -> 1.07057675 | X62: =Prices!AV3/Prices!$AB$3*'[16]ACIL Input-Output Interface'!X$120 -> 1.097348338 | Y62: =Prices!AW3/Prices!$AB$3*'[16]ACIL Input-Output Interface'!Y$120 -> 1.123792151 | Z62: =Prices!AX3/Prices!$AB$3*'[16]ACIL Input-Output Interface'!Z$120 -> 1.136410181 | AA62: =Prices!AY3/Prices!$AB$3*'[16]ACIL Input-Output Interface'!AA$120 -> 1.148265072 | AB62: =Prices!AZ3/Prices!$AB$3*'[16]ACIL Input-Output Interface'!AB$120 -> 1.163187275 | AC62: =Prices!BA3/Prices!$AB$3*'[16]ACIL Input-Output Interface'!AC$120 -> 1.177147831 | AD62: =Prices!BB3/Prices!$AB$3*'[16]ACIL Input-Output Interface'!AD$120 -> 1.189576173 | AE62: =Prices!BC3/Prices!$AB$3*'[16]ACIL Input-Output Interface'!AE$120 -> 1.202303183 | AF62: =Prices!BD3/Prices!$AB$3*'[16]ACIL Input-Output Interface'!AF$120 -> 1.2216328 | AG62: =Prices!BE3/Prices!$AB$3*'[16]ACIL Input-Output Interface'!AG$120 -> 0 | AH62: =Prices!BF3/Prices!$AB$3*'[16]ACIL Input-Output Interface'!AH$120 -> 0 | AI62: =Prices!BG3/Prices!$AB$3*'[16]ACIL Input-Output Interface'!AI$120 -> 0 | AJ62: =Prices!BH3/Prices!$AB$3*'[16]ACIL Input-Output Interface'!AJ$120 -> 0 | AK62: =Prices!BI3/Prices!$AB$3*'[16]ACIL Input-Output Interface'!AK$120 -> 0 | AL62: =Prices!BJ3/Prices!$AB$3*'[16]ACIL Input-Output Interface'!AL$120 -> 0 | AM62: =Prices!BK3/Prices!$AB$3*'[16]ACIL Input-Output Interface'!AM$120 -> 0 | AN62: =Prices!BL3/Prices!$AB$3*'[16]ACIL Input-Output Interface'!AN$120 -> 0 | AO62: =Prices!BM3/Prices!$AB$3*'[16]ACIL Input-Output Interface'!AO$120 -> 0 | AP62: =Prices!BN3/Prices!$AB$3*'[16]ACIL Input-Output Interface'!AP$120 -> 0 | AQ62: =Prices!BO3/Prices!$AB$3*'[16]ACIL Input-Output Interface'!AQ$120 -> 0 | AR62: =Prices!BP3/Prices!$AB$3*'[16]ACIL Input-Output Interface'!AR$120 -> 0 | AS62: =Prices!BQ3/Prices!$AB$3*'[16]ACIL Input-Output Interface'!AS$120 -> 0 | AT62: =Prices!BR3/Prices!$AB$3*'[16]ACIL Input-Output Interface'!AT$120 -> 0 | AU62: =Prices!BS3/Prices!$AB$3*'[16]ACIL Input-Output Interface'!AU$120 -> 0 | AV62: =Prices!BT3/Prices!$AB$3*'[16]ACIL Input-Output Interface'!AV$120 -> 0 | AW62: =Prices!BU3/Prices!$AB$3*'[16]ACIL Input-Output Interface'!AW$120 -> 0 | AX62: =Prices!BV3/Prices!$AB$3*'[16]ACIL Input-Output Interface'!AX$120 -> 0 | AY62: =Prices!BW3/Prices!$AB$3*'[16]ACIL Input-Output Interface'!AY$120 -> 0 | AZ62: =Prices!BX3/Prices!$AB$3*'[16]ACIL Input-Output Interface'!AZ$120 -> 0 | BA62: =Prices!BY3/Prices!$AB$3*'[16]ACIL Input-Output Interface'!BA$120 -> 0 | BB62: =Prices!BZ3/Prices!$AB$3*'[16]ACIL Input-Output Interface'!BB$120 -> 0 | BC62: =Prices!CA3/Prices!$AB$3*'[16]ACIL Input-Output Interface'!BC$120 -> 0 | BD62: =Prices!CB3/Prices!$AB$3*'[16]ACIL Input-Output Interface'!BD$120 -> 0 | BE62: =Prices!CC3/Prices!$AB$3*'[16]ACIL Input-Output Interface'!BE$120 -> 0 | BF62: =Prices!CD3/Prices!$AB$3*'[16]ACIL Input-Output Interface'!BF$120 -> 0 | BG62: =Prices!CE3/Prices!$AB$3*'[16]ACIL Input-Output Interface'!BG$120 -> 0 | BH62: =Prices!CF3/Prices!$AB$3*'[16]ACIL Input-Output Interface'!BH$120 -> 0 | BI62: =Prices!CG3/Prices!$AB$3*'[16]ACIL Input-Output Interface'!BI$120 -> 0 | BJ62: =Prices!CH3/Prices!$AB$3*'[16]ACIL Input-Output Interface'!BJ$120 -> 0 | BK62: =Prices!CI3/Prices!$AB$3*'[16]ACIL Input-Output Interface'!BK$120 -> 0 | BL62: =Prices!CJ3/Prices!$AB$3*'[16]ACIL Input-Output Interface'!BL$120 -> 0 | BM62: =Prices!CK3/Prices!$AB$3*'[16]ACIL Input-Output Interface'!BM$120 -> 0 | BN62: =Prices!CL3/Prices!$AB$3*'[16]ACIL Input-Output Interface'!BN$120 -> 0 | BO62: =Prices!CM3/Prices!$AB$3*'[16]ACIL Input-Output Interface'!BO$120 -> 0 | BP62: =Prices!CN3/Prices!$AB$3*'[16]ACIL Input-Output Interface'!BP$120 -> 0 | BQ62: =Prices!CO3/Prices!$AB$3*'[16]ACIL Input-Output Interface'!BQ$120 -> 0 | BR62: =Prices!CP3/Prices!$AB$3*'[16]ACIL Input-Output Interface'!BR$120 -> 0 | BS62: =Prices!CQ3/Prices!$AB$3*'[16]ACIL Input-Output Interface'!BS$120 -> 0 | BT62: =Prices!CR3/Prices!$AB$3*'[16]ACIL Input-Output Interface'!BT$120 -> 0 | BU62: =Prices!CS3/Prices!$AB$3*'[16]ACIL Input-Output Interface'!BU$120 -> 0 | BV62: =Prices!CT3/Prices!$AB$3*'[16]ACIL Input-Output Interface'!BV$120 -> 0 | BW62: =Prices!CU3/Prices!$AB$3*'[16]ACIL Input-Output Interface'!BW$120 -> 0 | BX62: =Prices!CV3/Prices!$AB$3*'[16]ACIL Input-Output Interface'!BX$120 -> 0 | BY62: =Prices!CW3/Prices!$AB$3*'[16]ACIL Input-Output Interface'!BY$120 -> 0 | BZ62: =Prices!CX3/Prices!$AB$3*'[16]ACIL Input-Output Interface'!BZ$120 -> 0 | CA62: =Prices!CY3/Prices!$AB$3*'[16]ACIL Input-Output Interface'!CA$120 -> 0 | CB62: =Prices!CZ3/Prices!$AB$3*'[16]ACIL Input-Output Interface'!CB$120 -> 0 | CC62: =Prices!DA3/Prices!$AB$3*'[16]ACIL Input-Output Interface'!CC$120 -> 0 | CD62: =Prices!DB3/Prices!$AB$3*'[16]ACIL Input-Output Interface'!CD$120 -> 0
A63: Electricity Prices | B63: Selected Input | C63: 2021 | D63: 2022 | E63: 2023 | F63: 2024 | G63: 2025 | H63: 2026 | I63: 2027 | J63: 2028 | K63: 2029 | L63: 2030 | M63: 2031 | N63: 2032 | O63: 2033 | P63: 2034 | Q63: 2035 | R63: 2036 | S63: 2037 | T63: 2038 | U63: 2039 | V63: 2040 | W63: 2041 | X63: 2042 | Y63: 2043 | Z63: 2044 | AA63: 2045 | AB63: 2046 | AC63: 2047 | AD63: 2048 | AE63: 2049 | AF63: 2050 | AG63: 2051 | AH63: 2052 | AI63: 2053 | AJ63: 2054 | AK63: 2055 | AL63: 2056 | AM63: 2057 | AN63: 2058 | AO63: 2059 | AP63: 2060 | AQ63: 2061 | AR63: 2062 | AS63: 2063 | AT63: 2064 | AU63: 2065 | AV63: 2066 | AW63: 2067 | AX63: 2068 | AY63: 2069 | AZ63: 2070 | BA63: 2071 | BB63: 2072 | BC63: 2073 | BD63: 2074 | BE63: 2075 | BF63: 2076 | BG63: 2077 | BH63: 2078 | BI63: 2079 | BJ63: 2080 | BK63: 2081 | BL63: 2082 | BM63: 2083 | BN63: 2084 | BO63: 2085 | BP63: 2086 | BQ63: 2087 | BR63: 2088 | BS63: 2089 | BT63: 2090 | BU63: 2091 | BV63: 2092 | BW63: 2093 | BX63: 2094 | BY63: 2095 | BZ63: 2096 | CA63: 2097 | CB63: 2098 | CC63: 2099 | CD63: 2100
A65: Residential - Fixed component | B65: =$B$1 -> 1 | D65: =IF($B$1=$B72,D72,IF($B$1=$B79,D79,IF($B$1=$B86,D86,IF($B$1=$B93,D93,D101)))) -> 3.460818744 | E65: =IF($B$1=$B72,E72,IF($B$1=$B79,E79,IF($B$1=$B86,E86,IF($B$1=$B93,E93,E100)))) -> 3.420921294 | F65: 3.320179563 | G65: 3.329404467 | H65: 3.310581659 | I65: 3.245230128 | J65: 3.396430745 | K65: 3.390676493 | L65: 3.596422311 | M65: 4.467623867 | N65: 5.617359764 | O65: 6.574291212 | P65: 7.677224038 | Q65: 8.773332229 | R65: 10.00676653 | S65: 11.28175684 | T65: 12.60062137 | U65: 13.96239931 | V65: 15.36563551 | W65: 15.18164794 | X65: 14.99231666 | Y65: 14.79614745 | Z65: 14.5941628 | AA65: 14.38733399 | AB65: 14.33733569 | AC65: 14.28973792 | AD65: 14.2446862 | AE65: 14.20061279 | AF65: 14.15924753 | AG65: =AF65 -> 14.15924753 | AH65: =AG65 -> 14.15924753 | AI65: 14.15924753 | AJ65: 14.15924753 | AK65: 14.15924753 | AL65: 14.15924753 | AM65: 14.15924753 | AN65: 14.15924753 | AO65: 14.15924753 | AP65: 14.15924753 | AQ65: 14.15924753 | AR65: 14.15924753 | AS65: 14.15924753 | AT65: 14.15924753 | AU65: 14.15924753 | AV65: 14.15924753 | AW65: 14.15924753 | AX65: 14.15924753 | AY65: 14.15924753 | AZ65: 14.15924753 | BA65: 14.15924753 | BB65: 14.15924753 | BC65: 14.15924753 | BD65: 14.15924753 | BE65: 14.15924753 | BF65: 14.15924753 | BG65: 14.15924753 | BH65: 14.15924753 | BI65: 14.15924753 | BJ65: 14.15924753 | BK65: 14.15924753 | BL65: 14.15924753 | BM65: 14.15924753 | BN65: 14.15924753 | BO65: 14.15924753 | BP65: 14.15924753 | BQ65: 14.15924753 | BR65: 14.15924753 | BS65: 14.15924753 | BT65: 14.15924753 | BU65: 14.15924753 | BV65: 14.15924753 | BW65: 14.15924753 | BX65: 14.15924753 | BY65: 14.15924753 | BZ65: 14.15924753 | CA65: 14.15924753 | CB65: 14.15924753 | CC65: 14.15924753 | CD65: 14.15924753
A66: Residential - Variable Component | B66: =B1 -> 1 | C66: =(AVERAGE(C73,C80,C87,C94)-$F$70)/100 -> 0.24 | D66: =(AVERAGE(D73,D80,D87,D94)-$F$70)/100 -> 0.2663047919 | E66: =(IF($B$66=$B73,E73,IF($B$66=$B80,E80,IF($B$66=$B87,E87,IF($B$66=$B94,E94,E101))))*(1-$J$51)+E101*$J$51)/100-$F$70/100 -> 0.2657945361 | F66: =(IF($B$66=$B73,F73,IF($B$66=$B80,F80,IF($B$66=$B87,F87,IF($B$66=$B94,F94,F101))))*(1-$J$51)+F101*$J$51)/100-$F$70/100 -> 0.2579089655 | G66: =(IF($B$66=$B73,G73,IF($B$66=$B80,G80,IF($B$66=$B87,G87,IF($B$66=$B94,G94,G101))))*(1-$J$51)+G101*$J$51)/100-$F$70/100 -> 0.2586310459 | H66: 0.2571576884 | I66: 0.2520422898 | J66: 0.2638775356 | K66: 0.2634271208 | L66: 0.2795318986 | M66: 0.2725661941 | N66: 0.2710689999 | O66: 0.2621517785 | P66: 0.2580149464 | Q66: 0.2521403887 | R66: 0.2486834316 | S66: 0.2445131269 | T66: 0.2397486982 | U66: 0.2344098718 | V66: 0.2285060578 | W66: 0.2257462442 | X66: 0.2229062751 | Y66: 0.2199637368 | Z66: 0.2169339671 | AA66: 0.2138315349 | AB66: 0.2130815605 | AC66: 0.212367594 | AD66: 0.2116918181 | AE66: 0.211030717 | AF66: 0.210410238 | AG66: =AF66 -> 0.210410238 | AH66: 0.210410238 | AI66: 0.210410238 | AJ66: 0.210410238 | AK66: 0.210410238 | AL66: 0.210410238 | AM66: 0.210410238 | AN66: 0.210410238 | AO66: 0.210410238 | AP66: 0.210410238 | AQ66: 0.210410238 | AR66: 0.210410238 | AS66: 0.210410238 | AT66: 0.210410238 | AU66: 0.210410238 | AV66: 0.210410238 | AW66: 0.210410238 | AX66: 0.210410238 | AY66: 0.210410238 | AZ66: 0.210410238 | BA66: 0.210410238 | BB66: 0.210410238 | BC66: 0.210410238 | BD66: 0.210410238 | BE66: 0.210410238 | BF66: 0.210410238 | BG66: 0.210410238 | BH66: 0.210410238 | BI66: 0.210410238 | BJ66: 0.210410238 | BK66: 0.210410238 | BL66: 0.210410238 | BM66: 0.210410238 | BN66: 0.210410238 | BO66: 0.210410238 | BP66: 0.210410238 | BQ66: 0.210410238 | BR66: 0.210410238 | BS66: 0.210410238 | BT66: 0.210410238 | BU66: 0.210410238 | BV66: 0.210410238 | BW66: 0.210410238 | BX66: 0.210410238 | BY66: 0.210410238 | BZ66: 0.210410238 | CA66: 0.210410238 | CB66: 0.210410238 | CC66: 0.210410238 | CD66: 0.210410238
A67: Commercial - Fixed component | B67: =$B$1 -> 1 | D67: =IF($B$1=$B75,D75,IF($B$1=$B82,D82,IF($B$1=$B89,D89,IF($B$1=$B96,D96,D103)))) -> 2.023837999 | E67: 1.989151268 | F67: 1.915937808 | G67: 1.923150032 | H67: 1.899803859 | I67: 1.855928158 | J67: 1.960158803 | K67: 1.952104117 | L67: 2.089566973 | M67: 2.60034337 | N67: 3.276637184 | O67: 3.847776698 | P67: 4.523050951 | Q67: 5.161536693 | R67: 5.907575432 | S67: 6.68071776 | T67: 7.482966584 | U67: 8.313057826 | V67: 9.169995819 | W67: 9.035124766 | X67: 8.896638197 | Y67: 8.753409373 | Z67: 8.606112953 | AA67: 8.455484768 | AB67: 8.412124746 | AC67: 8.371252619 | AD67: 8.332950817 | AE67: 8.296043252 | AF67: 8.26178114 | AG67: 8.26178114 | AH67: 8.26178114 | AI67: 8.26178114 | AJ67: 8.26178114 | AK67: 8.26178114 | AL67: 8.26178114 | AM67: 8.26178114 | AN67: 8.26178114 | AO67: 8.26178114 | AP67: 8.26178114 | AQ67: 8.26178114 | AR67: 8.26178114 | AS67: 8.26178114 | AT67: 8.26178114 | AU67: 8.26178114 | AV67: 8.26178114 | AW67: 8.26178114 | AX67: 8.26178114 | AY67: 8.26178114 | AZ67: 8.26178114 | BA67: 8.26178114 | BB67: 8.26178114 | BC67: 8.26178114 | BD67: 8.26178114 | BE67: 8.26178114 | BF67: 8.26178114 | BG67: 8.26178114 | BH67: 8.26178114 | BI67: 8.26178114 | BJ67: 8.26178114 | BK67: 8.26178114 | BL67: 8.26178114 | BM67: 8.26178114 | BN67: 8.26178114 | BO67: 8.26178114 | BP67: 8.26178114 | BQ67: 8.26178114 | BR67: 8.26178114 | BS67: 8.26178114 | BT67: 8.26178114 | BU67: 8.26178114 | BV67: 8.26178114 | BW67: 8.26178114 | BX67: 8.26178114 | BY67: 8.26178114 | BZ67: 8.26178114 | CA67: 8.26178114 | CB67: 8.26178114 | CC67: 8.26178114 | CD67: 8.26178114
A68: Commericial - Variable Component | B68: =B66 -> 1 | C68: =AVERAGE(C76,C83,C90,C97)/100 -> 0.1491544402 | D68: =AVERAGE(D76,D83,D90,D97)/100 -> 0.1566081308 | E68: =(IF($B$66=$B76,E76,IF($B$66=$B83,E83,IF($B$66=$B90,E90,IF($B$66=$B97,E97,E104))))*(1-$J$51)+E104*$J$51)/100 -> 0.1557010462 | F68: =(IF($B$66=$B76,F76,IF($B$66=$B83,F83,IF($B$66=$B90,F90,IF($B$66=$B97,F97,F104))))*(1-$J$51)+F104*$J$51)/100 -> 0.1499702541 | G68: =(IF($B$66=$B76,G76,IF($B$66=$B83,G83,IF($B$66=$B90,G90,IF($B$66=$B97,G97,G104))))*(1-$J$51)+G104*$J$51)/100 -> 0.1505347917 | H68: 0.1487073674 | I68: 0.1452729918 | J68: 0.1534316576 | K68: 0.1528011761 | L68: 0.1635610971 | M68: 0.1597964446 | N68: 0.1592701102 | O68: 0.1545891719 | P68: 0.1531756121 | Q68: 0.1495034959 | R68: 0.1479802808 | S68: 0.1459649277 | T68: 0.1435513619 | U68: 0.1407430021 | V68: 0.1375499373 | W68: 0.1355268715 | X68: 0.133449573 | Y68: 0.1313011406 | Z68: 0.1290916943 | AA68: 0.1268322715 | AB68: 0.1261818712 | AC68: 0.1255687893 | AD68: 0.1249942623 | AE68: 0.1244406488 | AF68: 0.1239267171 | AG68: 0.1239267171 | AH68: 0.1239267171 | AI68: 0.1239267171 | AJ68: 0.1239267171 | AK68: 0.1239267171 | AL68: 0.1239267171 | AM68: 0.1239267171 | AN68: 0.1239267171 | AO68: 0.1239267171 | AP68: 0.1239267171 | AQ68: 0.1239267171 | AR68: 0.1239267171 | AS68: 0.1239267171 | AT68: 0.1239267171 | AU68: 0.1239267171 | AV68: 0.1239267171 | AW68: 0.1239267171 | AX68: 0.1239267171 | AY68: 0.1239267171 | AZ68: 0.1239267171 | BA68: 0.1239267171 | BB68: 0.1239267171 | BC68: 0.1239267171 | BD68: 0.1239267171 | BE68: 0.1239267171 | BF68: 0.1239267171 | BG68: 0.1239267171 | BH68: 0.1239267171 | BI68: 0.1239267171 | BJ68: 0.1239267171 | BK68: 0.1239267171 | BL68: 0.1239267171 | BM68: 0.1239267171 | BN68: 0.1239267171 | BO68: 0.1239267171 | BP68: 0.1239267171 | BQ68: 0.1239267171 | BR68: 0.1239267171 | BS68: 0.1239267171 | BT68: 0.1239267171 | BU68: 0.1239267171 | BV68: 0.1239267171 | BW68: 0.1239267171 | BX68: 0.1239267171 | BY68: 0.1239267171 | BZ68: 0.1239267171 | CA68: 0.1239267171 | CB68: 0.1239267171 | CC68: 0.1239267171 | CD68: 0.1239267171
D69: =D66/$D$66 -> 1 | E69: =E66/$D$66 -> 0.9980839405 | F69: 0.9684728676 | G69: 0.9711843485 | H69: 0.9656517502 | I69: 0.9464429384 | J69: 0.99088542 | K69: 0.9891940694 | L69: 1.049669052 | M69: 1.023512165 | N69: 1.017890057 | O69: 0.9844050369 | P69: 0.9688708359 | Q69: 0.9468113093 | R69: 0.9338301044 | S69: 0.9181702107 | T69: 0.9002793245 | U69: 0.8802315202 | V69: 0.8580621329 | W69: 0.8476987687 | X69: 0.8370344126 | Y69: 0.8259848997 | Z69: 0.814607824 | AA69: 0.8029578942 | AB69: 0.8001416683 | AC69: 0.7974606556 | AD69: 0.7949230526 | AE69: 0.7924405544 | AF69: 0.7901105967 | AG69: 0.7901105967 | AH69: 0.7901105967 | AI69: 0.7901105967 | AJ69: 0.7901105967 | AK69: 0.7901105967 | AL69: 0.7901105967 | AM69: 0.7901105967 | AN69: 0.7901105967 | AO69: 0.7901105967 | AP69: 0.7901105967 | AQ69: 0.7901105967 | AR69: 0.7901105967 | AS69: 0.7901105967 | AT69: 0.7901105967 | AU69: 0.7901105967 | AV69: 0.7901105967 | AW69: 0.7901105967 | AX69: 0.7901105967 | AY69: 0.7901105967 | AZ69: 0.7901105967 | BA69: 0.7901105967 | BB69: 0.7901105967 | BC69: 0.7901105967 | BD69: 0.7901105967 | BE69: 0.7901105967 | BF69: 0.7901105967 | BG69: 0.7901105967 | BH69: 0.7901105967 | BI69: 0.7901105967 | BJ69: 0.7901105967 | BK69: 0.7901105967 | BL69: 0.7901105967 | BM69: 0.7901105967 | BN69: 0.7901105967 | BO69: 0.7901105967 | BP69: 0.7901105967 | BQ69: =BQ66/$D$66 -> 0.7901105967 | BR69: 0.7901105967 | BS69: 0.7901105967 | BT69: 0.7901105967 | BU69: 0.7901105967 | BV69: 0.7901105967 | BW69: 0.7901105967 | BX69: 0.7901105967 | BY69: 0.7901105967 | BZ69: 0.7901105967 | CA69: 0.7901105967 | CB69: 0.7901105967 | CC69: 0.7901105967 | CD69: 0.7901105967
A70: Electric Dreams | B70: OLD | C70: 24.19784749 | D70: Updated | E70: 24 | F70: =C70-E70 -> 0.1978474857
A71: Residential (cents/kWh real 2021)
A72: Fixed component | B72: 1 | C72: 3.091384431 | D72: 3.460818744 | E72: 3.420921294 | F72: 3.320179563 | G72: 3.329404467 | H72: 3.310581659 | I72: 3.245230128 | J72: 3.396430745 | K72: 3.390676493 | L72: 3.596422311 | M72: 4.467623867 | N72: 5.617359764 | O72: 6.574291212 | P72: 7.677224038 | Q72: 8.773332229 | R72: 10.00676653 | S72: 11.28175684 | T72: 12.60062137 | U72: 13.96239931 | V72: 15.36563551 | W72: 15.18164794 | X72: 14.99231666 | Y72: 14.79614745 | Z72: 14.5941628 | AA72: 14.38733399 | AB72: 14.33733569 | AC72: 14.28973792 | AD72: 14.2446862 | AE72: 14.20061279 | AF72: 14.15924753
A73: Variable Component | B73: 1 | C73: 24.19784749 | D73: 27.08959886 | E73: 26.7773011 | F73: 25.98874403 | G73: 26.06095207 | H73: 25.91361632 | I73: 25.40207646 | J73: 26.58560104 | K73: 26.54055957 | L73: 28.15103735 | M73: 27.4544669 | N73: 27.30474747 | O73: 26.41302534 | P73: 25.99934212 | Q73: 25.41188636 | R73: 25.06619065 | S73: 24.64916018 | T73: 24.1727173 | U73: 23.63883467 | V73: 23.04845326 | W73: 22.77247191 | X73: 22.48847499 | Y73: 22.19422117 | Z73: 21.89124419 | AA73: 21.58100098 | AB73: 21.50600353 | AC73: 21.43460688 | AD73: 21.3670293 | AE73: 21.30091918 | AF73: 21.23887129
A74: Commercial (cents/kWh real 2021)
A75: Fixed component | B75: 1 | C75: 1.905515416 | D75: 2.023837999 | E75: 1.989151268 | F75: 1.915937808 | G75: 1.923150032 | H75: 1.899803859 | I75: 1.855928158 | J75: 1.960158803 | K75: 1.952104117 | L75: 2.089566973 | M75: 2.60034337 | N75: 3.276637184 | O75: 3.847776698 | P75: 4.523050951 | Q75: 5.161536693 | R75: 5.907575432 | S75: 6.68071776 | T75: 7.482966584 | U75: 8.313057826 | V75: 9.169995819 | W75: 9.035124766 | X75: 8.896638197 | Y75: 8.753409373 | Z75: 8.606112953 | AA75: 8.455484768 | AB75: 8.412124746 | AC75: 8.371252619 | AD75: 8.332950817 | AE75: 8.296043252 | AF75: 8.26178114
A76: Variable Component | B76: 1 | C76: 14.91544402 | D76: 15.84161541 | E76: 15.57010462 | F76: 14.99702541 | G76: 15.05347917 | H76: 14.87073674 | I76: 14.52729918 | J76: 15.34316576 | K76: 15.28011761 | L76: 16.35610971 | M76: 15.97964446 | N76: 15.92701102 | O76: 15.45891719 | P76: 15.31756121 | Q76: 14.95034959 | R76: 14.79802808 | S76: 14.59649277 | T76: 14.35513619 | U76: 14.07430021 | V76: 13.75499373 | W76: 13.55268715 | X76: 13.3449573 | Y76: 13.13011406 | Z76: 12.90916943 | AA76: 12.68322715 | AB76: 12.61818712 | AC76: 12.55687893 | AD76: 12.49942623 | AE76: 12.44406488 | AF76: 12.39267171
A77: Dual Fuel
A78: Residential (cents/kWh real 2021)
A79: Fixed component | B79: =B72+1 -> 2 | C79: 3.091384431 | D79: 3.404881395 | E79: 3.30769195 | F79: 3.150230098 | G79: 3.104117461 | H79: 3.02994897 | I79: 2.931532071 | J79: 3.021662534 | K79: 2.951221934 | L79: 3.11142152 | M79: 3.872000262 | N79: 4.870484516 | O79: 5.66598634 | P79: 6.62638268 | Q79: 7.57125265 | R79: 8.745216589 | S79: 9.979670206 | T79: 11.27625984 | U79: 12.63441505 | V79: 14.05317975 | W79: 13.9823987 | X79: 13.90580995 | Y79: 13.82209864 | Z79: 13.73177353 | AA79: 13.63533208 | AB79: 13.70936373 | AC79: 13.78234351 | AD79: 13.85444731 | AE79: 13.92445247 | AF79: 13.99379719
A80: Variable Component | B80: =B73+1 -> 2 | C80: 24.19784749 | D80: 26.6517486 | E80: 25.89099709 | F80: 24.65846262 | G80: 24.29751543 | H80: 23.7169607 | I80: 22.94660128 | J80: 23.65209852 | K80: 23.10072391 | L80: 24.35468803 | M80: 23.79423743 | N80: 23.67435154 | O80: 22.76379855 | P80: 22.44060998 | Q80: 21.93007251 | R80: 21.90610381 | S80: 21.80427152 | T80: 21.63209521 | U80: 21.39051046 | V80: 21.07976962 | W80: 20.97359805 | X80: 20.85871493 | Y80: 20.73314796 | Z80: 20.5976603 | AA80: 20.45299812 | AB80: 20.56404559 | AC80: 20.67351527 | AD80: 20.78167097 | AE80: 20.88667871 | AF80: 20.99069579
A81: Commercial (cents/kWh real 2021)
A82: Fixed component | B82: =B75+1 -> 2 | C82: 1.905515416 | D82: 1.984977424 | E82: 1.9103017 | F82: 1.797399217 | G82: 1.765854493 | H82: 1.703680378 | I82: 1.635453935 | J82: 1.695431047 | K82: 1.640438595 | L82: 1.745405113 | M82: 2.177301192 | N82: 2.745596619 | O82: 3.200100582 | P82: 3.77292688 | Q82: 4.30237284 | R82: 5.006255453 | S82: 5.750989209 | T82: 6.538003902 | U82: 7.366508827 | V82: 8.235859835 | W82: 8.1823134 | X82: 8.124924781 | Y82: 8.062696903 | Z82: 7.995936121 | AA82: 7.925013874 | AB82: 7.971741644 | AC82: 8.018511309 | AD82: 8.065420138 | AE82: 8.111538691 | AF82: 8.157896846
A83: Variable Component | B83: =B76+1 -> 2 | C83: 14.91544402 | D83: 15.53743381 | E83: 14.95290871 | F83: 14.06916321 | G83: 13.82224652 | H83: 13.33557792 | I83: 12.80153464 | J83: 13.27100618 | K83: 12.84055212 | L83: 13.66217876 | M83: 13.37996333 | N83: 13.3457399 | O83: 12.85679856 | P83: 12.77722472 | Q83: 12.46178838 | R83: 12.54028994 | S83: 12.56515773 | T83: 12.54234338 | U83: 12.47175936 | V83: 12.35378975 | W83: 12.2734701 | X83: 12.18738717 | Y83: 12.09404535 | Z83: 11.99390418 | AA83: 11.88752081 | AB83: 11.95761247 | AC83: 12.02776696 | AD83: 12.09813021 | AE83: 12.16730804 | AF83: 12.23684527
A84: Muddling Through
A85: Residential (cents/kWh real 2021)
A86: Fixed component | B86: =B79+1 -> 3 | C86: 3.091384431 | D86: 3.451835764 | E86: 3.39985988 | F86: 3.283678167 | G86: 3.280913156 | H86: 3.24717265 | I86: 3.180284281 | J86: 3.322982223 | K86: 3.291841781 | L86: 3.510352789 | M86: 4.372433555 | N86: 5.503755248 | O86: 6.414240382 | P86: 7.504053809 | Q86: 8.570444533 | R86: 9.855637338 | S86: 11.19929192 | T86: 12.60339054 | U86: 14.06716759 | V86: 15.58941744 | W86: 15.45851079 | X86: 15.32202844 | Y86: 15.17856583 | Z86: 15.02888861 | AA86: 14.87373114 | AB86: 14.90527548 | AC86: 14.93749415 | AD86: 14.97054786 | AE86: 15.0030414 | AF86: 15.03655879
A87: Variable Component | B87: =B80+1 -> 3 | C87: 24.19784749 | D87: 27.01928447 | E87: 26.61244264 | F87: 25.70302893 | G87: 25.68138577 | H87: 25.41728157 | I87: 24.89371209 | J87: 26.01068188 | K87: 25.76692971 | L87: 27.47732716 | M87: 26.86950287 | N87: 26.75254096 | O87: 25.7700014 | P87: 25.4128916 | Q87: 24.82422377 | R87: 24.6876235 | S87: 24.46898513 | T87: 24.17802961 | U87: 23.81621107 | V87: 23.38412616 | W87: 23.18776619 | X87: 22.98304265 | Y87: 22.76784875 | Z87: 22.54333291 | AA87: 22.3105967 | AB87: 22.35791322 | AC87: 22.40624123 | AD87: 22.45582179 | AE87: 22.5045621 | AF87: 22.55483819
A88: Commercial (cents/kWh real 2021)
A89: Fixed component | B89: =B82+1 -> 3 | C89: 1.905515416 | D89: 2.018682248 | E89: 1.976457467 | F89: 1.893113552 | G89: 1.892735566 | H89: 1.859565473 | I89: 1.814789139 | J89: 1.913458244 | K89: 1.887165335 | L89: 2.035099763 | M89: 2.541164762 | N89: 3.206474364 | O89: 3.745061129 | P89: 4.412831046 | Q89: 5.03130839 | R89: 5.817540703 | S89: 6.643343396 | T89: 7.51043282 | U89: 8.417781582 | V89: 9.364569776 | W89: 9.267712733 | X89: 9.167126839 | Y89: 9.061750188 | Z89: 8.952073288 | AA89: 8.838649772 | AB89: 8.855015669 | AC89: 8.87264646 | AD89: 8.891631995 | AE89: 8.910919511 | AF89: 8.931649555
A90: Variable Component | B90: =B83+1 -> 3 | C90: 14.91544402 | D90: 15.8012587 | E90: 15.47074375 | F90: 14.81836828 | G90: 14.81540959 | H90: 14.5557703 | I90: 14.20528303 | J90: 14.97761659 | K90: 14.77180855 | L90: 15.929767 | M90: 15.61597975 | N90: 15.58596502 | O90: 15.04624473 | P90: 14.94429543 | Q90: 14.57314435 | R90: 14.57249792 | S90: 14.51483468 | T90: 14.40782673 | U90: 14.25160122 | V90: 14.04685466 | W90: 13.9015691 | X90: 13.75069026 | Y90: 13.59262528 | Z90: 13.42810993 | AA90: 13.25797466 | AB90: 13.2825235 | AC90: 13.30896969 | AD90: 13.33744799 | AE90: 13.36637927 | AF90: 13.39747433
A91: Hydrogen Hero
A92: Residential (cents/kWh real 2021)
A93: Fixed component | B93: =B86+1 -> 4 | C93: 3.091384431 | D93: 3.392224265 | E93: 3.283989777 | F93: 3.117914541 | G93: 3.061349334 | H93: 2.954780308 | I93: 2.825267262 | J93: 2.876165008 | K93: 2.777017961 | L93: 2.889276664 | M93: 3.561550165 | N93: 4.439635194 | O93: 5.116519368 | P93: 5.928706051 | Q93: 6.718812198 | R93: 7.766571989 | S93: 8.869687985 | T93: 10.02947738 | U93: 11.24548373 | V93: 12.51694206 | W93: 12.45935045 | X93: 12.39689794 | Y93: 12.32854228 | Z93: 12.25469976 | AA93: 12.17577736 | AB93: 12.25289716 | AC93: 12.32878736 | AD93: 12.40360467 | AE93: 12.47638648 | AF93: 12.54829827
A94: Variable Component | B94: =B87+1 -> 4 | C94: 24.19784749 | D94: 26.55267477 | E94: 25.70546806 | F94: 24.40551222 | G94: 23.96274741 | H94: 23.12857712 | I94: 22.11481226 | J94: 22.51321496 | K94: 21.73714029 | L94: 22.61584659 | M94: 21.88645777 | N94: 21.58008796 | O94: 20.55624726 | P94: 20.07788964 | Q94: 19.46098558 | R94: 19.45467336 | S94: 19.37910583 | T94: 19.24029889 | U94: 19.03900073 | V94: 18.77541308 | W94: 18.68902567 | X94: 18.59534692 | Y94: 18.49281341 | Z94: 18.38204964 | AA94: 18.26366605 | AB94: 18.37934574 | AC94: 18.49318103 | AD94: 18.60540701 | AE94: 18.71457971 | AF94: 18.82244741
A95: Commercial (cents/kWh real 2021)
A96: Fixed component | B96: =B89+1 -> 4 | C96: 1.905515416 | D96: 1.975461067 | E96: 1.892481045 | F96: 1.773102524 | G96: 1.733698956 | H96: 1.648235063 | I96: 1.557403786 | J96: 1.588667372 | K96: 1.512835537 | L96: 1.582481765 | M96: 1.949834619 | N96: 2.430200226 | O96: 2.798256435 | P96: 3.262758682 | Q96: 3.679310582 | R96: 4.290114937 | S96: 4.937856009 | T96: 5.62367776 | U96: 6.346947527 | V96: 7.107149894 | W96: 7.062910372 | X96: 7.015540669 | Y96: 6.964245631 | Z96: 6.909272787 | AA96: 6.850921666 | AB96: 6.899373745 | AC96: 6.947757307 | AD96: 6.996154383 | AE96: 7.043825494 | AF96: 7.09159847
A97: Variable Component | B97: =B90+1 -> 4 | C97: 14.91544402 | D97: 15.46294441 | E97: 14.81341732 | F97: 13.87898057 | G97: 13.57054869 | H97: 12.90157907 | I97: 12.1905962 | J97: 12.43531228 | K97: 11.84173771 | L97: 12.38689437 | M97: 11.98213449 | N97: 11.81266756 | O97: 11.24234016 | P97: 11.04951201 | Q97: 10.65709356 | R97: 10.7464123 | S97: 10.78856825 | T97: 10.78832295 | U97: 10.7456061 | V97: 10.66072484 | W97: 10.59436556 | X97: 10.523311 | Y97: 10.44636845 | Z97: 10.36390918 | AA97: 10.2763825 | AB97: 10.34906062 | AC97: 10.42163596 | AD97: 10.49423157 | AE97: 10.56573824 | AF97: 10.6373977
A98: Baseline | D98: 1 | E98: =D98*(1+$J$53) -> 1 | F98: =E98*(1+$J$53) -> 1 | G98: =F98*(1+$J$53) -> 1 | H98: 1 | I98: 1 | J98: 1 | K98: 1 | L98: 1 | M98: 1 | N98: 1 | O98: 1 | P98: 1 | Q98: 1 | R98: 1 | S98: 1 | T98: 1 | U98: 1 | V98: 1 | W98: 1 | X98: 1 | Y98: 1 | Z98: 1 | AA98: 1 | AB98: 1 | AC98: 1 | AD98: 1 | AE98: 1 | AF98: 1 | AG98: 1 | AH98: 1 | AI98: 1 | AJ98: 1 | AK98: 1 | AL98: 1 | AM98: 1 | AN98: 1 | AO98: 1 | AP98: 1 | AQ98: 1 | AR98: 1 | AS98: 1 | AT98: 1 | AU98: 1 | AV98: 1 | AW98: 1 | AX98: 1 | AY98: 1 | AZ98: 1 | BA98: 1 | BB98: 1 | BC98: 1 | BD98: 1 | BE98: 1 | BF98: 1 | BG98: 1 | BH98: 1 | BI98: 1 | BJ98: 1 | BK98: 1 | BL98: 1 | BM98: 1 | BN98: 1 | BO98: 1 | BP98: 1 | BQ98: 1 | BR98: 1 | BS98: =BR98*(1+$J$53) -> 1 | BT98: 1 | BU98: 1 | BV98: 1 | BW98: 1 | BX98: 1 | BY98: 1 | BZ98: 1 | CA98: 1 | CB98: 1 | CC98: 1 | CD98: 1 | CE98: 1 | CF98: 1 | CG98: 1 | CH98: 1 | CI98: 1 | CJ98: 1 | CK98: 1 | CL98: 1 | CM98: 1 | CN98: 1 | CO98: 1 | CP98: 1 | CQ98: 1 | CR98: 1 | CS98: 1 | CT98: 1 | CU98: 1 | CV98: 1 | CW98: 1 | CX98: 1
A99: Residential (cents/kWh real 2021)
A100: Fixed component | B100: 5
A101: Variable Component | B101: 5 | C101: =AVERAGE(C73,C80,C87,C94) -> 24.19784749 | D101: =AVERAGE($D$73,$D$80,$D$87,$D$94)*D98 -> 26.82832668 | E101: =AVERAGE($D$73,$D$80,$D$87,$D$94)*E98 -> 26.82832668 | F101: 26.82832668 | G101: 26.82832668 | H101: 26.82832668 | I101: 26.82832668 | J101: 26.82832668 | K101: 26.82832668 | L101: 26.82832668 | M101: 26.82832668 | N101: 26.82832668 | O101: 26.82832668 | P101: 26.82832668 | Q101: 26.82832668 | R101: 26.82832668 | S101: 26.82832668 | T101: 26.82832668 | U101: 26.82832668 | V101: 26.82832668 | W101: 26.82832668 | X101: 26.82832668 | Y101: 26.82832668 | Z101: 26.82832668 | AA101: 26.82832668 | AB101: 26.82832668 | AC101: 26.82832668 | AD101: 26.82832668 | AE101: 26.82832668 | AF101: 26.82832668 | AG101: 26.82832668 | AH101: 26.82832668 | AI101: 26.82832668 | AJ101: 26.82832668 | AK101: 26.82832668 | AL101: 26.82832668 | AM101: 26.82832668 | AN101: 26.82832668 | AO101: 26.82832668 | AP101: 26.82832668 | AQ101: 26.82832668 | AR101: 26.82832668 | AS101: 26.82832668 | AT101: 26.82832668 | AU101: 26.82832668 | AV101: 26.82832668 | AW101: 26.82832668 | AX101: 26.82832668 | AY101: 26.82832668 | AZ101: 26.82832668 | BA101: 26.82832668 | BB101: 26.82832668 | BC101: 26.82832668 | BD101: 26.82832668 | BE101: 26.82832668 | BF101: 26.82832668 | BG101: 26.82832668 | BH101: 26.82832668 | BI101: 26.82832668 | BJ101: 26.82832668 | BK101: 26.82832668 | BL101: 26.82832668 | BM101: 26.82832668 | BN101: 26.82832668 | BO101: 26.82832668 | BP101: 26.82832668 | BQ101: =AVERAGE($D$73,$D$80,$D$87,$D$94)*BQ98 -> 26.82832668 | BR101: 26.82832668 | BS101: 26.82832668 | BT101: 26.82832668 | BU101: 26.82832668 | BV101: 26.82832668 | BW101: 26.82832668 | BX101: 26.82832668 | BY101: 26.82832668 | BZ101: 26.82832668 | CA101: 26.82832668 | CB101: 26.82832668 | CC101: 26.82832668 | CD101: 26.82832668 | CE101: 26.82832668 | CF101: 26.82832668 | CG101: 26.82832668 | CH101: 26.82832668 | CI101: 26.82832668 | CJ101: 26.82832668 | CK101: 26.82832668 | CL101: 26.82832668 | CM101: 26.82832668 | CN101: 26.82832668 | CO101: 26.82832668 | CP101: 26.82832668 | CQ101: 26.82832668 | CR101: 26.82832668 | CS101: 26.82832668 | CT101: 26.82832668 | CU101: 26.82832668 | CV101: 26.82832668 | CW101: 26.82832668 | CX101: 26.82832668
A102: Commercial (cents/kWh real 2021)
A103: Fixed component | B103: 5
A104: Variable Component | B104: 5 | C104: =AVERAGE(C76,C83,C90,C97) -> 14.91544402 | D104: =AVERAGE($D$76,$D$83,$D$90,$D$97)*D98 -> 15.66081308 | E104: =AVERAGE($D$76,$D$83,$D$90,$D$97)*E98 -> 15.66081308 | F104: 15.66081308 | G104: 15.66081308 | H104: 15.66081308 | I104: 15.66081308 | J104: 15.66081308 | K104: 15.66081308 | L104: 15.66081308 | M104: 15.66081308 | N104: 15.66081308 | O104: 15.66081308 | P104: 15.66081308 | Q104: 15.66081308 | R104: 15.66081308 | S104: 15.66081308 | T104: 15.66081308 | U104: 15.66081308 | V104: 15.66081308 | W104: 15.66081308 | X104: 15.66081308 | Y104: 15.66081308 | Z104: 15.66081308 | AA104: 15.66081308 | AB104: 15.66081308 | AC104: 15.66081308 | AD104: 15.66081308 | AE104: 15.66081308 | AF104: 15.66081308 | AG104: 15.66081308 | AH104: 15.66081308 | AI104: 15.66081308 | AJ104: 15.66081308 | AK104: 15.66081308 | AL104: 15.66081308 | AM104: 15.66081308 | AN104: 15.66081308 | AO104: 15.66081308 | AP104: 15.66081308 | AQ104: 15.66081308 | AR104: 15.66081308 | AS104: 15.66081308 | AT104: 15.66081308 | AU104: 15.66081308 | AV104: 15.66081308 | AW104: 15.66081308 | AX104: 15.66081308 | AY104: 15.66081308 | AZ104: 15.66081308 | BA104: 15.66081308 | BB104: 15.66081308 | BC104: 15.66081308 | BD104: 15.66081308 | BE104: 15.66081308 | BF104: 15.66081308 | BG104: 15.66081308 | BH104: 15.66081308 | BI104: 15.66081308 | BJ104: 15.66081308 | BK104: 15.66081308 | BL104: 15.66081308 | BM104: 15.66081308 | BN104: 15.66081308 | BO104: 15.66081308 | BP104: 15.66081308 | BQ104: =AVERAGE($D$76,$D$83,$D$90,$D$97)*BQ98 -> 15.66081308 | BR104: 15.66081308 | BS104: 15.66081308 | BT104: 15.66081308 | BU104: 15.66081308 | BV104: 15.66081308 | BW104: 15.66081308 | BX104: 15.66081308 | BY104: 15.66081308 | BZ104: 15.66081308 | CA104: 15.66081308 | CB104: 15.66081308 | CC104: 15.66081308 | CD104: 15.66081308 | CE104: 15.66081308 | CF104: 15.66081308 | CG104: 15.66081308 | CH104: 15.66081308 | CI104: 15.66081308 | CJ104: 15.66081308 | CK104: 15.66081308 | CL104: 15.66081308 | CM104: 15.66081308 | CN104: 15.66081308 | CO104: 15.66081308 | CP104: 15.66081308 | CQ104: 15.66081308 | CR104: 15.66081308 | CS104: 15.66081308 | CT104: 15.66081308 | CU104: 15.66081308 | CV104: 15.66081308 | CW104: 15.66081308 | CX104: 15.66081308
A106: Residential Network ON/OFF (0 is OFF/Disconnect) | U106: 0.9 | V106: =U106-0.1 -> 0.8 | W106: =V106-0.1 -> 0.7 | X106: 0.6 | Y106: 0.5 | Z106: 0.4 | AA106: 0.3 | AB106: 0.2 | AC106: 0.1 | AD106: 0
A107: LGA | B107: 2021 | C107: =B107+1 -> 2022 | D107: =C107+1 -> 2023 | E107: 2024 | F107: 2025 | G107: 2026 | H107: 2027 | I107: 2028 | J107: 2029 | K107: 2030 | L107: 2031 | M107: 2032 | N107: 2033 | O107: 2034 | P107: 2035 | Q107: 2036 | R107: 2037 | S107: 2038 | T107: 2039 | U107: 2040 | V107: 2041 | W107: 2042 | X107: 2043 | Y107: 2044 | Z107: 2045 | AA107: 2046 | AB107: 2047 | AC107: 2048 | AD107: 2049 | AE107: 2050 | AF107: 2051 | AG107: 2052 | AH107: 2053 | AI107: 2054 | AJ107: 2055 | AK107: 2056 | AL107: 2057 | AM107: 2058 | AN107: 2059 | AO107: 2060 | AP107: 2061 | AQ107: 2062 | AR107: 2063 | AS107: 2064 | AT107: 2065 | AU107: 2066 | AV107: 2067 | AW107: 2068 | AX107: 2069 | AY107: 2070 | AZ107: 2071 | BA107: 2072 | BB107: 2073 | BC107: 2074 | BD107: 2075 | BE107: 2076 | BF107: 2077 | BG107: 2078 | BH107: 2079 | BI107: 2080 | BJ107: 2081 | BK107: 2082 | BL107: 2083 | BM107: 2084 | BN107: 2085 | BO107: 2086 | BP107: =BO107+1 -> 2087 | BQ107: 2088 | BR107: 2089 | BS107: 2090 | BT107: 2091 | BU107: 2092 | BV107: 2093 | BW107: 2094 | BX107: 2095 | BY107: 2096 | BZ107: 2097 | CA107: 2098 | CB107: 2099 | CC107: 2100
A108: Bass Coast (S) | B108: 1 | C108: 1 | D108: 1 | E108: 1 | F108: 1 | G108: 1 | H108: 1 | I108: 1 | J108: 1 | K108: 1 | L108: 1 | M108: 1 | N108: 1 | O108: 1 | P108: 1 | Q108: 1 | R108: 1 | S108: 1 | T108: 1 | U108: =IF($B$1=2,IF($D204=0,U$106,1),1) -> 1 | V108: =IF($B$1=2,IF($D204=0,V$106,1),1) -> 1 | W108: 1 | X108: 1 | Y108: 1 | Z108: 1 | AA108: 1 | AB108: 1 | AC108: 1 | AD108: 1 | AE108: =IF($B$1=2,$D204,1) -> 1 | AF108: 1 | AG108: 1 | AH108: 1 | AI108: 1 | AJ108: 1 | AK108: 1 | AL108: 1 | AM108: 1 | AN108: 1 | AO108: 1 | AP108: 1 | AQ108: 1 | AR108: 1 | AS108: 1 | AT108: 1 | AU108: 1 | AV108: 1 | AW108: 1 | AX108: 1 | AY108: 1 | AZ108: 1 | BA108: 1 | BB108: 1 | BC108: 1 | BD108: 1 | BE108: 1 | BF108: 1 | BG108: 1 | BH108: 1 | BI108: 1 | BJ108: 1 | BK108: 1 | BL108: 1 | BM108: 1 | BN108: 1 | BO108: 1 | BP108: 1 | BQ108: 1 | BR108: 1 | BS108: 1 | BT108: 1 | BU108: 1 | BV108: 1 | BW108: 1 | BX108: 1 | BY108: 1 | BZ108: 1 | CA108: 1 | CB108: 1 | CC108: 1
A109: Bayside (C) | B109: 1 | C109: 1 | D109: 1 | E109: 1 | F109: 1 | G109: 1 | H109: 1 | I109: 1 | J109: 1 | K109: 1 | L109: 1 | M109: 1 | N109: 1 | O109: 1 | P109: 1 | Q109: 1 | R109: 1 | S109: 1 | T109: 1 | U109: =IF($B$1=2,IF($D205=0,U$106,1),1) -> 1 | V109: 1 | W109: 1 | X109: 1 | Y109: 1 | Z109: 1 | AA109: 1 | AB109: 1 | AC109: 1 | AD109: 1 | AE109: 1 | AF109: 1 | AG109: 1 | AH109: 1 | AI109: 1 | AJ109: 1 | AK109: 1 | AL109: 1 | AM109: 1 | AN109: 1 | AO109: 1 | AP109: 1 | AQ109: 1 | AR109: 1 | AS109: 1 | AT109: 1 | AU109: 1 | AV109: 1 | AW109: 1 | AX109: 1 | AY109: 1 | AZ109: 1 | BA109: 1 | BB109: 1 | BC109: 1 | BD109: 1 | BE109: 1 | BF109: 1 | BG109: 1 | BH109: 1 | BI109: 1 | BJ109: 1 | BK109: 1 | BL109: 1 | BM109: 1 | BN109: 1 | BO109: 1 | BP109: 1 | BQ109: 1 | BR109: 1 | BS109: 1 | BT109: 1 | BU109: 1 | BV109: 1 | BW109: 1 | BX109: 1 | BY109: 1 | BZ109: 1 | CA109: 1 | CB109: 1 | CC109: 1
A110: Boroondara (C) | B110: 1 | C110: 1 | D110: 1 | E110: 1 | F110: 1 | G110: 1 | H110: 1 | I110: 1 | J110: 1 | K110: 1 | L110: 1 | M110: 1 | N110: 1 | O110: 1 | P110: 1 | Q110: 1 | R110: 1 | S110: 1 | T110: 1 | U110: 1 | V110: 1 | W110: 1 | X110: 1 | Y110: 1 | Z110: 1 | AA110: 1 | AB110: 1 | AC110: 1 | AD110: 1 | AE110: 1 | AF110: 1 | AG110: 1 | AH110: 1 | AI110: 1 | AJ110: 1 | AK110: 1 | AL110: 1 | AM110: 1 | AN110: 1 | AO110: 1 | AP110: 1 | AQ110: 1 | AR110: 1 | AS110: 1 | AT110: 1 | AU110: 1 | AV110: 1 | AW110: 1 | AX110: 1 | AY110: 1 | AZ110: 1 | BA110: 1 | BB110: 1 | BC110: 1 | BD110: 1 | BE110: 1 | BF110: 1 | BG110: 1 | BH110: 1 | BI110: 1 | BJ110: 1 | BK110: 1 | BL110: 1 | BM110: 1 | BN110: 1 | BO110: 1 | BP110: 1 | BQ110: 1 | BR110: 1 | BS110: 1 | BT110: 1 | BU110: 1 | BV110: 1 | BW110: 1 | BX110: 1 | BY110: 1 | BZ110: 1 | CA110: 1 | CB110: 1 | CC110: 1
A111: Cardinia (S) | B111: 1 | C111: 1 | D111: 1 | E111: 1 | F111: 1 | G111: 1 | H111: 1 | I111: 1 | J111: 1 | K111: 1 | L111: 1 | M111: 1 | N111: 1 | O111: 1 | P111: 1 | Q111: 1 | R111: 1 | S111: 1 | T111: 1 | U111: 1 | V111: 1 | W111: 1 | X111: 1 | Y111: 1 | Z111: 1 | AA111: 1 | AB111: 1 | AC111: 1 | AD111: 1 | AE111: 1 | AF111: 1 | AG111: 1 | AH111: 1 | AI111: 1 | AJ111: 1 | AK111: 1 | AL111: 1 | AM111: 1 | AN111: 1 | AO111: 1 | AP111: 1 | AQ111: 1 | AR111: 1 | AS111: 1 | AT111: 1 | AU111: 1 | AV111: 1 | AW111: 1 | AX111: 1 | AY111: 1 | AZ111: 1 | BA111: 1 | BB111: 1 | BC111: 1 | BD111: 1 | BE111: 1 | BF111: 1 | BG111: 1 | BH111: 1 | BI111: 1 | BJ111: 1 | BK111: 1 | BL111: 1 | BM111: 1 | BN111: 1 | BO111: 1 | BP111: 1 | BQ111: 1 | BR111: 1 | BS111: 1 | BT111: 1 | BU111: 1 | BV111: 1 | BW111: 1 | BX111: 1 | BY111: 1 | BZ111: 1 | CA111: 1 | CB111: 1 | CC111: 1
A112: Casey (C) | B112: 1 | C112: 1 | D112: 1 | E112: 1 | F112: 1 | G112: 1 | H112: 1 | I112: 1 | J112: 1 | K112: 1 | L112: 1 | M112: 1 | N112: 1 | O112: 1 | P112: 1 | Q112: 1 | R112: 1 | S112: 1 | T112: 1 | U112: 1 | V112: 1 | W112: 1 | X112: 1 | Y112: 1 | Z112: 1 | AA112: 1 | AB112: 1 | AC112: 1 | AD112: 1 | AE112: 1 | AF112: =IF($B$1=2,$D208,1) -> 1 | AG112: 1 | AH112: 1 | AI112: 1 | AJ112: 1 | AK112: 1 | AL112: 1 | AM112: 1 | AN112: 1 | AO112: 1 | AP112: 1 | AQ112: 1 | AR112: 1 | AS112: 1 | AT112: 1 | AU112: 1 | AV112: 1 | AW112: 1 | AX112: 1 | AY112: 1 | AZ112: 1 | BA112: 1 | BB112: 1 | BC112: 1 | BD112: 1 | BE112: 1 | BF112: 1 | BG112: 1 | BH112: 1 | BI112: 1 | BJ112: 1 | BK112: 1 | BL112: 1 | BM112: 1 | BN112: 1 | BO112: 1 | BP112: 1 | BQ112: 1 | BR112: 1 | BS112: 1 | BT112: 1 | BU112: 1 | BV112: 1 | BW112: 1 | BX112: 1 | BY112: 1 | BZ112: 1 | CA112: 1 | CB112: 1 | CC112: 1
A113: Frankston (C) | B113: 1 | C113: 1 | D113: 1 | E113: 1 | F113: 1 | G113: 1 | H113: 1 | I113: 1 | J113: 1 | K113: 1 | L113: 1 | M113: 1 | N113: 1 | O113: 1 | P113: 1 | Q113: 1 | R113: 1 | S113: 1 | T113: 1 | U113: 1 | V113: 1 | W113: 1 | X113: 1 | Y113: 1 | Z113: 1 | AA113: 1 | AB113: 1 | AC113: 1 | AD113: 1 | AE113: =IF($B$1=2,$D209,1) -> 1 | AF113: 1 | AG113: 1 | AH113: 1 | AI113: 1 | AJ113: 1 | AK113: 1 | AL113: 1 | AM113: 1 | AN113: 1 | AO113: 1 | AP113: 1 | AQ113: 1 | AR113: 1 | AS113: 1 | AT113: 1 | AU113: 1 | AV113: 1 | AW113: 1 | AX113: 1 | AY113: 1 | AZ113: 1 | BA113: 1 | BB113: 1 | BC113: 1 | BD113: 1 | BE113: 1 | BF113: 1 | BG113: 1 | BH113: 1 | BI113: 1 | BJ113: 1 | BK113: 1 | BL113: 1 | BM113: 1 | BN113: 1 | BO113: 1 | BP113: 1 | BQ113: 1 | BR113: 1 | BS113: 1 | BT113: 1 | BU113: 1 | BV113: 1 | BW113: 1 | BX113: 1 | BY113: 1 | BZ113: 1 | CA113: 1 | CB113: 1 | CC113: 1
A114: Glen Eira (C) | B114: 1 | C114: 1 | D114: 1 | E114: 1 | F114: 1 | G114: 1 | H114: 1 | I114: 1 | J114: 1 | K114: 1 | L114: 1 | M114: 1 | N114: 1 | O114: 1 | P114: 1 | Q114: 1 | R114: 1 | S114: 1 | T114: 1 | U114: 1 | V114: 1 | W114: 1 | X114: 1 | Y114: 1 | Z114: 1 | AA114: 1 | AB114: 1 | AC114: 1 | AD114: 1 | AE114: 1 | AF114: 1 | AG114: 1 | AH114: 1 | AI114: 1 | AJ114: 1 | AK114: 1 | AL114: 1 | AM114: 1 | AN114: 1 | AO114: 1 | AP114: 1 | AQ114: 1 | AR114: 1 | AS114: 1 | AT114: 1 | AU114: 1 | AV114: 1 | AW114: 1 | AX114: 1 | AY114: 1 | AZ114: 1 | BA114: 1 | BB114: 1 | BC114: 1 | BD114: 1 | BE114: 1 | BF114: 1 | BG114: 1 | BH114: 1 | BI114: 1 | BJ114: 1 | BK114: 1 | BL114: 1 | BM114: 1 | BN114: 1 | BO114: 1 | BP114: 1 | BQ114: 1 | BR114: 1 | BS114: 1 | BT114: 1 | BU114: 1 | BV114: 1 | BW114: 1 | BX114: 1 | BY114: 1 | BZ114: 1 | CA114: 1 | CB114: 1 | CC114: 1
A115: Greater Dandenong (C) | B115: 1 | C115: 1 | D115: 1 | E115: 1 | F115: 1 | G115: 1 | H115: 1 | I115: 1 | J115: 1 | K115: 1 | L115: 1 | M115: 1 | N115: 1 | O115: 1 | P115: 1 | Q115: 1 | R115: 1 | S115: 1 | T115: 1 | U115: 1 | V115: 1 | W115: 1 | X115: 1 | Y115: 1 | Z115: 1 | AA115: 1 | AB115: 1 | AC115: 1 | AD115: 1 | AE115: 1 | AF115: 1 | AG115: 1 | AH115: 1 | AI115: 1 | AJ115: 1 | AK115: 1 | AL115: 1 | AM115: 1 | AN115: 1 | AO115: 1 | AP115: 1 | AQ115: 1 | AR115: 1 | AS115: 1 | AT115: 1 | AU115: 1 | AV115: 1 | AW115: 1 | AX115: 1 | AY115: 1 | AZ115: 1 | BA115: 1 | BB115: 1 | BC115: 1 | BD115: 1 | BE115: 1 | BF115: 1 | BG115: 1 | BH115: 1 | BI115: 1 | BJ115: 1 | BK115: 1 | BL115: 1 | BM115: 1 | BN115: 1 | BO115: 1 | BP115: 1 | BQ115: 1 | BR115: 1 | BS115: 1 | BT115: 1 | BU115: 1 | BV115: 1 | BW115: 1 | BX115: 1 | BY115: 1 | BZ115: 1 | CA115: 1 | CB115: 1 | CC115: 1
A116: Kingston © | B116: 1 | C116: 1 | D116: 1 | E116: 1 | F116: 1 | G116: 1 | H116: 1 | I116: 1 | J116: 1 | K116: 1 | L116: 1 | M116: 1 | N116: 1 | O116: 1 | P116: 1 | Q116: 1 | R116: 1 | S116: 1 | T116: 1 | U116: 1 | V116: 1 | W116: 1 | X116: 1 | Y116: 1 | Z116: 1 | AA116: 1 | AB116: 1 | AC116: 1 | AD116: 1 | AE116: 1 | AF116: 1 | AG116: 1 | AH116: 1 | AI116: 1 | AJ116: 1 | AK116: 1 | AL116: 1 | AM116: 1 | AN116: 1 | AO116: 1 | AP116: 1 | AQ116: 1 | AR116: 1 | AS116: 1 | AT116: 1 | AU116: 1 | AV116: 1 | AW116: 1 | AX116: 1 | AY116: 1 | AZ116: 1 | BA116: 1 | BB116: 1 | BC116: 1 | BD116: 1 | BE116: 1 | BF116: 1 | BG116: 1 | BH116: 1 | BI116: 1 | BJ116: 1 | BK116: 1 | BL116: 1 | BM116: 1 | BN116: 1 | BO116: 1 | BP116: 1 | BQ116: 1 | BR116: 1 | BS116: 1 | BT116: 1 | BU116: 1 | BV116: 1 | BW116: 1 | BX116: 1 | BY116: 1 | BZ116: 1 | CA116: 1 | CB116: 1 | CC116: 1
A117: Knox (C) | B117: 1 | C117: 1 | D117: 1 | E117: 1 | F117: 1 | G117: 1 | H117: 1 | I117: 1 | J117: 1 | K117: 1 | L117: 1 | M117: 1 | N117: 1 | O117: 1 | P117: 1 | Q117: 1 | R117: 1 | S117: 1 | T117: 1 | U117: 1 | V117: 1 | W117: 1 | X117: 1 | Y117: 1 | Z117: 1 | AA117: 1 | AB117: 1 | AC117: 1 | AD117: 1 | AE117: 1 | AF117: 1 | AG117: 1 | AH117: 1 | AI117: 1 | AJ117: 1 | AK117: 1 | AL117: 1 | AM117: 1 | AN117: 1 | AO117: 1 | AP117: 1 | AQ117: 1 | AR117: 1 | AS117: 1 | AT117: 1 | AU117: 1 | AV117: 1 | AW117: 1 | AX117: 1 | AY117: 1 | AZ117: 1 | BA117: 1 | BB117: 1 | BC117: 1 | BD117: 1 | BE117: 1 | BF117: 1 | BG117: 1 | BH117: 1 | BI117: 1 | BJ117: 1 | BK117: 1 | BL117: 1 | BM117: 1 | BN117: 1 | BO117: 1 | BP117: 1 | BQ117: 1 | BR117: 1 | BS117: 1 | BT117: 1 | BU117: 1 | BV117: 1 | BW117: 1 | BX117: 1 | BY117: 1 | BZ117: 1 | CA117: 1 | CB117: 1 | CC117: 1
A118: Manningham (C) | B118: 1 | C118: 1 | D118: 1 | E118: 1 | F118: 1 | G118: 1 | H118: 1 | I118: 1 | J118: 1 | K118: 1 | L118: 1 | M118: 1 | N118: 1 | O118: 1 | P118: 1 | Q118: 1 | R118: 1 | S118: 1 | T118: 1 | U118: 1 | V118: 1 | W118: 1 | X118: 1 | Y118: 1 | Z118: 1 | AA118: 1 | AB118: 1 | AC118: 1 | AD118: 1 | AE118: 1 | AF118: 1 | AG118: 1 | AH118: 1 | AI118: 1 | AJ118: 1 | AK118: 1 | AL118: 1 | AM118: 1 | AN118: 1 | AO118: 1 | AP118: 1 | AQ118: 1 | AR118: 1 | AS118: 1 | AT118: 1 | AU118: 1 | AV118: 1 | AW118: 1 | AX118: 1 | AY118: 1 | AZ118: 1 | BA118: 1 | BB118: 1 | BC118: 1 | BD118: 1 | BE118: 1 | BF118: 1 | BG118: 1 | BH118: 1 | BI118: 1 | BJ118: 1 | BK118: 1 | BL118: 1 | BM118: 1 | BN118: 1 | BO118: 1 | BP118: 1 | BQ118: 1 | BR118: 1 | BS118: 1 | BT118: 1 | BU118: 1 | BV118: 1 | BW118: 1 | BX118: 1 | BY118: 1 | BZ118: 1 | CA118: 1 | CB118: 1 | CC118: 1
A119: Maroondah (C) | B119: 1 | C119: 1 | D119: 1 | E119: 1 | F119: 1 | G119: 1 | H119: 1 | I119: 1 | J119: 1 | K119: 1 | L119: 1 | M119: 1 | N119: 1 | O119: 1 | P119: 1 | Q119: 1 | R119: 1 | S119: 1 | T119: 1 | U119: 1 | V119: 1 | W119: 1 | X119: 1 | Y119: 1 | Z119: 1 | AA119: 1 | AB119: 1 | AC119: 1 | AD119: 1 | AE119: 1 | AF119: 1 | AG119: 1 | AH119: 1 | AI119: 1 | AJ119: 1 | AK119: 1 | AL119: 1 | AM119: 1 | AN119: 1 | AO119: 1 | AP119: 1 | AQ119: 1 | AR119: 1 | AS119: 1 | AT119: 1 | AU119: 1 | AV119: 1 | AW119: 1 | AX119: 1 | AY119: 1 | AZ119: 1 | BA119: 1 | BB119: 1 | BC119: 1 | BD119: 1 | BE119: 1 | BF119: 1 | BG119: 1 | BH119: 1 | BI119: 1 | BJ119: 1 | BK119: 1 | BL119: 1 | BM119: 1 | BN119: 1 | BO119: 1 | BP119: 1 | BQ119: 1 | BR119: 1 | BS119: 1 | BT119: 1 | BU119: 1 | BV119: 1 | BW119: 1 | BX119: 1 | BY119: 1 | BZ119: 1 | CA119: 1 | CB119: 1 | CC119: 1
A120: Melbourne (C) | B120: 1 | C120: 1 | D120: 1 | E120: 1 | F120: 1 | G120: 1 | H120: 1 | I120: 1 | J120: 1 | K120: 1 | L120: 1 | M120: 1 | N120: 1 | O120: 1 | P120: 1 | Q120: 1 | R120: 1 | S120: 1 | T120: 1 | U120: 1 | V120: 1 | W120: 1 | X120: 1 | Y120: 1 | Z120: 1 | AA120: 1 | AB120: 1 | AC120: 1 | AD120: 1 | AE120: 1 | AF120: 1 | AG120: 1 | AH120: 1 | AI120: 1 | AJ120: 1 | AK120: 1 | AL120: 1 | AM120: 1 | AN120: 1 | AO120: 1 | AP120: 1 | AQ120: 1 | AR120: 1 | AS120: 1 | AT120: 1 | AU120: 1 | AV120: 1 | AW120: 1 | AX120: 1 | AY120: 1 | AZ120: =IF($B$1=2,$D216,1) -> 1 | BA120: 1 | BB120: 1 | BC120: =IF($B$1=2,$D216,1) -> 1 | BD120: 1 | BE120: 1 | BF120: 1 | BG120: 1 | BH120: 1 | BI120: 1 | BJ120: 1 | BK120: 1 | BL120: 1 | BM120: 1 | BN120: 1 | BO120: 1 | BP120: 1 | BQ120: 1 | BR120: 1 | BS120: 1 | BT120: 1 | BU120: 1 | BV120: 1 | BW120: 1 | BX120: 1 | BY120: 1 | BZ120: 1 | CA120: 1 | CB120: 1 | CC120: 1
A121: Monash (C) | B121: 1 | C121: 1 | D121: 1 | E121: 1 | F121: 1 | G121: 1 | H121: 1 | I121: 1 | J121: 1 | K121: 1 | L121: 1 | M121: 1 | N121: 1 | O121: 1 | P121: 1 | Q121: 1 | R121: 1 | S121: 1 | T121: 1 | U121: 1 | V121: 1 | W121: 1 | X121: 1 | Y121: 1 | Z121: 1 | AA121: 1 | AB121: 1 | AC121: 1 | AD121: 1 | AE121: =IF($B$1=2,$D217,1) -> 1 | AF121: 1 | AG121: 1 | AH121: 1 | AI121: 1 | AJ121: 1 | AK121: 1 | AL121: 1 | AM121: 1 | AN121: 1 | AO121: 1 | AP121: 1 | AQ121: 1 | AR121: 1 | AS121: 1 | AT121: 1 | AU121: 1 | AV121: 1 | AW121: 1 | AX121: 1 | AY121: 1 | AZ121: 1 | BA121: 1 | BB121: 1 | BC121: 1 | BD121: 1 | BE121: 1 | BF121: 1 | BG121: 1 | BH121: 1 | BI121: 1 | BJ121: 1 | BK121: 1 | BL121: 1 | BM121: 1 | BN121: 1 | BO121: 1 | BP121: 1 | BQ121: 1 | BR121: 1 | BS121: 1 | BT121: 1 | BU121: 1 | BV121: 1 | BW121: 1 | BX121: 1 | BY121: 1 | BZ121: 1 | CA121: 1 | CB121: 1 | CC121: 1
A122: Nillumbik (S) | B122: 1 | C122: 1 | D122: 1 | E122: 1 | F122: 1 | G122: 1 | H122: 1 | I122: 1 | J122: 1 | K122: 1 | L122: 1 | M122: 1 | N122: 1 | O122: 1 | P122: 1 | Q122: 1 | R122: 1 | S122: 1 | T122: 1 | U122: 1 | V122: 1 | W122: 1 | X122: 1 | Y122: 1 | Z122: 1 | AA122: 1 | AB122: 1 | AC122: 1 | AD122: 1 | AE122: 1 | AF122: 1 | AG122: 1 | AH122: 1 | AI122: 1 | AJ122: 1 | AK122: 1 | AL122: 1 | AM122: 1 | AN122: 1 | AO122: 1 | AP122: 1 | AQ122: 1 | AR122: 1 | AS122: 1 | AT122: 1 | AU122: 1 | AV122: 1 | AW122: 1 | AX122: 1 | AY122: 1 | AZ122: 1 | BA122: 1 | BB122: 1 | BC122: 1 | BD122: 1 | BE122: 1 | BF122: 1 | BG122: 1 | BH122: 1 | BI122: 1 | BJ122: 1 | BK122: 1 | BL122: 1 | BM122: 1 | BN122: 1 | BO122: 1 | BP122: 1 | BQ122: 1 | BR122: 1 | BS122: 1 | BT122: 1 | BU122: 1 | BV122: 1 | BW122: 1 | BX122: 1 | BY122: 1 | BZ122: 1 | CA122: 1 | CB122: 1 | CC122: 1
A123: Port Phillip (C) | B123: 1 | C123: 1 | D123: 1 | E123: 1 | F123: 1 | G123: 1 | H123: 1 | I123: 1 | J123: 1 | K123: 1 | L123: 1 | M123: 1 | N123: 1 | O123: 1 | P123: 1 | Q123: 1 | R123: 1 | S123: 1 | T123: 1 | U123: 1 | V123: 1 | W123: 1 | X123: 1 | Y123: 1 | Z123: 1 | AA123: 1 | AB123: 1 | AC123: 1 | AD123: 1 | AE123: 1 | AF123: 1 | AG123: 1 | AH123: 1 | AI123: 1 | AJ123: 1 | AK123: 1 | AL123: 1 | AM123: 1 | AN123: 1 | AO123: 1 | AP123: 1 | AQ123: 1 | AR123: 1 | AS123: 1 | AT123: 1 | AU123: 1 | AV123: 1 | AW123: 1 | AX123: 1 | AY123: 1 | AZ123: 1 | BA123: 1 | BB123: 1 | BC123: 1 | BD123: 1 | BE123: 1 | BF123: 1 | BG123: 1 | BH123: 1 | BI123: 1 | BJ123: 1 | BK123: 1 | BL123: 1 | BM123: 1 | BN123: 1 | BO123: 1 | BP123: 1 | BQ123: 1 | BR123: 1 | BS123: 1 | BT123: 1 | BU123: 1 | BV123: 1 | BW123: 1 | BX123: 1 | BY123: 1 | BZ123: 1 | CA123: 1 | CB123: 1 | CC123: 1
A124: South Gippsland (S) | B124: 1 | C124: 1 | D124: 1 | E124: 1 | F124: 1 | G124: 1 | H124: 1 | I124: 1 | J124: 1 | K124: 1 | L124: 1 | M124: 1 | N124: 1 | O124: 1 | P124: 1 | Q124: 1 | R124: 1 | S124: 1 | T124: 1 | U124: 1 | V124: 1 | W124: 1 | X124: 1 | Y124: 1 | Z124: 1 | AA124: 1 | AB124: 1 | AC124: 1 | AD124: 1 | AE124: 1 | AF124: 1 | AG124: 1 | AH124: 1 | AI124: 1 | AJ124: 1 | AK124: 1 | AL124: 1 | AM124: 1 | AN124: 1 | AO124: 1 | AP124: 1 | AQ124: 1 | AR124: 1 | AS124: 1 | AT124: 1 | AU124: 1 | AV124: 1 | AW124: 1 | AX124: 1 | AY124: 1 | AZ124: 1 | BA124: 1 | BB124: 1 | BC124: 1 | BD124: 1 | BE124: 1 | BF124: 1 | BG124: 1 | BH124: 1 | BI124: 1 | BJ124: 1 | BK124: 1 | BL124: 1 | BM124: 1 | BN124: 1 | BO124: 1 | BP124: 1 | BQ124: 1 | BR124: 1 | BS124: 1 | BT124: 1 | BU124: 1 | BV124: 1 | BW124: 1 | BX124: 1 | BY124: 1 | BZ124: 1 | CA124: 1 | CB124: 1 | CC124: 1
A125: Stonnington (C) | B125: 1 | C125: 1 | D125: 1 | E125: 1 | F125: 1 | G125: 1 | H125: 1 | I125: 1 | J125: 1 | K125: 1 | L125: 1 | M125: 1 | N125: 1 | O125: 1 | P125: 1 | Q125: 1 | R125: 1 | S125: 1 | T125: 1 | U125: 1 | V125: 1 | W125: 1 | X125: 1 | Y125: 1 | Z125: 1 | AA125: 1 | AB125: 1 | AC125: 1 | AD125: 1 | AE125: 1 | AF125: =IF($B$1=2,$D221,1) -> 1 | AG125: 1 | AH125: 1 | AI125: 1 | AJ125: 1 | AK125: 1 | AL125: 1 | AM125: 1 | AN125: 1 | AO125: 1 | AP125: 1 | AQ125: 1 | AR125: 1 | AS125: 1 | AT125: 1 | AU125: 1 | AV125: 1 | AW125: 1 | AX125: 1 | AY125: 1 | AZ125: 1 | BA125: 1 | BB125: 1 | BC125: 1 | BD125: 1 | BE125: 1 | BF125: 1 | BG125: 1 | BH125: 1 | BI125: 1 | BJ125: 1 | BK125: 1 | BL125: 1 | BM125: 1 | BN125: 1 | BO125: 1 | BP125: 1 | BQ125: 1 | BR125: 1 | BS125: 1 | BT125: 1 | BU125: 1 | BV125: 1 | BW125: 1 | BX125: 1 | BY125: 1 | BZ125: 1 | CA125: 1 | CB125: 1 | CC125: 1
A126: Whitehorse (C) | B126: 1 | C126: 1 | D126: 1 | E126: 1 | F126: 1 | G126: 1 | H126: 1 | I126: 1 | J126: 1 | K126: 1 | L126: 1 | M126: 1 | N126: 1 | O126: 1 | P126: 1 | Q126: 1 | R126: 1 | S126: 1 | T126: 1 | U126: 1 | V126: 1 | W126: 1 | X126: 1 | Y126: 1 | Z126: 1 | AA126: 1 | AB126: 1 | AC126: 1 | AD126: 1 | AE126: =IF($B$1=2,$D222,1) -> 1 | AF126: 1 | AG126: 1 | AH126: 1 | AI126: 1 | AJ126: 1 | AK126: 1 | AL126: 1 | AM126: 1 | AN126: 1 | AO126: 1 | AP126: 1 | AQ126: 1 | AR126: 1 | AS126: 1 | AT126: 1 | AU126: 1 | AV126: 1 | AW126: 1 | AX126: 1 | AY126: 1 | AZ126: 1 | BA126: 1 | BB126: 1 | BC126: 1 | BD126: 1 | BE126: 1 | BF126: 1 | BG126: 1 | BH126: 1 | BI126: 1 | BJ126: 1 | BK126: 1 | BL126: 1 | BM126: 1 | BN126: 1 | BO126: 1 | BP126: 1 | BQ126: 1 | BR126: 1 | BS126: 1 | BT126: 1 | BU126: 1 | BV126: 1 | BW126: 1 | BX126: 1 | BY126: 1 | BZ126: 1 | CA126: 1 | CB126: 1 | CC126: 1
A127: Yarra Ranges (S) | B127: 1 | C127: 1 | D127: 1 | E127: 1 | F127: 1 | G127: 1 | H127: 1 | I127: 1 | J127: 1 | K127: 1 | L127: 1 | M127: 1 | N127: 1 | O127: 1 | P127: 1 | Q127: 1 | R127: 1 | S127: 1 | T127: 1 | U127: 1 | V127: 1 | W127: 1 | X127: 1 | Y127: 1 | Z127: 1 | AA127: 1 | AB127: 1 | AC127: 1 | AD127: 1 | AE127: 1 | AF127: 1 | AG127: 1 | AH127: 1 | AI127: 1 | AJ127: 1 | AK127: 1 | AL127: 1 | AM127: 1 | AN127: 1 | AO127: 1 | AP127: 1 | AQ127: 1 | AR127: 1 | AS127: 1 | AT127: 1 | AU127: 1 | AV127: 1 | AW127: 1 | AX127: 1 | AY127: 1 | AZ127: 1 | BA127: 1 | BB127: 1 | BC127: 1 | BD127: 1 | BE127: 1 | BF127: 1 | BG127: 1 | BH127: 1 | BI127: 1 | BJ127: 1 | BK127: 1 | BL127: 1 | BM127: 1 | BN127: 1 | BO127: 1 | BP127: 1 | BQ127: 1 | BR127: 1 | BS127: 1 | BT127: 1 | BU127: 1 | BV127: 1 | BW127: 1 | BX127: 1 | BY127: 1 | BZ127: 1 | CA127: 1 | CB127: 1 | CC127: 1
A129: Commercial Network ON/OFF (0 is OFF/Disconnect)
A130: LGA | B130: 2021 | C130: =B130+1 -> 2022 | D130: =C130+1 -> 2023 | E130: 2024 | F130: 2025 | G130: 2026 | H130: 2027 | I130: 2028 | J130: 2029 | K130: 2030 | L130: 2031 | M130: 2032 | N130: 2033 | O130: 2034 | P130: 2035 | Q130: 2036 | R130: 2037 | S130: 2038 | T130: 2039 | U130: 2040 | V130: 2041 | W130: 2042 | X130: 2043 | Y130: 2044 | Z130: 2045 | AA130: 2046 | AB130: 2047 | AC130: 2048 | AD130: 2049 | AE130: 2050 | AF130: 2051 | AG130: 2052 | AH130: 2053 | AI130: 2054 | AJ130: 2055 | AK130: 2056 | AL130: 2057 | AM130: 2058 | AN130: 2059 | AO130: 2060 | AP130: 2061 | AQ130: 2062 | AR130: 2063 | AS130: 2064 | AT130: 2065 | AU130: 2066 | AV130: 2067 | AW130: 2068 | AX130: 2069 | AY130: 2070 | AZ130: 2071 | BA130: 2072 | BB130: 2073 | BC130: 2074 | BD130: 2075 | BE130: 2076 | BF130: 2077 | BG130: 2078 | BH130: 2079 | BI130: 2080 | BJ130: 2081 | BK130: 2082 | BL130: 2083 | BM130: 2084 | BN130: 2085 | BO130: 2086 | BP130: =BO130+1 -> 2087 | BQ130: 2088 | BR130: 2089 | BS130: 2090 | BT130: 2091 | BU130: 2092 | BV130: 2093 | BW130: 2094 | BX130: 2095 | BY130: 2096 | BZ130: 2097 | CA130: 2098 | CB130: 2099 | CC130: 2100
A131: Bass Coast (S) | B131: 1 | C131: 1 | D131: 1 | E131: 1 | F131: 1 | G131: 1 | H131: 1 | I131: 1 | J131: 1 | K131: 1 | L131: 1 | M131: 1 | N131: 1 | O131: 1 | P131: 1 | Q131: 1 | R131: 1 | S131: 1 | T131: 1 | U131: =IF($B$1=2,IF($D204=0,U$106,1),1) -> 1 | V131: =IF($B$1=2,IF($D204=0,V$106,1),1) -> 1 | W131: 1 | X131: 1 | Y131: 1 | Z131: 1 | AA131: 1 | AB131: 1 | AC131: 1 | AD131: 1 | AE131: =IF($B$1=2,$D204,1) -> 1 | AF131: 1 | AG131: 1 | AH131: 1 | AI131: 1 | AJ131: 1 | AK131: 1 | AL131: 1 | AM131: 1 | AN131: 1 | AO131: 1 | AP131: 1 | AQ131: 1 | AR131: 1 | AS131: 1 | AT131: 1 | AU131: 1 | AV131: 1 | AW131: 1 | AX131: 1 | AY131: 1 | AZ131: 1 | BA131: 1 | BB131: 1 | BC131: 1 | BD131: 1 | BE131: 1 | BF131: 1 | BG131: 1 | BH131: 1 | BI131: 1 | BJ131: 1 | BK131: 1 | BL131: 1 | BM131: 1 | BN131: 1 | BO131: 1 | BP131: 1 | BQ131: 1 | BR131: 1 | BS131: 1 | BT131: 1 | BU131: 1 | BV131: 1 | BW131: 1 | BX131: 1 | BY131: 1 | BZ131: 1 | CA131: 1 | CB131: 1 | CC131: 1
A132: Bayside (C) | B132: 1 | C132: 1 | D132: 1 | E132: 1 | F132: 1 | G132: 1 | H132: 1 | I132: 1 | J132: 1 | K132: 1 | L132: 1 | M132: 1 | N132: 1 | O132: 1 | P132: 1 | Q132: 1 | R132: 1 | S132: 1 | T132: 1 | U132: =IF($B$1=2,IF($D205=0,U$106,1),1) -> 1 | V132: =IF($B$1=2,IF($D205=0,V$106,1),1) -> 1 | W132: 1 | X132: 1 | Y132: 1 | Z132: 1 | AA132: 1 | AB132: 1 | AC132: 1 | AD132: 1 | AE132: 1 | AF132: 1 | AG132: 1 | AH132: 1 | AI132: 1 | AJ132: 1 | AK132: 1 | AL132: 1 | AM132: 1 | AN132: 1 | AO132: 1 | AP132: 1 | AQ132: 1 | AR132: 1 | AS132: 1 | AT132: 1 | AU132: 1 | AV132: 1 | AW132: 1 | AX132: 1 | AY132: 1 | AZ132: 1 | BA132: 1 | BB132: 1 | BC132: 1 | BD132: 1 | BE132: 1 | BF132: 1 | BG132: 1 | BH132: 1 | BI132: 1 | BJ132: 1 | BK132: 1 | BL132: 1 | BM132: 1 | BN132: 1 | BO132: 1 | BP132: 1 | BQ132: 1 | BR132: 1 | BS132: 1 | BT132: 1 | BU132: 1 | BV132: 1 | BW132: 1 | BX132: 1 | BY132: 1 | BZ132: 1 | CA132: 1 | CB132: 1 | CC132: 1
A133: Boroondara (C) | B133: 1 | C133: 1 | D133: 1 | E133: 1 | F133: 1 | G133: 1 | H133: 1 | I133: 1 | J133: 1 | K133: 1 | L133: 1 | M133: 1 | N133: 1 | O133: 1 | P133: 1 | Q133: 1 | R133: 1 | S133: 1 | T133: 1 | U133: 1 | V133: =IF($B$1=2,IF($D206=0,V$106,1),1) -> 1 | W133: 1 | X133: 1 | Y133: 1 | Z133: 1 | AA133: 1 | AB133: 1 | AC133: 1 | AD133: 1 | AE133: 1 | AF133: 1 | AG133: 1 | AH133: 1 | AI133: 1 | AJ133: 1 | AK133: 1 | AL133: 1 | AM133: 1 | AN133: 1 | AO133: 1 | AP133: 1 | AQ133: 1 | AR133: 1 | AS133: 1 | AT133: 1 | AU133: 1 | AV133: 1 | AW133: 1 | AX133: 1 | AY133: 1 | AZ133: 1 | BA133: 1 | BB133: 1 | BC133: 1 | BD133: 1 | BE133: 1 | BF133: 1 | BG133: 1 | BH133: 1 | BI133: 1 | BJ133: 1 | BK133: 1 | BL133: 1 | BM133: 1 | BN133: 1 | BO133: 1 | BP133: 1 | BQ133: 1 | BR133: 1 | BS133: 1 | BT133: 1 | BU133: 1 | BV133: 1 | BW133: 1 | BX133: 1 | BY133: 1 | BZ133: 1 | CA133: 1 | CB133: 1 | CC133: 1
A134: Cardinia (S) | B134: 1 | C134: 1 | D134: 1 | E134: 1 | F134: 1 | G134: 1 | H134: 1 | I134: 1 | J134: 1 | K134: 1 | L134: 1 | M134: 1 | N134: 1 | O134: 1 | P134: 1 | Q134: 1 | R134: 1 | S134: 1 | T134: 1 | U134: 1 | V134: =IF($B$1=2,IF($D207=0,V$106,1),1) -> 1 | W134: 1 | X134: 1 | Y134: 1 | Z134: 1 | AA134: 1 | AB134: 1 | AC134: 1 | AD134: 1 | AE134: 1 | AF134: 1 | AG134: 1 | AH134: 1 | AI134: 1 | AJ134: 1 | AK134: 1 | AL134: 1 | AM134: 1 | AN134: 1 | AO134: 1 | AP134: 1 | AQ134: 1 | AR134: 1 | AS134: 1 | AT134: 1 | AU134: 1 | AV134: 1 | AW134: 1 | AX134: 1 | AY134: 1 | AZ134: 1 | BA134: 1 | BB134: 1 | BC134: 1 | BD134: 1 | BE134: 1 | BF134: 1 | BG134: 1 | BH134: 1 | BI134: 1 | BJ134: 1 | BK134: 1 | BL134: 1 | BM134: 1 | BN134: 1 | BO134: 1 | BP134: 1 | BQ134: 1 | BR134: 1 | BS134: 1 | BT134: 1 | BU134: 1 | BV134: 1 | BW134: 1 | BX134: 1 | BY134: 1 | BZ134: 1 | CA134: 1 | CB134: 1 | CC134: 1
A135: Casey (C) | B135: 1 | C135: 1 | D135: 1 | E135: 1 | F135: 1 | G135: 1 | H135: 1 | I135: 1 | J135: 1 | K135: 1 | L135: 1 | M135: 1 | N135: 1 | O135: 1 | P135: 1 | Q135: 1 | R135: 1 | S135: 1 | T135: 1 | U135: 1 | V135: =IF($B$1=2,IF($D208=0,V$106,1),1) -> 1 | W135: 1 | X135: 1 | Y135: 1 | Z135: 1 | AA135: 1 | AB135: 1 | AC135: 1 | AD135: 1 | AE135: 1 | AF135: =IF($B$1=2,$D208,1) -> 1 | AG135: 1 | AH135: 1 | AI135: 1 | AJ135: 1 | AK135: 1 | AL135: 1 | AM135: 1 | AN135: 1 | AO135: 1 | AP135: 1 | AQ135: 1 | AR135: 1 | AS135: 1 | AT135: 1 | AU135: 1 | AV135: 1 | AW135: 1 | AX135: 1 | AY135: 1 | AZ135: 1 | BA135: 1 | BB135: 1 | BC135: 1 | BD135: 1 | BE135: 1 | BF135: 1 | BG135: 1 | BH135: 1 | BI135: 1 | BJ135: 1 | BK135: 1 | BL135: 1 | BM135: 1 | BN135: 1 | BO135: 1 | BP135: 1 | BQ135: 1 | BR135: 1 | BS135: 1 | BT135: 1 | BU135: 1 | BV135: 1 | BW135: 1 | BX135: 1 | BY135: 1 | BZ135: 1 | CA135: 1 | CB135: 1 | CC135: 1
A136: Frankston (C) | B136: 1 | C136: 1 | D136: 1 | E136: 1 | F136: 1 | G136: 1 | H136: 1 | I136: 1 | J136: 1 | K136: 1 | L136: 1 | M136: 1 | N136: 1 | O136: 1 | P136: 1 | Q136: 1 | R136: 1 | S136: 1 | T136: 1 | U136: 1 | V136: =IF($B$1=2,IF($D209=0,V$106,1),1) -> 1 | W136: 1 | X136: 1 | Y136: 1 | Z136: 1 | AA136: 1 | AB136: 1 | AC136: 1 | AD136: 1 | AE136: =IF($B$1=2,$D209,1) -> 1 | AF136: 1 | AG136: 1 | AH136: 1 | AI136: 1 | AJ136: 1 | AK136: 1 | AL136: 1 | AM136: 1 | AN136: 1 | AO136: 1 | AP136: 1 | AQ136: 1 | AR136: 1 | AS136: 1 | AT136: 1 | AU136: 1 | AV136: 1 | AW136: 1 | AX136: 1 | AY136: 1 | AZ136: 1 | BA136: 1 | BB136: 1 | BC136: 1 | BD136: 1 | BE136: 1 | BF136: 1 | BG136: 1 | BH136: 1 | BI136: 1 | BJ136: 1 | BK136: 1 | BL136: 1 | BM136: 1 | BN136: 1 | BO136: 1 | BP136: 1 | BQ136: 1 | BR136: 1 | BS136: 1 | BT136: 1 | BU136: 1 | BV136: 1 | BW136: 1 | BX136: 1 | BY136: 1 | BZ136: 1 | CA136: 1 | CB136: 1 | CC136: 1
A137: Glen Eira (C) | B137: 1 | C137: 1 | D137: 1 | E137: 1 | F137: 1 | G137: 1 | H137: 1 | I137: 1 | J137: 1 | K137: 1 | L137: 1 | M137: 1 | N137: 1 | O137: 1 | P137: 1 | Q137: 1 | R137: 1 | S137: 1 | T137: 1 | U137: 1 | V137: =IF($B$1=2,IF($D210=0,V$106,1),1) -> 1 | W137: 1 | X137: 1 | Y137: 1 | Z137: 1 | AA137: 1 | AB137: 1 | AC137: 1 | AD137: 1 | AE137: 1 | AF137: 1 | AG137: 1 | AH137: 1 | AI137: 1 | AJ137: 1 | AK137: 1 | AL137: 1 | AM137: 1 | AN137: 1 | AO137: 1 | AP137: 1 | AQ137: 1 | AR137: 1 | AS137: 1 | AT137: 1 | AU137: 1 | AV137: 1 | AW137: 1 | AX137: 1 | AY137: 1 | AZ137: 1 | BA137: 1 | BB137: 1 | BC137: 1 | BD137: 1 | BE137: 1 | BF137: 1 | BG137: 1 | BH137: 1 | BI137: 1 | BJ137: 1 | BK137: 1 | BL137: 1 | BM137: 1 | BN137: 1 | BO137: 1 | BP137: 1 | BQ137: 1 | BR137: 1 | BS137: 1 | BT137: 1 | BU137: 1 | BV137: 1 | BW137: 1 | BX137: 1 | BY137: 1 | BZ137: 1 | CA137: 1 | CB137: 1 | CC137: 1
A138: Greater Dandenong (C) | B138: 1 | C138: 1 | D138: 1 | E138: 1 | F138: 1 | G138: 1 | H138: 1 | I138: 1 | J138: 1 | K138: 1 | L138: 1 | M138: 1 | N138: 1 | O138: 1 | P138: 1 | Q138: 1 | R138: 1 | S138: 1 | T138: 1 | U138: 1 | V138: =IF($B$1=2,IF($D211=0,V$106,1),1) -> 1 | W138: 1 | X138: 1 | Y138: 1 | Z138: 1 | AA138: 1 | AB138: 1 | AC138: 1 | AD138: 1 | AE138: 1 | AF138: 1 | AG138: 1 | AH138: 1 | AI138: 1 | AJ138: 1 | AK138: 1 | AL138: 1 | AM138: 1 | AN138: 1 | AO138: 1 | AP138: 1 | AQ138: 1 | AR138: 1 | AS138: 1 | AT138: 1 | AU138: 1 | AV138: 1 | AW138: 1 | AX138: 1 | AY138: 1 | AZ138: 1 | BA138: 1 | BB138: 1 | BC138: 1 | BD138: 1 | BE138: 1 | BF138: 1 | BG138: 1 | BH138: 1 | BI138: 1 | BJ138: 1 | BK138: 1 | BL138: 1 | BM138: 1 | BN138: 1 | BO138: 1 | BP138: 1 | BQ138: 1 | BR138: 1 | BS138: 1 | BT138: 1 | BU138: 1 | BV138: 1 | BW138: 1 | BX138: 1 | BY138: 1 | BZ138: 1 | CA138: 1 | CB138: 1 | CC138: 1
A139: Kingston (C) | B139: 1 | C139: 1 | D139: 1 | E139: 1 | F139: 1 | G139: 1 | H139: 1 | I139: 1 | J139: 1 | K139: 1 | L139: 1 | M139: 1 | N139: 1 | O139: 1 | P139: 1 | Q139: 1 | R139: 1 | S139: 1 | T139: 1 | U139: 1 | V139: =IF($B$1=2,IF($D212=0,V$106,1),1) -> 1 | W139: 1 | X139: 1 | Y139: 1 | Z139: 1 | AA139: 1 | AB139: 1 | AC139: 1 | AD139: 1 | AE139: 1 | AF139: 1 | AG139: 1 | AH139: 1 | AI139: 1 | AJ139: 1 | AK139: 1 | AL139: 1 | AM139: 1 | AN139: 1 | AO139: 1 | AP139: 1 | AQ139: 1 | AR139: 1 | AS139: 1 | AT139: 1 | AU139: 1 | AV139: 1 | AW139: 1 | AX139: 1 | AY139: 1 | AZ139: 1 | BA139: 1 | BB139: 1 | BC139: 1 | BD139: 1 | BE139: 1 | BF139: 1 | BG139: 1 | BH139: 1 | BI139: 1 | BJ139: 1 | BK139: 1 | BL139: 1 | BM139: 1 | BN139: 1 | BO139: 1 | BP139: 1 | BQ139: 1 | BR139: 1 | BS139: 1 | BT139: 1 | BU139: 1 | BV139: 1 | BW139: 1 | BX139: 1 | BY139: 1 | BZ139: 1 | CA139: 1 | CB139: 1 | CC139: 1
A140: Knox (C) | B140: 1 | C140: 1 | D140: 1 | E140: 1 | F140: 1 | G140: 1 | H140: 1 | I140: 1 | J140: 1 | K140: 1 | L140: 1 | M140: 1 | N140: 1 | O140: 1 | P140: 1 | Q140: 1 | R140: 1 | S140: 1 | T140: 1 | U140: 1 | V140: =IF($B$1=2,IF($D213=0,V$106,1),1) -> 1 | W140: 1 | X140: 1 | Y140: 1 | Z140: 1 | AA140: 1 | AB140: 1 | AC140: 1 | AD140: 1 | AE140: 1 | AF140: 1 | AG140: 1 | AH140: 1 | AI140: 1 | AJ140: 1 | AK140: 1 | AL140: 1 | AM140: 1 | AN140: 1 | AO140: 1 | AP140: 1 | AQ140: 1 | AR140: 1 | AS140: 1 | AT140: 1 | AU140: 1 | AV140: 1 | AW140: 1 | AX140: 1 | AY140: 1 | AZ140: 1 | BA140: 1 | BB140: 1 | BC140: 1 | BD140: 1 | BE140: 1 | BF140: 1 | BG140: 1 | BH140: 1 | BI140: 1 | BJ140: 1 | BK140: 1 | BL140: 1 | BM140: 1 | BN140: 1 | BO140: 1 | BP140: 1 | BQ140: 1 | BR140: 1 | BS140: 1 | BT140: 1 | BU140: 1 | BV140: 1 | BW140: 1 | BX140: 1 | BY140: 1 | BZ140: 1 | CA140: 1 | CB140: 1 | CC140: 1
A141: Manningham (C) | B141: 1 | C141: 1 | D141: 1 | E141: 1 | F141: 1 | G141: 1 | H141: 1 | I141: 1 | J141: 1 | K141: 1 | L141: 1 | M141: 1 | N141: 1 | O141: 1 | P141: 1 | Q141: 1 | R141: 1 | S141: 1 | T141: 1 | U141: 1 | V141: =IF($B$1=2,IF($D214=0,V$106,1),1) -> 1 | W141: 1 | X141: 1 | Y141: 1 | Z141: 1 | AA141: 1 | AB141: 1 | AC141: 1 | AD141: 1 | AE141: 1 | AF141: 1 | AG141: 1 | AH141: 1 | AI141: 1 | AJ141: 1 | AK141: 1 | AL141: 1 | AM141: 1 | AN141: 1 | AO141: 1 | AP141: 1 | AQ141: 1 | AR141: 1 | AS141: 1 | AT141: 1 | AU141: 1 | AV141: 1 | AW141: 1 | AX141: 1 | AY141: 1 | AZ141: 1 | BA141: 1 | BB141: 1 | BC141: 1 | BD141: 1 | BE141: 1 | BF141: 1 | BG141: 1 | BH141: 1 | BI141: 1 | BJ141: 1 | BK141: 1 | BL141: 1 | BM141: 1 | BN141: 1 | BO141: 1 | BP141: 1 | BQ141: 1 | BR141: 1 | BS141: 1 | BT141: 1 | BU141: 1 | BV141: 1 | BW141: 1 | BX141: 1 | BY141: 1 | BZ141: 1 | CA141: 1 | CB141: 1 | CC141: 1
A142: Maroondah (C) | B142: 1 | C142: 1 | D142: 1 | E142: 1 | F142: 1 | G142: 1 | H142: 1 | I142: 1 | J142: 1 | K142: 1 | L142: 1 | M142: 1 | N142: 1 | O142: 1 | P142: 1 | Q142: 1 | R142: 1 | S142: 1 | T142: 1 | U142: 1 | V142: =IF($B$1=2,IF($D215=0,V$106,1),1) -> 1 | W142: 1 | X142: 1 | Y142: 1 | Z142: 1 | AA142: 1 | AB142: 1 | AC142: 1 | AD142: 1 | AE142: 1 | AF142: 1 | AG142: 1 | AH142: 1 | AI142: 1 | AJ142: 1 | AK142: 1 | AL142: 1 | AM142: 1 | AN142: 1 | AO142: 1 | AP142: 1 | AQ142: 1 | AR142: 1 | AS142: 1 | AT142: 1 | AU142: 1 | AV142: 1 | AW142: 1 | AX142: 1 | AY142: 1 | AZ142: 1 | BA142: 1 | BB142: 1 | BC142: 1 | BD142: 1 | BE142: 1 | BF142: 1 | BG142: 1 | BH142: 1 | BI142: 1 | BJ142: 1 | BK142: 1 | BL142: 1 | BM142: 1 | BN142: 1 | BO142: 1 | BP142: 1 | BQ142: 1 | BR142: 1 | BS142: 1 | BT142: 1 | BU142: 1 | BV142: 1 | BW142: 1 | BX142: 1 | BY142: 1 | BZ142: 1 | CA142: 1 | CB142: 1 | CC142: 1
A143: Melbourne (C) | B143: 1 | C143: 1 | D143: 1 | E143: 1 | F143: 1 | G143: 1 | H143: 1 | I143: 1 | J143: 1 | K143: 1 | L143: 1 | M143: 1 | N143: 1 | O143: 1 | P143: 1 | Q143: 1 | R143: 1 | S143: 1 | T143: 1 | U143: 1 | V143: =IF($B$1=2,IF($D216=0,V$106,1),1) -> 1 | W143: 1 | X143: 1 | Y143: 1 | Z143: 1 | AA143: 1 | AB143: 1 | AC143: 1 | AD143: 1 | AE143: 1 | AF143: 1 | AG143: 1 | AH143: 1 | AI143: 1 | AJ143: 1 | AK143: 1 | AL143: 1 | AM143: 1 | AN143: 1 | AO143: 1 | AP143: 1 | AQ143: 1 | AR143: 1 | AS143: 1 | AT143: 1 | AU143: 1 | AV143: 1 | AW143: 1 | AX143: 1 | AY143: 1 | AZ143: =IF($B$1=2,$D216,1) -> 1 | BA143: 1 | BB143: 1 | BC143: =IF($B$1=2,$D216,1) -> 1 | BD143: 1 | BE143: 1 | BF143: 1 | BG143: 1 | BH143: 1 | BI143: 1 | BJ143: 1 | BK143: 1 | BL143: 1 | BM143: 1 | BN143: 1 | BO143: 1 | BP143: 1 | BQ143: 1 | BR143: 1 | BS143: 1 | BT143: 1 | BU143: 1 | BV143: 1 | BW143: 1 | BX143: 1 | BY143: 1 | BZ143: 1 | CA143: 1 | CB143: 1 | CC143: 1
A144: Monash (C) | B144: 1 | C144: 1 | D144: 1 | E144: 1 | F144: 1 | G144: 1 | H144: 1 | I144: 1 | J144: 1 | K144: 1 | L144: 1 | M144: 1 | N144: 1 | O144: 1 | P144: 1 | Q144: 1 | R144: 1 | S144: 1 | T144: 1 | U144: 1 | V144: =IF($B$1=2,IF($D217=0,V$106,1),1) -> 1 | W144: 1 | X144: 1 | Y144: 1 | Z144: 1 | AA144: 1 | AB144: 1 | AC144: 1 | AD144: 1 | AE144: =IF($B$1=2,$D217,1) -> 1 | AF144: 1 | AG144: 1 | AH144: 1 | AI144: 1 | AJ144: 1 | AK144: 1 | AL144: 1 | AM144: 1 | AN144: 1 | AO144: 1 | AP144: 1 | AQ144: 1 | AR144: 1 | AS144: 1 | AT144: 1 | AU144: 1 | AV144: 1 | AW144: 1 | AX144: 1 | AY144: 1 | AZ144: 1 | BA144: 1 | BB144: 1 | BC144: 1 | BD144: 1 | BE144: 1 | BF144: 1 | BG144: 1 | BH144: 1 | BI144: 1 | BJ144: 1 | BK144: 1 | BL144: 1 | BM144: 1 | BN144: 1 | BO144: 1 | BP144: 1 | BQ144: 1 | BR144: 1 | BS144: 1 | BT144: 1 | BU144: 1 | BV144: 1 | BW144: 1 | BX144: 1 | BY144: 1 | BZ144: 1 | CA144: 1 | CB144: 1 | CC144: 1
A145: Port Phillip (C) | B145: 1 | C145: 1 | D145: 1 | E145: 1 | F145: 1 | G145: 1 | H145: 1 | I145: 1 | J145: 1 | K145: 1 | L145: 1 | M145: 1 | N145: 1 | O145: 1 | P145: 1 | Q145: 1 | R145: 1 | S145: 1 | T145: 1 | U145: 1 | V145: =IF($B$1=2,IF($D218=0,V$106,1),1) -> 1 | W145: 1 | X145: 1 | Y145: 1 | Z145: 1 | AA145: 1 | AB145: 1 | AC145: 1 | AD145: 1 | AE145: 1 | AF145: 1 | AG145: 1 | AH145: 1 | AI145: 1 | AJ145: 1 | AK145: 1 | AL145: 1 | AM145: 1 | AN145: 1 | AO145: 1 | AP145: 1 | AQ145: 1 | AR145: 1 | AS145: 1 | AT145: 1 | AU145: 1 | AV145: 1 | AW145: 1 | AX145: 1 | AY145: 1 | AZ145: 1 | BA145: 1 | BB145: 1 | BC145: 1 | BD145: 1 | BE145: 1 | BF145: 1 | BG145: 1 | BH145: 1 | BI145: 1 | BJ145: 1 | BK145: 1 | BL145: 1 | BM145: 1 | BN145: 1 | BO145: 1 | BP145: 1 | BQ145: 1 | BR145: 1 | BS145: 1 | BT145: 1 | BU145: 1 | BV145: 1 | BW145: 1 | BX145: 1 | BY145: 1 | BZ145: 1 | CA145: 1 | CB145: 1 | CC145: 1
A146: South Gippsland (S) | B146: 1 | C146: 1 | D146: 1 | E146: 1 | F146: 1 | G146: 1 | H146: 1 | I146: 1 | J146: 1 | K146: 1 | L146: 1 | M146: 1 | N146: 1 | O146: 1 | P146: 1 | Q146: 1 | R146: 1 | S146: 1 | T146: 1 | U146: 1 | V146: =IF($B$1=2,IF($D219=0,V$106,1),1) -> 1 | W146: 1 | X146: 1 | Y146: 1 | Z146: 1 | AA146: 1 | AB146: 1 | AC146: 1 | AD146: 1 | AE146: 1 | AF146: 1 | AG146: 1 | AH146: 1 | AI146: 1 | AJ146: 1 | AK146: 1 | AL146: 1 | AM146: 1 | AN146: 1 | AO146: 1 | AP146: 1 | AQ146: 1 | AR146: 1 | AS146: 1 | AT146: 1 | AU146: 1 | AV146: 1 | AW146: 1 | AX146: 1 | AY146: 1 | AZ146: 1 | BA146: 1 | BB146: 1 | BC146: 1 | BD146: 1 | BE146: 1 | BF146: 1 | BG146: 1 | BH146: 1 | BI146: 1 | BJ146: 1 | BK146: 1 | BL146: 1 | BM146: 1 | BN146: 1 | BO146: 1 | BP146: 1 | BQ146: 1 | BR146: 1 | BS146: 1 | BT146: 1 | BU146: 1 | BV146: 1 | BW146: 1 | BX146: 1 | BY146: 1 | BZ146: 1 | CA146: 1 | CB146: 1 | CC146: 1
A147: Stonnington (C) | B147: 1 | C147: 1 | D147: 1 | E147: 1 | F147: 1 | G147: 1 | H147: 1 | I147: 1 | J147: 1 | K147: 1 | L147: 1 | M147: 1 | N147: 1 | O147: 1 | P147: 1 | Q147: 1 | R147: 1 | S147: 1 | T147: 1 | U147: 1 | V147: =IF($B$1=2,IF($D220=0,V$106,1),1) -> 1 | W147: 1 | X147: 1 | Y147: 1 | Z147: 1 | AA147: 1 | AB147: 1 | AC147: 1 | AD147: 1 | AE147: 1 | AF147: 1 | AG147: 1 | AH147: 1 | AI147: 1 | AJ147: 1 | AK147: 1 | AL147: 1 | AM147: 1 | AN147: 1 | AO147: 1 | AP147: 1 | AQ147: 1 | AR147: 1 | AS147: 1 | AT147: 1 | AU147: 1 | AV147: 1 | AW147: 1 | AX147: 1 | AY147: 1 | AZ147: 1 | BA147: 1 | BB147: 1 | BC147: 1 | BD147: 1 | BE147: 1 | BF147: 1 | BG147: 1 | BH147: 1 | BI147: 1 | BJ147: 1 | BK147: 1 | BL147: 1 | BM147: 1 | BN147: 1 | BO147: 1 | BP147: 1 | BQ147: 1 | BR147: 1 | BS147: 1 | BT147: 1 | BU147: 1 | BV147: 1 | BW147: 1 | BX147: 1 | BY147: 1 | BZ147: 1 | CA147: 1 | CB147: 1 | CC147: 1
A148: Whitehorse (C) | B148: 1 | C148: 1 | D148: 1 | E148: 1 | F148: 1 | G148: 1 | H148: 1 | I148: 1 | J148: 1 | K148: 1 | L148: 1 | M148: 1 | N148: 1 | O148: 1 | P148: 1 | Q148: 1 | R148: 1 | S148: 1 | T148: 1 | U148: 1 | V148: =IF($B$1=2,IF($D221=0,V$106,1),1) -> 1 | W148: 1 | X148: 1 | Y148: 1 | Z148: 1 | AA148: 1 | AB148: 1 | AC148: 1 | AD148: 1 | AE148: 1 | AF148: =IF($B$1=2,$D221,1) -> 1 | AG148: 1 | AH148: 1 | AI148: 1 | AJ148: 1 | AK148: 1 | AL148: 1 | AM148: 1 | AN148: 1 | AO148: 1 | AP148: 1 | AQ148: 1 | AR148: 1 | AS148: 1 | AT148: 1 | AU148: 1 | AV148: 1 | AW148: 1 | AX148: 1 | AY148: 1 | AZ148: 1 | BA148: 1 | BB148: 1 | BC148: 1 | BD148: 1 | BE148: 1 | BF148: 1 | BG148: 1 | BH148: 1 | BI148: 1 | BJ148: 1 | BK148: 1 | BL148: 1 | BM148: 1 | BN148: 1 | BO148: 1 | BP148: 1 | BQ148: 1 | BR148: 1 | BS148: 1 | BT148: 1 | BU148: 1 | BV148: 1 | BW148: 1 | BX148: 1 | BY148: 1 | BZ148: 1 | CA148: 1 | CB148: 1 | CC148: 1
A149: Yarra Ranges (S) | B149: 1 | C149: 1 | D149: 1 | E149: 1 | F149: 1 | G149: 1 | H149: 1 | I149: 1 | J149: 1 | K149: 1 | L149: 1 | M149: 1 | N149: 1 | O149: 1 | P149: 1 | Q149: 1 | R149: 1 | S149: 1 | T149: 1 | U149: 1 | V149: =IF($B$1=2,IF($D222=0,V$106,1),1) -> 1 | W149: 1 | X149: 1 | Y149: 1 | Z149: 1 | AA149: 1 | AB149: 1 | AC149: 1 | AD149: 1 | AE149: =IF($B$1=2,$D222,1) -> 1 | AF149: 1 | AG149: 1 | AH149: 1 | AI149: 1 | AJ149: 1 | AK149: 1 | AL149: 1 | AM149: 1 | AN149: 1 | AO149: 1 | AP149: 1 | AQ149: 1 | AR149: 1 | AS149: 1 | AT149: 1 | AU149: 1 | AV149: 1 | AW149: 1 | AX149: 1 | AY149: 1 | AZ149: 1 | BA149: 1 | BB149: 1 | BC149: 1 | BD149: 1 | BE149: 1 | BF149: 1 | BG149: 1 | BH149: 1 | BI149: 1 | BJ149: 1 | BK149: 1 | BL149: 1 | BM149: 1 | BN149: 1 | BO149: 1 | BP149: 1 | BQ149: 1 | BR149: 1 | BS149: 1 | BT149: 1 | BU149: 1 | BV149: 1 | BW149: 1 | BX149: 1 | BY149: 1 | BZ149: 1 | CA149: 1 | CB149: 1 | CC149: 1
A151: Scenario 1 | L151: =IF($B$1=1,1,0) -> 1 | M151: =IF($B$1=1,1,0) -> 1 | N151: =IF($B$1=1,1,0) -> 1 | O151: 1 | P151: 1 | Q151: 1 | R151: 1 | S151: 1 | T151: 1 | U151: 1 | V151: 1 | W151: 1 | X151: 1 | Y151: 1 | Z151: 1 | AA151: 1 | AB151: 1 | AC151: 1 | AD151: 1 | AE151: 1 | AF151: 1 | AG151: 1 | AH151: 1 | AI151: 1 | AJ151: 1 | AK151: 1 | AL151: 1 | AM151: 1 | AN151: 1 | AO151: 1 | AP151: 1 | AQ151: 1 | AR151: 1 | AS151: 1 | AT151: 1 | AU151: 1 | AV151: 1 | AW151: 1 | AX151: 1 | AY151: 1 | AZ151: 1 | BA151: 1 | BB151: 1 | BC151: 1 | BD151: 1 | BE151: 1 | BF151: 1 | BG151: 1 | BH151: 1 | BI151: 1 | BJ151: 1 | BK151: 1 | BL151: 1 | BM151: 1 | BN151: 1 | BO151: 1 | BP151: 1 | BQ151: 1 | BR151: 1 | BS151: 1 | BT151: 1 | BU151: 1 | BV151: 1 | BW151: 1 | BX151: 1 | BY151: 1 | BZ151: =IF($B$1=1,1,0) -> 1 | CA151: 1 | CB151: 1 | CC151: 1
A152: Scenario 2
A153: Scenario 3
A154: Scenario 4
A155: Baseline 5 | L155: 0 | M155: 0 | N155: 0 | O155: 0 | P155: 0 | Q155: 0 | R155: 0 | S155: 0 | T155: 0 | U155: 0 | V155: 0 | W155: 0 | X155: 0 | Y155: 0 | Z155: 0 | AA155: 0 | AB155: 0 | AC155: 0 | AD155: 0 | AE155: 0 | AF155: 0 | AG155: 0 | AH155: 0 | AI155: 0 | AJ155: 0 | AK155: 0 | AL155: 0 | AM155: 0 | AN155: 0 | AO155: 0 | AP155: 0 | AQ155: 0 | AR155: 0 | AS155: 0 | AT155: 0 | AU155: 0 | AV155: 0 | AW155: 0 | AX155: 0 | AY155: 0 | AZ155: 0 | BA155: 0 | BB155: 0 | BC155: 0 | BD155: 0 | BE155: 0 | BF155: 0 | BG155: 0 | BH155: 0 | BI155: 0 | BJ155: 0 | BK155: 0 | BL155: 0 | BM155: 0 | BN155: 0 | BO155: 0 | BP155: 0 | BQ155: 0 | BR155: 0 | BS155: 0 | BT155: 0 | BU155: 0 | BV155: 0 | BW155: 0 | BX155: 0 | BY155: 0 | BZ155: 0 | CA155: 0 | CB155: 0 | CC155: 0
A157: Residential Network No new connections | U157: 0.1 | V157: =U157+0.1 -> 0.2 | W157: =V157+0.1 -> 0.3 | X157: 0.4 | Y157: 0.5 | Z157: 0.6 | AA157: 0.7 | AB157: 0.8 | AC157: 0.9 | AD157: 1 | AE157: =AD157 -> 1 | AF157: =AE157 -> 1 | AG157: 1 | AH157: 1 | AI157: 1 | AJ157: 1 | AK157: 1 | AL157: 1 | AM157: 1 | AN157: 1 | AO157: 1 | AP157: 1 | AQ157: 1 | AR157: 1 | AS157: 1 | AT157: 1 | AU157: 1 | AV157: 1 | AW157: 1 | AX157: 1 | AY157: 1 | AZ157: 1 | BA157: 1 | BB157: 1 | BC157: 1 | BD157: 1 | BE157: 1 | BF157: 1 | BG157: 1 | BH157: 1 | BI157: 1 | BJ157: 1 | BK157: 1 | BL157: 1 | BM157: 1 | BN157: 1 | BO157: 1 | BP157: 1 | BQ157: 1 | BR157: 1 | BS157: 1 | BT157: 1 | BU157: 1 | BV157: 1 | BW157: 1 | BX157: 1 | BY157: 1 | BZ157: 1 | CA157: 1 | CB157: 1 | CC157: 1
A158: LGA | B158: 2021 | C158: =B158+1 -> 2022 | D158: =C158+1 -> 2023 | E158: 2024 | F158: 2025 | G158: 2026 | H158: 2027 | I158: 2028 | J158: 2029 | K158: 2030 | L158: 2031 | M158: 2032 | N158: 2033 | O158: 2034 | P158: 2035 | Q158: 2036 | R158: 2037 | S158: 2038 | T158: 2039 | U158: 2040 | V158: 2041 | W158: 2042 | X158: 2043 | Y158: 2044 | Z158: 2045 | AA158: 2046 | AB158: 2047 | AC158: 2048 | AD158: 2049 | AE158: 2050 | AF158: 2051 | AG158: 2052 | AH158: 2053 | AI158: 2054 | AJ158: 2055 | AK158: 2056 | AL158: 2057 | AM158: 2058 | AN158: 2059 | AO158: 2060 | AP158: 2061 | AQ158: 2062 | AR158: 2063 | AS158: 2064 | AT158: 2065 | AU158: 2066 | AV158: 2067 | AW158: 2068 | AX158: 2069 | AY158: 2070 | AZ158: 2071 | BA158: 2072 | BB158: 2073 | BC158: 2074 | BD158: 2075 | BE158: 2076 | BF158: 2077 | BG158: 2078 | BH158: 2079 | BI158: 2080 | BJ158: 2081 | BK158: 2082 | BL158: 2083 | BM158: 2084 | BN158: 2085 | BO158: 2086 | BP158: =BO158+1 -> 2087 | BQ158: 2088 | BR158: 2089 | BS158: 2090 | BT158: 2091 | BU158: 2092 | BV158: 2093 | BW158: 2094 | BX158: 2095 | BY158: 2096 | BZ158: 2097 | CA158: 2098 | CB158: 2099 | CC158: 2100
A159: Bass Coast (S) | B159: 0 | C159: 0 | D159: 0 | E159: 0 | F159: 0 | G159: 0 | H159: 0 | I159: 0 | J159: 0 | K159: 0 | L159: =L$151 -> 1 | M159: =M$151 -> 1 | N159: =N$151 -> 1 | O159: 1 | P159: 1 | Q159: 1 | R159: 1 | S159: 1 | T159: 1 | U159: =IF($B$1=2,$C204*U$157,U$151) -> 1 | V159: =IF($B$1=2,$C204*V$157,V$151) -> 1 | W159: 1 | X159: 1 | Y159: 1 | Z159: 1 | AA159: 1 | AB159: 1 | AC159: 1 | AD159: 1 | AE159: =IF($B$1=2,$C204*AE$157,AE$151) -> 1 | AF159: 1 | AG159: =IF($B$1=2,$C204*AG$157,AG$151) -> 1 | AH159: 1 | AI159: 1 | AJ159: 1 | AK159: 1 | AL159: 1 | AM159: 1 | AN159: 1 | AO159: 1 | AP159: 1 | AQ159: 1 | AR159: 1 | AS159: 1 | AT159: 1 | AU159: 1 | AV159: 1 | AW159: 1 | AX159: 1 | AY159: 1 | AZ159: 1 | BA159: 1 | BB159: 1 | BC159: 1 | BD159: 1 | BE159: 1 | BF159: 1 | BG159: 1 | BH159: 1 | BI159: 1 | BJ159: 1 | BK159: 1 | BL159: 1 | BM159: 1 | BN159: 1 | BO159: 1 | BP159: 1 | BQ159: 1 | BR159: 1 | BS159: 1 | BT159: 1 | BU159: 1 | BV159: 1 | BW159: 1 | BX159: 1 | BY159: 1 | BZ159: 1 | CA159: 1 | CB159: 1 | CC159: 1
A160: Bayside (C) | B160: 0 | C160: 0 | D160: 0 | E160: 0 | F160: 0 | G160: 0 | H160: 0 | I160: 0 | J160: 0 | K160: 0 | L160: =L$151 -> 1 | M160: 1 | N160: 1 | O160: 1 | P160: 1 | Q160: 1 | R160: 1 | S160: 1 | T160: 1 | U160: =IF($B$1=2,$C205*U$157,U$151) -> 1 | V160: 1 | W160: 1 | X160: 1 | Y160: 1 | Z160: 1 | AA160: 1 | AB160: 1 | AC160: 1 | AD160: 1 | AE160: =IF($B$1=2,$C205*AE$157,AE$151) -> 1 | AF160: 1 | AG160: =IF($B$1=2,$C205*AG$157,AG$151) -> 1 | AH160: 1 | AI160: 1 | AJ160: 1 | AK160: 1 | AL160: 1 | AM160: 1 | AN160: 1 | AO160: 1 | AP160: 1 | AQ160: 1 | AR160: 1 | AS160: 1 | AT160: 1 | AU160: 1 | AV160: 1 | AW160: 1 | AX160: 1 | AY160: 1 | AZ160: 1 | BA160: 1 | BB160: 1 | BC160: 1 | BD160: 1 | BE160: 1 | BF160: 1 | BG160: 1 | BH160: 1 | BI160: 1 | BJ160: 1 | BK160: 1 | BL160: 1 | BM160: 1 | BN160: 1 | BO160: 1 | BP160: 1 | BQ160: 1 | BR160: 1 | BS160: 1 | BT160: 1 | BU160: 1 | BV160: 1 | BW160: 1 | BX160: 1 | BY160: 1 | BZ160: 1 | CA160: 1 | CB160: 1 | CC160: 1
A161: Boroondara (C) | B161: 0 | C161: 0 | D161: 0 | E161: 0 | F161: 0 | G161: 0 | H161: 0 | I161: 0 | J161: 0 | K161: 0 | L161: 1 | M161: 1 | N161: 1 | O161: 1 | P161: 1 | Q161: =Q$151 -> 1 | R161: 1 | S161: 1 | T161: 1 | U161: 1 | V161: 1 | W161: 1 | X161: 1 | Y161: 1 | Z161: 1 | AA161: 1 | AB161: 1 | AC161: 1 | AD161: 1 | AE161: =IF($B$1=2,$C206*AE$157,AE$151) -> 1 | AF161: 1 | AG161: =IF($B$1=2,$C206*AG$157,AG$151) -> 1 | AH161: 1 | AI161: 1 | AJ161: 1 | AK161: 1 | AL161: 1 | AM161: 1 | AN161: 1 | AO161: 1 | AP161: 1 | AQ161: 1 | AR161: 1 | AS161: 1 | AT161: 1 | AU161: 1 | AV161: 1 | AW161: 1 | AX161: 1 | AY161: 1 | AZ161: 1 | BA161: 1 | BB161: 1 | BC161: 1 | BD161: 1 | BE161: 1 | BF161: 1 | BG161: 1 | BH161: 1 | BI161: 1 | BJ161: 1 | BK161: 1 | BL161: 1 | BM161: 1 | BN161: 1 | BO161: 1 | BP161: 1 | BQ161: 1 | BR161: 1 | BS161: 1 | BT161: 1 | BU161: 1 | BV161: 1 | BW161: 1 | BX161: 1 | BY161: 1 | BZ161: 1 | CA161: 1 | CB161: 1 | CC161: 1
A162: Cardinia (S) | B162: 0 | C162: 0 | D162: 0 | E162: 0 | F162: 0 | G162: 0 | H162: 0 | I162: 0 | J162: 0 | K162: 0 | L162: 1 | M162: 1 | N162: 1 | O162: 1 | P162: 1 | Q162: 1 | R162: 1 | S162: 1 | T162: 1 | U162: 1 | V162: 1 | W162: 1 | X162: 1 | Y162: 1 | Z162: 1 | AA162: 1 | AB162: 1 | AC162: 1 | AD162: 1 | AE162: =IF($B$1=2,$C207*AE$157,AE$151) -> 1 | AF162: 1 | AG162: =IF($B$1=2,$C207*AG$157,AG$151) -> 1 | AH162: 1 | AI162: 1 | AJ162: 1 | AK162: 1 | AL162: 1 | AM162: 1 | AN162: 1 | AO162: 1 | AP162: 1 | AQ162: 1 | AR162: 1 | AS162: 1 | AT162: 1 | AU162: 1 | AV162: 1 | AW162: 1 | AX162: 1 | AY162: 1 | AZ162: 1 | BA162: 1 | BB162: 1 | BC162: 1 | BD162: 1 | BE162: 1 | BF162: 1 | BG162: 1 | BH162: 1 | BI162: 1 | BJ162: 1 | BK162: 1 | BL162: 1 | BM162: 1 | BN162: 1 | BO162: 1 | BP162: 1 | BQ162: 1 | BR162: 1 | BS162: 1 | BT162: 1 | BU162: 1 | BV162: 1 | BW162: 1 | BX162: 1 | BY162: 1 | BZ162: 1 | CA162: 1 | CB162: 1 | CC162: 1
A163: Casey (C) | B163: 0 | C163: 0 | D163: 0 | E163: 0 | F163: 0 | G163: 0 | H163: 0 | I163: 0 | J163: 0 | K163: 0 | L163: 1 | M163: 1 | N163: 1 | O163: 1 | P163: 1 | Q163: 1 | R163: 1 | S163: 1 | T163: 1 | U163: 1 | V163: 1 | W163: 1 | X163: 1 | Y163: 1 | Z163: 1 | AA163: 1 | AB163: 1 | AC163: 1 | AD163: 1 | AE163: =IF($B$1=2,$C208*AE$157,AE$151) -> 1 | AF163: 1 | AG163: =IF($B$1=2,$C208*AG$157,AG$151) -> 1 | AH163: 1 | AI163: 1 | AJ163: 1 | AK163: 1 | AL163: 1 | AM163: 1 | AN163: 1 | AO163: 1 | AP163: 1 | AQ163: 1 | AR163: 1 | AS163: 1 | AT163: 1 | AU163: 1 | AV163: 1 | AW163: 1 | AX163: 1 | AY163: 1 | AZ163: 1 | BA163: 1 | BB163: 1 | BC163: 1 | BD163: 1 | BE163: 1 | BF163: 1 | BG163: 1 | BH163: 1 | BI163: 1 | BJ163: 1 | BK163: 1 | BL163: 1 | BM163: 1 | BN163: 1 | BO163: 1 | BP163: 1 | BQ163: 1 | BR163: 1 | BS163: 1 | BT163: 1 | BU163: 1 | BV163: 1 | BW163: 1 | BX163: 1 | BY163: 1 | BZ163: 1 | CA163: 1 | CB163: 1 | CC163: 1
A164: Frankston (C) | B164: 0 | C164: 0 | D164: 0 | E164: 0 | F164: 0 | G164: 0 | H164: 0 | I164: 0 | J164: 0 | K164: 0 | L164: 1 | M164: 1 | N164: 1 | O164: 1 | P164: 1 | Q164: 1 | R164: 1 | S164: 1 | T164: 1 | U164: 1 | V164: 1 | W164: 1 | X164: 1 | Y164: 1 | Z164: 1 | AA164: 1 | AB164: 1 | AC164: 1 | AD164: 1 | AE164: =IF($B$1=2,$C209*AE$157,AE$151) -> 1 | AF164: 1 | AG164: =IF($B$1=2,$C209*AG$157,AG$151) -> 1 | AH164: 1 | AI164: 1 | AJ164: 1 | AK164: 1 | AL164: 1 | AM164: 1 | AN164: 1 | AO164: 1 | AP164: 1 | AQ164: 1 | AR164: 1 | AS164: 1 | AT164: 1 | AU164: 1 | AV164: 1 | AW164: 1 | AX164: 1 | AY164: 1 | AZ164: 1 | BA164: 1 | BB164: 1 | BC164: 1 | BD164: 1 | BE164: 1 | BF164: 1 | BG164: 1 | BH164: 1 | BI164: 1 | BJ164: 1 | BK164: 1 | BL164: 1 | BM164: 1 | BN164: 1 | BO164: 1 | BP164: 1 | BQ164: 1 | BR164: 1 | BS164: 1 | BT164: 1 | BU164: 1 | BV164: 1 | BW164: 1 | BX164: 1 | BY164: 1 | BZ164: 1 | CA164: 1 | CB164: 1 | CC164: 1
A165: Glen Eira (C) | B165: 0 | C165: 0 | D165: 0 | E165: 0 | F165: 0 | G165: 0 | H165: 0 | I165: 0 | J165: 0 | K165: 0 | L165: 1 | M165: 1 | N165: 1 | O165: 1 | P165: 1 | Q165: 1 | R165: 1 | S165: 1 | T165: 1 | U165: 1 | V165: 1 | W165: 1 | X165: 1 | Y165: 1 | Z165: 1 | AA165: 1 | AB165: 1 | AC165: 1 | AD165: 1 | AE165: =IF($B$1=2,$C210*AE$157,AE$151) -> 1 | AF165: 1 | AG165: =IF($B$1=2,$C210*AG$157,AG$151) -> 1 | AH165: 1 | AI165: 1 | AJ165: 1 | AK165: 1 | AL165: 1 | AM165: 1 | AN165: 1 | AO165: 1 | AP165: 1 | AQ165: 1 | AR165: 1 | AS165: 1 | AT165: 1 | AU165: 1 | AV165: 1 | AW165: 1 | AX165: 1 | AY165: 1 | AZ165: 1 | BA165: 1 | BB165: 1 | BC165: 1 | BD165: 1 | BE165: 1 | BF165: 1 | BG165: 1 | BH165: 1 | BI165: 1 | BJ165: 1 | BK165: 1 | BL165: 1 | BM165: 1 | BN165: 1 | BO165: 1 | BP165: 1 | BQ165: 1 | BR165: 1 | BS165: 1 | BT165: 1 | BU165: 1 | BV165: 1 | BW165: 1 | BX165: 1 | BY165: 1 | BZ165: 1 | CA165: 1 | CB165: 1 | CC165: 1
A166: Greater Dandenong (C) | B166: 0 | C166: 0 | D166: 0 | E166: 0 | F166: 0 | G166: 0 | H166: 0 | I166: 0 | J166: 0 | K166: 0 | L166: 1 | M166: 1 | N166: 1 | O166: 1 | P166: 1 | Q166: 1 | R166: 1 | S166: 1 | T166: 1 | U166: 1 | V166: 1 | W166: 1 | X166: 1 | Y166: 1 | Z166: 1 | AA166: 1 | AB166: 1 | AC166: 1 | AD166: 1 | AE166: =IF($B$1=2,$C211*AE$157,AE$151) -> 1 | AF166: 1 | AG166: =IF($B$1=2,$C211*AG$157,AG$151) -> 1 | AH166: 1 | AI166: 1 | AJ166: 1 | AK166: 1 | AL166: 1 | AM166: 1 | AN166: 1 | AO166: 1 | AP166: 1 | AQ166: 1 | AR166: 1 | AS166: 1 | AT166: 1 | AU166: 1 | AV166: 1 | AW166: 1 | AX166: 1 | AY166: 1 | AZ166: 1 | BA166: 1 | BB166: 1 | BC166: 1 | BD166: 1 | BE166: 1 | BF166: 1 | BG166: 1 | BH166: 1 | BI166: 1 | BJ166: 1 | BK166: 1 | BL166: 1 | BM166: 1 | BN166: 1 | BO166: 1 | BP166: 1 | BQ166: 1 | BR166: 1 | BS166: 1 | BT166: 1 | BU166: 1 | BV166: 1 | BW166: 1 | BX166: 1 | BY166: 1 | BZ166: 1 | CA166: 1 | CB166: 1 | CC166: 1
A167: Kingston © | B167: 0 | C167: 0 | D167: 0 | E167: 0 | F167: 0 | G167: 0 | H167: 0 | I167: 0 | J167: 0 | K167: 0 | L167: 1 | M167: 1 | N167: 1 | O167: 1 | P167: 1 | Q167: 1 | R167: 1 | S167: 1 | T167: 1 | U167: 1 | V167: 1 | W167: 1 | X167: 1 | Y167: 1 | Z167: 1 | AA167: 1 | AB167: 1 | AC167: 1 | AD167: 1 | AE167: =IF($B$1=2,$C212*AE$157,AE$151) -> 1 | AF167: 1 | AG167: =IF($B$1=2,$C212*AG$157,AG$151) -> 1 | AH167: 1 | AI167: 1 | AJ167: 1 | AK167: 1 | AL167: 1 | AM167: 1 | AN167: 1 | AO167: 1 | AP167: 1 | AQ167: 1 | AR167: 1 | AS167: 1 | AT167: 1 | AU167: 1 | AV167: 1 | AW167: 1 | AX167: 1 | AY167: 1 | AZ167: 1 | BA167: 1 | BB167: 1 | BC167: 1 | BD167: 1 | BE167: 1 | BF167: 1 | BG167: 1 | BH167: 1 | BI167: 1 | BJ167: 1 | BK167: 1 | BL167: 1 | BM167: 1 | BN167: 1 | BO167: 1 | BP167: 1 | BQ167: 1 | BR167: 1 | BS167: 1 | BT167: 1 | BU167: 1 | BV167: 1 | BW167: 1 | BX167: 1 | BY167: 1 | BZ167: 1 | CA167: 1 | CB167: 1 | CC167: 1
A168: Knox (C) | B168: 0 | C168: 0 | D168: 0 | E168: 0 | F168: 0 | G168: 0 | H168: 0 | I168: 0 | J168: 0 | K168: 0 | L168: 1 | M168: 1 | N168: 1 | O168: 1 | P168: 1 | Q168: 1 | R168: 1 | S168: 1 | T168: 1 | U168: 1 | V168: 1 | W168: 1 | X168: 1 | Y168: 1 | Z168: 1 | AA168: 1 | AB168: 1 | AC168: 1 | AD168: 1 | AE168: =IF($B$1=2,$C213*AE$157,AE$151) -> 1 | AF168: 1 | AG168: =IF($B$1=2,$C213*AG$157,AG$151) -> 1 | AH168: 1 | AI168: 1 | AJ168: 1 | AK168: 1 | AL168: 1 | AM168: 1 | AN168: 1 | AO168: 1 | AP168: 1 | AQ168: 1 | AR168: 1 | AS168: 1 | AT168: 1 | AU168: 1 | AV168: 1 | AW168: 1 | AX168: 1 | AY168: 1 | AZ168: 1 | BA168: 1 | BB168: 1 | BC168: 1 | BD168: 1 | BE168: 1 | BF168: 1 | BG168: 1 | BH168: 1 | BI168: 1 | BJ168: 1 | BK168: 1 | BL168: 1 | BM168: 1 | BN168: 1 | BO168: 1 | BP168: 1 | BQ168: 1 | BR168: 1 | BS168: 1 | BT168: 1 | BU168: 1 | BV168: 1 | BW168: 1 | BX168: 1 | BY168: 1 | BZ168: 1 | CA168: 1 | CB168: 1 | CC168: 1
A169: Manningham (C) | B169: 0 | C169: 0 | D169: 0 | E169: 0 | F169: 0 | G169: 0 | H169: 0 | I169: 0 | J169: 0 | K169: 0 | L169: 1 | M169: 1 | N169: 1 | O169: 1 | P169: 1 | Q169: 1 | R169: 1 | S169: 1 | T169: 1 | U169: 1 | V169: 1 | W169: 1 | X169: 1 | Y169: 1 | Z169: 1 | AA169: 1 | AB169: 1 | AC169: 1 | AD169: 1 | AE169: =IF($B$1=2,$C214*AE$157,AE$151) -> 1 | AF169: 1 | AG169: =IF($B$1=2,$C214*AG$157,AG$151) -> 1 | AH169: 1 | AI169: 1 | AJ169: 1 | AK169: 1 | AL169: 1 | AM169: 1 | AN169: 1 | AO169: 1 | AP169: 1 | AQ169: 1 | AR169: 1 | AS169: 1 | AT169: 1 | AU169: 1 | AV169: 1 | AW169: 1 | AX169: 1 | AY169: 1 | AZ169: 1 | BA169: 1 | BB169: 1 | BC169: 1 | BD169: 1 | BE169: 1 | BF169: 1 | BG169: 1 | BH169: 1 | BI169: 1 | BJ169: 1 | BK169: 1 | BL169: 1 | BM169: 1 | BN169: 1 | BO169: 1 | BP169: 1 | BQ169: 1 | BR169: 1 | BS169: 1 | BT169: 1 | BU169: 1 | BV169: 1 | BW169: 1 | BX169: 1 | BY169: 1 | BZ169: 1 | CA169: 1 | CB169: 1 | CC169: 1
A170: Maroondah (C) | B170: 0 | C170: 0 | D170: 0 | E170: 0 | F170: 0 | G170: 0 | H170: 0 | I170: 0 | J170: 0 | K170: 0 | L170: 1 | M170: 1 | N170: 1 | O170: 1 | P170: 1 | Q170: 1 | R170: 1 | S170: 1 | T170: 1 | U170: 1 | V170: 1 | W170: 1 | X170: 1 | Y170: 1 | Z170: 1 | AA170: 1 | AB170: 1 | AC170: 1 | AD170: 1 | AE170: =IF($B$1=2,$C215*AE$157,AE$151) -> 1 | AF170: 1 | AG170: =IF($B$1=2,$C215*AG$157,AG$151) -> 1 | AH170: 1 | AI170: 1 | AJ170: 1 | AK170: 1 | AL170: 1 | AM170: 1 | AN170: 1 | AO170: 1 | AP170: 1 | AQ170: 1 | AR170: 1 | AS170: 1 | AT170: 1 | AU170: 1 | AV170: 1 | AW170: 1 | AX170: 1 | AY170: 1 | AZ170: 1 | BA170: 1 | BB170: 1 | BC170: 1 | BD170: 1 | BE170: 1 | BF170: 1 | BG170: 1 | BH170: 1 | BI170: 1 | BJ170: 1 | BK170: 1 | BL170: 1 | BM170: 1 | BN170: 1 | BO170: 1 | BP170: 1 | BQ170: 1 | BR170: 1 | BS170: 1 | BT170: 1 | BU170: 1 | BV170: 1 | BW170: 1 | BX170: 1 | BY170: 1 | BZ170: 1 | CA170: 1 | CB170: 1 | CC170: 1
A171: Melbourne (C) | B171: 0 | C171: 0 | D171: 0 | E171: 0 | F171: 0 | G171: 0 | H171: 0 | I171: 0 | J171: 0 | K171: 0 | L171: 1 | M171: 1 | N171: 1 | O171: 1 | P171: 1 | Q171: 1 | R171: 1 | S171: 1 | T171: 1 | U171: 1 | V171: 1 | W171: 1 | X171: 1 | Y171: 1 | Z171: 1 | AA171: 1 | AB171: 1 | AC171: 1 | AD171: 1 | AE171: =IF($B$1=2,$C216*AE$157,AE$151) -> 1 | AF171: 1 | AG171: =IF($B$1=2,$C216*AG$157,AG$151) -> 1 | AH171: 1 | AI171: 1 | AJ171: 1 | AK171: 1 | AL171: 1 | AM171: 1 | AN171: 1 | AO171: 1 | AP171: 1 | AQ171: 1 | AR171: 1 | AS171: 1 | AT171: 1 | AU171: 1 | AV171: 1 | AW171: 1 | AX171: 1 | AY171: 1 | AZ171: 1 | BA171: 1 | BB171: 1 | BC171: 1 | BD171: 1 | BE171: 1 | BF171: 1 | BG171: 1 | BH171: 1 | BI171: 1 | BJ171: 1 | BK171: 1 | BL171: 1 | BM171: 1 | BN171: 1 | BO171: 1 | BP171: 1 | BQ171: 1 | BR171: 1 | BS171: 1 | BT171: 1 | BU171: 1 | BV171: 1 | BW171: 1 | BX171: 1 | BY171: 1 | BZ171: 1 | CA171: 1 | CB171: 1 | CC171: 1
A172: Monash (C) | B172: 0 | C172: 0 | D172: 0 | E172: 0 | F172: 0 | G172: 0 | H172: 0 | I172: 0 | J172: 0 | K172: 0 | L172: 1 | M172: 1 | N172: 1 | O172: 1 | P172: 1 | Q172: 1 | R172: 1 | S172: 1 | T172: 1 | U172: 1 | V172: 1 | W172: 1 | X172: 1 | Y172: 1 | Z172: 1 | AA172: 1 | AB172: 1 | AC172: 1 | AD172: 1 | AE172: =IF($B$1=2,$C217*AE$157,AE$151) -> 1 | AF172: 1 | AG172: =IF($B$1=2,$C217*AG$157,AG$151) -> 1 | AH172: 1 | AI172: 1 | AJ172: 1 | AK172: 1 | AL172: 1 | AM172: 1 | AN172: 1 | AO172: 1 | AP172: 1 | AQ172: 1 | AR172: 1 | AS172: 1 | AT172: 1 | AU172: 1 | AV172: 1 | AW172: 1 | AX172: 1 | AY172: 1 | AZ172: 1 | BA172: 1 | BB172: 1 | BC172: 1 | BD172: 1 | BE172: 1 | BF172: 1 | BG172: 1 | BH172: 1 | BI172: 1 | BJ172: 1 | BK172: 1 | BL172: 1 | BM172: 1 | BN172: 1 | BO172: 1 | BP172: 1 | BQ172: 1 | BR172: 1 | BS172: 1 | BT172: 1 | BU172: 1 | BV172: 1 | BW172: 1 | BX172: 1 | BY172: 1 | BZ172: 1 | CA172: 1 | CB172: 1 | CC172: 1
A173: Nillumbik (S) | B173: 0 | C173: 0 | D173: 0 | E173: 0 | F173: 0 | G173: 0 | H173: 0 | I173: 0 | J173: 0 | K173: 0 | L173: 1 | M173: 1 | N173: 1 | O173: 1 | P173: 1 | Q173: 1 | R173: 1 | S173: 1 | T173: 1 | U173: 1 | V173: 1 | W173: 1 | X173: 1 | Y173: 1 | Z173: 1 | AA173: 1 | AB173: 1 | AC173: 1 | AD173: 1 | AE173: =IF($B$1=2,$C218*AE$157,AE$151) -> 1 | AF173: 1 | AG173: =IF($B$1=2,$C218*AG$157,AG$151) -> 1 | AH173: 1 | AI173: 1 | AJ173: 1 | AK173: 1 | AL173: 1 | AM173: 1 | AN173: 1 | AO173: 1 | AP173: 1 | AQ173: 1 | AR173: 1 | AS173: 1 | AT173: 1 | AU173: 1 | AV173: 1 | AW173: 1 | AX173: 1 | AY173: 1 | AZ173: 1 | BA173: 1 | BB173: 1 | BC173: 1 | BD173: 1 | BE173: 1 | BF173: 1 | BG173: 1 | BH173: 1 | BI173: 1 | BJ173: 1 | BK173: 1 | BL173: 1 | BM173: 1 | BN173: 1 | BO173: 1 | BP173: 1 | BQ173: 1 | BR173: 1 | BS173: 1 | BT173: 1 | BU173: 1 | BV173: 1 | BW173: 1 | BX173: 1 | BY173: 1 | BZ173: 1 | CA173: 1 | CB173: 1 | CC173: 1
A174: Port Phillip (C) | B174: 0 | C174: 0 | D174: 0 | E174: 0 | F174: 0 | G174: 0 | H174: 0 | I174: 0 | J174: 0 | K174: 0 | L174: 1 | M174: 1 | N174: 1 | O174: 1 | P174: 1 | Q174: 1 | R174: 1 | S174: 1 | T174: 1 | U174: 1 | V174: 1 | W174: 1 | X174: 1 | Y174: 1 | Z174: 1 | AA174: 1 | AB174: 1 | AC174: 1 | AD174: 1 | AE174: =IF($B$1=2,$C219*AE$157,AE$151) -> 1 | AF174: 1 | AG174: =IF($B$1=2,$C219*AG$157,AG$151) -> 1 | AH174: 1 | AI174: 1 | AJ174: 1 | AK174: 1 | AL174: 1 | AM174: 1 | AN174: 1 | AO174: 1 | AP174: 1 | AQ174: 1 | AR174: 1 | AS174: 1 | AT174: 1 | AU174: 1 | AV174: 1 | AW174: 1 | AX174: 1 | AY174: 1 | AZ174: 1 | BA174: 1 | BB174: 1 | BC174: 1 | BD174: 1 | BE174: 1 | BF174: 1 | BG174: 1 | BH174: 1 | BI174: 1 | BJ174: 1 | BK174: 1 | BL174: 1 | BM174: 1 | BN174: 1 | BO174: 1 | BP174: 1 | BQ174: 1 | BR174: 1 | BS174: 1 | BT174: 1 | BU174: 1 | BV174: 1 | BW174: 1 | BX174: 1 | BY174: 1 | BZ174: 1 | CA174: 1 | CB174: 1 | CC174: 1
A175: South Gippsland (S) | B175: 0 | C175: 0 | D175: 0 | E175: 0 | F175: 0 | G175: 0 | H175: 0 | I175: 0 | J175: 0 | K175: 0 | L175: 1 | M175: 1 | N175: 1 | O175: 1 | P175: 1 | Q175: 1 | R175: 1 | S175: 1 | T175: 1 | U175: 1 | V175: 1 | W175: 1 | X175: 1 | Y175: 1 | Z175: 1 | AA175: 1 | AB175: 1 | AC175: 1 | AD175: 1 | AE175: =IF($B$1=2,$C220*AE$157,AE$151) -> 1 | AF175: 1 | AG175: =IF($B$1=2,$C220*AG$157,AG$151) -> 1 | AH175: 1 | AI175: 1 | AJ175: 1 | AK175: 1 | AL175: 1 | AM175: 1 | AN175: 1 | AO175: 1 | AP175: 1 | AQ175: 1 | AR175: 1 | AS175: 1 | AT175: 1 | AU175: 1 | AV175: 1 | AW175: 1 | AX175: 1 | AY175: 1 | AZ175: 1 | BA175: 1 | BB175: 1 | BC175: 1 | BD175: 1 | BE175: 1 | BF175: 1 | BG175: 1 | BH175: 1 | BI175: 1 | BJ175: 1 | BK175: 1 | BL175: 1 | BM175: 1 | BN175: 1 | BO175: 1 | BP175: 1 | BQ175: 1 | BR175: 1 | BS175: 1 | BT175: 1 | BU175: 1 | BV175: 1 | BW175: 1 | BX175: 1 | BY175: 1 | BZ175: 1 | CA175: 1 | CB175: 1 | CC175: 1
A176: Stonnington (C) | B176: 0 | C176: 0 | D176: 0 | E176: 0 | F176: 0 | G176: 0 | H176: 0 | I176: 0 | J176: 0 | K176: 0 | L176: 1 | M176: 1 | N176: 1 | O176: 1 | P176: 1 | Q176: 1 | R176: 1 | S176: 1 | T176: 1 | U176: 1 | V176: 1 | W176: 1 | X176: 1 | Y176: 1 | Z176: 1 | AA176: 1 | AB176: 1 | AC176: 1 | AD176: 1 | AE176: =IF($B$1=2,$C221*AE$157,AE$151) -> 1 | AF176: 1 | AG176: =IF($B$1=2,$C221*AG$157,AG$151) -> 1 | AH176: 1 | AI176: 1 | AJ176: 1 | AK176: 1 | AL176: 1 | AM176: 1 | AN176: 1 | AO176: 1 | AP176: 1 | AQ176: 1 | AR176: 1 | AS176: 1 | AT176: 1 | AU176: 1 | AV176: 1 | AW176: 1 | AX176: 1 | AY176: 1 | AZ176: 1 | BA176: 1 | BB176: 1 | BC176: 1 | BD176: 1 | BE176: 1 | BF176: 1 | BG176: 1 | BH176: 1 | BI176: 1 | BJ176: 1 | BK176: 1 | BL176: 1 | BM176: 1 | BN176: 1 | BO176: 1 | BP176: 1 | BQ176: 1 | BR176: 1 | BS176: 1 | BT176: 1 | BU176: 1 | BV176: 1 | BW176: 1 | BX176: 1 | BY176: 1 | BZ176: 1 | CA176: 1 | CB176: 1 | CC176: 1
A177: Whitehorse (C) | B177: 0 | C177: 0 | D177: 0 | E177: 0 | F177: 0 | G177: 0 | H177: 0 | I177: 0 | J177: 0 | K177: 0 | L177: 1 | M177: 1 | N177: 1 | O177: 1 | P177: 1 | Q177: 1 | R177: 1 | S177: 1 | T177: 1 | U177: 1 | V177: 1 | W177: 1 | X177: 1 | Y177: 1 | Z177: 1 | AA177: 1 | AB177: 1 | AC177: 1 | AD177: 1 | AE177: =IF($B$1=2,$C222*AE$157,AE$151) -> 1 | AF177: 1 | AG177: =IF($B$1=2,$C222*AG$157,AG$151) -> 1 | AH177: 1 | AI177: 1 | AJ177: 1 | AK177: 1 | AL177: 1 | AM177: 1 | AN177: 1 | AO177: 1 | AP177: 1 | AQ177: 1 | AR177: 1 | AS177: 1 | AT177: 1 | AU177: 1 | AV177: 1 | AW177: 1 | AX177: 1 | AY177: 1 | AZ177: 1 | BA177: 1 | BB177: 1 | BC177: 1 | BD177: 1 | BE177: 1 | BF177: 1 | BG177: 1 | BH177: 1 | BI177: 1 | BJ177: 1 | BK177: 1 | BL177: 1 | BM177: 1 | BN177: 1 | BO177: 1 | BP177: 1 | BQ177: 1 | BR177: 1 | BS177: 1 | BT177: 1 | BU177: 1 | BV177: 1 | BW177: 1 | BX177: 1 | BY177: 1 | BZ177: 1 | CA177: 1 | CB177: 1 | CC177: 1
A178: Yarra Ranges (S) | B178: 0 | C178: 0 | D178: 0 | E178: 0 | F178: 0 | G178: 0 | H178: 0 | I178: 0 | J178: 0 | K178: 0 | L178: 1 | M178: 1 | N178: 1 | O178: 1 | P178: 1 | Q178: 1 | R178: 1 | S178: 1 | T178: 1 | U178: 1 | V178: 1 | W178: 1 | X178: 1 | Y178: 1 | Z178: 1 | AA178: 1 | AB178: 1 | AC178: 1 | AD178: 1 | AE178: =IF($B$1=2,$C223*AE$157,AE$151) -> 1 | AF178: 1 | AG178: =IF($B$1=2,$C223*AG$157,AG$151) -> 1 | AH178: 1 | AI178: 1 | AJ178: 1 | AK178: 1 | AL178: 1 | AM178: 1 | AN178: 1 | AO178: 1 | AP178: 1 | AQ178: 1 | AR178: 1 | AS178: 1 | AT178: 1 | AU178: 1 | AV178: 1 | AW178: 1 | AX178: 1 | AY178: 1 | AZ178: 1 | BA178: 1 | BB178: 1 | BC178: 1 | BD178: 1 | BE178: 1 | BF178: 1 | BG178: 1 | BH178: 1 | BI178: 1 | BJ178: 1 | BK178: 1 | BL178: 1 | BM178: 1 | BN178: 1 | BO178: 1 | BP178: 1 | BQ178: 1 | BR178: 1 | BS178: 1 | BT178: 1 | BU178: 1 | BV178: 1 | BW178: 1 | BX178: 1 | BY178: 1 | BZ178: 1 | CA178: 1 | CB178: 1 | CC178: 1
A180: Commercial No new connections
A181: LGA | B181: 2021 | C181: =B181+1 -> 2022 | D181: =C181+1 -> 2023 | E181: 2024 | F181: 2025 | G181: 2026 | H181: 2027 | I181: 2028 | J181: 2029 | K181: 2030 | L181: 2031 | M181: 2032 | N181: 2033 | O181: 2034 | P181: 2035 | Q181: 2036 | R181: 2037 | S181: 2038 | T181: 2039 | U181: 2040 | V181: 2041 | W181: 2042 | X181: 2043 | Y181: 2044 | Z181: 2045 | AA181: 2046 | AB181: 2047 | AC181: 2048 | AD181: 2049 | AE181: 2050 | AF181: 2051 | AG181: 2052 | AH181: 2053 | AI181: 2054 | AJ181: 2055 | AK181: 2056 | AL181: 2057 | AM181: 2058 | AN181: 2059 | AO181: 2060 | AP181: 2061 | AQ181: 2062 | AR181: 2063 | AS181: 2064 | AT181: 2065 | AU181: 2066 | AV181: 2067 | AW181: 2068 | AX181: 2069 | AY181: 2070 | AZ181: 2071 | BA181: 2072 | BB181: 2073 | BC181: 2074 | BD181: 2075 | BE181: 2076 | BF181: 2077 | BG181: 2078 | BH181: 2079 | BI181: 2080 | BJ181: 2081 | BK181: 2082 | BL181: 2083 | BM181: 2084 | BN181: 2085 | BO181: 2086 | BP181: =BO181+1 -> 2087 | BQ181: 2088 | BR181: 2089 | BS181: 2090 | BT181: 2091 | BU181: 2092 | BV181: 2093 | BW181: 2094 | BX181: 2095 | BY181: 2096 | BZ181: 2097 | CA181: 2098 | CB181: 2099 | CC181: 2100
A182: Bass Coast (S) | B182: 0 | C182: 0 | D182: 0 | E182: 0 | F182: 0 | G182: 0 | H182: 0 | I182: 0 | J182: 0 | K182: 0 | L182: =L$151 -> 1 | M182: =M$151 -> 1 | N182: 1 | O182: 1 | P182: 1 | Q182: 1 | R182: 1 | S182: 1 | T182: 1 | U182: =IF($B$1=2,$C204*U$157,U$151) -> 1 | V182: =IF($B$1=2,$C204*V$157,V$151) -> 1 | W182: 1 | X182: 1 | Y182: 1 | Z182: 1 | AA182: 1 | AB182: 1 | AC182: 1 | AD182: 1 | AE182: =IF($B$1=2,$C204*AE$157,AE$151) -> 1 | AF182: 1 | AG182: 1 | AH182: 1 | AI182: =IF($B$1=2,$C204*AI$157,AI$151) -> 1 | AJ182: 1 | AK182: 1 | AL182: 1 | AM182: 1 | AN182: 1 | AO182: 1 | AP182: 1 | AQ182: 1 | AR182: 1 | AS182: 1 | AT182: 1 | AU182: 1 | AV182: 1 | AW182: 1 | AX182: 1 | AY182: 1 | AZ182: 1 | BA182: 1 | BB182: 1 | BC182: 1 | BD182: 1 | BE182: 1 | BF182: 1 | BG182: 1 | BH182: 1 | BI182: 1 | BJ182: 1 | BK182: 1 | BL182: 1 | BM182: 1 | BN182: 1 | BO182: 1 | BP182: 1 | BQ182: 1 | BR182: 1 | BS182: 1 | BT182: 1 | BU182: 1 | BV182: 1 | BW182: 1 | BX182: 1 | BY182: 1 | BZ182: 1 | CA182: 1 | CB182: 1 | CC182: 1
A183: Bayside (C) | B183: 0 | C183: 0 | D183: 0 | E183: 0 | F183: 0 | G183: 0 | H183: 0 | I183: 0 | J183: 0 | K183: 0 | L183: =L$151 -> 1 | M183: 1 | N183: 1 | O183: 1 | P183: 1 | Q183: 1 | R183: 1 | S183: 1 | T183: 1 | U183: =IF($B$1=2,$C205*U$157,U$151) -> 1 | V183: 1 | W183: 1 | X183: 1 | Y183: 1 | Z183: 1 | AA183: 1 | AB183: 1 | AC183: 1 | AD183: 1 | AE183: =IF($B$1=2,$C205*AE$157,AE$151) -> 1 | AF183: 1 | AG183: 1 | AH183: 1 | AI183: =IF($B$1=2,$C205*AI$157,AI$151) -> 1 | AJ183: 1 | AK183: 1 | AL183: 1 | AM183: 1 | AN183: 1 | AO183: 1 | AP183: 1 | AQ183: 1 | AR183: 1 | AS183: 1 | AT183: 1 | AU183: 1 | AV183: 1 | AW183: 1 | AX183: 1 | AY183: 1 | AZ183: 1 | BA183: 1 | BB183: 1 | BC183: 1 | BD183: 1 | BE183: 1 | BF183: 1 | BG183: 1 | BH183: 1 | BI183: 1 | BJ183: 1 | BK183: 1 | BL183: 1 | BM183: 1 | BN183: 1 | BO183: 1 | BP183: 1 | BQ183: 1 | BR183: 1 | BS183: 1 | BT183: 1 | BU183: 1 | BV183: 1 | BW183: 1 | BX183: 1 | BY183: 1 | BZ183: 1 | CA183: 1 | CB183: 1 | CC183: 1
A184: Boroondara (C) | B184: 0 | C184: 0 | D184: 0 | E184: 0 | F184: 0 | G184: 0 | H184: 0 | I184: 0 | J184: 0 | K184: 0 | L184: 1 | M184: 1 | N184: 1 | O184: 1 | P184: 1 | Q184: 1 | R184: 1 | S184: 1 | T184: 1 | U184: 1 | V184: 1 | W184: 1 | X184: 1 | Y184: 1 | Z184: 1 | AA184: 1 | AB184: 1 | AC184: 1 | AD184: 1 | AE184: =IF($B$1=2,$C206*AE$157,AE$151) -> 1 | AF184: 1 | AG184: 1 | AH184: 1 | AI184: =IF($B$1=2,$C206*AI$157,AI$151) -> 1 | AJ184: 1 | AK184: 1 | AL184: 1 | AM184: 1 | AN184: 1 | AO184: 1 | AP184: 1 | AQ184: 1 | AR184: 1 | AS184: 1 | AT184: 1 | AU184: 1 | AV184: 1 | AW184: 1 | AX184: 1 | AY184: 1 | AZ184: 1 | BA184: 1 | BB184: 1 | BC184: 1 | BD184: 1 | BE184: 1 | BF184: 1 | BG184: 1 | BH184: 1 | BI184: 1 | BJ184: 1 | BK184: 1 | BL184: 1 | BM184: 1 | BN184: 1 | BO184: 1 | BP184: 1 | BQ184: 1 | BR184: 1 | BS184: 1 | BT184: 1 | BU184: 1 | BV184: 1 | BW184: 1 | BX184: 1 | BY184: 1 | BZ184: 1 | CA184: 1 | CB184: 1 | CC184: 1
A185: Cardinia (S) | B185: 0 | C185: 0 | D185: 0 | E185: 0 | F185: 0 | G185: 0 | H185: 0 | I185: 0 | J185: 0 | K185: 0 | L185: 1 | M185: 1 | N185: 1 | O185: 1 | P185: 1 | Q185: 1 | R185: 1 | S185: 1 | T185: 1 | U185: 1 | V185: 1 | W185: 1 | X185: 1 | Y185: 1 | Z185: 1 | AA185: 1 | AB185: 1 | AC185: 1 | AD185: 1 | AE185: =IF($B$1=2,$C207*AE$157,AE$151) -> 1 | AF185: 1 | AG185: 1 | AH185: 1 | AI185: =IF($B$1=2,$C207*AI$157,AI$151) -> 1 | AJ185: 1 | AK185: 1 | AL185: 1 | AM185: 1 | AN185: 1 | AO185: 1 | AP185: 1 | AQ185: 1 | AR185: 1 | AS185: 1 | AT185: 1 | AU185: 1 | AV185: 1 | AW185: 1 | AX185: 1 | AY185: 1 | AZ185: 1 | BA185: 1 | BB185: 1 | BC185: 1 | BD185: 1 | BE185: 1 | BF185: 1 | BG185: 1 | BH185: 1 | BI185: 1 | BJ185: 1 | BK185: 1 | BL185: 1 | BM185: 1 | BN185: 1 | BO185: 1 | BP185: 1 | BQ185: 1 | BR185: 1 | BS185: 1 | BT185: 1 | BU185: 1 | BV185: 1 | BW185: 1 | BX185: 1 | BY185: 1 | BZ185: 1 | CA185: 1 | CB185: 1 | CC185: 1
A186: Casey (C) | B186: 0 | C186: 0 | D186: 0 | E186: 0 | F186: 0 | G186: 0 | H186: 0 | I186: 0 | J186: 0 | K186: 0 | L186: 1 | M186: 1 | N186: 1 | O186: 1 | P186: 1 | Q186: 1 | R186: 1 | S186: 1 | T186: 1 | U186: 1 | V186: 1 | W186: 1 | X186: 1 | Y186: 1 | Z186: 1 | AA186: 1 | AB186: 1 | AC186: 1 | AD186: 1 | AE186: =IF($B$1=2,$C208*AE$157,AE$151) -> 1 | AF186: 1 | AG186: 1 | AH186: 1 | AI186: =IF($B$1=2,$C208*AI$157,AI$151) -> 1 | AJ186: 1 | AK186: 1 | AL186: 1 | AM186: 1 | AN186: 1 | AO186: 1 | AP186: 1 | AQ186: 1 | AR186: 1 | AS186: 1 | AT186: 1 | AU186: 1 | AV186: 1 | AW186: 1 | AX186: 1 | AY186: 1 | AZ186: 1 | BA186: 1 | BB186: 1 | BC186: 1 | BD186: 1 | BE186: 1 | BF186: 1 | BG186: 1 | BH186: 1 | BI186: 1 | BJ186: 1 | BK186: 1 | BL186: 1 | BM186: 1 | BN186: 1 | BO186: 1 | BP186: 1 | BQ186: 1 | BR186: 1 | BS186: 1 | BT186: 1 | BU186: 1 | BV186: 1 | BW186: 1 | BX186: 1 | BY186: 1 | BZ186: 1 | CA186: 1 | CB186: 1 | CC186: 1
A187: Frankston (C) | B187: 0 | C187: 0 | D187: 0 | E187: 0 | F187: 0 | G187: 0 | H187: 0 | I187: 0 | J187: 0 | K187: 0 | L187: 1 | M187: 1 | N187: 1 | O187: 1 | P187: 1 | Q187: 1 | R187: 1 | S187: 1 | T187: 1 | U187: 1 | V187: 1 | W187: 1 | X187: 1 | Y187: 1 | Z187: 1 | AA187: 1 | AB187: 1 | AC187: 1 | AD187: 1 | AE187: =IF($B$1=2,$C209*AE$157,AE$151) -> 1 | AF187: 1 | AG187: 1 | AH187: 1 | AI187: =IF($B$1=2,$C209*AI$157,AI$151) -> 1 | AJ187: 1 | AK187: 1 | AL187: 1 | AM187: 1 | AN187: 1 | AO187: 1 | AP187: 1 | AQ187: 1 | AR187: 1 | AS187: 1 | AT187: 1 | AU187: 1 | AV187: 1 | AW187: 1 | AX187: 1 | AY187: 1 | AZ187: 1 | BA187: 1 | BB187: 1 | BC187: 1 | BD187: 1 | BE187: 1 | BF187: 1 | BG187: 1 | BH187: 1 | BI187: 1 | BJ187: 1 | BK187: 1 | BL187: 1 | BM187: 1 | BN187: 1 | BO187: 1 | BP187: 1 | BQ187: 1 | BR187: 1 | BS187: 1 | BT187: 1 | BU187: 1 | BV187: 1 | BW187: 1 | BX187: 1 | BY187: 1 | BZ187: 1 | CA187: 1 | CB187: 1 | CC187: 1
A188: Glen Eira (C) | B188: 0 | C188: 0 | D188: 0 | E188: 0 | F188: 0 | G188: 0 | H188: 0 | I188: 0 | J188: 0 | K188: 0 | L188: 1 | M188: 1 | N188: 1 | O188: 1 | P188: 1 | Q188: 1 | R188: 1 | S188: 1 | T188: 1 | U188: 1 | V188: 1 | W188: 1 | X188: 1 | Y188: 1 | Z188: 1 | AA188: 1 | AB188: 1 | AC188: 1 | AD188: 1 | AE188: =IF($B$1=2,$C210*AE$157,AE$151) -> 1 | AF188: 1 | AG188: 1 | AH188: 1 | AI188: =IF($B$1=2,$C210*AI$157,AI$151) -> 1 | AJ188: 1 | AK188: 1 | AL188: 1 | AM188: 1 | AN188: 1 | AO188: 1 | AP188: 1 | AQ188: 1 | AR188: 1 | AS188: 1 | AT188: 1 | AU188: 1 | AV188: 1 | AW188: 1 | AX188: 1 | AY188: 1 | AZ188: 1 | BA188: 1 | BB188: 1 | BC188: 1 | BD188: 1 | BE188: 1 | BF188: 1 | BG188: 1 | BH188: 1 | BI188: 1 | BJ188: 1 | BK188: 1 | BL188: 1 | BM188: 1 | BN188: 1 | BO188: 1 | BP188: 1 | BQ188: 1 | BR188: 1 | BS188: 1 | BT188: 1 | BU188: 1 | BV188: 1 | BW188: 1 | BX188: 1 | BY188: 1 | BZ188: 1 | CA188: 1 | CB188: 1 | CC188: 1
A189: Greater Dandenong (C) | B189: 0 | C189: 0 | D189: 0 | E189: 0 | F189: 0 | G189: 0 | H189: 0 | I189: 0 | J189: 0 | K189: 0 | L189: 1 | M189: 1 | N189: 1 | O189: 1 | P189: 1 | Q189: 1 | R189: 1 | S189: 1 | T189: 1 | U189: 1 | V189: 1 | W189: 1 | X189: 1 | Y189: 1 | Z189: 1 | AA189: 1 | AB189: 1 | AC189: 1 | AD189: 1 | AE189: =IF($B$1=2,$C211*AE$157,AE$151) -> 1 | AF189: 1 | AG189: 1 | AH189: 1 | AI189: =IF($B$1=2,$C211*AI$157,AI$151) -> 1 | AJ189: 1 | AK189: 1 | AL189: 1 | AM189: 1 | AN189: 1 | AO189: 1 | AP189: 1 | AQ189: 1 | AR189: 1 | AS189: 1 | AT189: 1 | AU189: 1 | AV189: 1 | AW189: 1 | AX189: 1 | AY189: 1 | AZ189: 1 | BA189: 1 | BB189: 1 | BC189: 1 | BD189: 1 | BE189: 1 | BF189: 1 | BG189: 1 | BH189: 1 | BI189: 1 | BJ189: 1 | BK189: 1 | BL189: 1 | BM189: 1 | BN189: 1 | BO189: 1 | BP189: 1 | BQ189: 1 | BR189: 1 | BS189: 1 | BT189: 1 | BU189: 1 | BV189: 1 | BW189: 1 | BX189: 1 | BY189: 1 | BZ189: 1 | CA189: 1 | CB189: 1 | CC189: 1
A190: Kingston (C) | B190: 0 | C190: 0 | D190: 0 | E190: 0 | F190: 0 | G190: 0 | H190: 0 | I190: 0 | J190: 0 | K190: 0 | L190: 1 | M190: 1 | N190: 1 | O190: 1 | P190: 1 | Q190: 1 | R190: 1 | S190: 1 | T190: 1 | U190: 1 | V190: 1 | W190: 1 | X190: 1 | Y190: 1 | Z190: 1 | AA190: 1 | AB190: 1 | AC190: 1 | AD190: 1 | AE190: =IF($B$1=2,$C212*AE$157,AE$151) -> 1 | AF190: 1 | AG190: 1 | AH190: 1 | AI190: =IF($B$1=2,$C212*AI$157,AI$151) -> 1 | AJ190: 1 | AK190: 1 | AL190: 1 | AM190: 1 | AN190: 1 | AO190: 1 | AP190: 1 | AQ190: 1 | AR190: 1 | AS190: 1 | AT190: 1 | AU190: 1 | AV190: 1 | AW190: 1 | AX190: 1 | AY190: 1 | AZ190: 1 | BA190: 1 | BB190: 1 | BC190: 1 | BD190: 1 | BE190: 1 | BF190: 1 | BG190: 1 | BH190: 1 | BI190: 1 | BJ190: 1 | BK190: 1 | BL190: 1 | BM190: 1 | BN190: 1 | BO190: 1 | BP190: 1 | BQ190: 1 | BR190: 1 | BS190: 1 | BT190: 1 | BU190: 1 | BV190: 1 | BW190: 1 | BX190: 1 | BY190: 1 | BZ190: 1 | CA190: 1 | CB190: 1 | CC190: 1
A191: Knox (C) | B191: 0 | C191: 0 | D191: 0 | E191: 0 | F191: 0 | G191: 0 | H191: 0 | I191: 0 | J191: 0 | K191: 0 | L191: 1 | M191: 1 | N191: 1 | O191: 1 | P191: 1 | Q191: 1 | R191: 1 | S191: 1 | T191: 1 | U191: 1 | V191: 1 | W191: 1 | X191: 1 | Y191: 1 | Z191: 1 | AA191: 1 | AB191: 1 | AC191: 1 | AD191: 1 | AE191: =IF($B$1=2,$C213*AE$157,AE$151) -> 1 | AF191: 1 | AG191: 1 | AH191: 1 | AI191: =IF($B$1=2,$C213*AI$157,AI$151) -> 1 | AJ191: 1 | AK191: 1 | AL191: 1 | AM191: 1 | AN191: 1 | AO191: 1 | AP191: 1 | AQ191: 1 | AR191: 1 | AS191: 1 | AT191: 1 | AU191: 1 | AV191: 1 | AW191: 1 | AX191: 1 | AY191: 1 | AZ191: 1 | BA191: 1 | BB191: 1 | BC191: 1 | BD191: 1 | BE191: 1 | BF191: 1 | BG191: 1 | BH191: 1 | BI191: 1 | BJ191: 1 | BK191: 1 | BL191: 1 | BM191: 1 | BN191: 1 | BO191: 1 | BP191: 1 | BQ191: 1 | BR191: 1 | BS191: 1 | BT191: 1 | BU191: 1 | BV191: 1 | BW191: 1 | BX191: 1 | BY191: 1 | BZ191: 1 | CA191: 1 | CB191: 1 | CC191: 1
A192: Manningham (C) | B192: 0 | C192: 0 | D192: 0 | E192: 0 | F192: 0 | G192: 0 | H192: 0 | I192: 0 | J192: 0 | K192: 0 | L192: 1 | M192: 1 | N192: 1 | O192: 1 | P192: 1 | Q192: 1 | R192: 1 | S192: 1 | T192: 1 | U192: 1 | V192: 1 | W192: 1 | X192: 1 | Y192: 1 | Z192: 1 | AA192: 1 | AB192: 1 | AC192: 1 | AD192: 1 | AE192: =IF($B$1=2,$C214*AE$157,AE$151) -> 1 | AF192: 1 | AG192: 1 | AH192: 1 | AI192: =IF($B$1=2,$C214*AI$157,AI$151) -> 1 | AJ192: 1 | AK192: 1 | AL192: 1 | AM192: 1 | AN192: 1 | AO192: 1 | AP192: 1 | AQ192: 1 | AR192: 1 | AS192: 1 | AT192: 1 | AU192: 1 | AV192: 1 | AW192: 1 | AX192: 1 | AY192: 1 | AZ192: 1 | BA192: 1 | BB192: 1 | BC192: 1 | BD192: 1 | BE192: 1 | BF192: 1 | BG192: 1 | BH192: 1 | BI192: 1 | BJ192: 1 | BK192: 1 | BL192: 1 | BM192: 1 | BN192: 1 | BO192: 1 | BP192: 1 | BQ192: 1 | BR192: 1 | BS192: 1 | BT192: 1 | BU192: 1 | BV192: 1 | BW192: 1 | BX192: 1 | BY192: 1 | BZ192: 1 | CA192: 1 | CB192: 1 | CC192: 1
A193: Maroondah (C) | B193: 0 | C193: 0 | D193: 0 | E193: 0 | F193: 0 | G193: 0 | H193: 0 | I193: 0 | J193: 0 | K193: 0 | L193: 1 | M193: 1 | N193: 1 | O193: 1 | P193: 1 | Q193: 1 | R193: 1 | S193: 1 | T193: 1 | U193: 1 | V193: 1 | W193: 1 | X193: 1 | Y193: 1 | Z193: 1 | AA193: 1 | AB193: 1 | AC193: 1 | AD193: 1 | AE193: =IF($B$1=2,$C215*AE$157,AE$151) -> 1 | AF193: 1 | AG193: 1 | AH193: 1 | AI193: =IF($B$1=2,$C215*AI$157,AI$151) -> 1 | AJ193: 1 | AK193: 1 | AL193: 1 | AM193: 1 | AN193: 1 | AO193: 1 | AP193: 1 | AQ193: 1 | AR193: 1 | AS193: 1 | AT193: 1 | AU193: 1 | AV193: 1 | AW193: 1 | AX193: 1 | AY193: 1 | AZ193: 1 | BA193: 1 | BB193: 1 | BC193: 1 | BD193: 1 | BE193: 1 | BF193: 1 | BG193: 1 | BH193: 1 | BI193: 1 | BJ193: 1 | BK193: 1 | BL193: 1 | BM193: 1 | BN193: 1 | BO193: 1 | BP193: 1 | BQ193: 1 | BR193: 1 | BS193: 1 | BT193: 1 | BU193: 1 | BV193: 1 | BW193: 1 | BX193: 1 | BY193: 1 | BZ193: 1 | CA193: 1 | CB193: 1 | CC193: 1
A194: Melbourne (C) | B194: 0 | C194: 0 | D194: 0 | E194: 0 | F194: 0 | G194: 0 | H194: 0 | I194: 0 | J194: 0 | K194: 0 | L194: 1 | M194: 1 | N194: 1 | O194: 1 | P194: 1 | Q194: 1 | R194: 1 | S194: 1 | T194: 1 | U194: 1 | V194: 1 | W194: 1 | X194: 1 | Y194: 1 | Z194: 1 | AA194: 1 | AB194: 1 | AC194: 1 | AD194: 1 | AE194: =IF($B$1=2,$C216*AE$157,AE$151) -> 1 | AF194: 1 | AG194: 1 | AH194: 1 | AI194: =IF($B$1=2,$C216*AI$157,AI$151) -> 1 | AJ194: 1 | AK194: 1 | AL194: 1 | AM194: 1 | AN194: 1 | AO194: 1 | AP194: 1 | AQ194: 1 | AR194: 1 | AS194: 1 | AT194: 1 | AU194: 1 | AV194: 1 | AW194: 1 | AX194: 1 | AY194: 1 | AZ194: 1 | BA194: 1 | BB194: 1 | BC194: 1 | BD194: 1 | BE194: 1 | BF194: 1 | BG194: 1 | BH194: 1 | BI194: 1 | BJ194: 1 | BK194: 1 | BL194: 1 | BM194: 1 | BN194: 1 | BO194: 1 | BP194: 1 | BQ194: 1 | BR194: 1 | BS194: 1 | BT194: 1 | BU194: 1 | BV194: 1 | BW194: 1 | BX194: 1 | BY194: 1 | BZ194: 1 | CA194: 1 | CB194: 1 | CC194: 1
A195: Monash (C) | B195: 0 | C195: 0 | D195: 0 | E195: 0 | F195: 0 | G195: 0 | H195: 0 | I195: 0 | J195: 0 | K195: 0 | L195: 1 | M195: 1 | N195: 1 | O195: 1 | P195: 1 | Q195: 1 | R195: 1 | S195: 1 | T195: 1 | U195: 1 | V195: 1 | W195: 1 | X195: 1 | Y195: 1 | Z195: 1 | AA195: 1 | AB195: 1 | AC195: 1 | AD195: 1 | AE195: =IF($B$1=2,$C217*AE$157,AE$151) -> 1 | AF195: 1 | AG195: 1 | AH195: 1 | AI195: =IF($B$1=2,$C217*AI$157,AI$151) -> 1 | AJ195: 1 | AK195: 1 | AL195: 1 | AM195: 1 | AN195: 1 | AO195: 1 | AP195: 1 | AQ195: 1 | AR195: 1 | AS195: 1 | AT195: 1 | AU195: 1 | AV195: 1 | AW195: 1 | AX195: 1 | AY195: 1 | AZ195: 1 | BA195: 1 | BB195: 1 | BC195: 1 | BD195: 1 | BE195: 1 | BF195: 1 | BG195: 1 | BH195: 1 | BI195: 1 | BJ195: 1 | BK195: 1 | BL195: 1 | BM195: 1 | BN195: 1 | BO195: 1 | BP195: 1 | BQ195: 1 | BR195: 1 | BS195: 1 | BT195: 1 | BU195: 1 | BV195: 1 | BW195: 1 | BX195: 1 | BY195: 1 | BZ195: 1 | CA195: 1 | CB195: 1 | CC195: 1
A196: Port Phillip (C) | B196: 0 | C196: 0 | D196: 0 | E196: 0 | F196: 0 | G196: 0 | H196: 0 | I196: 0 | J196: 0 | K196: 0 | L196: 1 | M196: 1 | N196: 1 | O196: 1 | P196: 1 | Q196: 1 | R196: 1 | S196: 1 | T196: 1 | U196: 1 | V196: 1 | W196: 1 | X196: 1 | Y196: 1 | Z196: 1 | AA196: 1 | AB196: 1 | AC196: 1 | AD196: 1 | AE196: =IF($B$1=2,$C218*AE$157,AE$151) -> 1 | AF196: 1 | AG196: 1 | AH196: 1 | AI196: =IF($B$1=2,$C218*AI$157,AI$151) -> 1 | AJ196: 1 | AK196: 1 | AL196: 1 | AM196: 1 | AN196: 1 | AO196: 1 | AP196: 1 | AQ196: 1 | AR196: 1 | AS196: 1 | AT196: 1 | AU196: 1 | AV196: 1 | AW196: 1 | AX196: 1 | AY196: 1 | AZ196: 1 | BA196: 1 | BB196: 1 | BC196: 1 | BD196: 1 | BE196: 1 | BF196: 1 | BG196: 1 | BH196: 1 | BI196: 1 | BJ196: 1 | BK196: 1 | BL196: 1 | BM196: 1 | BN196: 1 | BO196: 1 | BP196: 1 | BQ196: 1 | BR196: 1 | BS196: 1 | BT196: 1 | BU196: 1 | BV196: 1 | BW196: 1 | BX196: 1 | BY196: 1 | BZ196: 1 | CA196: 1 | CB196: 1 | CC196: 1
A197: South Gippsland (S) | B197: 0 | C197: 0 | D197: 0 | E197: 0 | F197: 0 | G197: 0 | H197: 0 | I197: 0 | J197: 0 | K197: 0 | L197: 1 | M197: 1 | N197: 1 | O197: 1 | P197: 1 | Q197: 1 | R197: 1 | S197: 1 | T197: 1 | U197: 1 | V197: 1 | W197: 1 | X197: 1 | Y197: 1 | Z197: 1 | AA197: 1 | AB197: 1 | AC197: 1 | AD197: 1 | AE197: =IF($B$1=2,$C219*AE$157,AE$151) -> 1 | AF197: 1 | AG197: 1 | AH197: 1 | AI197: =IF($B$1=2,$C219*AI$157,AI$151) -> 1 | AJ197: 1 | AK197: 1 | AL197: 1 | AM197: 1 | AN197: 1 | AO197: 1 | AP197: 1 | AQ197: 1 | AR197: 1 | AS197: 1 | AT197: 1 | AU197: 1 | AV197: 1 | AW197: 1 | AX197: 1 | AY197: 1 | AZ197: 1 | BA197: 1 | BB197: 1 | BC197: 1 | BD197: 1 | BE197: 1 | BF197: 1 | BG197: 1 | BH197: 1 | BI197: 1 | BJ197: 1 | BK197: 1 | BL197: 1 | BM197: 1 | BN197: 1 | BO197: 1 | BP197: 1 | BQ197: 1 | BR197: 1 | BS197: 1 | BT197: 1 | BU197: 1 | BV197: 1 | BW197: 1 | BX197: 1 | BY197: 1 | BZ197: 1 | CA197: 1 | CB197: 1 | CC197: 1
A198: Stonnington (C) | B198: 0 | C198: 0 | D198: 0 | E198: 0 | F198: 0 | G198: 0 | H198: 0 | I198: 0 | J198: 0 | K198: 0 | L198: 1 | M198: 1 | N198: 1 | O198: 1 | P198: 1 | Q198: 1 | R198: 1 | S198: 1 | T198: 1 | U198: 1 | V198: 1 | W198: 1 | X198: 1 | Y198: 1 | Z198: 1 | AA198: 1 | AB198: 1 | AC198: 1 | AD198: 1 | AE198: =IF($B$1=2,$C220*AE$157,AE$151) -> 1 | AF198: 1 | AG198: 1 | AH198: 1 | AI198: =IF($B$1=2,$C220*AI$157,AI$151) -> 1 | AJ198: 1 | AK198: 1 | AL198: 1 | AM198: 1 | AN198: 1 | AO198: 1 | AP198: 1 | AQ198: 1 | AR198: 1 | AS198: 1 | AT198: 1 | AU198: 1 | AV198: 1 | AW198: 1 | AX198: 1 | AY198: 1 | AZ198: 1 | BA198: 1 | BB198: 1 | BC198: 1 | BD198: 1 | BE198: 1 | BF198: 1 | BG198: 1 | BH198: 1 | BI198: 1 | BJ198: 1 | BK198: 1 | BL198: 1 | BM198: 1 | BN198: 1 | BO198: 1 | BP198: 1 | BQ198: 1 | BR198: 1 | BS198: 1 | BT198: 1 | BU198: 1 | BV198: 1 | BW198: 1 | BX198: 1 | BY198: 1 | BZ198: 1 | CA198: 1 | CB198: 1 | CC198: 1
A199: Whitehorse (C) | B199: 0 | C199: 0 | D199: 0 | E199: 0 | F199: 0 | G199: 0 | H199: 0 | I199: 0 | J199: 0 | K199: 0 | L199: 1 | M199: 1 | N199: 1 | O199: 1 | P199: 1 | Q199: 1 | R199: 1 | S199: 1 | T199: 1 | U199: 1 | V199: 1 | W199: 1 | X199: 1 | Y199: 1 | Z199: 1 | AA199: 1 | AB199: 1 | AC199: 1 | AD199: 1 | AE199: =IF($B$1=2,$C221*AE$157,AE$151) -> 1 | AF199: 1 | AG199: 1 | AH199: 1 | AI199: =IF($B$1=2,$C221*AI$157,AI$151) -> 1 | AJ199: 1 | AK199: 1 | AL199: 1 | AM199: 1 | AN199: 1 | AO199: 1 | AP199: 1 | AQ199: 1 | AR199: 1 | AS199: 1 | AT199: 1 | AU199: 1 | AV199: 1 | AW199: 1 | AX199: 1 | AY199: 1 | AZ199: 1 | BA199: 1 | BB199: 1 | BC199: 1 | BD199: 1 | BE199: 1 | BF199: 1 | BG199: 1 | BH199: 1 | BI199: 1 | BJ199: 1 | BK199: 1 | BL199: 1 | BM199: 1 | BN199: 1 | BO199: 1 | BP199: 1 | BQ199: 1 | BR199: 1 | BS199: 1 | BT199: 1 | BU199: 1 | BV199: 1 | BW199: 1 | BX199: 1 | BY199: 1 | BZ199: 1 | CA199: 1 | CB199: 1 | CC199: 1
A200: Yarra Ranges (S) | B200: 0 | C200: 0 | D200: 0 | E200: 0 | F200: 0 | G200: 0 | H200: 0 | I200: 0 | J200: 0 | K200: 0 | L200: 1 | M200: 1 | N200: 1 | O200: 1 | P200: 1 | Q200: 1 | R200: 1 | S200: 1 | T200: 1 | U200: 1 | V200: 1 | W200: 1 | X200: 1 | Y200: 1 | Z200: 1 | AA200: 1 | AB200: 1 | AC200: 1 | AD200: 1 | AE200: =IF($B$1=2,$C222*AE$157,AE$151) -> 1 | AF200: 1 | AG200: 1 | AH200: 1 | AI200: =IF($B$1=2,$C222*AI$157,AI$151) -> 1 | AJ200: 1 | AK200: 1 | AL200: 1 | AM200: 1 | AN200: 1 | AO200: 1 | AP200: 1 | AQ200: 1 | AR200: 1 | AS200: 1 | AT200: 1 | AU200: 1 | AV200: 1 | AW200: 1 | AX200: 1 | AY200: 1 | AZ200: 1 | BA200: 1 | BB200: 1 | BC200: 1 | BD200: 1 | BE200: 1 | BF200: 1 | BG200: 1 | BH200: 1 | BI200: 1 | BJ200: 1 | BK200: 1 | BL200: 1 | BM200: 1 | BN200: 1 | BO200: 1 | BP200: 1 | BQ200: 1 | BR200: 1 | BS200: 1 | BT200: 1 | BU200: 1 | BV200: 1 | BW200: 1 | BX200: 1 | BY200: 1 | BZ200: 1 | CA200: 1 | CB200: 1 | CC200: 1
A201: Yarra Ranges (S) | B201: 0 | C201: 0 | D201: 0 | E201: 0 | F201: 0 | G201: 0 | H201: 0 | I201: 0 | J201: 0 | K201: 0 | L201: 1 | M201: 1 | N201: 1 | O201: 1 | P201: 1 | Q201: 1 | R201: 1 | S201: 1 | T201: 1 | U201: 1 | V201: 1 | W201: 1 | X201: 1 | Y201: 1 | Z201: 1 | AA201: 1 | AB201: 1 | AC201: 1 | AD201: 1 | AE201: =IF($B$1=2,$C223*AE$157,AE$151) -> 1 | AF201: 1 | AG201: 1 | AH201: 1 | AI201: =IF($B$1=2,$C223*AI$157,AI$151) -> 1 | AJ201: 1 | AK201: 1 | AL201: 1 | AM201: 1 | AN201: 1 | AO201: 1 | AP201: 1 | AQ201: 1 | AR201: 1 | AS201: 1 | AT201: 1 | AU201: 1 | AV201: 1 | AW201: 1 | AX201: 1 | AY201: 1 | AZ201: 1 | BA201: 1 | BB201: 1 | BC201: 1 | BD201: 1 | BE201: 1 | BF201: 1 | BG201: 1 | BH201: 1 | BI201: 1 | BJ201: 1 | BK201: 1 | BL201: 1 | BM201: 1 | BN201: 1 | BO201: 1 | BP201: 1 | BQ201: 1 | BR201: 1 | BS201: 1 | BT201: 1 | BU201: 1 | BV201: 1 | BW201: 1 | BX201: 1 | BY201: 1 | BZ201: 1 | CA201: 1 | CB201: 1 | CC201: 1
C203: Disconnect | D203: Connect
A204: Bass Coast (S) | B204: Residential (one or two large industrial) | C204: 0 | D204: 1
A205: Bayside (C) | B205: Residential | C205: 1 | D205: 0
A206: Boroondara (C) | B206: Residential | C206: 1 | D206: 0
A207: Cardinia (S) | B207: Residential | C207: 1 | D207: 0
A208: Casey (C) | B208: Residential Growth. Industrial Area | C208: 0 | D208: 1
A209: Frankston (C) | B209: Residential & Industrial Areas | C209: 0 | D209: 1
A210: Glen Eira (C) | B210: Residential | C210: 1 | D210: 0
A211: Greater Dandenong (C) | B211: Industrial | C211: 0 | D211: 1
A212: Kingston (C) | B212: Residential (near water) & Industrial Areas more inland. | C212: 0 | D212: 1
A213: Knox (C) | B213: Residential & Industrial Areas | C213: 0 | D213: 1
A214: Manningham (C) | B214: Residentia (mainly) but some Industrial Areas | C214: 0 | D214: 1
A215: Maroondah (C) | B215: Residential & Industrial Areas (outer east) | C215: 0 | D215: 1
A216: Melbourne (C) | B216: Industry | C216: 0 | D216: 1
... 7 more rows

Sheet Volumes
A1: Residential volume GJ | B1: 2012Q1 | C1: 2012Q2 | D1: 2012Q3 | E1: 2012Q4 | F1: 2013Q1 | G1: 2013Q2 | H1: 2013Q3 | I1: 2013Q4 | J1: 2014Q1 | K1: 2014Q2 | L1: 2014Q3 | M1: 2014Q4 | N1: 2015Q1 | O1: 2015Q2 | P1: 2015Q3 | Q1: 2015Q4 | R1: 2016Q1 | S1: 2016Q2 | T1: 2016Q3 | U1: 2016Q4 | V1: 2017Q1 | W1: 2017Q2 | X1: 2017Q3 | Y1: 2017Q4 | Z1: 2018Q1 | AA1: 2018Q2 | AB1: 2018Q3 | AC1: 2018Q4 | AD1: 2019Q1 | AE1: 2019Q2 | AF1: 2019Q3 | AG1: 2019Q4 | AH1: 2020Q1 | AI1: 2020Q2 | AJ1: 2020Q3 | AK1: 2020Q4
A2: Bass Coast (S) | B2: 3842.906728 | C2: 14872.79379 | D2: 20782.96896 | E2: 8258.453308 | F2: 3256.256 | G2: 13170.67 | H2: 16673.761 | I2: 22717.288 | J2: 4984.067 | K2: 15722.856 | L2: 20634.828 | M2: 21483.516 | N2: 4731.029 | O2: 22624.121 | P2: 24097.086 | Q2: 24607.434 | R2: 4594.129 | S2: 18436.887 | T2: 26527.276 | U2: 30446.116 | V2: 5702.752 | W2: 23392.376 | X2: 30554.798 | Y2: 31156.726 | Z2: 5186.657 | AA2: 26552.257 | AB2: 31856.544 | AC2: 31324.165 | AD2: 5914.516 | AE2: 28397.022 | AF2: 35506.98 | AG2: 37714.159 | AH2: 6196.941 | AI2: 35571.796 | AJ2: 39622.184 | AK2: 35112.941
A3: Bayside (C) | B3: 224137.5956 | C3: 799051.2619 | D3: 984618.6561 | E3: 361089.3779 | F3: 186947.979 | G3: 354636.991 | H3: 1125385.323 | I3: 523048.892 | J3: 221303.119 | K3: 380543.346 | L3: 1100298.948 | M3: 419983.461 | N3: 195381.181 | O3: 517634.587 | P3: 1229325.734 | Q3: 417817.93 | R3: 172761.137 | S3: 368358.741 | T3: 1128051.364 | U3: 539571.731 | V3: 217193.18 | W3: 466189.053 | X3: 1185131.691 | Y3: 464710.032 | Z3: 185368.474 | AA3: 418878.918 | AB3: 1132787.528 | AC3: 468919.96 | AD3: 192195.839 | AE3: 416818.195 | AF3: 1106087.757 | AG3: 516151.675 | AH3: 228359.044 | AI3: 542281.718 | AJ3: 1177207.54 | AK3: 482698.866
A4: Boroondara (C) | B4: 386562.727 | C4: 1442556.365 | D4: 1780368.077 | E4: 641547.1162 | F4: 299560.209 | G4: 735453.053 | H4: 1894856.961 | I4: 1041024.378 | J4: 370326.312 | K4: 797519.515 | L4: 1816038.344 | M4: 842161.104 | N4: 307808.201 | O4: 1022462.425 | P4: 2035286.298 | Q4: 832241.766 | R4: 261554.643 | S4: 793617.069 | T4: 1823547.057 | U4: 1052680.568 | V4: 330549.112 | W4: 933097.011 | X4: 1956753.658 | Y4: 926510.9 | Z4: 283212.54 | AA4: 813502.048 | AB4: 1868500.625 | AC4: 917772.927 | AD4: 284548.747 | AE4: 800763.306 | AF4: 1791240.199 | AG4: 1004730.727 | AH4: 338572.325 | AI4: 1053628.451 | AJ4: 1883787.891 | AK4: 916484.973
A5: Cardinia (S) | B5: 32043.06443 | C5: 102339.8279 | D5: 126796.2182 | E5: 51637.63813 | F5: 21292.244 | G5: 32249.651 | H5: 159515.638 | I5: 74282.829 | J5: 25395.099 | K5: 63231.036 | L5: 126873.121 | M5: 65573.678 | N5: 23270.243 | O5: 79218.573 | P5: 146250.299 | Q5: 63564.522 | R5: 19413.545 | S5: 72450.679 | T5: 123462.304 | U5: 84659.13 | V5: 26061.897 | W5: 82490.214 | X5: 133997.65 | Y5: 77140.603 | Z5: 20548.407 | AA5: 69610.873 | AB5: 136532.13 | AC5: 71143.901 | AD5: 21511.953 | AE5: 70089.984 | AF5: 129563.658 | AG5: 81743.492 | AH5: 27966.443 | AI5: 86254.365 | AJ5: 129337.906 | AK5: 74406.273
A6: Casey (C) | B6: 79190.85598 | C6: 262503.9061 | D6: 325162.0422 | E6: 120853.3528 | F6: 66038.702 | G6: 129369.634 | H6: 362147.446 | I6: 173228.432 | J6: 80663.295 | K6: 125704.099 | L6: 359112 | M6: 140762.075 | N6: 70482.085 | O6: 167358.874 | P6: 404241.281 | Q6: 135298.947 | R6: 62107.484 | S6: 126055.534 | T6: 382429.057 | U6: 171366.492 | V6: 72761.193 | W6: 150081.162 | X6: 404880.082 | Y6: 150844.856 | Z6: 65726.963 | AA6: 135304.992 | AB6: 372134.622 | AC6: 154648.378 | AD6: 66686.177 | AE6: 133570.597 | AF6: 368406.442 | AG6: 167390.662 | AH6: 81332.95 | AI6: 173891.782 | AJ6: 379004.039 | AK6: 146751.362
A7: Frankston (C) | B7: 6.862143939 | C7: 7.558516667 | D7: 8.059378495 | E7: 7.723256478 | F7: 9.61 | G7: 5.687 | H7: 9.837 | I7: 5.092 | J7: 9.903 | K7: 5.852 | L7: 10.546 | M7: 9.867 | N7: 7.519 | O7: 6.432 | P7: 13.649 | Q7: 6.987 | R7: 13.29 | S7: 7.2 | T7: 15.135 | U7: 6.809 | V7: 12.888 | W7: 6.503 | X7: 14.393 | Y7: 5.512 | Z7: 10.705 | AA7: 5.526 | AB7: 14.906 | AC7: 5.956 | AD7: 7.39 | AE7: 5.15 | AF7: 12.189 | AG7: 5.33 | AH7: 9.087 | AI7: 5.925 | AJ7: 15.952 | AK7: 7.717
A8: Glen Eira (C) | B8: 276246.6208 | C8: 986995.0054 | D8: 1222911.118 | E8: 463654.0361 | F8: 212071.793 | G8: 493848.154 | H8: 1309010.519 | I8: 682020.818 | J8: 252062.883 | K8: 536890.277 | L8: 1236159.255 | M8: 564295.18 | N8: 233115.9315 | O8: 756366.3403 | P8: 1378194.137 | Q8: 572005.682 | R8: 242706.8758 | S8: 574589.0878 | T8: 1279272.835 | U8: 710101.977 | V8: 239148.814 | W8: 652270.705 | X8: 1330713.604 | Y8: 637305.844 | Z8: 207276.218 | AA8: 572384.205 | AB8: 1299647.579 | AC8: 634206.202 | AD8: 211115.422 | AE8: 560328.357 | AF8: 1258088.54 | AG8: 693289.621 | AH8: 255393.765 | AI8: 727649.792 | AJ8: 1315168.575 | AK8: 641500.238
A9: Greater Dandenong (C) | B9: 293952.9143 | C9: 894121.6014 | D9: 1110355.182 | E9: 441246.5083 | F9: 249209.367 | G9: 462636.791 | H9: 1228446.518 | I9: 639212.505 | J9: 294710.318 | K9: 493532.636 | L9: 1177807.129 | M9: 547846.26 | N9: 276808.583 | O9: 658050.62 | P9: 1322357.156 | Q9: 557484.448 | R9: 246287.459 | S9: 515069.326 | T9: 1258656.254 | U9: 697724.122 | V9: 291305.622 | W9: 609470.173 | X9: 1327053.616 | Y9: 630388.738 | Z9: 267067.406 | AA9: 563297.013 | AB9: 1293316.509 | AC9: 626471.828 | AD9: 276300.726 | AE9: 571405.081 | AF9: 1255564.155 | AG9: 723875.487 | AH9: 304861.343 | AI9: 701359.782 | AJ9: 1273047.558 | AK9: 620675.192
A10: Kingston (C) | B10: 265355.6061 | C10: 880631.3865 | D10: 1085040.882 | E10: 404816.893 | F10: 216206.881 | G10: 437234.321 | H10: 1184295.269 | I10: 619654.706 | J10: 255567.325 | K10: 460141.751 | L10: 1151962.488 | M10: 523309.814 | N10: 230821.379 | O10: 619301.183 | P10: 1286483.096 | Q10: 519549.861 | R10: 214459.735 | S10: 472200.1 | T10: 1200012.829 | U10: 635868.457 | V10: 243986.288 | W10: 559901.022 | X10: 1246004.285 | Y10: 576313.105 | Z10: 217796.104 | AA10: 524982.891 | AB10: 1200330.668 | AC10: 569413.531 | AD10: 222164.236 | AE10: 509764.682 | AF10: 1158540.164 | AG10: 626468.021 | AH10: 260455.631 | AI10: 644320.45 | AJ10: 1210826.014 | AK10: 571145.692
A11: Knox (C) | B11: 367461.071 | C11: 1336706.256 | D11: 1668357.95 | E11: 591164.5337 | F11: 288090.092 | G11: 683208.778 | H11: 1776667.838 | I11: 922788.394 | J11: 350358.82 | K11: 700534.232 | L11: 1727788.223 | M11: 752552.02 | N11: 314966.1804 | O11: 919675.9008 | P11: 1932562.126 | Q11: 746137.16 | R11: 284316.5022 | S11: 682854.7982 | T11: 1806475.89 | U11: 947299.211 | V11: 319946.373 | W11: 847545.787 | X11: 1920881.98 | Y11: 840079.468 | Z11: 284142.891 | AA11: 745491.29 | AB11: 1836398.513 | AC11: 822876.447 | AD11: 290015.118 | AE11: 730630.084 | AF11: 1770045.258 | AG11: 934564.312 | AH11: 352843.827 | AI11: 946892.802 | AJ11: 1822612.811 | AK11: 810162.371
A12: Manningham (C) | B12: 282314.6067 | C12: 1091789.82 | D12: 1333586.49 | E12: 464259.583 | F12: 231270.249 | G12: 492954.626 | H12: 1529222.648 | I12: 688762.972 | J12: 276165.188 | K12: 546711.416 | L12: 1423743.36 | M12: 569850.796 | N12: 236451.519 | O12: 698530.827 | P12: 1612623.109 | Q12: 551019.464 | R12: 204515.973 | S12: 516349.665 | T12: 1463741.784 | U12: 733174.267 | V12: 245954.848 | W12: 664184.949 | X12: 1567885.984 | Y12: 637048.33 | Z12: 212930.017 | AA12: 574814.194 | AB12: 1485890.976 | AC12: 618748.391 | AD12: 217383.853 | AE12: 566896.461 | AF12: 1428168.23 | AG12: 685574.176 | AH12: 264413.719 | AI12: 748081.592 | AJ12: 1481878.961 | AK12: 633853.07
A13: Maroondah (C) | B13: 217371.5159 | C13: 829395.6929 | D13: 1023392.725 | E13: 361742.6516 | F13: 165645.659 | G13: 409683.135 | H13: 1114353.095 | I13: 564362.316 | J13: 206138.541 | K13: 446601.356 | L13: 1079867.076 | M13: 463525.254 | N13: 180131.071 | O13: 577805.417 | P13: 1219210.271 | Q13: 450426.803 | R13: 160705.967 | S13: 448938.46 | T13: 1129833.41 | U13: 603774.765 | V13: 193418.367 | W13: 554721.014 | X13: 1206037.751 | Y13: 525952.164 | Z13: 167603.945 | AA13: 476143.013 | AB13: 1155939.712 | AC13: 507564.885 | AD13: 168840.441 | AE13: 467201.908 | AF13: 1112570.396 | AG13: 580945.019 | AH13: 210448.247 | AI13: 602908.924 | AJ13: 1146831.891 | AK13: 513383.077
A14: Melbourne (C) | B14: 20628.54222 | C14: 33266.25103 | D14: 36576.20848 | E14: 27222.82641 | F14: 10319.633 | G14: 16329.97 | H14: 35787.388 | I14: 48021.836 | J14: 18866.719 | K14: 70030.136 | L14: 32798.34 | M14: 45677.162 | N14: 20642.758 | O14: 48908.304 | P14: 44742.705 | Q14: 46393.414 | R14: 23486.238 | S14: 44069.742 | T14: 31094.643 | U14: 75496.459 | V14: 22130.929 | W14: 53534.507 | X14: 41978.246 | Y14: 54362.572 | Z14: 21083.378 | AA14: 58304.811 | AB14: 45010.41 | AC14: 64007.09 | AD14: 25066.768 | AE14: 61709.45 | AF14: 48141.718 | AG14: 68143.814 | AH14: 25831.761 | AI14: 59780.977 | AJ14: 42975.625 | AK14: 55668.474
A15: Monash (C) | B15: 388867.5251 | C15: 1350523.236 | D15: 1677513.864 | E15: 617893.7203 | F15: 305335.776 | G15: 612920.025 | H15: 1847165.382 | I15: 943013.416 | J15: 376657.316 | K15: 695460.585 | L15: 1765711.78 | M15: 769419.279 | N15: 336328.0446 | O15: 934050.9671 | P15: 1988340.432 | Q15: 793972.749 | R15: 273518.0577 | S15: 701942.4317 | T15: 1836769.443 | U15: 967027.436 | V15: 339225.075 | W15: 857231.464 | X15: 1932793.693 | Y15: 843876.32 | Z15: 304894.954 | AA15: 780198.364 | AB15: 1832561.189 | AC15: 832453.61 | AD15: 310205.989 | AE15: 761151.076 | AF15: 1775729.916 | AG15: 915214.497 | AH15: 375343.274 | AI15: 966588.307 | AJ15: 1819231.397 | AK15: 811514.917
A16: Nillumbik (S) | B16: 78.67119099 | C16: 350.0485337 | D16: 318.8638737 | E16: 158.500104 | F16: 68.975 | G16: 217.497 | H16: 422.491 | I16: 152.441 | J16: 101.48 | K16: 129.423 | L16: 480.414 | M16: 89.823 | N16: 122.694 | O16: 171.322 | P16: 479.234 | Q16: 68.596 | R16: 48.655 | S16: 167.128 | T16: 434.079 | U16: 139.336 | V16: 97.886 | W16: 168.161 | X16: 502.9 | Y16: 82.083 | Z16: 81.339 | AA16: 130.554 | AB16: 508.282 | AC16: 74.724 | AD16: 102.1 | AE16: 119.285 | AF16: 492.94 | AG16: 119.079 | AH16: 108.9 | AI16: 159.97 | AJ16: 471.166 | AK16: 89.35
A17: Port Phillip (C) | B17: 189642.6165 | C17: 476645.8421 | D17: 570734.3191 | E17: 268399.4247 | F17: 160727.807 | G17: 250312.735 | H17: 619072.061 | I17: 384748.889 | J17: 196729.013 | K17: 292023.575 | L17: 597834.958 | M17: 316425.891 | N17: 175762.336 | O17: 378133.676 | P17: 660269.032 | Q17: 325028.042 | R17: 145387.642 | S17: 291774.345 | T17: 612828.62 | U17: 377247.437 | V17: 176843.571 | W17: 342738.322 | X17: 642640.959 | Y17: 350483.554 | Z17: 168657.169 | AA17: 320066.579 | AB17: 624697.46 | AC17: 355128.673 | AD17: 173308.149 | AE17: 314241.549 | AF17: 604693.908 | AG17: 381094.617 | AH17: 181859.304 | AI17: 374571.87 | AJ17: 617080.449 | AK17: 340132.163
A18: South Gippsland (S) | B18: 3149.681006 | C18: 15727.38275 | D18: 21135.48349 | E18: 7339.433633 | F18: 2220.378 | G18: 10410.498 | H18: 16839.358 | I18: 20592.639 | J18: 3369.116 | K18: 10838.269 | L18: 18806.605 | M18: 20081.546 | N18: 3324.366 | O18: 17176.697 | P18: 29776.007 | Q18: 14664.041 | R18: 3812.82 | S18: 13702.656 | T18: 30206.521 | U18: 20206.261 | V18: 5579.836 | W18: 14797.709 | X18: 35605.004 | Y18: 16194.798 | Z18: 4943.269 | AA18: 13394.733 | AB18: 34437.086 | AC18: 19932.041 | AD18: 6679.155 | AE18: 12788.129 | AF18: 38644.94 | AG18: 19936.39 | AH18: 8973.197 | AI18: 17937.385 | AJ18: 44394.968 | AK18: 13963.999
A19: Stonnington (C) | B19: 222533.5159 | C19: 697577.9647 | D19: 849334.3687 | E19: 342684.539 | F19: 199268.569 | G19: 349588.688 | H19: 956141.859 | I19: 492090.317 | J19: 247691.349 | K19: 370953.933 | L19: 946931.543 | M19: 374019.504 | N19: 216902.763 | O19: 472396.315 | P19: 1058699.401 | Q19: 374113.755 | R19: 196146.628 | S19: 350783.757 | T19: 980654.102 | U19: 477875.203 | V19: 220290.04 | W19: 421118.622 | X19: 1027652.871 | Y19: 417393.811 | Z19: 200392.677 | AA19: 372720.616 | AB19: 988162.604 | AC19: 426560.014 | AD19: 207810.773 | AE19: 367260.314 | AF19: 952741.623 | AG19: 454600.641 | AH19: 233216.003 | AI19: 481013.24 | AJ19: 978623.238 | AK19: 427778.663
A20: Whitehorse (C) | B20: 383772.7982 | C20: 1391297.421 | D20: 1721049.822 | E20: 625449.6062 | F20: 307345.388 | G20: 651940.699 | H20: 1922948.403 | I20: 927180.673 | J20: 395167.456 | K20: 711045.786 | L20: 1836226.254 | M20: 759476.394 | N20: 327146.7788 | O20: 935044.0819 | P20: 2068524.683 | Q20: 747856.163 | R20: 283252.3136 | S20: 698018.2276 | T20: 1898754.079 | U20: 984999 | V20: 342167.753 | W20: 884392.721 | X20: 1999022.8 | Y20: 838986.678 | Z20: 294880.651 | AA20: 770100.715 | AB20: 1921752.71 | AC20: 822313.779 | AD20: 302345.001 | AE20: 762431.762 | AF20: 1854718.93 | AG20: 919082.768 | AH20: 368725.145 | AI20: 979147.021 | AJ20: 1887376.483 | AK20: 835819.019
A21: Yarra Ranges (S) | B21: 300407.7588 | C21: 1096301.415 | D21: 1348491.092 | E21: 497422.4326 | F21: 214348.129 | G21: 629351.139 | H21: 1311412.091 | I21: 828902.279 | J21: 265546.106 | K21: 631589.759 | L21: 1332641.859 | M21: 684032.011 | N21: 236706.384 | O21: 806072.889 | P21: 1490148.005 | Q21: 678160.345 | R21: 203414.927 | S21: 627068.051 | T21: 1416425.333 | U21: 868442.89 | V21: 251732.548 | W21: 756014.103 | X21: 1507629.745 | Y21: 781840.36 | Z21: 210779.778 | AA21: 637869.242 | AB21: 1465569.427 | AC21: 762682.842 | AD21: 219787.335 | AE21: 616701.832 | AF21: 1433426.376 | AG21: 846493.442 | AH21: 282750.81 | AI21: 795975.68 | AJ21: 1473593.363 | AK21: 722985.461
A22: Multinet | B22: 3937567.456 | C22: 13702661.04 | D22: 16906534.39 | E22: 6296848.35 | F22: 3139233.696 | G22: 6765522.742 | H22: 18410373.89 | I22: 9595811.112 | J22: 3841813.425 | K22: 7349209.838 | L22: 17751727.07 | M22: 7880574.635 | N22: 3390911.046 | O22: 9630989.552 | P22: 19931623.74 | Q22: 7850418.109 | R22: 3002504.021 | S22: 7316453.885 | T22: 18429192.02 | U22: 9978107.667 | V22: 3544108.972 | W22: 8873345.578 | X22: 19497735.71 | Y22: 8800676.454 | Z22: 3122583.542 | AA22: 7873752.834 | AB22: 18726049.48 | AC22: 8706249.344 | AD22: 3201989.688 | AE22: 7752274.224 | AF22: 18122384.32 | AG22: 9657137.929 | AH22: 3807661.716 | AI22: 9938021.829 | AJ22: 18723088.01 | AK22: 8654133.818
A24: Small business volume GJ | B24: 2012Q1 | C24: 2012Q2 | D24: 2012Q3 | E24: 2012Q4 | F24: 2013Q1 | G24: 2013Q2 | H24: 2013Q3 | I24: 2013Q4 | J24: 2014Q1 | K24: 2014Q2 | L24: 2014Q3 | M24: 2014Q4 | N24: 2015Q1 | O24: 2015Q2 | P24: 2015Q3 | Q24: 2015Q4 | R24: 2016Q1 | S24: 2016Q2 | T24: 2016Q3 | U24: 2016Q4 | V24: 2017Q1 | W24: 2017Q2 | X24: 2017Q3 | Y24: 2017Q4 | Z24: 2018Q1 | AA24: 2018Q2 | AB24: 2018Q3 | AC24: 2018Q4 | AD24: 2019Q1 | AE24: 2019Q2 | AF24: 2019Q3 | AG24: 2019Q4 | AH24: 2020Q1 | AI24: 2020Q2 | AJ24: 2020Q3 | AK24: 2020Q4
A25: Bass Coast (S) | B25: 6174.771461 | C25: 8864.998801 | D25: 10436.82958 | E25: 7138.563998 | F25: 2455.602 | G25: 12207.781 | H25: 1317.946 | I25: 16405.573 | J25: 5168.206 | K25: 10384.211 | L25: 8548.604 | M25: 12378.855 | N25: 5313.028 | O25: 13419.177 | P25: 9190.411 | Q25: 13621.708 | R25: 5109.146 | S25: 11615.494 | T25: 9090.471 | U25: 13924.437 | V25: 5350.793 | W25: 13191.222 | X25: 9085.025 | Y25: 14901.035 | Z25: 4848.793 | AA25: 14189.351 | AB25: 8999.846 | AC25: 14749.709 | AD25: 5498.197 | AE25: 13556.495 | AF25: 9726.978 | AG25: 15465.665 | AH25: 6163.376 | AI25: 11803.026 | AJ25: 8900.976 | AK25: 12729.932
A26: Bayside (C) | B26: 35293.11712 | C26: 58894.55756 | D26: 63748.28777 | E26: 40979.12742 | F26: 34895.532 | G26: 39849.453 | H26: 85884.718 | I26: 54497.912 | J26: 45606.99 | K26: 47278.698 | L26: 82815.526 | M26: 48634.214 | N26: 44495.941 | O26: 56541.975 | P26: 106302.191 | Q26: 33303.45 | R26: 42585.239 | S26: 52444.911 | T26: 90235.026 | U26: 50104.359 | V26: 43870.673 | W26: 50498.55 | X26: 85906.98 | Y26: 42706.586 | Z26: 37924.18 | AA26: 51381.482 | AB26: 73310.401 | AC26: 41836.997 | AD26: 39557.122 | AE26: 42149.565 | AF26: 71193.77 | AG26: 44525.822 | AH26: 31190.379 | AI26: 34485.596 | AJ26: 58324.002 | AK26: 36329.164
A27: Boroondara (C) | B27: 68061.12568 | C27: 126365.2938 | D27: 141737.3569 | E27: 82214.77944 | F27: 97209.384 | G27: 121549.78 | H27: 249035.979 | I27: 159881.64 | J27: 91614.508 | K27: 123845.384 | L27: 208366.037 | M27: 140611.032 | N27: 84286.191 | O27: 141294.787 | P27: 209849.72 | Q27: 135312.244 | R27: 78991.708 | S27: 117306.197 | T27: 220241.93 | U27: 154442.645 | V27: 93786.372 | W27: 121224.065 | X27: 172576.793 | Y27: 114030.507 | Z27: 66112.496 | AA27: 106031.827 | AB27: 150176.689 | AC27: 116750.994 | AD27: 66587.968 | AE27: 103140.771 | AF27: 149434.217 | AG27: 123506.154 | AH27: 57971.04 | AI27: 91723.552 | AJ27: 118357.847 | AK27: 87138.227
A28: Cardinia (S) | B28: 1881.86328 | C28: 4294.431748 | D28: 5518.536232 | E28: 2790.305665 | F28: 1771.802 | G28: 1611.332 | H28: 6286.759 | I28: 4430.264 | J28: 2066.5 | K28: 5117.028 | L28: 6089.999 | M28: 3861.926 | N28: 3482.5 | O28: 5364.796 | P28: 6922.663 | Q28: 4552.775 | R28: 3127.798 | S28: 4931.249 | T28: 6407.938 | U28: 5299.356 | V28: 3941.463 | W28: 5204.104 | X28: 7735.012 | Y28: 4965.948 | Z28: 2504.156 | AA28: 4619.53 | AB28: 6643.948 | AC28: 3690.698 | AD28: 1704.524 | AE28: 3788.718 | AF28: 5215.145 | AG28: 3960.742 | AH28: 1824.124 | AI28: 3314.152 | AJ28: 3954.334 | AK28: 2900.743
A29: Casey (C) | B29: 5732.744639 | C29: 9481.429258 | D29: 10622.33683 | E29: 5764.269952 | F29: 5275.77 | G29: 6775.175 | H29: 14891.58 | I29: 10147.962 | J29: 8366.324 | K29: 9063.912 | L29: 13757.175 | M29: 10878.616 | N29: 10191.421 | O29: 10161.477 | P29: 14549.869 | Q29: 9083.105 | R29: 5990.765 | S29: 8144.177 | T29: 14789.612 | U29: 10064.757 | V29: 6758.293 | W29: 8631.47 | X29: 12280.089 | Y29: 5921.123 | Z29: 4824.807 | AA29: 4451.837 | AB29: 10584.488 | AC29: 5985.315 | AD29: 6867.425 | AE29: 4950.458 | AF29: 10279.792 | AG29: 8030.392 | AH29: 4126.266 | AI29: 4685.316 | AJ29: 9068.916 | AK29: 4802.524
A30: Frankston (C) | B30: 0 | C30: 0 | D30: 0 | E30: 0 | F30: 2432.44 | G30: 2058.6 | H30: 4941.88 | I30: 3450.29 | J30: 3041.59 | K30: 3027.31 | L30: 3621.68 | M30: 3508.89 | N30: 3176.93 | O30: 3343.59 | P30: 2796.76 | Q30: 2442.33 | R30: 2310.71 | S30: 2363.03 | T30: 2415.74 | U30: 1580.17 | V30: 2451.74 | W30: 2095.31 | X30: 720.24 | Y30: 0 | Z30: 0 | AA30: 0 | AB30: 0 | AC30: 0 | AD30: 0 | AE30: 0 | AF30: 0 | AG30: 0 | AH30: 0 | AI30: 0 | AJ30: 0 | AK30: 0
A31: Glen Eira (C) | B31: 38274.56896 | C31: 61101.52019 | D31: 68161.9885 | E31: 41850.64529 | F31: 33759.389 | G31: 63546.956 | H31: 100042.52 | I31: 116491.508 | J31: 48891.845 | K31: 68619.622 | L31: 99826.516 | M31: 73979.017 | N31: 43767.816 | O31: 75493.41 | P31: 102420.793 | Q31: 70855.12 | R31: 42593.045 | S31: 66597.584 | T31: 98923.402 | U31: 82535.641 | V31: 48385.573 | W31: 69327.613 | X31: 73288.888 | Y31: 55163.776 | Z31: 36864.645 | AA31: 54439.523 | AB31: 65975.226 | AC31: 56400.09 | AD31: 33600.798 | AE31: 51224.407 | AF31: 65562.381 | AG31: 54027.988 | AH31: 31570.147 | AI31: 44782.144 | AJ31: 50174.882 | AK31: 42779.838
A32: Greater Dandenong (C) | B32: 142308.7632 | C32: 193490.3813 | D32: 231783.0024 | E32: 154719.9709 | F32: 982950.379 | G32: 752170.679 | H32: 1477332.462 | I32: 1106777.018 | J32: 945994.231 | K32: 1015176.739 | L32: 1196089.18 | M32: 1053441.194 | N32: 980064.5066 | O32: 1079602.652 | P32: 1324668.07 | Q32: 1072721.027 | R32: 1061571.952 | S32: 1138063.243 | T32: 1316115.335 | U32: 1028588.062 | V32: 979658.513 | W32: 741027.531 | X32: 568524.746 | Y32: 142244.037 | Z32: 737477.243 | AA32: 140806.741 | AB32: 212791.629 | AC32: 140291.347 | AD32: 148032.026 | AE32: 152379.488 | AF32: 214400.992 | AG32: 142035.997 | AH32: 81493.69 | AI32: 125570.746 | AJ32: 158870.164 | AK32: 116760.753
A33: Kingston (C) | B33: 87975.92017 | C33: 123805.3283 | D33: 140298.866 | E33: 95991.20754 | F33: 186446.392 | G33: 218293.043 | H33: 402614.485 | I33: 283422.381 | J33: 233821.749 | K33: 277485.663 | L33: 343782.95 | M33: 306443.21 | N33: 209529.5334 | O33: 300282.0699 | P33: 335348.486 | Q33: 270308.154 | R33: 215785.8273 | S33: 274957.7523 | T33: 316943.936 | U33: 287490.821 | V33: 207093.434 | W33: 211559.009 | X33: 180393.868 | Y33: 107424.17 | Z33: 64824.764 | AA33: 105983.039 | AB33: 133348.418 | AC33: 109232.109 | AD33: 70711.795 | AE33: 99690.043 | AF33: 131512.631 | AG33: 116623.391 | AH33: 59714.196 | AI33: 99466.667 | AJ33: 111292.167 | AK33: 98582.436
A34: Knox (C) | B34: 76163.41991 | C34: 133146.9216 | D34: 147964.5981 | E34: 86971.27021 | F34: 186229.432 | G34: 331797.64 | H34: 483237.813 | I34: 358908.625 | J34: 283261.984 | K34: 341500.054 | L34: 417161.015 | M34: 350500.812 | N34: 276898.336 | O34: 364213.621 | P34: 401499.435 | Q34: 299531.741 | R34: 288066.178 | S34: 352188.033 | T34: 420063.494 | U34: 374438.946 | V34: 295550.278 | W34: 260499.829 | X34: 238856.976 | Y34: 99585.476 | Z34: 60354.595 | AA34: 92926.848 | AB34: 140311.926 | AC34: 99105.541 | AD34: 62505.704 | AE34: 86408.598 | AF34: 132095.403 | AG34: 98895.115 | AH34: 48036.846 | AI34: 82452.374 | AJ34: 107654.961 | AK34: 79077.137
A35: Manningham (C) | B35: 36375.66799 | C35: 63898.4264 | D35: 77629.56261 | E35: 43514.24163 | F35: 37806.488 | G35: 44086.578 | H35: 89061.659 | I35: 63041.419 | J35: 44759.673 | K35: 57801.751 | L35: 85077.765 | M35: 56091.55 | N35: 41743.34 | O35: 58605.975 | P35: 92857.812 | Q35: 54100.562 | R35: 42376.405 | S35: 44712.96 | T35: 86807.5 | U35: 60088.04 | V35: 42192.992 | W35: 80054.143 | X35: 87449.2 | Y35: 53065.478 | Z35: 35213.89 | AA35: 45392.95 | AB35: 81652.128 | AC35: 51071.468 | AD35: 37415.747 | AE35: 46637.073 | AF35: 76803.145 | AG35: 53679.615 | AH35: 32666.785 | AI35: 40239.746 | AJ35: 58075.394 | AK35: 40228.983
A36: Maroondah (C) | B36: 33450.42668 | C36: 64406.02171 | D36: 77169.15349 | E36: 42764.25653 | F36: 61615.59 | G36: 90509.019 | H36: 161696.084 | I36: 97316.193 | J36: 65492.036 | K36: 81233.334 | L36: 131991.783 | M36: 90284.993 | N36: 70822.06954 | O36: 95276.02826 | P36: 129124.329 | Q36: 74731.633 | R36: 72523.32181 | S36: 100148.5498 | T36: 129243.708 | U36: 86378.554 | V36: 62788.045 | W36: 64557.106 | X36: 93173.885 | Y36: 43037.531 | Z36: 31798.856 | AA36: 40943.418 | AB36: 73765.251 | AC36: 42947.451 | AD36: 28941.487 | AE36: 40039.508 | AF36: 68592.76 | AG36: 46720.598 | AH36: 26185.12 | AI36: 36317.979 | AJ36: 51491.104 | AK36: 34504.118
A37: Melbourne (C) | B37: 27006.38467 | C37: 49173.2296 | D37: 59667.68597 | E37: 35741.69361 | F37: 213777.7 | G37: 161900.614 | H37: 400505.818 | I37: 282086.94 | J37: 218410.349 | K37: 252878.538 | L37: 261997.752 | M37: 226250.974 | N37: 148632.547 | O37: 221746.987 | P37: 302638.76 | Q37: 228646.124 | R37: 142620.233 | S37: 194040.645 | T37: 254576.6 | U37: 217740.833 | V37: 141416.946 | W37: 140844.674 | X37: 120989.417 | Y37: 68176.016 | Z37: 26781.487 | AA37: 70804.181 | AB37: 65601.101 | AC37: 69937.599 | AD37: 25743.029 | AE37: 65348.292 | AF37: 63567.353 | AG37: 76334.864 | AH37: 28384.307 | AI37: 62425.793 | AJ37: 47548.87 | AK37: 52807.631
A38: Monash (C) | B38: 105624.0836 | C38: 170806.9534 | D38: 191732.1409 | E38: 115991.7769 | F38: 287730.568 | G38: 314462.493 | H38: 641351.28 | I38: 413643.859 | J38: 273189.919 | K38: 327916.126 | L38: 502066.191 | M38: 420973.673 | N38: 281121.8213 | O38: 410932.82 | P38: 562761.121 | Q38: 384147.086 | R38: 287376.7213 | S38: 373596.8293 | T38: 543989.947 | U38: 426192.75 | V38: 279983.956 | W38: 286871.031 | X38: 307579.002 | Y38: 137780.015 | Z38: 81840.601 | AA38: 131000.807 | AB38: 172952.392 | AC38: 133742.499 | AD38: 81945.232 | AE38: 122618.182 | AF38: 161857.881 | AG38: 141604.88 | AH38: 68006.088 | AI38: 111102.378 | AJ38: 133462.075 | AK38: 105645.136
A39: Port Phillip (C) | B39: 121432.8442 | C39: 193412.8752 | D39: 215046.3263 | E39: 139081.0736 | F39: 277331.245 | G39: 272969.506 | H39: 603276.99 | I39: 433118.206 | J39: 300254.875 | K39: 387107.114 | L39: 531214.01 | M39: 403971.363 | N39: 271695.4792 | O39: 417849.3571 | P39: 525210.646 | Q39: 386703.298 | R39: 310254.2263 | S39: 362482.5083 | T39: 517137.438 | U39: 417417.454 | V39: 299787.968 | W39: 256434.631 | X39: 322630.572 | Y39: 150535.419 | Z39: 104294.155 | AA39: 161033.485 | AB39: 225454.248 | AC39: 160284.631 | AD39: 109896.916 | AE39: 155389.405 | AF39: 219370.919 | AG39: 162448.302 | AH39: 89480.931 | AI39: 133829.01 | AJ39: 170595.716 | AK39: 119735.216
A40: South Gippsland (S) | B40: 3684.636743 | C40: 7274.264437 | D40: 8316.518204 | E40: 4999.952596 | F40: 69276.7 | G40: 39954.274 | H40: 66388.981 | I40: 95889.548 | J40: 68928.111 | K40: 66109.112 | L40: 72477.068 | M40: 96440.561 | N40: 79692.019 | O40: 81033.354 | P40: 92173.74 | Q40: 102589.126 | R40: 75838.536 | S40: 61285.662 | T40: 76396.596 | U40: 68257.232 | V40: 3460.185 | W40: 6328.02 | X40: 7604.063 | Y40: 7596.783 | Z40: 3012.06 | AA40: 5725.905 | AB40: 7949.432 | AC40: 7176.766 | AD40: 4296.371 | AE40: 5052.638 | AF40: 9766.084 | AG40: 6623.37 | AH40: 3905.329 | AI40: 4928.657 | AJ40: 9138.119 | AK40: 5942.749
A41: Stonnington (C) | B41: 82011.19551 | C41: 128413.3494 | D41: 164805.8767 | E41: 98474.25925 | F41: 190823.329 | G41: 156740.786 | H41: 379986.69 | I41: 263079.322 | J41: 197773.682 | K41: 215704.1 | L41: 310673.852 | M41: 218544.239 | N41: 169015.953 | O41: 230560.401 | P41: 303569.531 | Q41: 196512.43 | R41: 158546.631 | S41: 212828.855 | T41: 352844.08 | U41: 199770.887 | V41: 185046.395 | W41: 181392.51 | X41: 215205.594 | Y41: 98837.319 | Z41: 78701.729 | AA41: 98581.77 | AB41: 156555.776 | AC41: 104545.895 | AD41: 82923.445 | AE41: 97047.942 | AF41: 158102.34 | AG41: 107711.942 | AH41: 68645.503 | AI41: 81948.512 | AJ41: 120794.212 | AK41: 79743.873
A42: Whitehorse (C) | B42: 68263.49618 | C42: 122276.1609 | D42: 141264.1324 | E42: 81845.04792 | F42: 321657.372 | G42: 301032.684 | H42: 624946.507 | I42: 439049.94 | J42: 332760.434 | K42: 394087.895 | L42: 472529.11 | M42: 380567.087 | N42: 321393.6832 | O42: 375959.7957 | P42: 265820.835 | Q42: 460157.379 | R42: 76374.94089 | S42: 803751.4289 | T42: 473684.948 | U42: 426383.548 | V42: 251034.588 | W42: 291608.278 | X42: 234834.81 | Y42: 104612.231 | Z42: 65844.117 | AA42: 100092.321 | AB42: 139614.064 | AC42: 108883.875 | AD42: 66336.415 | AE42: 102994.321 | AF42: 147649.684 | AG42: 117924.63 | AH42: 58983.696 | AI42: 82956.869 | AJ42: 103717.857 | AK42: 76242.254
A43: Yarra Ranges (S) | B43: 47998.30906 | C43: 102969.5974 | D43: 118598.5122 | E43: 61252.24183 | F43: 95634.724 | G43: 127090.325 | H43: 251675.533 | I43: 187464.553 | J43: 117526.565 | K43: 143030.894 | L43: 217106.926 | M43: 114410.486 | N43: 72681.2837 | O43: 291397.1723 | P43: 213490.984 | Q43: 143943.597 | R43: 95964.88303 | S43: 119360.733 | T43: 181934.917 | U43: 141699.265 | V43: 70603.881 | W43: 92079.677 | X43: 143700.903 | Y43: 77992.948 | Z43: 42774.938 | AA43: 66410.129 | AB43: 104252.795 | AC43: 79795.29 | AD43: 42448.984 | AE43: 64289.365 | AF43: 106448.56 | AG43: 79118.869 | AH43: 30146.388 | AI43: 54871.971 | AJ43: 80637.466 | AK43: 53057.534
A44: Multinet | B44: 987713.339 | C44: 1622075.741 | D44: 1874501.711 | E44: 1142084.684 | F44: 3089079.838 | G44: 3058606.718 | H44: 6044475.684 | I44: 4389103.153 | J44: 3286929.571 | K44: 3827367.485 | L44: 4965193.139 | M44: 4011772.692 | N44: 3118004.399 | O44: 4233079.446 | P44: 5001196.156 | Q44: 3943262.889 | R44: 3008008.267 | S44: 4300819.842 | T44: 5111842.618 | U44: 4052397.757 | V44: 3023162.088 | W44: 2883428.773 | X44: 2882536.063 | Y44: 1328576.398 | Z44: 1485997.512 | AA44: 1294815.144 | AB44: 1829939.758 | AC44: 1346428.274 | AD44: 915013.185 | AE44: 1256705.269 | AF44: 1801580.035 | AG44: 1399238.336 | AH44: 728494.211 | AI44: 1106904.488 | AJ44: 1402059.062 | AK44: 1049008.248
A46: Residential volume GJ (FY) | B46: 2012 | C46: =B46+1 -> 2013 | D46: =C46+1 -> 2014 | E46: 2015 | F46: 2016 | G46: 2017 | H46: 2018 | I46: 2019 | J46: 2020 | K46: 2021
A47: Bass Coast (S) | B47: 18715.70052 | C47: 45468.34827 | D47: 60097.972 | E47: 69473.494 | F47: 71735.536 | G47: 86068.52 | H47: 93450.438 | I47: 97492.247 | J47: 114989.876 | K47: 74735.125
A48: Bayside (C) | B48: 1023188.858 | C48: 1887293.004 | D48: 2250280.68 | E48: 2233298.177 | F48: 2188263.542 | G48: 2351005.328 | H48: 2254089.115 | I48: 2210721.522 | J48: 2392880.194 | K48: 1659906.406
A49: Boroondara (C) | B49: 1829119.092 | C49: 3456928.455 | D49: 4103727.166 | E49: 3988470.074 | F49: 3922699.776 | G49: 4139873.748 | H49: 3979979.146 | I49: 3871585.605 | J49: 4188171.702 | K49: 2800272.864
A50: Cardinia (S) | B50: 134382.8924 | C50: 231975.7513 | D50: 322424.602 | E50: 294935.615 | F50: 301679.045 | G50: 316673.545 | H50: 301297.533 | I50: 299277.968 | J50: 325527.958 | K50: 203744.179
A51: Casey (C) | B51: 341694.7621 | C51: 641423.731 | D51: 741743.272 | E51: 737715.034 | F51: 727703.246 | G51: 776637.904 | H51: 756756.893 | I51: 727039.774 | J51: 791021.836 | K51: 525755.401
A52: Frankston (C) | B52: 14.42066061 | C52: 31.07963497 | D52: 30.684 | E52: 34.364 | F52: 41.126 | G52: 41.335 | H52: 36.136 | I52: 33.402 | J52: 32.531 | K52: 23.669
A53: Glen Eira (C) | B53: 1263241.626 | C53: 2392485.101 | D53: 2779984.497 | E53: 2789936.707 | F53: 2767495.783 | G53: 2880794.331 | H53: 2747679.871 | I53: 2705297.56 | J53: 2934421.718 | K53: 1956668.813
A54: Greater Dandenong (C) | B54: 1188074.516 | C54: 2263447.849 | D54: 2655901.977 | E54: 2660512.592 | F54: 2641198.389 | G54: 2857156.171 | H54: 2787806.773 | I54: 2767494.144 | J54: 2985660.767 | K54: 1893722.75
A55: Kingston (C) | B55: 1145986.993 | C55: 2143298.977 | D55: 2519659.051 | E55: 2525394.864 | F55: 2492692.792 | G55: 2639768.596 | H55: 2565096.385 | I55: 2501673.117 | J55: 2689784.266 | K55: 1781971.706
A56: Knox (C) | B56: 1704167.327 | C56: 3230821.354 | D56: 3750349.284 | E56: 3714982.324 | F56: 3645870.586 | G56: 3921267.261 | H56: 3790595.629 | I56: 3679920.162 | J56: 4004346.199 | K56: 2632775.182
A57: Manningham (C) | B57: 1374104.427 | C57: 2522070.948 | D57: 3040862.224 | E57: 2928576.502 | F57: 2884508.211 | G57: 3107055.848 | H57: 2992678.525 | I57: 2888919.681 | J57: 3126237.717 | K57: 2115732.031
A58: Maroondah (C) | B58: 1046767.209 | C58: 1960464.171 | D58: 2331455.308 | E58: 2301328.818 | F58: 2279281.501 | G58: 2481747.556 | H58: 2375736.873 | I58: 2299546.946 | J58: 2506872.586 | K58: 1660214.968
A59: Melbourne (C) | B59: 53894.79325 | C59: 90448.63789 | D59: 172706.079 | E59: 148026.564 | F59: 158692.099 | G59: 182256.538 | H59: 175729.007 | I59: 195793.718 | J59: 201898.27 | K59: 98644.099
A60: Monash (C) | B60: 1739390.761 | C60: 3213663.385 | D60: 3862296.699 | E60: 3805510.071 | F60: 3757773.67 | G60: 4000253.418 | H60: 3861763.331 | I60: 3736371.864 | J60: 4032875.994 | K60: 2630746.314
A61: Nillumbik (S) | B61: 428.7197246 | C61: 763.8359778 | D61: 805.835 | E61: 864.253 | F61: 763.613 | G61: 839.462 | H61: 796.876 | I61: 804.391 | J61: 880.889 | K61: 560.516
A62: Port Phillip (C) | B62: 666288.4586 | C62: 1250174.286 | D62: 1492573.538 | E62: 1468156.861 | F62: 1422459.061 | G62: 1509657.95 | H62: 1481848.261 | I62: 1467375.831 | J62: 1542219.699 | K62: 957212.612
A63: South Gippsland (S) | B63: 18877.06375 | C63: 41105.79312 | D63: 51639.382 | E63: 59389.214 | F63: 61955.524 | G63: 70790.327 | H63: 70137.804 | I63: 73836.411 | J63: 85491.912 | K63: 58358.967
A64: Stonnington (C) | B64: 920111.4806 | C64: 1740876.165 | D64: 2066877.458 | E64: 2010250.125 | F64: 1979743.541 | G64: 2099937.967 | H64: 2018159.975 | I64: 1989793.705 | J64: 2121571.507 | K64: 1406401.901
A65: Whitehorse (C) | B65: 1775070.22 | C65: 3305785.515 | D65: 3956342.318 | E65: 3857893.509 | F65: 3797651.387 | G65: 4110313.553 | H65: 3902990.844 | I65: 3808843.252 | J65: 4121673.864 | K65: 2723195.502
A66: Yarra Ranges (S) | B66: 1396709.174 | C66: 2689612.792 | D66: 3037450.235 | E66: 3059453.143 | F66: 2998791.328 | G66: 3292614.874 | H66: 3138119.125 | I66: 3064741.436 | J66: 3358646.308 | K66: 2196578.824
A67: Multinet | B67: 17640228.49 | C67: 33108139.18 | D67: 39197208.26 | E67: 38654202.3 | F67: 38100999.76 | G67: 40824754.23 | H67: 39294748.54 | I67: 38386562.74 | J67: 41525205.79 | K67: 27377221.83
A69: Small business volume GJ | B69: 2012 | C69: =B69+1 -> 2013 | D69: =C69+1 -> 2014 | E69: 2015 | F69: 2016 | G69: 2017 | H69: 2018 | I69: 2019 | J69: 2020 | K69: 2021
A70: Bass Coast (S) | B70: 15039.77026 | C70: 32238.77657 | D70: 33275.936 | E70: 39659.664 | F70: 39536.759 | G70: 41556.923 | H70: 43024.204 | I70: 42804.247 | J70: 43159.045 | K70: 21630.908
A71: Bayside (C) | B71: 94187.67468 | C71: 179472.4002 | D71: 233268.318 | E71: 232487.656 | F71: 234635.791 | G71: 234708.608 | H71: 217919.228 | I71: 196854.085 | J71: 181395.567 | K71: 94653.166
A72: Boroondara (C) | B72: 194426.4194 | C72: 442711.3003 | D72: 624377.511 | E72: 574558.047 | F72: 541459.869 | G72: 589695.012 | H72: 458751.623 | I72: 436656.422 | J72: 422634.963 | K72: 205496.074
A73: Cardinia (S) | B73: 6176.295028 | C73: 11691.9759 | D73: 17900.551 | E73: 18799.221 | F73: 19534.485 | G73: 20852.861 | H73: 19824.646 | I73: 15827.888 | J73: 14314.163 | K73: 6855.077
A74: Casey (C) | B74: 15214.1739 | C74: 28437.55178 | D74: 42469.778 | E74: 44988.689 | F74: 37767.916 | G74: 40244.132 | H74: 27477.856 | I74: 28387.686 | J74: 27121.766 | K74: 13871.44
A75: Frankston (C) | B75: 0 | C75: 4491.04 | D75: 14461.07 | E75: 13651.09 | F75: 9912.83 | G75: 8542.96 | H75: 720.24 | I75: 0 | J75: 0 | K75: 0
A76: Glen Eira (C) | B76: 99376.08916 | C76: 207318.9788 | D76: 334045.495 | E76: 293066.759 | F76: 282466.542 | G76: 299172.229 | H76: 219756.832 | I76: 207200.521 | J76: 195942.66 | K76: 92954.72
A77: Greater Dandenong (C) | B77: 335799.1445 | C77: 2121624.031 | D77: 4545280.45 | E77: 4309197.533 | F77: 4597024.292 | G77: 4065389.441 | H77: 1589052.767 | I77: 653494.49 | J77: 563501.425 | K77: 275630.917
A78: Kingston (C) | B78: 211781.2485 | C78: 641029.5085 | D78: 1197344.278 | E78: 1160037.763 | F78: 1096400.22 | G78: 1023087.2 | H78: 458625.841 | I78: 412982.365 | J78: 407316.885 | K78: 209874.603
A79: Knox (C) | B79: 209310.3415 | C79: 752962.9403 | D79: 1466908.476 | E79: 1408773.784 | F79: 1341285.387 | G79: 1350552.547 | H79: 491723.895 | I79: 388331.769 | J79: 361479.738 | K79: 186732.098
A80: Manningham (C) | B80: 100274.0944 | C80: 203036.8702 | D80: 254664.502 | E80: 241518.63 | F80: 234047.739 | G80: 269142.675 | H80: 221121.518 | I80: 216776.416 | J80: 203389.291 | K80: 98304.377
A81: Maroondah (C) | B81: 97856.44839 | C81: 272058.019 | D81: 405737.647 | E81: 388374.8738 | F81: 376527.8336 | G81: 342967.413 | H81: 208953.69 | I81: 185693.697 | J81: 177816.457 | K81: 85995.222
A82: Melbourne (C) | B82: 76179.61427 | C82: 471087.6936 | D82: 1153881.645 | E82: 858628.26 | F82: 867945.762 | G82: 754579.053 | H82: 286751.101 | I82: 226630.021 | J82: 230712.317 | K82: 100356.501
A83: Monash (C) | B83: 276431.037 | C83: 909916.9789 | D83: 1656101.184 | E83: 1615094.505 | F83: 1607881.758 | G83: 1537037.684 | H83: 658200.425 | I83: 511258.305 | J83: 482571.227 | K83: 239107.211
A84: Port Phillip (C) | B84: 314845.7194 | C84: 904428.1509 | D84: 1723757.185 | E84: 1624730.209 | F84: 1584650.679 | G84: 1490777.491 | H84: 738493.631 | I84: 651025.2 | J84: 605129.162 | K84: 290330.932
A85: South Gippsland (S) | B85: 10958.90118 | C85: 122547.4448 | D85: 297315.752 | E85: 329643.002 | F85: 331887.064 | G85: 154442.033 | H85: 23938.811 | I85: 24475.207 | J85: 25223.44 | K85: 15080.868
A86: Stonnington (C) | B86: 210424.5449 | C86: 610844.2509 | D86: 1056543.794 | E86: 928794.445 | F86: 871457.447 | G86: 919053.872 | H86: 491326.412 | I86: 441073.058 | J86: 416408.297 | K86: 200538.085
A87: Whitehorse (C) | B87: 190539.6571 | C87: 845799.2363 | D87: 1790844.776 | E87: 1550449.676 | F87: 1606104.584 | G87: 1442711.362 | H87: 505383.479 | I87: 417828.675 | J87: 407514.879 | K87: 179960.111
A88: Yarra Ranges (S) | B88: 150967.9064 | C88: 402575.803 | D88: 699697.545 | E88: 695595.868 | F88: 572760.1971 | G88: 486317.74 | H88: 330878.918 | I88: 290786.434 | J88: 270585.788 | K88: 133695
A89: Multinet | B89: 2609789.08 | C89: 9164272.951 | D89: 17547875.89 | E89: 16328049.68 | F89: 16253287.15 | G89: 15070831.24 | H89: 6991925.117 | I89: 5348086.486 | J89: 5036217.07 | K89: 2451067.31

Sheet Customers
A1: Residential Customers | B1: 2012 | C1: 2012 | D1: 2012 | E1: 2012 | F1: =B1+1 -> 2013 | G1: =C1+1 -> 2013 | H1: 2013 | I1: 2013 | J1: =F1+1 -> 2014 | K1: =G1+1 -> 2014 | L1: =H1+1 -> 2014 | M1: =I1+1 -> 2014 | N1: =J1+1 -> 2015 | O1: =K1+1 -> 2015 | P1: =L1+1 -> 2015 | Q1: =M1+1 -> 2015 | R1: =N1+1 -> 2016 | S1: =O1+1 -> 2016 | T1: =P1+1 -> 2016 | U1: =Q1+1 -> 2016 | V1: =R1+1 -> 2017 | W1: =S1+1 -> 2017 | X1: =T1+1 -> 2017 | Y1: =U1+1 -> 2017 | Z1: =V1+1 -> 2018 | AA1: =W1+1 -> 2018 | AB1: =X1+1 -> 2018 | AC1: =Y1+1 -> 2018 | AD1: =Z1+1 -> 2019 | AE1: =AA1+1 -> 2019 | AF1: =AB1+1 -> 2019 | AG1: =AC1+1 -> 2019 | AH1: =AD1+1 -> 2020 | AI1: =AE1+1 -> 2020 | AJ1: =AF1+1 -> 2020 | AK1: =AG1+1 -> 2020
A2: LGA | B2: 2012Q1 | C2: 2012Q2 | D2: 2012Q3 | E2: 2012Q4 | F2: 2013Q1 | G2: 2013Q2 | H2: 2013Q3 | I2: 2013Q4 | J2: 2014Q1 | K2: 2014Q2 | L2: 2014Q3 | M2: 2014Q4 | N2: 2015Q1 | O2: 2015Q2 | P2: 2015Q3 | Q2: 2015Q4 | R2: 2016Q1 | S2: 2016Q2 | T2: 2016Q3 | U2: 2016Q4 | V2: 2017Q1 | W2: 2017Q2 | X2: 2017Q3 | Y2: 2017Q4 | Z2: 2018Q1 | AA2: 2018Q2 | AB2: 2018Q3 | AC2: 2018Q4 | AD2: 2019Q1 | AE2: 2019Q2 | AF2: 2019Q3 | AG2: 2019Q4 | AH2: 2020Q1 | AI2: 2020Q2 | AJ2: 2020Q3 | AK2: 2020Q4
A3: Bass Coast (S) | B3: 1349 | C3: 1488 | D3: 1568 | E3: 1659 | F3: 1515 | G3: 1698 | H3: 1751 | I3: 1841 | J3: 1848 | K3: 2010 | L3: 2012 | M3: 2139 | N3: 2068 | O3: 2245 | P3: 2235 | Q3: 2344 | R3: 2238 | S3: 2469 | T3: 2474 | U3: 2567 | V3: 2522 | W3: 2709 | X3: 2728 | Y3: 2823 | Z3: 2668 | AA3: 2948 | AB3: 2947 | AC3: 3087 | AD3: 2976 | AE3: 3256 | AF3: 3242 | AG3: 3378 | AH3: 3354 | AI3: 3503 | AJ3: 3489 | AK3: 3624
A4: Bayside (C) | B4: 35486 | C4: 35638 | D4: 35701 | E4: 35741 | F4: 34474 | G4: 34804 | H4: 34924 | I4: 35025 | J4: 35035 | K4: 35604 | L4: 35802 | M4: 35456 | N4: 35076 | O4: 35850 | P4: 35759 | Q4: 35449 | R4: 34925 | S4: 35796 | T4: 36034 | U4: 35792 | V4: 36027 | W4: 36177 | X4: 36295 | Y4: 36275 | Z4: 36107 | AA4: 36341 | AB4: 36478 | AC4: 36428 | AD4: 36282 | AE4: 36435 | AF4: 36592 | AG4: 36639 | AH4: 36627 | AI4: 36671 | AJ4: 36807 | AK4: 36792
A5: Boroondara (C) | B5: 61104 | C5: 61429 | D5: 61537 | E5: 61680 | F5: 59479 | G5: 60204 | H5: 59776 | I5: 60497 | J5: 60278 | K5: 61359 | L5: 61506 | M5: 60980 | N5: 59826 | O5: 61626 | P5: 61226 | Q5: 60976 | R5: 59942 | S5: 61318 | T5: 61500 | U5: 61186 | V5: 61326 | W5: 61804 | X5: 61840 | Y5: 61756 | Z5: 61249 | AA5: 61837 | AB5: 61942 | AC5: 61918 | AD5: 61410 | AE5: 61943 | AF5: 62169 | AG5: 62194 | AH5: 61861 | AI5: 62105 | AJ5: 62024 | AK5: 61819
A6: Cardinia (S) | B6: 3920 | C6: 3957 | D6: 3965 | E6: 3965 | F6: 3853 | G6: 3894 | H6: 3946 | I6: 3935 | J6: 3904 | K6: 3975 | L6: 3994 | M6: 3979 | N6: 3907 | O6: 4003 | P6: 4022 | Q6: 4006 | R6: 3922 | S6: 4024 | T6: 4029 | U6: 4031 | V6: 4033 | W6: 4073 | X6: 4079 | Y6: 4097 | Z6: 4031 | AA6: 4091 | AB6: 4101 | AC6: 4102 | AD6: 4061 | AE6: 4115 | AF6: 4123 | AG6: 4124 | AH6: 4107 | AI6: 4132 | AJ6: 4146 | AK6: 4145
A7: Casey (C) | B7: 12420 | C7: 12451 | D7: 12451 | E7: 12464 | F7: 12238 | G7: 12313 | H7: 12236 | I7: 12365 | J7: 12362 | K7: 12458 | L7: 12494 | M7: 12481 | N7: 12455 | O7: 12572 | P7: 12510 | Q7: 12516 | R7: 12387 | S7: 12582 | T7: 12607 | U7: 12591 | V7: 12622 | W7: 12720 | X7: 12759 | Y7: 12758 | Z7: 12718 | AA7: 12761 | AB7: 12792 | AC7: 12816 | AD7: 12779 | AE7: 12883 | AF7: 12897 | AG7: 12914 | AH7: 12897 | AI7: 12949 | AJ7: 12986 | AK7: 12992
A8: Frankston (C) | B8: 1 | C8: 1 | D8: 1 | E8: 1 | F8: 1 | G8: 1 | H8: 1 | I8: 1 | J8: 1 | K8: 1 | L8: 1 | M8: 1 | N8: 1 | O8: 1 | P8: 1 | Q8: 1 | R8: 1 | S8: 1 | T8: 1 | U8: 1 | V8: 1 | W8: 1 | X8: 1 | Y8: 1 | Z8: 1 | AA8: 1 | AB8: 1 | AC8: 1 | AD8: 1 | AE8: 1 | AF8: 1 | AG8: 1 | AH8: 1 | AI8: 1 | AJ8: 1 | AK8: 1
A9: Glen Eira (C) | B9: 48986 | C9: 49246 | D9: 49427 | E9: 49502 | F9: 47782 | G9: 48387 | H9: 48395 | I9: 48805 | J9: 48687 | K9: 49350 | L9: 49548 | M9: 49416 | N9: 48761 | O9: 49935 | P9: 49593 | Q9: 49569 | R9: 48754 | S9: 49830 | T9: 50031 | U9: 49827 | V9: 50056 | W9: 50320 | X9: 50368 | Y9: 50361 | Z9: 50052 | AA9: 50463 | AB9: 50657 | AC9: 50695 | AD9: 50404 | AE9: 50880 | AF9: 51056 | AG9: 51124 | AH9: 51035 | AI9: 51220 | AJ9: 51306 | AK9: 51207
A10: Greater Dandenong (C) | B10: 50366 | C10: 50637 | D10: 50833 | E10: 51002 | F10: 49925 | G10: 50313 | H10: 50318 | I10: 50787 | J10: 50937 | K10: 51469 | L10: 51669 | M10: 51683 | N10: 51411 | O10: 52362 | P10: 52238 | Q10: 52634 | R10: 52117 | S10: 53005 | T10: 53334 | U10: 53459 | V10: 53701 | W10: 54075 | X10: 54244 | Y10: 54374 | Z10: 54228 | AA10: 54696 | AB10: 54978 | AC10: 55110 | AD10: 55019 | AE10: 55474 | AF10: 55735 | AG10: 55866 | AH10: 55855 | AI10: 56050 | AJ10: 56253 | AK10: 56313
A11: Kingston (C) | B11: 49448 | C11: 49713 | D11: 49818 | E11: 49908 | F11: 48677 | G11: 49130 | H11: 49153 | I11: 49599 | J11: 49581 | K11: 50080 | L11: 50382 | M11: 50194 | N11: 49696 | O11: 50666 | P11: 50617 | Q11: 50649 | R11: 50077 | S11: 50919 | T11: 51202 | U11: 51084 | V11: 51210 | W11: 51565 | X11: 51778 | Y11: 51794 | Z11: 51541 | AA11: 52017 | AB11: 52233 | AC11: 52300 | AD11: 52258 | AE11: 52643 | AF11: 52930 | AG11: 53037 | AH11: 53022 | AI11: 53163 | AJ11: 53344 | AK11: 53369
A12: Knox (C) | B12: 58692 | C12: 59000 | D12: 59165 | E12: 59242 | F12: 58187 | G12: 58512 | H12: 58381 | I12: 59002 | J12: 59015 | K12: 59441 | L12: 59679 | M12: 59719 | N12: 59270 | O12: 60058 | P12: 59899 | Q12: 60064 | R12: 59523 | S12: 60391 | T12: 60684 | U12: 60598 | V12: 60703 | W12: 61005 | X12: 61234 | Y12: 61326 | Z12: 61073 | AA12: 61335 | AB12: 61589 | AC12: 61696 | AD12: 61576 | AE12: 62024 | AF12: 62261 | AG12: 62352 | AH12: 62339 | AI12: 62519 | AJ12: 62695 | AK12: 62773
A13: Manningham (C) | B13: 40910 | C13: 41050 | D13: 41138 | E13: 41181 | F13: 40180 | G13: 40478 | H13: 40473 | I13: 40811 | J13: 40855 | K13: 41187 | L13: 41314 | M13: 41080 | N13: 40694 | O13: 41390 | P13: 41305 | Q13: 41122 | R13: 40689 | S13: 41392 | T13: 41553 | U13: 41478 | V13: 41548 | W13: 41722 | X13: 41861 | Y13: 41846 | Z13: 41692 | AA13: 42015 | AB13: 42196 | AC13: 42213 | AD13: 42105 | AE13: 42440 | AF13: 42695 | AG13: 42834 | AH13: 42854 | AI13: 43056 | AJ13: 43163 | AK13: 43186
A14: Maroondah (C) | B14: 35545 | C14: 35727 | D14: 35874 | E14: 35977 | F14: 35189 | G14: 35502 | H14: 35521 | I14: 35905 | J14: 35869 | K14: 36354 | L14: 36575 | M14: 36530 | N14: 36233 | O14: 36955 | P14: 36934 | Q14: 37023 | R14: 36586 | S14: 37311 | T14: 37462 | U14: 37491 | V14: 37521 | W14: 37799 | X14: 37858 | Y14: 37892 | Z14: 37632 | AA14: 37920 | AB14: 38096 | AC14: 38094 | AD14: 37859 | AE14: 38178 | AF14: 38307 | AG14: 38388 | AH14: 38317 | AI14: 38514 | AJ14: 38596 | AK14: 38594
A15: Melbourne (C) | B15: 726 | C15: 765 | D15: 755 | E15: 771 | F15: 710 | G15: 718 | H15: 746 | I15: 767 | J15: 743 | K15: 772 | L15: 762 | M15: 781 | N15: 761 | O15: 780 | P15: 762 | Q15: 768 | R15: 756 | S15: 790 | T15: 788 | U15: 785 | V15: 781 | W15: 807 | X15: 788 | Y15: 800 | Z15: 797 | AA15: 831 | AB15: 825 | AC15: 837 | AD15: 808 | AE15: 831 | AF15: 822 | AG15: 838 | AH15: 816 | AI15: 848 | AJ15: 811 | AK15: 822
A16: Monash (C) | B16: 61240 | C16: 61652 | D16: 61800 | E16: 61919 | F16: 60498 | G16: 60940 | H16: 60884 | I16: 61460 | J16: 61334 | K16: 61951 | L16: 62197 | M16: 62136 | N16: 61498 | O16: 62459 | P16: 62265 | Q16: 62359 | R16: 61457 | S16: 62579 | T16: 62723 | U16: 62682 | V16: 62761 | W16: 63216 | X16: 63361 | Y16: 63301 | Z16: 62881 | AA16: 63398 | AB16: 63560 | AC16: 63642 | AD16: 63362 | AE16: 63977 | AF16: 64220 | AG16: 64379 | AH16: 64314 | AI16: 64492 | AJ16: 64620 | AK16: 64685
A17: Nillumbik (S) | B17: 8 | C17: 8 | D17: 8 | E17: 8 | F17: 8 | G17: 7 | H17: 7 | I17: 8 | J17: 8 | K17: 8 | L17: 8 | M17: 8 | N17: 8 | O17: 8 | P17: 8 | Q17: 8 | R17: 8 | S17: 8 | T17: 8 | U17: 8 | V17: 8 | W17: 8 | X17: 8 | Y17: 8 | Z17: 8 | AA17: 8 | AB17: 8 | AC17: 8 | AD17: 8 | AE17: 8 | AF17: 8 | AG17: 8 | AH17: 8 | AI17: 8 | AJ17: 8 | AK17: 8
A18: Port Phillip (C) | B18: 37339 | C18: 37481 | D18: 37446 | E18: 37411 | F18: 35785 | G18: 35975 | H18: 36222 | I18: 36521 | J18: 36326 | K18: 36965 | L18: 37001 | M18: 36704 | N18: 35920 | O18: 37109 | P18: 36822 | Q18: 36638 | R18: 35631 | S18: 36907 | T18: 36912 | U18: 36821 | V18: 36856 | W18: 37184 | X18: 37191 | Y18: 37160 | Z18: 36974 | AA18: 37368 | AB18: 37327 | AC18: 37330 | AD18: 37053 | AE18: 37304 | AF18: 37362 | AG18: 37376 | AH18: 37183 | AI18: 37313 | AJ18: 37200 | AK18: 36885
A19: South Gippsland (S) | B19: 1132 | C19: 1226 | D19: 1298 | E19: 1355 | F19: 1248 | G19: 1356 | H19: 1382 | I19: 1448 | J19: 1428 | K19: 1513 | L19: 1547 | M19: 1593 | N19: 1541 | O19: 1660 | P19: 1679 | Q19: 1707 | R19: 1665 | S19: 1769 | T19: 1789 | U19: 1819 | V19: 1792 | W19: 1864 | X19: 1896 | Y19: 1908 | Z19: 1851 | AA19: 1945 | AB19: 1972 | AC19: 2009 | AD19: 1972 | AE19: 2040 | AF19: 2067 | AG19: 2084 | AH19: 2109 | AI19: 2129 | AJ19: 2169 | AK19: 2160
A20: Stonnington (C) | B20: 37880 | C20: 38036 | D20: 38039 | E20: 37996 | F20: 36348 | G20: 36703 | H20: 36912 | I20: 36909 | J20: 36878 | K20: 37505 | L20: 37643 | M20: 37168 | N20: 36437 | O20: 37734 | P20: 37527 | Q20: 37002 | R20: 36531 | S20: 37524 | T20: 37698 | U20: 37322 | V20: 37423 | W20: 37646 | X20: 37800 | Y20: 37597 | Z20: 37215 | AA20: 37576 | AB20: 37751 | AC20: 37639 | AD20: 37283 | AE20: 37578 | AF20: 37832 | AG20: 37680 | AH20: 37507 | AI20: 37528 | AJ20: 37592 | AK20: 37066
A21: Whitehorse (C) | B21: 63007 | C21: 63313 | D21: 63490 | E21: 63579 | F21: 62022 | G21: 62624 | H21: 62415 | I21: 62645 | J21: 62918 | K21: 63597 | L21: 63951 | M21: 63758 | N21: 63034 | O21: 64198 | P21: 64023 | Q21: 64013 | R21: 63140 | S21: 64220 | T21: 64430 | U21: 64259 | V21: 64391 | W21: 64789 | X21: 64922 | Y21: 64946 | Z21: 64713 | AA21: 65153 | AB21: 65242 | AC21: 65279 | AD21: 65040 | AE21: 65435 | AF21: 65689 | AG21: 65812 | AH21: 65692 | AI21: 65843 | AJ21: 65980 | AK21: 65932
A22: Yarra Ranges (S) | B22: 43563 | C22: 43843 | D22: 43979 | E22: 44067 | F22: 43075 | G22: 43638 | H22: 43319 | I22: 44119 | J22: 43983 | K22: 44488 | L22: 44684 | M22: 44646 | N22: 44200 | O22: 45174 | P22: 44940 | Q22: 45246 | R22: 44573 | S22: 45540 | T22: 45846 | U22: 45929 | V22: 45927 | W22: 46331 | X22: 46526 | Y22: 46576 | Z22: 46252 | AA22: 46734 | AB22: 46977 | AC22: 47088 | AD22: 46865 | AE22: 47269 | AF22: 47477 | AG22: 47581 | AH22: 47458 | AI22: 47733 | AJ22: 47900 | AK22: 47964
A23: Total | B23: 643122 | C23: 646661 | D23: 648293 | E23: 649428 | F23: 631194 | G23: 637197 | H23: 636762 | I23: 642450 | J23: 641990 | K23: 650087 | L23: 652769 | M23: 650452 | N23: 642797 | O23: 656785 | P23: 654365 | Q23: 654094 | R23: 644922 | S23: 658375 | T23: 661105 | U23: 659730 | V23: 661209 | W23: 665815 | X23: 667537 | Y23: 667599 | Z23: 663683 | AA23: 669438 | AB23: 671672 | AC23: 672292 | AD23: 669121 | AE23: 674714 | AF23: 677485 | AG23: 678609 | AH23: 677356 | AI23: 679777 | AJ23: 681090 | AK23: 680337
A25: Residential New customers | C25: 2012Q2 | D25: 2012Q3 | E25: 2012Q4 | F25: 2013Q1 | G25: 2013Q2 | H25: 2013Q3 | I25: 2013Q4 | J25: 2014Q1 | K25: 2014Q2 | L25: 2014Q3 | M25: 2014Q4 | N25: 2015Q1 | O25: 2015Q2 | P25: 2015Q3 | Q25: 2015Q4 | R25: 2016Q1 | S25: 2016Q2 | T25: 2016Q3 | U25: 2016Q4 | V25: 2017Q1 | W25: 2017Q2 | X25: 2017Q3 | Y25: 2017Q4 | Z25: 2018Q1 | AA25: 2018Q2 | AB25: 2018Q3 | AC25: 2018Q4 | AD25: 2019Q1 | AE25: 2019Q2 | AF25: 2019Q3 | AG25: 2019Q4 | AH25: 2020Q1 | AI25: 2020Q2 | AJ25: 2020Q3 | AK25: 2020Q4
A26: Bass Coast (S) | C26: 146 | D26: 89 | E26: 101 | F26: 17 | G26: 225 | H26: 111 | I26: 122 | J26: 81 | K26: 173 | L26: 55 | M26: 142 | N26: 56 | O26: 198 | P26: 51 | Q26: 129 | R26: 60 | S26: 244 | T26: 57 | U26: 119 | V26: 67 | W26: 198 | X26: 63 | Y26: 110 | Z26: 42 | AA26: 288 | AB26: 65 | AC26: 166 | AD26: 79 | AE26: 287 | AF26: 56 | AG26: 158 | AH26: 73 | AI26: 171 | AJ26: 51 | AK26: 164
A27: Bayside (C) | C27: 249 | D27: 202 | E27: 219 | F27: 94 | G27: 995 | H27: 974 | I27: 953 | J27: 867 | K27: 979 | L27: 566 | M27: 409 | N27: 654 | O27: 1162 | P27: 493 | Q27: 588 | R27: 858 | S27: 1387 | T27: 617 | U27: 395 | V27: 674 | W27: 466 | X27: 395 | Y27: 297 | Z27: 341 | AA27: 522 | AB27: 411 | AC27: 299 | AD27: 376 | AE27: 514 | AF27: 432 | AG27: 355 | AH27: 363 | AI27: 395 | AJ27: 375 | AK27: 321
A28: Boroondara (C) | C28: 537 | D28: 377 | E28: 448 | F28: 151 | G28: 1816 | H28: 1568 | I28: 2245 | J28: 1476 | K28: 1904 | L28: 916 | M28: 812 | N28: 1120 | O28: 2516 | P28: 811 | Q28: 1155 | R28: 1333 | S28: 2323 | T28: 996 | U28: 818 | V28: 1149 | W28: 1027 | X28: 652 | Y28: 618 | Z28: 625 | AA28: 1179 | AB28: 707 | AC28: 666 | AD28: 615 | AE28: 1145 | AF28: 741 | AG28: 642 | AH28: 606 | AI28: 939 | AJ28: 596 | AK28: 636
A29: Cardinia (S) | C29: 42 | D29: 17 | E29: 10 | F29: 5 | G29: 81 | H29: 86 | I29: 48 | J29: 50 | K29: 96 | L29: 46 | M29: 28 | N29: 36 | O29: 119 | P29: 52 | Q29: 33 | R29: 49 | S29: 132 | T29: 39 | U29: 42 | V29: 50 | W29: 54 | X29: 32 | Y29: 31 | Z29: 15 | AA29: 76 | AB29: 28 | AC29: 21 | AD29: 25 | AE29: 69 | AF29: 21 | AG29: 23 | AH29: 21 | AI29: 42 | AJ29: 25 | AK29: 18
A30: Casey (C) | C30: 54 | D30: 27 | E30: 40 | F30: 12 | G30: 185 | H30: 178 | I30: 269 | J30: 114 | K30: 156 | L30: 119 | M30: 100 | N30: 106 | O30: 167 | P30: 74 | Q30: 153 | R30: 132 | S30: 271 | T30: 101 | U30: 91 | V30: 132 | W30: 133 | X30: 90 | Y30: 54 | Z30: 47 | AA30: 115 | AB30: 87 | AC30: 86 | AD30: 68 | AE30: 146 | AF30: 68 | AG30: 76 | AH30: 66 | AI30: 104 | AJ30: 81 | AK30: 67
A31: Frankston (C) | C31: 0 | D31: 0 | E31: 0 | F31: 0 | G31: 0 | H31: 0 | I31: 0 | J31: 0 | K31: 0 | L31: 0 | M31: 0 | N31: 0 | O31: 0 | P31: 0 | Q31: 0 | R31: 0 | S31: 0 | T31: 0 | U31: 0 | V31: 0 | W31: 0 | X31: 0 | Y31: 0 | Z31: 0 | AA31: 0 | AB31: 0 | AC31: 0 | AD31: 0 | AE31: 0 | AF31: 0 | AG31: 0 | AH31: 0 | AI31: 0 | AJ31: 0 | AK31: 0
A32: Glen Eira (C) | C32: 455 | D32: 350 | E32: 300 | F32: 113 | G32: 1426 | H32: 1287 | I32: 1445 | J32: 1027 | K32: 1276 | L32: 751 | M32: 661 | N32: 701 | O32: 1630 | P32: 567 | Q32: 918 | R32: 954 | S32: 1788 | T32: 818 | U32: 645 | V32: 927 | W32: 711 | X32: 503 | Y32: 475 | Z32: 460 | AA32: 843 | AB32: 595 | AC32: 475 | AD32: 476 | AE32: 862 | AF32: 550 | AG32: 528 | AH32: 512 | AI32: 649 | AJ32: 533 | AK32: 488
A33: Greater Dandenong (C) | C33: 396 | D33: 328 | E33: 330 | F33: 141 | G33: 977 | H33: 1057 | I33: 1220 | J33: 767 | K33: 899 | L33: 514 | M33: 503 | N33: 494 | O33: 1197 | P33: 533 | Q33: 871 | R33: 604 | S33: 1301 | T33: 675 | U33: 616 | V33: 706 | W33: 647 | X33: 463 | Y33: 426 | Z33: 378 | AA33: 715 | AB33: 566 | AC33: 473 | AD33: 411 | AE33: 706 | AF33: 490 | AG33: 399 | AH33: 413 | AI33: 523 | AJ33: 448 | AK33: 366
A34: Kingston (C) | C34: 395 | D34: 260 | E34: 302 | F34: 141 | G34: 1024 | H34: 1046 | I34: 1195 | J34: 804 | K34: 935 | L34: 660 | M34: 450 | N34: 582 | O34: 1340 | P34: 587 | Q34: 724 | R34: 672 | S34: 1296 | T34: 695 | U34: 462 | V34: 705 | W34: 643 | X34: 511 | Y34: 394 | Z34: 442 | AA34: 810 | AB34: 565 | AC34: 477 | AD34: 593 | AE34: 753 | AF34: 574 | AG34: 465 | AH34: 438 | AI34: 524 | AJ34: 465 | AK34: 408
A35: Knox (C) | C35: 379 | D35: 260 | E35: 223 | F35: 106 | G35: 854 | H35: 959 | I35: 1240 | J35: 645 | K35: 790 | L35: 511 | M35: 405 | N35: 373 | O35: 1024 | P35: 461 | Q35: 671 | R35: 556 | S35: 1189 | T35: 573 | U35: 336 | V35: 552 | W35: 529 | X35: 469 | Y35: 404 | Z35: 332 | AA35: 586 | AB35: 495 | AC35: 415 | AD35: 400 | AE35: 729 | AF35: 447 | AG35: 336 | AH35: 363 | AI35: 469 | AJ35: 371 | AK35: 325
A36: Manningham (C) | C36: 234 | D36: 179 | E36: 185 | F36: 90 | G36: 805 | H36: 821 | I36: 977 | J36: 604 | K36: 631 | L36: 395 | M36: 282 | N36: 464 | O36: 954 | P36: 339 | Q36: 455 | R36: 596 | S36: 1051 | T36: 471 | U36: 360 | V36: 499 | W36: 443 | X36: 375 | Y36: 297 | Z36: 347 | AA36: 616 | AB36: 457 | AC36: 343 | AD36: 347 | AE36: 625 | AF36: 476 | AG36: 411 | AH36: 391 | AI36: 511 | AJ36: 377 | AK36: 356
A37: Maroondah (C) | C37: 254 | D37: 220 | E37: 204 | F37: 104 | G37: 685 | H37: 705 | I37: 854 | J37: 532 | K37: 732 | L37: 438 | M37: 342 | N37: 411 | O37: 894 | P37: 367 | Q37: 480 | R37: 420 | S37: 937 | T37: 372 | U37: 345 | V37: 396 | W37: 444 | X37: 234 | Y37: 215 | Z37: 195 | AA37: 485 | AB37: 307 | AC37: 199 | AD37: 192 | AE37: 483 | AF37: 268 | AG37: 249 | AH37: 220 | AI37: 370 | AJ37: 227 | AK37: 199
A38: Melbourne (C) | C38: 44 | D38: 4 | E38: 23 | F38: 4 | G38: 36 | H38: 45 | I38: 32 | J38: 12 | K38: 43 | L38: 17 | M38: 26 | N38: 10 | O38: 28 | P38: 15 | Q38: 33 | R38: 24 | S38: 49 | T38: 31 | U38: 34 | V38: 28 | W38: 33 | X38: 14 | Y38: 25 | Z38: 27 | AA38: 42 | AB38: 21 | AC38: 27 | AD38: 10 | AE38: 35 | AF38: 14 | AG38: 27 | AH38: 9 | AI38: 39 | AJ38: 9 | AK38: 30
A39: Monash (C) | C39: 530 | D39: 294 | E39: 302 | F39: 119 | G39: 1148 | H39: 1277 | I39: 1451 | J39: 811 | K39: 1082 | L39: 692 | M39: 539 | N39: 509 | O39: 1368 | P39: 558 | Q39: 816 | R39: 733 | S39: 1694 | T39: 695 | U39: 605 | V39: 809 | W39: 835 | X39: 549 | Y39: 436 | Z39: 462 | AA39: 918 | AB39: 618 | AC39: 551 | AD39: 525 | AE39: 1036 | AF39: 629 | AG39: 583 | AH39: 590 | AI39: 759 | AJ39: 603 | AK39: 631
A40: Nillumbik (S) | C40: 0 | D40: 0 | E40: 0 | F40: 0 | G40: 0 | H40: 0 | I40: 1 | J40: 0 | K40: 0 | L40: 0 | M40: 0 | N40: 0 | O40: 0 | P40: 0 | Q40: 0 | R40: 0 | S40: 0 | T40: 0 | U40: 0 | V40: 0 | W40: 0 | X40: 0 | Y40: 0 | Z40: 0 | AA40: 0 | AB40: 0 | AC40: 0 | AD40: 0 | AE40: 0 | AF40: 0 | AG40: 0 | AH40: 0 | AI40: 0 | AJ40: 0 | AK40: 0
A41: Port Phillip (C) | C41: 363 | D41: 268 | E41: 311 | F41: 149 | G41: 1202 | H41: 1510 | I41: 1378 | J41: 1031 | K41: 1356 | L41: 776 | M41: 749 | N41: 852 | O41: 1837 | P41: 734 | Q41: 932 | R41: 999 | S41: 2001 | T41: 772 | U41: 725 | V41: 899 | W41: 817 | X41: 570 | Y41: 593 | Z41: 648 | AA41: 893 | AB41: 548 | AC41: 597 | AD41: 573 | AE41: 850 | AF41: 609 | AG41: 570 | AH41: 571 | AI41: 744 | AJ41: 576 | AK41: 568
A42: South Gippsland (S) | C42: 99 | D42: 78 | E42: 64 | F42: 7 | G42: 121 | H42: 61 | I42: 75 | J42: 41 | K42: 101 | L42: 58 | M42: 61 | N42: 31 | O42: 126 | P42: 44 | Q42: 56 | R42: 36 | S42: 123 | T42: 51 | U42: 43 | V42: 30 | W42: 86 | X42: 50 | Y42: 30 | Z42: 33 | AA42: 104 | AB42: 48 | AC42: 54 | AD42: 36 | AE42: 81 | AF42: 43 | AG42: 36 | AH42: 48 | AI42: 43 | AJ42: 55 | AK42: 25
A43: Stonnington (C) | C43: 404 | D43: 288 | E43: 342 | F43: 178 | G43: 1403 | H43: 1425 | I43: 1307 | J43: 1254 | K43: 1414 | L43: 880 | M43: 723 | N43: 985 | O43: 1976 | P43: 737 | Q43: 884 | R43: 1271 | S43: 1729 | T43: 814 | U43: 585 | V43: 993 | W43: 850 | X43: 708 | Y43: 531 | Z43: 685 | AA43: 973 | AB43: 728 | AC43: 572 | AD43: 616 | AE43: 952 | AF43: 762 | AG43: 533 | AH43: 653 | AI43: 796 | AJ43: 686 | AK43: 510
A44: Whitehorse (C) | C44: 437 | D44: 328 | E44: 315 | F44: 151 | G44: 1399 | H44: 1239 | I44: 1637 | J44: 1435 | K44: 1378 | L44: 864 | M44: 583 | N44: 704 | O44: 1617 | P44: 639 | Q44: 869 | R44: 831 | S44: 1690 | T44: 736 | U44: 534 | V44: 813 | W44: 778 | X44: 545 | Y44: 491 | Z44: 522 | AA44: 857 | AB44: 550 | AC44: 464 | AD44: 483 | AE44: 834 | AF44: 594 | AG44: 515 | AH44: 519 | AI44: 679 | AJ44: 521 | AK44: 472
A45: Yarra Ranges (S) | C45: 375 | D45: 236 | E45: 238 | F45: 87 | G45: 942 | H45: 802 | I45: 1247 | J45: 469 | K45: 816 | L45: 487 | M45: 436 | N45: 520 | O45: 1212 | P45: 417 | Q45: 750 | R45: 486 | S45: 1258 | T45: 528 | U45: 382 | V45: 439 | W45: 585 | X45: 385 | Y45: 263 | Z45: 268 | AA45: 698 | AB45: 408 | AC45: 312 | AD45: 311 | AE45: 614 | AF45: 393 | AG45: 310 | AH45: 239 | AI45: 477 | AJ45: 322 | AK45: 299
A46: Total | C46: 5393 | D46: 3805 | E46: 3957 | F46: 1669 | G46: 15324 | H46: 15151 | I46: 17696 | J46: 12020 | K46: 14761 | L46: 8745 | M46: 7251 | N46: 8608 | O46: 19365 | P46: 7479 | Q46: 10517 | R46: 10614 | S46: 20463 | T46: 9041 | U46: 7137 | V46: 9868 | W46: 9279 | X46: 6608 | Y46: 5690 | Z46: 5869 | AA46: 10720 | AB46: 7204 | AC46: 6197 | AD46: 6136 | AE46: 10721 | AF46: 7167 | AG46: 6216 | AH46: 6095 | AI46: 8234 | AJ46: 6321 | AK46: 5883
A48: Residential Disconnections | C48: 2012Q2 | D48: 2012Q3 | E48: 2012Q4 | F48: 2013Q1 | G48: 2013Q2 | H48: 2013Q3 | I48: 2013Q4 | J48: 2014Q1 | K48: 2014Q2 | L48: 2014Q3 | M48: 2014Q4 | N48: 2015Q1 | O48: 2015Q2 | P48: 2015Q3 | Q48: 2015Q4 | R48: 2016Q1 | S48: 2016Q2 | T48: 2016Q3 | U48: 2016Q4 | V48: 2017Q1 | W48: 2017Q2 | X48: 2017Q3 | Y48: 2017Q4 | Z48: 2018Q1 | AA48: 2018Q2 | AB48: 2018Q3 | AC48: 2018Q4 | AD48: 2019Q1 | AE48: 2019Q2 | AF48: 2019Q3 | AG48: 2019Q4 | AH48: 2020Q1 | AI48: 2020Q2 | AJ48: 2020Q3 | AK48: 2020Q4
A49: Bass Coast (S) | C49: 7 | D49: 9 | E49: 10 | F49: 161 | G49: 42 | H49: 58 | I49: 32 | J49: 74 | K49: 11 | L49: 53 | M49: 15 | N49: 127 | O49: 21 | P49: 61 | Q49: 20 | R49: 166 | S49: 13 | T49: 52 | U49: 26 | V49: 112 | W49: 11 | X49: 44 | Y49: 15 | Z49: 197 | AA49: 8 | AB49: 66 | AC49: 26 | AD49: 190 | AE49: 7 | AF49: 70 | AG49: 22 | AH49: 97 | AI49: 22 | AJ49: 65 | AK49: 29
A50: Bayside (C) | C50: 97 | D50: 139 | E50: 179 | F50: 1361 | G50: 665 | H50: 854 | I50: 852 | J50: 857 | K50: 410 | L50: 368 | M50: 755 | N50: 1034 | O50: 388 | P50: 584 | Q50: 898 | R50: 1382 | S50: 516 | T50: 379 | U50: 637 | V50: 439 | W50: 316 | X50: 277 | Y50: 317 | Z50: 509 | AA50: 288 | AB50: 274 | AC50: 349 | AD50: 522 | AE50: 361 | AF50: 275 | AG50: 308 | AH50: 375 | AI50: 351 | AJ50: 239 | AK50: 336
A51: Boroondara (C) | C51: 212 | D51: 269 | E51: 305 | F51: 2352 | G51: 1091 | H51: 1996 | I51: 1524 | J51: 1695 | K51: 823 | L51: 769 | M51: 1338 | N51: 2274 | O51: 716 | P51: 1211 | Q51: 1405 | R51: 2367 | S51: 947 | T51: 814 | U51: 1132 | V51: 1009 | W51: 549 | X51: 616 | Y51: 702 | Z51: 1132 | AA51: 591 | AB51: 602 | AC51: 690 | AD51: 1123 | AE51: 612 | AF51: 515 | AG51: 617 | AH51: 939 | AI51: 695 | AJ51: 677 | AK51: 841
A52: Cardinia (S) | C52: 5 | D52: 9 | E52: 10 | F52: 117 | G52: 40 | H52: 34 | I52: 59 | J52: 81 | K52: 25 | L52: 27 | M52: 43 | N52: 108 | O52: 23 | P52: 33 | Q52: 49 | R52: 133 | S52: 30 | T52: 34 | U52: 40 | V52: 48 | W52: 14 | X52: 26 | Y52: 13 | Z52: 81 | AA52: 16 | AB52: 18 | AC52: 20 | AD52: 66 | AE52: 15 | AF52: 13 | AG52: 22 | AH52: 38 | AI52: 17 | AJ52: 11 | AK52: 19
A53: Casey (C) | C53: 23 | D53: 27 | E53: 27 | F53: 238 | G53: 110 | H53: 255 | I53: 140 | J53: 117 | K53: 60 | L53: 83 | M53: 113 | N53: 132 | O53: 50 | P53: 136 | Q53: 147 | R53: 261 | S53: 76 | T53: 76 | U53: 107 | V53: 101 | W53: 35 | X53: 51 | Y53: 55 | Z53: 87 | AA53: 72 | AB53: 56 | AC53: 62 | AD53: 105 | AE53: 42 | AF53: 54 | AG53: 59 | AH53: 83 | AI53: 52 | AJ53: 44 | AK53: 61
A54: Frankston (C) | C54: 0 | D54: 0 | E54: 0 | F54: 0 | G54: 0 | H54: 0 | I54: 0 | J54: 0 | K54: 0 | L54: 0 | M54: 0 | N54: 0 | O54: 0 | P54: 0 | Q54: 0 | R54: 0 | S54: 0 | T54: 0 | U54: 0 | V54: 0 | W54: 0 | X54: 0 | Y54: 0 | Z54: 0 | AA54: 0 | AB54: 0 | AC54: 0 | AD54: 0 | AE54: 0 | AF54: 0 | AG54: 0 | AH54: 0 | AI54: 0 | AJ54: 0 | AK54: 0
A55: Glen Eira (C) | C55: 195 | D55: 169 | E55: 225 | F55: 1833 | G55: 821 | H55: 1279 | I55: 1035 | J55: 1145 | K55: 613 | L55: 553 | M55: 793 | N55: 1356 | O55: 456 | P55: 909 | Q55: 942 | R55: 1769 | S55: 712 | T55: 617 | U55: 849 | V55: 698 | W55: 447 | X55: 455 | Y55: 482 | Z55: 769 | AA55: 432 | AB55: 401 | AC55: 437 | AD55: 767 | AE55: 386 | AF55: 374 | AG55: 460 | AH55: 601 | AI55: 464 | AJ55: 447 | AK55: 587
A56: Greater Dandenong (C) | C56: 125 | D56: 132 | E56: 161 | F56: 1218 | G56: 589 | H56: 1052 | I56: 751 | J56: 617 | K56: 367 | L56: 314 | M56: 489 | N56: 766 | O56: 246 | P56: 657 | Q56: 475 | R56: 1121 | S56: 413 | T56: 346 | U56: 491 | V56: 464 | W56: 273 | X56: 294 | Y56: 296 | Z56: 524 | AA56: 247 | AB56: 284 | AC56: 341 | AD56: 502 | AE56: 251 | AF56: 229 | AG56: 268 | AH56: 424 | AI56: 328 | AJ56: 245 | AK56: 306
A57: Kingston (C) | C57: 130 | D57: 155 | E57: 212 | F57: 1372 | G57: 571 | H57: 1023 | I57: 749 | J57: 822 | K57: 436 | L57: 358 | M57: 638 | N57: 1080 | O57: 370 | P57: 636 | Q57: 692 | R57: 1244 | S57: 454 | T57: 412 | U57: 580 | V57: 579 | W57: 288 | X57: 298 | Y57: 378 | Z57: 695 | AA57: 334 | AB57: 349 | AC57: 410 | AD57: 635 | AE57: 368 | AF57: 287 | AG57: 358 | AH57: 453 | AI57: 383 | AJ57: 284 | AK57: 383
A58: Knox (C) | C58: 71 | D58: 95 | E58: 146 | F58: 1161 | G58: 529 | H58: 1090 | I58: 619 | J58: 632 | K58: 364 | L58: 273 | M58: 365 | N58: 822 | O58: 236 | P58: 620 | Q58: 506 | R58: 1097 | S58: 321 | T58: 280 | U58: 422 | V58: 447 | W58: 227 | X58: 240 | Y58: 312 | Z58: 585 | AA58: 324 | AB58: 241 | AC58: 308 | AD58: 520 | AE58: 281 | AF58: 210 | AG58: 245 | AH58: 376 | AI58: 289 | AJ58: 195 | AK58: 247
A59: Manningham (C) | C59: 94 | D59: 91 | E59: 142 | F59: 1091 | G59: 507 | H59: 826 | I59: 639 | J59: 560 | K59: 299 | L59: 268 | M59: 516 | N59: 850 | O59: 258 | P59: 424 | Q59: 638 | R59: 1029 | S59: 348 | T59: 310 | U59: 435 | V59: 429 | W59: 269 | X59: 236 | Y59: 312 | Z59: 501 | AA59: 293 | AB59: 276 | AC59: 326 | AD59: 455 | AE59: 290 | AF59: 221 | AG59: 272 | AH59: 371 | AI59: 309 | AJ59: 270 | AK59: 333
A60: Maroondah (C) | C60: 72 | D60: 73 | E60: 101 | F60: 892 | G60: 372 | H60: 686 | I60: 470 | J60: 568 | K60: 247 | L60: 217 | M60: 387 | N60: 708 | O60: 172 | P60: 388 | Q60: 391 | R60: 857 | S60: 212 | T60: 221 | U60: 316 | V60: 366 | W60: 166 | X60: 175 | Y60: 181 | Z60: 455 | AA60: 197 | AB60: 131 | AC60: 201 | AD60: 427 | AE60: 164 | AF60: 139 | AG60: 168 | AH60: 291 | AI60: 173 | AJ60: 145 | AK60: 201
A61: Melbourne (C) | C61: 5 | D61: 14 | E61: 7 | F61: 65 | G61: 28 | H61: 17 | I61: 11 | J61: 36 | K61: 14 | L61: 27 | M61: 7 | N61: 30 | O61: 9 | P61: 33 | Q61: 27 | R61: 36 | S61: 15 | T61: 33 | U61: 37 | V61: 32 | W61: 7 | X61: 33 | Y61: 13 | Z61: 30 | AA61: 8 | AB61: 27 | AC61: 15 | AD61: 39 | AE61: 12 | AF61: 23 | AG61: 11 | AH61: 31 | AI61: 7 | AJ61: 46 | AK61: 19
A62: Monash (C) | C62: 118 | D62: 146 | E62: 183 | F62: 1540 | G62: 706 | H62: 1333 | I62: 875 | J62: 937 | K62: 465 | L62: 446 | M62: 600 | N62: 1147 | O62: 407 | P62: 752 | Q62: 722 | R62: 1635 | S62: 572 | T62: 551 | U62: 646 | V62: 730 | W62: 380 | X62: 404 | Y62: 496 | Z62: 882 | AA62: 401 | AB62: 456 | AC62: 469 | AD62: 805 | AE62: 421 | AF62: 386 | AG62: 424 | AH62: 655 | AI62: 581 | AJ62: 475 | AK62: 566
A63: Nillumbik (S) | C63: 0 | D63: 0 | E63: 0 | F63: 0 | G63: 1 | H63: 0 | I63: 0 | J63: 0 | K63: 0 | L63: 0 | M63: 0 | N63: 0 | O63: 0 | P63: 0 | Q63: 0 | R63: 0 | S63: 0 | T63: 0 | U63: 0 | V63: 0 | W63: 0 | X63: 0 | Y63: 0 | Z63: 0 | AA63: 0 | AB63: 0 | AC63: 0 | AD63: 0 | AE63: 0 | AF63: 0 | AG63: 0 | AH63: 0 | AI63: 0 | AJ63: 0 | AK63: 0
A64: Port Phillip (C) | C64: 221 | D64: 303 | E64: 346 | F64: 1775 | G64: 1012 | H64: 1263 | I64: 1079 | J64: 1226 | K64: 717 | L64: 740 | M64: 1046 | N64: 1636 | O64: 648 | P64: 1021 | Q64: 1116 | R64: 2006 | S64: 725 | T64: 767 | U64: 816 | V64: 864 | W64: 489 | X64: 563 | Y64: 624 | Z64: 834 | AA64: 499 | AB64: 589 | AC64: 594 | AD64: 850 | AE64: 599 | AF64: 551 | AG64: 556 | AH64: 764 | AI64: 614 | AJ64: 689 | AK64: 883
A65: South Gippsland (S) | C65: 5 | D65: 6 | E65: 7 | F65: 114 | G65: 13 | H65: 35 | I65: 9 | J65: 61 | K65: 16 | L65: 24 | M65: 15 | N65: 83 | O65: 7 | P65: 25 | Q65: 28 | R65: 78 | S65: 19 | T65: 31 | U65: 13 | V65: 57 | W65: 14 | X65: 18 | Y65: 18 | Z65: 90 | AA65: 10 | AB65: 21 | AC65: 17 | AD65: 73 | AE65: 13 | AF65: 16 | AG65: 19 | AH65: 23 | AI65: 23 | AJ65: 15 | AK65: 34
A66: Stonnington (C) | C66: 248 | D66: 285 | E66: 385 | F66: 1826 | G66: 1048 | H66: 1216 | I66: 1310 | J66: 1285 | K66: 787 | L66: 742 | M66: 1198 | N66: 1716 | O66: 679 | P66: 944 | Q66: 1409 | R66: 1742 | S66: 736 | T66: 640 | U66: 961 | V66: 892 | W66: 627 | X66: 554 | Y66: 734 | Z66: 1067 | AA66: 612 | AB66: 553 | AC66: 684 | AD66: 972 | AE66: 657 | AF66: 508 | AG66: 685 | AH66: 826 | AI66: 775 | AJ66: 622 | AK66: 1036
A67: Whitehorse (C) | C67: 131 | D67: 151 | E67: 226 | F67: 1708 | G67: 797 | H67: 1448 | I67: 1407 | J67: 1162 | K67: 699 | L67: 510 | M67: 776 | N67: 1428 | O67: 453 | P67: 814 | Q67: 879 | R67: 1704 | S67: 610 | T67: 526 | U67: 705 | V67: 681 | W67: 380 | X67: 412 | Y67: 467 | Z67: 755 | AA67: 417 | AB67: 461 | AC67: 427 | AD67: 722 | AE67: 439 | AF67: 340 | AG67: 392 | AH67: 639 | AI67: 528 | AJ67: 384 | AK67: 520
A68: Yarra Ranges (S) | C68: 95 | D68: 100 | E68: 150 | F68: 1079 | G68: 379 | H68: 1121 | I68: 447 | J68: 605 | K68: 311 | L68: 291 | M68: 474 | N68: 966 | O68: 238 | P68: 651 | Q68: 444 | R68: 1159 | S68: 291 | T68: 222 | U68: 299 | V68: 441 | W68: 181 | X68: 190 | Y68: 213 | Z68: 592 | AA68: 216 | AB68: 165 | AC68: 201 | AD68: 534 | AE68: 210 | AF68: 185 | AG68: 206 | AH68: 362 | AI68: 202 | AJ68: 155 | AK68: 235
A69: Total | C69: 1854 | D69: 2173 | E69: 2822 | F69: 19903 | G69: 9321 | H69: 15586 | I69: 12008 | J69: 12480 | K69: 6664 | L69: 6063 | M69: 9568 | N69: 16263 | O69: 5377 | P69: 9899 | Q69: 10788 | R69: 19786 | S69: 7010 | T69: 6311 | U69: 8512 | V69: 8389 | W69: 4673 | X69: 4886 | Y69: 5628 | Z69: 9785 | AA69: 4965 | AB69: 4970 | AC69: 5577 | AD69: 9307 | AE69: 5128 | AF69: 4396 | AG69: 5092 | AH69: 7348 | AI69: 5813 | AJ69: 5008 | AK69: 6636
A71: Commercial Customers
A72: LGA | B72: 2012Q1 | C72: 2012Q2 | D72: 2012Q3 | E72: 2012Q4 | F72: 2013Q1 | G72: 2013Q2 | H72: 2013Q3 | I72: 2013Q4 | J72: 2014Q1 | K72: 2014Q2 | L72: 2014Q3 | M72: 2014Q4 | N72: 2015Q1 | O72: 2015Q2 | P72: 2015Q3 | Q72: 2015Q4 | R72: 2016Q1 | S72: 2016Q2 | T72: 2016Q3 | U72: 2016Q4 | V72: 2017Q1 | W72: 2017Q2 | X72: 2017Q3 | Y72: 2017Q4 | Z72: 2018Q1 | AA72: 2018Q2 | AB72: 2018Q3 | AC72: 2018Q4 | AD72: 2019Q1 | AE72: 2019Q2 | AF72: 2019Q3 | AG72: 2019Q4 | AH72: 2020Q1 | AI72: 2020Q2 | AJ72: 2020Q3 | AK72: 2020Q4
A73: Bass Coast (S) | B73: 43 | C73: 44 | D73: 45 | E73: 46 | F73: 42 | G73: 44 | H73: 35 | I73: 45 | J73: 46 | K73: 49 | L73: 47 | M73: 46 | N73: 46 | O73: 46 | P73: 47 | Q73: 47 | R73: 46 | S73: 48 | T73: 47 | U73: 47 | V73: 48 | W73: 51 | X73: 52 | Y73: 54 | Z73: 50 | AA73: 54 | AB73: 54 | AC73: 55 | AD73: 55 | AE73: 56 | AF73: 56 | AG73: 57 | AH73: 55 | AI73: 56 | AJ73: 55 | AK73: 56
A74: Bayside (C) | B74: 738 | C74: 748 | D74: 745 | E74: 744 | F74: 682 | G74: 696 | H74: 716 | I74: 693 | J74: 699 | K74: 720 | L74: 724 | M74: 714 | N74: 682 | O74: 721 | P74: 719 | Q74: 710 | R74: 686 | S74: 724 | T74: 733 | U74: 720 | V74: 714 | W74: 728 | X74: 736 | Y74: 727 | Z74: 696 | AA74: 709 | AB74: 720 | AC74: 710 | AD74: 697 | AE74: 705 | AF74: 714 | AG74: 711 | AH74: 697 | AI74: 678 | AJ74: 687 | AK74: 681
A75: Boroondara (C) | B75: 1349 | C75: 1345 | D75: 1345 | E75: 1345 | F75: 1252 | G75: 1299 | H75: 1315 | I75: 1308 | J75: 1283 | K75: 1327 | L75: 1329 | M75: 1329 | N75: 1272 | O75: 1351 | P75: 1342 | Q75: 1338 | R75: 1288 | S75: 1346 | T75: 1367 | U75: 1355 | V75: 1353 | W75: 1380 | X75: 1390 | Y75: 1380 | Z75: 1338 | AA75: 1372 | AB75: 1374 | AC75: 1384 | AD75: 1357 | AE75: 1393 | AF75: 1393 | AG75: 1384 | AH75: 1359 | AI75: 1362 | AJ75: 1341 | AK75: 1330
A76: Cardinia (S) | B76: 95 | C76: 97 | D76: 97 | E76: 95 | F76: 93 | G76: 93 | H76: 95 | I76: 95 | J76: 95 | K76: 97 | L76: 100 | M76: 100 | N76: 93 | O76: 100 | P76: 99 | Q76: 97 | R76: 95 | S76: 95 | T76: 95 | U76: 96 | V76: 91 | W76: 95 | X76: 94 | Y76: 92 | Z76: 87 | AA76: 90 | AB76: 89 | AC76: 88 | AD76: 85 | AE76: 87 | AF76: 88 | AG76: 87 | AH76: 86 | AI76: 86 | AJ76: 85 | AK76: 84
A77: Casey (C) | B77: 139 | C77: 139 | D77: 139 | E77: 138 | F77: 120 | G77: 134 | H77: 138 | I77: 135 | J77: 134 | K77: 139 | L77: 141 | M77: 138 | N77: 132 | O77: 137 | P77: 134 | Q77: 130 | R77: 124 | S77: 135 | T77: 136 | U77: 135 | V77: 134 | W77: 136 | X77: 137 | Y77: 135 | Z77: 132 | AA77: 134 | AB77: 141 | AC77: 142 | AD77: 137 | AE77: 137 | AF77: 143 | AG77: 144 | AH77: 140 | AI77: 138 | AJ77: 139 | AK77: 137
A78: Frankston (C) | B78: 0 | C78: 0 | D78: 0 | E78: 0 | F78: 1 | G78: 1 | H78: 1 | I78: 1 | J78: 1 | K78: 1 | L78: 1 | M78: 1 | N78: 1 | O78: 1 | P78: 1 | Q78: 1 | R78: 1 | S78: 1 | T78: 1 | U78: 1 | V78: 1 | W78: 1 | X78: 1 | Y78: 0 | Z78: 0 | AA78: 0 | AB78: 0 | AC78: 0 | AD78: 0 | AE78: 0 | AF78: 0 | AG78: 0 | AH78: 0 | AI78: 0 | AJ78: 0 | AK78: 0
A79: Glen Eira (C) | B79: 951 | C79: 951 | D79: 950 | E79: 946 | F79: 871 | G79: 906 | H79: 925 | I79: 933 | J79: 899 | K79: 939 | L79: 938 | M79: 928 | N79: 875 | O79: 949 | P79: 933 | Q79: 942 | R79: 899 | S79: 952 | T79: 959 | U79: 946 | V79: 942 | W79: 975 | X79: 988 | Y79: 986 | Z79: 945 | AA79: 977 | AB79: 984 | AC79: 982 | AD79: 940 | AE79: 967 | AF79: 961 | AG79: 960 | AH79: 926 | AI79: 930 | AJ79: 937 | AK79: 935
A80: Greater Dandenong (C) | B80: 1253 | C80: 1269 | D80: 1264 | E80: 1242 | F80: 1224 | G80: 1267 | H80: 1267 | I80: 1256 | J80: 1239 | K80: 1265 | L80: 1265 | M80: 1260 | N80: 1207 | O80: 1279 | P80: 1281 | Q80: 1280 | R80: 1247 | S80: 1268 | T80: 1276 | U80: 1251 | V80: 1243 | W80: 1262 | X80: 1280 | Y80: 1214 | Z80: 1161 | AA80: 1196 | AB80: 1208 | AC80: 1211 | AD80: 1184 | AE80: 1206 | AF80: 1216 | AG80: 1203 | AH80: 1171 | AI80: 1181 | AJ80: 1175 | AK80: 1170
A81: Kingston (C) | B81: 1168 | C81: 1206 | D81: 1196 | E81: 1188 | F81: 1095 | G81: 1159 | H81: 1187 | I81: 1172 | J81: 1141 | K81: 1187 | L81: 1203 | M81: 1197 | N81: 1119 | O81: 1205 | P81: 1193 | Q81: 1191 | R81: 1148 | S81: 1202 | T81: 1201 | U81: 1197 | V81: 1159 | W81: 1197 | X81: 1207 | Y81: 1171 | Z81: 1107 | AA81: 1146 | AB81: 1155 | AC81: 1157 | AD81: 1102 | AE81: 1141 | AF81: 1149 | AG81: 1155 | AH81: 1114 | AI81: 1139 | AJ81: 1134 | AK81: 1121
A82: Knox (C) | B82: 1079 | C82: 1101 | D82: 1106 | E82: 1089 | F82: 1012 | G82: 1064 | H82: 1102 | I82: 1067 | J82: 1063 | K82: 1083 | L82: 1098 | M82: 1090 | N82: 1038 | O82: 1105 | P82: 1108 | Q82: 1088 | R82: 1020 | S82: 1082 | T82: 1098 | U82: 1097 | V82: 1052 | W82: 1098 | X82: 1097 | Y82: 1073 | Z82: 1015 | AA82: 1063 | AB82: 1078 | AC82: 1056 | AD82: 1012 | AE82: 1045 | AF82: 1059 | AG82: 1050 | AH82: 1013 | AI82: 1027 | AJ82: 1013 | AK82: 1005
A83: Manningham (C) | B83: 533 | C83: 534 | D83: 530 | E83: 522 | F83: 486 | G83: 495 | H83: 502 | I83: 502 | J83: 505 | K83: 518 | L83: 518 | M83: 514 | N83: 503 | O83: 528 | P83: 532 | Q83: 518 | R83: 509 | S83: 518 | T83: 530 | U83: 526 | V83: 525 | W83: 536 | X83: 534 | Y83: 533 | Z83: 523 | AA83: 530 | AB83: 538 | AC83: 536 | AD83: 531 | AE83: 533 | AF83: 539 | AG83: 537 | AH83: 530 | AI83: 531 | AJ83: 528 | AK83: 522
A84: Maroondah (C) | B84: 578 | C84: 581 | D84: 577 | E84: 573 | F84: 536 | G84: 557 | H84: 560 | I84: 552 | J84: 538 | K84: 553 | L84: 557 | M84: 551 | N84: 527 | O84: 558 | P84: 559 | Q84: 556 | R84: 529 | S84: 559 | T84: 561 | U84: 558 | V84: 536 | W84: 561 | X84: 563 | Y84: 564 | Z84: 534 | AA84: 558 | AB84: 560 | AC84: 557 | AD84: 540 | AE84: 548 | AF84: 557 | AG84: 547 | AH84: 533 | AI84: 532 | AJ84: 537 | AK84: 522
A85: Melbourne (C) | B85: 150 | C85: 152 | D85: 153 | E85: 155 | F85: 150 | G85: 158 | H85: 159 | I85: 159 | J85: 162 | K85: 170 | L85: 167 | M85: 172 | N85: 169 | O85: 171 | P85: 170 | Q85: 173 | R85: 171 | S85: 181 | T85: 175 | U85: 186 | V85: 187 | W85: 183 | X85: 187 | Y85: 172 | Z85: 166 | AA85: 175 | AB85: 178 | AC85: 181 | AD85: 174 | AE85: 178 | AF85: 179 | AG85: 182 | AH85: 178 | AI85: 180 | AJ85: 176 | AK85: 177
A86: Monash (C) | B86: 1258 | C86: 1274 | D86: 1281 | E86: 1267 | F86: 1178 | G86: 1239 | H86: 1262 | I86: 1251 | J86: 1205 | K86: 1249 | L86: 1259 | M86: 1246 | N86: 1196 | O86: 1256 | P86: 1250 | Q86: 1253 | R86: 1189 | S86: 1237 | T86: 1267 | U86: 1258 | V86: 1228 | W86: 1269 | X86: 1263 | Y86: 1236 | Z86: 1156 | AA86: 1206 | AB86: 1221 | AC86: 1217 | AD86: 1160 | AE86: 1202 | AF86: 1210 | AG86: 1211 | AH86: 1156 | AI86: 1181 | AJ86: 1176 | AK86: 1164
A87: Port Phillip (C) | B87: 1495 | C87: 1503 | D87: 1511 | E87: 1499 | F87: 1407 | G87: 1417 | H87: 1472 | I87: 1467 | J87: 1448 | K87: 1499 | L87: 1491 | M87: 1476 | N87: 1433 | O87: 1506 | P87: 1487 | Q87: 1493 | R87: 1439 | S87: 1500 | T87: 1480 | U87: 1476 | V87: 1471 | W87: 1500 | X87: 1495 | Y87: 1477 | Z87: 1428 | AA87: 1465 | AB87: 1459 | AC87: 1462 | AD87: 1435 | AE87: 1454 | AF87: 1453 | AG87: 1442 | AH87: 1416 | AI87: 1418 | AJ87: 1408 | AK87: 1395
A88: South Gippsland (S) | B88: 36 | C88: 39 | D88: 40 | E88: 39 | F88: 38 | G88: 39 | H88: 29 | I88: 42 | J88: 43 | K88: 45 | L88: 46 | M88: 46 | N88: 43 | O88: 45 | P88: 44 | Q88: 44 | R88: 42 | S88: 44 | T88: 44 | U88: 44 | V88: 43 | W88: 44 | X88: 44 | Y88: 45 | Z88: 42 | AA88: 44 | AB88: 46 | AC88: 47 | AD88: 44 | AE88: 45 | AF88: 46 | AG88: 47 | AH88: 48 | AI88: 48 | AJ88: 48 | AK88: 48
A89: Stonnington (C) | B89: 1236 | C89: 1257 | D89: 1252 | E89: 1238 | F89: 1140 | G89: 1186 | H89: 1228 | I89: 1213 | J89: 1206 | K89: 1224 | L89: 1229 | M89: 1214 | N89: 1172 | O89: 1252 | P89: 1245 | Q89: 1251 | R89: 1207 | S89: 1266 | T89: 1282 | U89: 1281 | V89: 1264 | W89: 1287 | X89: 1318 | Y89: 1287 | Z89: 1234 | AA89: 1277 | AB89: 1309 | AC89: 1305 | AD89: 1264 | AE89: 1292 | AF89: 1294 | AG89: 1293 | AH89: 1267 | AI89: 1281 | AJ89: 1263 | AK89: 1256
A90: Whitehorse (C) | B90: 1105 | C90: 1112 | D90: 1111 | E90: 1103 | F90: 1000 | G90: 1064 | H90: 1088 | I90: 1086 | J90: 1067 | K90: 1106 | L90: 1123 | M90: 1114 | N90: 1070 | O90: 1118 | P90: 1118 | Q90: 1108 | R90: 1053 | S90: 1124 | T90: 1131 | U90: 1122 | V90: 1098 | W90: 1138 | X90: 1143 | Y90: 1133 | Z90: 1072 | AA90: 1123 | AB90: 1127 | AC90: 1113 | AD90: 1091 | AE90: 1116 | AF90: 1125 | AG90: 1126 | AH90: 1109 | AI90: 1102 | AJ90: 1100 | AK90: 1088
A91: Yarra Ranges (S) | B91: 859 | C91: 871 | D91: 864 | E91: 861 | F91: 806 | G91: 846 | H91: 848 | I91: 849 | J91: 823 | K91: 855 | L91: 861 | M91: 848 | N91: 812 | O91: 862 | P91: 857 | Q91: 849 | R91: 801 | S91: 851 | T91: 850 | U91: 850 | V91: 819 | W91: 851 | X91: 855 | Y91: 844 | Z91: 813 | AA91: 846 | AB91: 856 | AC91: 850 | AD91: 811 | AE91: 834 | AF91: 838 | AG91: 837 | AH91: 814 | AI91: 811 | AJ91: 798 | AK91: 799
A92: Total | B92: 14065 | C92: 14223 | D92: 14206 | E92: 14090 | F92: 13133 | G92: 13664 | H92: 13929 | I92: 13826 | J92: 13597 | K92: 14026 | L92: 14097 | M92: 13984 | N92: 13390 | O92: 14190 | P92: 14119 | Q92: 14069 | R92: 13494 | S92: 14133 | T92: 14233 | U92: 14146 | V92: 13908 | W92: 14292 | X92: 14384 | Y92: 14123 | Z92: 13499 | AA92: 13965 | AB92: 14097 | AC92: 14053 | AD92: 13619 | AE92: 13939 | AF92: 14020 | AG92: 13973 | AH92: 13612 | AI92: 13681 | AJ92: 13600 | AK92: 13490
A94: Commercial New customers | B94: 2012Q1 | C94: 2012Q2 | D94: 2012Q3 | E94: 2012Q4 | F94: 2013Q1 | G94: 2013Q2 | H94: 2013Q3 | I94: 2013Q4 | J94: 2014Q1 | K94: 2014Q2 | L94: 2014Q3 | M94: 2014Q4 | N94: 2015Q1 | O94: 2015Q2 | P94: 2015Q3 | Q94: 2015Q4 | R94: 2016Q1 | S94: 2016Q2 | T94: 2016Q3 | U94: 2016Q4 | V94: 2017Q1 | W94: 2017Q2 | X94: 2017Q3 | Y94: 2017Q4 | Z94: 2018Q1 | AA94: 2018Q2 | AB94: 2018Q3 | AC94: 2018Q4 | AD94: 2019Q1 | AE94: 2019Q2 | AF94: 2019Q3 | AG94: 2019Q4 | AH94: 2020Q1 | AI94: 2020Q2 | AJ94: 2020Q3 | AK94: 2020Q4
A95: Bass Coast (S) | C95: 1 | D95: 1 | E95: 1 | F95: 0 | G95: 2 | H95: 0 | I95: 10 | J95: 3 | K95: 3 | L95: 0 | M95: 0 | N95: 2 | O95: 2 | P95: 1 | Q95: 1 | R95: 0 | S95: 2 | T95: 0 | U95: 0 | V95: 2 | W95: 4 | X95: 1 | Y95: 2 | Z95: 0 | AA95: 4 | AB95: 2 | AC95: 1 | AD95: 2 | AE95: 2 | AF95: 0 | AG95: 1 | AH95: 0 | AI95: 3 | AJ95: 1 | AK95: 2
A96: Bayside (C) | C96: 14 | D96: 7 | E96: 8 | F96: 9 | G96: 42 | H96: 42 | I96: 22 | J96: 42 | K96: 39 | L96: 19 | M96: 15 | N96: 16 | O96: 52 | P96: 18 | Q96: 20 | R96: 31 | S96: 54 | T96: 24 | U96: 14 | V96: 24 | W96: 26 | X96: 14 | Y96: 7 | Z96: 8 | AA96: 29 | AB96: 16 | AC96: 5 | AD96: 11 | AE96: 19 | AF96: 15 | AG96: 6 | AH96: 7 | AI96: 13 | AJ96: 26 | AK96: 20
A97: Boroondara (C) | C97: 17 | D97: 14 | E97: 13 | F97: 15 | G97: 74 | H97: 59 | I97: 48 | J97: 45 | K97: 79 | L97: 29 | M97: 34 | N97: 29 | O97: 102 | P97: 38 | Q97: 53 | R97: 45 | S97: 86 | T97: 50 | U97: 32 | V97: 49 | W97: 48 | X97: 28 | Y97: 17 | Z97: 14 | AA97: 52 | AB97: 22 | AC97: 32 | AD97: 29 | AE97: 52 | AF97: 18 | AG97: 12 | AH97: 16 | AI97: 33 | AJ97: 21 | AK97: 27
A98: Cardinia (S) | C98: 2 | D98: 1 | E98: 0 | F98: 1 | G98: 3 | H98: 3 | I98: 1 | J98: 3 | K98: 5 | L98: 4 | M98: 0 | N98: 0 | O98: 7 | P98: 0 | Q98: 1 | R98: 2 | S98: 3 | T98: 1 | U98: 3 | V98: 0 | W98: 4 | X98: 2 | Y98: 0 | Z98: 1 | AA98: 5 | AB98: 1 | AC98: 0 | AD98: 0 | AE98: 3 | AF98: 1 | AG98: 0 | AH98: 0 | AI98: 1 | AJ98: 0 | AK98: 2
A99: Casey (C) | C99: 3 | D99: 2 | E99: 1 | F99: 2 | G99: 16 | H99: 9 | I99: 5 | J99: 5 | K99: 7 | L99: 4 | M99: 0 | N99: 1 | O99: 8 | P99: 1 | Q99: 2 | R99: 2 | S99: 12 | T99: 4 | U99: 2 | V99: 4 | W99: 6 | X99: 2 | Y99: 1 | Z99: 1 | AA99: 4 | AB99: 8 | AC99: 3 | AD99: 1 | AE99: 6 | AF99: 6 | AG99: 2 | AH99: 1 | AI99: 3 | AJ99: 4 | AK99: 1
A100: Frankston (C) | C100: 0 | D100: 0 | E100: 0 | F100: 1 | G100: 0 | H100: 0 | I100: 0 | J100: 0 | K100: 0 | L100: 0 | M100: 0 | N100: 0 | O100: 0 | P100: 0 | Q100: 0 | R100: 0 | S100: 0 | T100: 0 | U100: 0 | V100: 0 | W100: 0 | X100: 0 | Y100: 0 | Z100: 0 | AA100: 0 | AB100: 0 | AC100: 0 | AD100: 0 | AE100: 0 | AF100: 0 | AG100: 0 | AH100: 0 | AI100: 0 | AJ100: 0 | AK100: 0
A101: Glen Eira (C) | C101: 14 | D101: 13 | E101: 10 | F101: 12 | G101: 67 | H101: 46 | I101: 34 | J101: 26 | K101: 63 | L101: 30 | M101: 21 | N101: 18 | O101: 93 | P101: 24 | Q101: 42 | R101: 29 | S101: 75 | T101: 34 | U101: 24 | V101: 37 | W101: 44 | X101: 23 | Y101: 15 | Z101: 13 | AA101: 48 | AB101: 20 | AC101: 12 | AD101: 8 | AE101: 43 | AF101: 7 | AG101: 16 | AH101: 10 | AI101: 33 | AJ101: 27 | AK101: 17
A102: Greater Dandenong (C) | C102: 34 | D102: 14 | E102: 13 | F102: 71 | G102: 72 | H102: 39 | I102: 37 | J102: 47 | K102: 65 | L102: 42 | M102: 38 | N102: 32 | O102: 96 | P102: 39 | Q102: 42 | R102: 39 | S102: 62 | T102: 44 | U102: 26 | V102: 42 | W102: 37 | X102: 30 | Y102: 17 | Z102: 18 | AA102: 58 | AB102: 30 | AC102: 24 | AD102: 21 | AE102: 47 | AF102: 23 | AG102: 11 | AH102: 24 | AI102: 34 | AJ102: 23 | AK102: 25
A103: Kingston (C) | C103: 52 | D103: 10 | E103: 13 | F103: 31 | G103: 87 | H103: 53 | I103: 36 | J103: 42 | K103: 70 | L103: 42 | M103: 30 | N103: 28 | O103: 117 | P103: 34 | Q103: 38 | R103: 47 | S103: 98 | T103: 33 | U103: 32 | V103: 34 | W103: 64 | X103: 30 | Y103: 16 | Z103: 21 | AA103: 64 | AB103: 30 | AC103: 24 | AD103: 17 | AE103: 58 | AF103: 26 | AG103: 26 | AH103: 9 | AI103: 50 | AJ103: 24 | AK103: 19
A104: Knox (C) | C104: 33 | D104: 19 | E104: 15 | F104: 22 | G104: 86 | H104: 49 | I104: 20 | J104: 45 | K104: 56 | L104: 33 | M104: 21 | N104: 27 | O104: 83 | P104: 24 | Q104: 17 | R104: 20 | S104: 83 | T104: 35 | U104: 21 | V104: 12 | W104: 54 | X104: 22 | Y104: 18 | Z104: 14 | AA104: 62 | AB104: 25 | AC104: 6 | AD104: 9 | AE104: 52 | AF104: 22 | AG104: 11 | AH104: 6 | AI104: 38 | AJ104: 19 | AK104: 27
A105: Manningham (C) | C105: 6 | D105: 3 | E105: 2 | F105: 5 | G105: 25 | H105: 22 | I105: 16 | J105: 20 | K105: 24 | L105: 9 | M105: 8 | N105: 11 | O105: 28 | P105: 13 | Q105: 9 | R105: 12 | S105: 22 | T105: 20 | U105: 6 | V105: 12 | W105: 19 | X105: 6 | Y105: 10 | Z105: 11 | AA105: 20 | AB105: 10 | AC105: 5 | AD105: 10 | AE105: 13 | AF105: 9 | AG105: 4 | AH105: 8 | AI105: 13 | AJ105: 11 | AK105: 8
A106: Maroondah (C) | C106: 8 | D106: 3 | E106: 8 | F106: 8 | G106: 31 | H106: 14 | I106: 14 | J106: 17 | K106: 28 | L106: 18 | M106: 12 | N106: 10 | O106: 37 | P106: 12 | Q106: 17 | R106: 14 | S106: 38 | T106: 22 | U106: 13 | V106: 12 | W106: 30 | X106: 12 | Y106: 10 | Z106: 0 | AA106: 27 | AB106: 9 | AC106: 10 | AD106: 8 | AE106: 23 | AF106: 16 | AG106: 5 | AH106: 8 | AI106: 19 | AJ106: 15 | AK106: 4
A107: Melbourne (C) | C107: 2 | D107: 1 | E107: 2 | F107: 19 | G107: 11 | H107: 3 | I107: 5 | J107: 7 | K107: 13 | L107: 4 | M107: 7 | N107: 5 | O107: 6 | P107: 3 | Q107: 8 | R107: 4 | S107: 10 | T107: 2 | U107: 13 | V107: 5 | W107: 1 | X107: 4 | Y107: 2 | Z107: 1 | AA107: 9 | AB107: 4 | AC107: 4 | AD107: 1 | AE107: 7 | AF107: 3 | AG107: 3 | AH107: 1 | AI107: 4 | AJ107: 1 | AK107: 5
A108: Monash (C) | C108: 34 | D108: 23 | E108: 16 | F108: 37 | G108: 89 | H108: 58 | I108: 32 | J108: 34 | K108: 74 | L108: 40 | M108: 27 | N108: 28 | O108: 83 | P108: 40 | Q108: 42 | R108: 31 | S108: 89 | T108: 61 | U108: 30 | V108: 34 | W108: 57 | X108: 23 | Y108: 26 | Z108: 9 | AA108: 76 | AB108: 31 | AC108: 18 | AD108: 12 | AE108: 60 | AF108: 28 | AG108: 17 | AH108: 9 | AI108: 58 | AJ108: 27 | AK108: 30
A109: Port Phillip (C) | C109: 26 | D109: 24 | E109: 11 | F109: 29 | G109: 77 | H109: 97 | I109: 65 | J109: 57 | K109: 83 | L109: 44 | M109: 49 | N109: 46 | O109: 112 | P109: 47 | Q109: 68 | R109: 53 | S109: 99 | T109: 45 | U109: 42 | V109: 51 | W109: 55 | X109: 34 | Y109: 32 | Z109: 21 | AA109: 60 | AB109: 33 | AC109: 26 | AD109: 21 | AE109: 48 | AF109: 27 | AG109: 17 | AH109: 27 | AI109: 39 | AJ109: 30 | AK109: 23
A110: South Gippsland (S) | C110: 3 | D110: 1 | E110: 0 | F110: 1 | G110: 3 | H110: 0 | I110: 13 | J110: 3 | K110: 3 | L110: 1 | M110: 0 | N110: 0 | O110: 2 | P110: 0 | Q110: 0 | R110: 0 | S110: 2 | T110: 0 | U110: 0 | V110: 1 | W110: 1 | X110: 0 | Y110: 2 | Z110: 0 | AA110: 3 | AB110: 2 | AC110: 1 | AD110: 0 | AE110: 2 | AF110: 2 | AG110: 1 | AH110: 1 | AI110: 1 | AJ110: 2 | AK110: 2
A111: Stonnington (C) | C111: 26 | D111: 11 | E111: 6 | F111: 20 | G111: 71 | H111: 72 | I111: 36 | J111: 47 | K111: 63 | L111: 51 | M111: 42 | N111: 57 | O111: 114 | P111: 53 | Q111: 59 | R111: 53 | S111: 89 | T111: 47 | U111: 35 | V111: 36 | W111: 47 | X111: 52 | Y111: 15 | Z111: 20 | AA111: 60 | AB111: 50 | AC111: 25 | AD111: 22 | AE111: 64 | AF111: 21 | AG111: 19 | AH111: 23 | AI111: 41 | AJ111: 25 | AK111: 26
A112: Whitehorse (C) | C112: 24 | D112: 15 | E112: 9 | F112: 17 | G112: 90 | H112: 56 | I112: 46 | J112: 37 | K112: 69 | L112: 38 | M112: 26 | N112: 26 | O112: 66 | P112: 32 | Q112: 32 | R112: 21 | S112: 88 | T112: 36 | U112: 24 | V112: 37 | W112: 56 | X112: 26 | Y112: 21 | Z112: 11 | AA112: 67 | AB112: 17 | AC112: 16 | AD112: 29 | AE112: 40 | AF112: 27 | AG112: 19 | AH112: 18 | AI112: 24 | AJ112: 24 | AK112: 26
A113: Yarra Ranges (S) | C113: 17 | D113: 3 | E113: 10 | F113: 17 | G113: 56 | H113: 22 | I113: 22 | J113: 19 | K113: 47 | L113: 27 | M113: 17 | N113: 26 | O113: 71 | P113: 15 | Q113: 19 | R113: 23 | S113: 64 | T113: 16 | U113: 18 | V113: 11 | W113: 41 | X113: 15 | Y113: 14 | Z113: 9 | AA113: 44 | AB113: 21 | AC113: 8 | AD113: 10 | AE113: 37 | AF113: 13 | AG113: 8 | AH113: 7 | AI113: 18 | AJ113: 14 | AK113: 22
A114: Total | C114: 316 | D114: 165 | E114: 138 | F114: 317 | G114: 902 | H114: 644 | I114: 462 | J114: 499 | K114: 791 | L114: 435 | M114: 347 | N114: 362 | O114: 1079 | P114: 394 | Q114: 470 | R114: 426 | S114: 976 | T114: 474 | U114: 335 | V114: 403 | W114: 594 | X114: 324 | Y114: 225 | Z114: 172 | AA114: 692 | AB114: 331 | AC114: 220 | AD114: 211 | AE114: 576 | AF114: 264 | AG114: 178 | AH114: 175 | AI114: 425 | AJ114: 294 | AK114: 286
A116: Commercial disconnections | B116: 2012Q1 | C116: 2012Q2 | D116: 2012Q3 | E116: 2012Q4 | F116: 2013Q1 | G116: 2013Q2 | H116: 2013Q3 | I116: 2013Q4 | J116: 2014Q1 | K116: 2014Q2 | L116: 2014Q3 | M116: 2014Q4 | N116: 2015Q1 | O116: 2015Q2 | P116: 2015Q3 | Q116: 2015Q4 | R116: 2016Q1 | S116: 2016Q2 | T116: 2016Q3 | U116: 2016Q4 | V116: 2017Q1 | W116: 2017Q2 | X116: 2017Q3 | Y116: 2017Q4 | Z116: 2018Q1 | AA116: 2018Q2 | AB116: 2018Q3 | AC116: 2018Q4 | AD116: 2019Q1 | AE116: 2019Q2 | AF116: 2019Q3 | AG116: 2019Q4 | AH116: 2020Q1 | AI116: 2020Q2 | AJ116: 2020Q3 | AK116: 2020Q4
A117: Bass Coast (S) | C117: 0 | D117: 0 | E117: 0 | F117: 4 | G117: 0 | H117: 9 | I117: 0 | J117: 2 | K117: 0 | L117: 2 | M117: 1 | N117: 2 | O117: 2 | P117: 0 | Q117: 1 | R117: 1 | S117: 0 | T117: 1 | U117: 0 | V117: 1 | W117: 1 | X117: 0 | Y117: 0 | Z117: 4 | AA117: 0 | AB117: 2 | AC117: 0 | AD117: 2 | AE117: 1 | AF117: 0 | AG117: 0 | AH117: 2 | AI117: 2 | AJ117: 2 | AK117: 1
A118: Bayside (C) | C118: 4 | D118: 10 | E118: 9 | F118: 71 | G118: 28 | H118: 22 | I118: 45 | J118: 36 | K118: 18 | L118: 15 | M118: 25 | N118: 48 | O118: 13 | P118: 20 | Q118: 29 | R118: 55 | S118: 16 | T118: 15 | U118: 27 | V118: 30 | W118: 12 | X118: 6 | Y118: 16 | Z118: 39 | AA118: 16 | AB118: 5 | AC118: 15 | AD118: 24 | AE118: 11 | AF118: 6 | AG118: 9 | AH118: 21 | AI118: 32 | AJ118: 17 | AK118: 26
A119: Boroondara (C) | C119: 21 | D119: 14 | E119: 13 | F119: 108 | G119: 27 | H119: 43 | I119: 55 | J119: 70 | K119: 35 | L119: 27 | M119: 34 | N119: 86 | O119: 23 | P119: 47 | Q119: 57 | R119: 95 | S119: 28 | T119: 29 | U119: 44 | V119: 51 | W119: 21 | X119: 18 | Y119: 27 | Z119: 56 | AA119: 18 | AB119: 20 | AC119: 22 | AD119: 56 | AE119: 16 | AF119: 18 | AG119: 21 | AH119: 41 | AI119: 30 | AJ119: 42 | AK119: 38
A120: Cardinia (S) | C120: 0 | D120: 1 | E120: 2 | F120: 3 | G120: 3 | H120: 1 | I120: 1 | J120: 3 | K120: 3 | L120: 1 | M120: 0 | N120: 7 | O120: 0 | P120: 1 | Q120: 3 | R120: 4 | S120: 3 | T120: 1 | U120: 2 | V120: 5 | W120: 0 | X120: 3 | Y120: 2 | Z120: 6 | AA120: 2 | AB120: 2 | AC120: 1 | AD120: 3 | AE120: 1 | AF120: 0 | AG120: 1 | AH120: 1 | AI120: 1 | AJ120: 1 | AK120: 3
A121: Casey (C) | C121: 3 | D121: 2 | E121: 2 | F121: 20 | G121: 2 | H121: 5 | I121: 8 | J121: 6 | K121: 2 | L121: 2 | M121: 3 | N121: 7 | O121: 3 | P121: 4 | Q121: 6 | R121: 8 | S121: 1 | T121: 3 | U121: 3 | V121: 5 | W121: 4 | X121: 1 | Y121: 3 | Z121: 4 | AA121: 2 | AB121: 1 | AC121: 2 | AD121: 6 | AE121: 6 | AF121: 0 | AG121: 1 | AH121: 5 | AI121: 5 | AJ121: 3 | AK121: 3
A122: Frankston (C) | C122: 0 | D122: 0 | E122: 0 | F122: 0 | G122: 0 | H122: 0 | I122: 0 | J122: 0 | K122: 0 | L122: 0 | M122: 0 | N122: 0 | O122: 0 | P122: 0 | Q122: 0 | R122: 0 | S122: 0 | T122: 0 | U122: 0 | V122: 0 | W122: 0 | X122: 0 | Y122: 1 | Z122: 0 | AA122: 0 | AB122: 0 | AC122: 0 | AD122: 0 | AE122: 0 | AF122: 0 | AG122: 0 | AH122: 0 | AI122: 0 | AJ122: 0 | AK122: 0
A123: Glen Eira (C) | C123: 14 | D123: 14 | E123: 14 | F123: 87 | G123: 32 | H123: 27 | I123: 26 | J123: 60 | K123: 23 | L123: 31 | M123: 31 | N123: 71 | O123: 19 | P123: 40 | Q123: 33 | R123: 72 | S123: 22 | T123: 27 | U123: 37 | V123: 41 | W123: 11 | X123: 10 | Y123: 17 | Z123: 54 | AA123: 16 | AB123: 13 | AC123: 14 | AD123: 50 | AE123: 16 | AF123: 13 | AG123: 17 | AH123: 44 | AI123: 29 | AJ123: 20 | AK123: 19
A124: Greater Dandenong (C) | C124: 18 | D124: 19 | E124: 35 | F124: 89 | G124: 29 | H124: 39 | I124: 48 | J124: 64 | K124: 39 | L124: 42 | M124: 43 | N124: 85 | O124: 24 | P124: 37 | Q124: 43 | R124: 72 | S124: 41 | T124: 36 | U124: 51 | V124: 50 | W124: 18 | X124: 12 | Y124: 83 | Z124: 71 | AA124: 23 | AB124: 18 | AC124: 21 | AD124: 48 | AE124: 25 | AF124: 13 | AG124: 24 | AH124: 56 | AI124: 24 | AJ124: 29 | AK124: 30
A125: Kingston (C) | C125: 14 | D125: 20 | E125: 21 | F125: 124 | G125: 23 | H125: 25 | I125: 51 | J125: 73 | K125: 24 | L125: 26 | M125: 36 | N125: 106 | O125: 31 | P125: 46 | Q125: 40 | R125: 90 | S125: 44 | T125: 34 | U125: 36 | V125: 72 | W125: 26 | X125: 20 | Y125: 52 | Z125: 85 | AA125: 25 | AB125: 21 | AC125: 22 | AD125: 72 | AE125: 19 | AF125: 18 | AG125: 20 | AH125: 50 | AI125: 25 | AJ125: 29 | AK125: 32
A126: Knox (C) | C126: 11 | D126: 14 | E126: 32 | F126: 99 | G126: 34 | H126: 11 | I126: 55 | J126: 49 | K126: 36 | L126: 18 | M126: 29 | N126: 79 | O126: 16 | P126: 21 | Q126: 37 | R126: 88 | S126: 21 | T126: 19 | U126: 22 | V126: 57 | W126: 8 | X126: 23 | Y126: 42 | Z126: 72 | AA126: 14 | AB126: 10 | AC126: 28 | AD126: 53 | AE126: 19 | AF126: 8 | AG126: 20 | AH126: 43 | AI126: 24 | AJ126: 33 | AK126: 35
A127: Manningham (C) | C127: 5 | D127: 7 | E127: 10 | F127: 41 | G127: 16 | H127: 15 | I127: 16 | J127: 17 | K127: 11 | L127: 9 | M127: 12 | N127: 22 | O127: 3 | P127: 9 | Q127: 23 | R127: 21 | S127: 13 | T127: 8 | U127: 10 | V127: 13 | W127: 8 | X127: 8 | Y127: 11 | Z127: 21 | AA127: 13 | AB127: 2 | AC127: 7 | AD127: 15 | AE127: 11 | AF127: 3 | AG127: 6 | AH127: 15 | AI127: 12 | AJ127: 14 | AK127: 14
A128: Maroondah (C) | C128: 5 | D128: 7 | E128: 12 | F128: 45 | G128: 10 | H128: 11 | I128: 22 | J128: 31 | K128: 13 | L128: 14 | M128: 18 | N128: 34 | O128: 6 | P128: 11 | Q128: 20 | R128: 41 | S128: 8 | T128: 20 | U128: 16 | V128: 34 | W128: 5 | X128: 10 | Y128: 9 | Z128: 30 | AA128: 3 | AB128: 7 | AC128: 13 | AD128: 25 | AE128: 15 | AF128: 7 | AG128: 15 | AH128: 22 | AI128: 20 | AJ128: 10 | AK128: 19
A129: Melbourne (C) | C129: 0 | D129: 0 | E129: 0 | F129: 24 | G129: 3 | H129: 2 | I129: 5 | J129: 4 | K129: 5 | L129: 7 | M129: 2 | N129: 8 | O129: 4 | P129: 4 | Q129: 5 | R129: 6 | S129: 0 | T129: 8 | U129: 2 | V129: 4 | W129: 5 | X129: 0 | Y129: 17 | Z129: 7 | AA129: 0 | AB129: 1 | AC129: 1 | AD129: 8 | AE129: 3 | AF129: 2 | AG129: 0 | AH129: 5 | AI129: 2 | AJ129: 5 | AK129: 4
A130: Monash (C) | C130: 18 | D130: 16 | E130: 30 | F130: 126 | G130: 28 | H130: 35 | I130: 43 | J130: 80 | K130: 30 | L130: 30 | M130: 40 | N130: 78 | O130: 23 | P130: 46 | Q130: 39 | R130: 95 | S130: 41 | T130: 31 | U130: 39 | V130: 64 | W130: 16 | X130: 29 | Y130: 53 | Z130: 89 | AA130: 26 | AB130: 16 | AC130: 22 | AD130: 69 | AE130: 18 | AF130: 20 | AG130: 16 | AH130: 64 | AI130: 33 | AJ130: 32 | AK130: 42
A131: Port Phillip (C) | C131: 18 | D131: 16 | E131: 23 | F131: 121 | G131: 67 | H131: 42 | I131: 70 | J131: 76 | K131: 32 | L131: 52 | M131: 64 | N131: 89 | O131: 39 | P131: 66 | Q131: 62 | R131: 107 | S131: 38 | T131: 65 | U131: 46 | V131: 56 | W131: 26 | X131: 39 | Y131: 50 | Z131: 70 | AA131: 23 | AB131: 39 | AC131: 23 | AD131: 48 | AE131: 29 | AF131: 28 | AG131: 28 | AH131: 53 | AI131: 37 | AJ131: 40 | AK131: 36
A132: South Gippsland (S) | C132: 0 | D132: 0 | E132: 1 | F132: 2 | G132: 2 | H132: 10 | I132: 0 | J132: 2 | K132: 1 | L132: 0 | M132: 0 | N132: 3 | O132: 0 | P132: 1 | Q132: 0 | R132: 2 | S132: 0 | T132: 0 | U132: 0 | V132: 2 | W132: 0 | X132: 0 | Y132: 1 | Z132: 3 | AA132: 1 | AB132: 0 | AC132: 0 | AD132: 3 | AE132: 1 | AF132: 1 | AG132: 0 | AH132: 0 | AI132: 1 | AJ132: 2 | AK132: 2
A133: Stonnington (C) | C133: 5 | D133: 16 | E133: 20 | F133: 118 | G133: 25 | H133: 30 | I133: 51 | J133: 54 | K133: 45 | L133: 46 | M133: 57 | N133: 99 | O133: 34 | P133: 60 | Q133: 53 | R133: 97 | S133: 30 | T133: 31 | U133: 36 | V133: 53 | W133: 24 | X133: 21 | Y133: 46 | Z133: 73 | AA133: 17 | AB133: 18 | AC133: 29 | AD133: 63 | AE133: 36 | AF133: 19 | AG133: 20 | AH133: 49 | AI133: 27 | AJ133: 43 | AK133: 33
A134: Whitehorse (C) | C134: 17 | D134: 16 | E134: 17 | F134: 120 | G134: 26 | H134: 32 | I134: 48 | J134: 56 | K134: 30 | L134: 21 | M134: 35 | N134: 70 | O134: 18 | P134: 32 | Q134: 42 | R134: 76 | S134: 17 | T134: 29 | U134: 33 | V134: 61 | W134: 16 | X134: 21 | Y134: 31 | Z134: 72 | AA134: 16 | AB134: 13 | AC134: 30 | AD134: 51 | AE134: 15 | AF134: 18 | AG134: 18 | AH134: 35 | AI134: 31 | AJ134: 26 | AK134: 38
A135: Yarra Ranges (S) | C135: 5 | D135: 10 | E135: 13 | F135: 72 | G135: 16 | H135: 20 | I135: 21 | J135: 45 | K135: 15 | L135: 21 | M135: 30 | N135: 62 | O135: 21 | P135: 20 | Q135: 27 | R135: 71 | S135: 14 | T135: 17 | U135: 18 | V135: 42 | W135: 9 | X135: 11 | Y135: 25 | Z135: 40 | AA135: 11 | AB135: 11 | AC135: 14 | AD135: 49 | AE135: 14 | AF135: 9 | AG135: 9 | AH135: 30 | AI135: 21 | AJ135: 27 | AK135: 21
A136: Total | C136: 158 | D136: 182 | E136: 254 | F136: 1274 | G136: 371 | H136: 379 | I136: 565 | J136: 728 | K136: 362 | L136: 364 | M136: 460 | N136: 956 | O136: 279 | P136: 465 | Q136: 520 | R136: 1001 | S136: 337 | T136: 374 | U136: 422 | V136: 641 | W136: 210 | X136: 232 | Y136: 486 | Z136: 796 | AA136: 226 | AB136: 199 | AC136: 264 | AD136: 645 | AE136: 256 | AF136: 183 | AG136: 225 | AH136: 536 | AI136: 356 | AJ136: 375 | AK136: 396
A138: Residential customers
A139: LGA | B139: 2012 | C139: =B139+1 -> 2013 | D139: =C139+1 -> 2014 | E139: 2015 | F139: 2016 | G139: 2017 | H139: 2018 | I139: 2019 | J139: 2020 | K139: 2021
A140: Bass Coast (S) | B140: 1494 | C140: 1780 | D140: 2033 | E140: 2266 | F140: 2498 | G140: 2726 | H140: 2971 | I140: 3298 | J140: 3548 | K140: 3653
A141: Bayside (C) | B141: 35716 | C141: 36018 | D141: 36281 | E141: 36467 | F141: 36592 | G141: 36824 | H141: 36986 | I141: 37219 | J141: 37381 | K141: 37128
A142: Boroondara (C) | B142: 61613 | C142: 62206 | D142: 62719 | E142: 62777 | F142: 62774 | G142: 62906 | H142: 63129 | I142: 63266 | J142: 63469 | K142: 62660
A143: Cardinia (S) | B143: 3962 | C143: 3985 | D143: 4035 | E143: 4038 | F143: 4066 | G143: 4099 | H143: 4130 | I143: 4148 | J143: 4170 | K143: 4164
A144: Casey (C) | B144: 12472 | C144: 12525 | D144: 12571 | E144: 12658 | F144: 12709 | G144: 12814 | H144: 12891 | I144: 12987 | J144: 13073 | K144: 13053
A145: Frankston (C) | B145: 1 | C145: 1 | D145: 1 | E145: 1 | F145: 1 | G145: 1 | H145: 1 | I145: 1 | J145: 1 | K145: 1
A146: Glen Eira (C) | B146: 49416 | C146: 49898 | D146: 50368 | E146: 50700 | F146: 50877 | G146: 51223 | H146: 51419 | I146: 51752 | J146: 52150 | K146: 51794
A147: Greater Dandenong (C) | B147: 50749 | C147: 51473 | D147: 52131 | E147: 52827 | F147: 53696 | G147: 54616 | H147: 55283 | I147: 56060 | J147: 56719 | K147: 56619
A148: Kingston (C) | B148: 49828 | C148: 50358 | D148: 50852 | E148: 51309 | F148: 51721 | G148: 52207 | H148: 52801 | I148: 53445 | J148: 53913 | K148: 53752
A149: Knox (C) | B149: 59059 | C149: 59590 | D149: 60045 | E149: 60488 | F149: 61002 | G149: 61526 | H149: 62077 | I149: 62627 | J149: 63097 | K149: 63020
A150: Manningham (C) | B150: 41135 | C150: 41440 | D150: 41743 | E150: 41856 | F150: 42047 | G150: 42291 | H150: 42667 | I150: 43069 | J150: 43667 | K150: 43519
A151: Maroondah (C) | B151: 35790 | C151: 36268 | D151: 36792 | E151: 37230 | F151: 37754 | G151: 38144 | H151: 38338 | I151: 38563 | J151: 38893 | K151: 38795
A152: Melbourne (C) | B152: 770 | C152: 783 | D152: 796 | E152: 797 | F152: 802 | G152: 827 | H152: 850 | I152: 858 | J152: 867 | K152: 841
A153: Monash (C) | B153: 61763 | C153: 62351 | D153: 62909 | E153: 63304 | F153: 63709 | G153: 64060 | H153: 64465 | I153: 64948 | J153: 65614 | K153: 65251
A154: Nillumbik (S) | B154: 8 | C154: 8 | D154: 8 | E154: 8 | F154: 8 | G154: 8 | H154: 8 | I154: 8 | J154: 8 | K154: 8
A155: Port Phillip (C) | B155: 37683 | C155: 37903 | D155: 38003 | E155: 38000 | F155: 37904 | G155: 38009 | H155: 38268 | I155: 38370 | J155: 38324 | K155: 37768
A156: South Gippsland (S) | B156: 1231 | C156: 1414 | D156: 1546 | E156: 1681 | F156: 1798 | G156: 1894 | H156: 1976 | I156: 2080 | J156: 2162 | K156: 2194
A157: Stonnington (C) | B157: 38271 | C157: 38537 | D157: 38672 | E157: 38664 | F157: 38669 | G157: 38675 | H157: 38802 | I157: 38770 | J157: 38844 | K157: 38102
A158: Whitehorse (C) | B158: 63430 | C158: 64094 | D158: 64709 | E158: 65022 | F158: 65400 | G158: 65664 | H158: 66100 | I158: 66325 | J158: 66865 | K158: 66452
A159: Yarra Ranges (S) | B159: 43932 | C159: 44501 | D159: 45017 | E159: 45533 | F159: 46021 | G159: 46690 | H159: 47195 | I159: 47737 | J159: 48175 | K159: 48199
A160: Multinet | B160: 648323 | C160: 655133 | D160: 661231 | E160: 665626 | F160: 670048 | G160: 675204 | H160: 680357 | I160: 685531 | J160: 690940 | K160: 686973
A162: Residential New customers
A163: LGA | B163: 2012 | C163: =B163+1 -> 2013 | D163: =C163+1 -> 2014 | E163: 2015 | F163: 2016 | G163: 2017 | H163: 2018 | I163: 2019 | J163: 2020 | K163: 2021
A164: Bass Coast (S) | C164: 290 | D164: 264 | E164: 240 | F164: 246 | G164: 244 | H164: 262 | I164: 340 | J164: 280 | K164: 150
A165: Bayside (C) | C165: 436 | D165: 635 | E165: 664 | F165: 690 | G165: 772 | H165: 704 | I165: 705 | J165: 715 | K165: 351
A166: Boroondara (C) | C166: 799 | D166: 1043 | E166: 965 | F166: 1141 | G166: 1178 | H166: 1042 | I166: 1014 | J166: 945 | K166: 476
A167: Cardinia (S) | C167: 35 | D167: 67 | E167: 36 | F167: 51 | G167: 59 | H167: 52 | I167: 42 | J167: 42 | K167: 24
A168: Casey (C) | C168: 76 | D168: 89 | E168: 147 | F168: 121 | G168: 176 | H168: 144 | I168: 148 | J168: 162 | K168: 86
A169: Frankston (C) | C169: 0 | D169: 0 | E169: 0 | F169: 0 | G169: 0 | H169: 0 | I169: 0 | J169: 0 | K169: 0
A170: Glen Eira (C) | C170: 663 | D170: 873 | E170: 999 | F170: 890 | G170: 1005 | H170: 930 | I170: 1014 | J170: 964 | K170: 474
A171: Greater Dandenong (C) | C171: 836 | D171: 946 | E171: 1100 | F171: 1270 | G171: 1285 | H171: 1063 | I171: 1147 | J171: 1029 | K171: 464
A172: Kingston (C) | C172: 676 | D172: 820 | E172: 896 | F172: 950 | G172: 1038 | H172: 1085 | I172: 1215 | J172: 969 | K172: 488
A173: Knox (C) | C173: 623 | D173: 699 | E173: 748 | F173: 849 | G173: 890 | H173: 1000 | I173: 1106 | J173: 887 | K173: 439
A174: Manningham (C) | C174: 401 | D174: 538 | E174: 495 | F174: 626 | G174: 720 | H174: 845 | I174: 889 | J174: 991 | K174: 434
A175: Maroondah (C) | C175: 539 | D175: 723 | E175: 705 | F175: 748 | G175: 663 | H175: 491 | I175: 496 | J175: 586 | K175: 268
A176: Melbourne (C) | C176: 19 | D176: 21 | E176: 11 | F176: 16 | G176: 32 | H176: 38 | I176: 18 | J176: 14 | K176: 5
A177: Monash (C) | C177: 717 | D177: 989 | E177: 1111 | F177: 1225 | G177: 1266 | H177: 1186 | I177: 1378 | J177: 1398 | K177: 744
A178: Nillumbik (S) | C178: 0 | D178: 0 | E178: 0 | F178: 0 | G178: 0 | H178: 0 | I178: 0 | J178: 0 | K178: 0
A179: Port Phillip (C) | C179: 417 | D179: 454 | E179: 461 | F179: 483 | G179: 571 | H179: 619 | I179: 482 | J179: 382 | K179: 259
A180: South Gippsland (S) | C180: 189 | D180: 148 | E180: 151 | F180: 125 | G180: 112 | H180: 93 | I180: 115 | J180: 102 | K180: 54
A181: Stonnington (C) | C181: 488 | D181: 567 | E181: 579 | F181: 642 | G181: 619 | H181: 609 | I181: 512 | J181: 550 | K181: 252
A182: Whitehorse (C) | C182: 824 | D182: 1076 | E182: 1070 | F182: 1208 | G182: 1150 | H182: 1174 | I182: 1006 | J182: 1171 | K182: 510
A183: Yarra Ranges (S) | C183: 665 | D183: 715 | E183: 776 | F183: 727 | G183: 914 | H183: 752 | I183: 800 | J183: 721 | K183: 394
A184: Multinet | C184: 8693 | D184: 10667 | E184: 11154 | F184: 12008 | G184: 12694 | H184: 12089 | I184: 12427 | J184: 11908 | K184: 5872
A186: Residential disconnections
A187: LGA | B187: 2012 | C187: =B187+1 -> 2013 | D187: =C187+1 -> 2014 | E187: 2015 | F187: 2016 | G187: 2017 | H187: 2018 | I187: 2019 | J187: 2020 | K187: 2021
A188: Bass Coast (S) | C188: 4 | D188: 11 | E188: 7 | F188: 14 | G188: 16 | H188: 17 | I188: 13 | J188: 30 | K188: 45
A189: Bayside (C) | C189: 134 | D189: 372 | E189: 478 | F189: 565 | G189: 540 | H189: 542 | I189: 472 | J189: 553 | K189: 604
A190: Boroondara (C) | C190: 206 | D190: 530 | E190: 907 | F190: 1144 | G190: 1046 | H190: 819 | I190: 877 | J190: 742 | K190: 1285
A191: Cardinia (S) | C191: 12 | D191: 17 | E191: 33 | F191: 23 | G191: 26 | H191: 21 | I191: 24 | J191: 20 | K191: 30
A192: Casey (C) | C192: 23 | D192: 43 | E192: 60 | F192: 70 | G192: 71 | H192: 67 | I192: 52 | J192: 76 | K192: 106
A193: Frankston (C) | C193: 0 | D193: 0 | E193: 0 | F193: 0 | G193: 0 | H193: 0 | I193: 0 | J193: 0 | K193: 0
A194: Glen Eira (C) | C194: 181 | D194: 403 | E194: 667 | F194: 713 | G194: 659 | H194: 734 | I194: 681 | J194: 566 | K194: 830
A195: Greater Dandenong (C) | C195: 112 | D195: 288 | E195: 404 | F195: 401 | G195: 365 | H195: 396 | I195: 370 | J195: 370 | K195: 564
A196: Kingston (C) | C196: 146 | D196: 326 | E196: 439 | F196: 538 | G196: 552 | H196: 491 | I196: 571 | J196: 501 | K196: 649
A197: Knox (C) | C197: 92 | D197: 244 | E197: 305 | F197: 335 | G197: 366 | H197: 449 | I197: 556 | J197: 417 | K197: 516
A198: Manningham (C) | C198: 96 | D198: 235 | E198: 382 | F198: 435 | G198: 476 | H198: 469 | I198: 487 | J198: 393 | K198: 582
A199: Maroondah (C) | C199: 61 | D199: 199 | E199: 267 | F199: 224 | G199: 273 | H199: 297 | I199: 271 | J199: 256 | K199: 366
A200: Melbourne (C) | C200: 6 | D200: 8 | E200: 10 | F200: 11 | G200: 7 | H200: 15 | I200: 10 | J200: 5 | K200: 31
A201: Monash (C) | C201: 129 | D201: 431 | E201: 716 | F201: 820 | G201: 915 | H201: 781 | I201: 895 | J201: 732 | K201: 1107
A202: Nillumbik (S) | C202: 0 | D202: 0 | E202: 0 | F202: 0 | G202: 0 | H202: 0 | I202: 0 | J202: 0 | K202: 0
A203: Port Phillip (C) | C203: 197 | D203: 354 | E203: 464 | F203: 579 | G203: 466 | H203: 360 | I203: 380 | J203: 428 | K203: 815
A204: South Gippsland (S) | C204: 6 | D204: 16 | E204: 16 | F204: 8 | G204: 16 | H204: 11 | I204: 11 | J204: 20 | K204: 22
A205: Stonnington (C) | C205: 222 | D205: 432 | E205: 587 | F205: 637 | G205: 613 | H205: 482 | I205: 544 | J205: 476 | K205: 994
A206: Whitehorse (C) | C206: 160 | D206: 461 | E206: 757 | F206: 830 | G206: 886 | H206: 738 | I206: 781 | J206: 631 | K206: 923
A207: Yarra Ranges (S) | C207: 96 | D207: 199 | E207: 260 | F207: 239 | G207: 245 | H207: 247 | I207: 258 | J207: 283 | K207: 370
A208: Multinet | C208: 1883 | D208: 4569 | E208: 6759 | F208: 7586 | G208: 7538 | H208: 6936 | I208: 7253 | J208: 6499 | K208: 9839
... 66 more rows

Sheet Volume per connection
B1: 2012 | C1: 2012 | D1: 2012 | E1: 2012 | F1: =B1+1 -> 2013 | G1: =C1+1 -> 2013 | H1: 2013 | I1: 2013 | J1: 2014 | K1: 2014 | L1: 2014 | M1: 2014 | N1: 2015 | O1: 2015 | P1: 2015 | Q1: 2015 | R1: 2016 | S1: 2016 | T1: 2016 | U1: 2016 | V1: 2017 | W1: 2017 | X1: 2017 | Y1: 2017 | Z1: 2018 | AA1: 2018 | AB1: 2018 | AC1: 2018 | AD1: 2019 | AE1: 2019 | AF1: 2019 | AG1: 2019 | AH1: 2020 | AI1: 2020 | AJ1: 2020 | AK1: 2020
A2: Residential volumes per connection (GJ) | B2: 2012Q1 | C2: 2012Q2 | D2: 2012Q3 | E2: 2012Q4 | F2: 2013Q1 | G2: 2013Q2 | H2: 2013Q3 | I2: 2013Q4 | J2: 2014Q1 | K2: 2014Q2 | L2: 2014Q3 | M2: 2014Q4 | N2: 2015Q1 | O2: 2015Q2 | P2: 2015Q3 | Q2: 2015Q4 | R2: 2016Q1 | S2: 2016Q2 | T2: 2016Q3 | U2: 2016Q4 | V2: 2017Q1 | W2: 2017Q2 | X2: 2017Q3 | Y2: 2017Q4 | Z2: 2018Q1 | AA2: 2018Q2 | AB2: 2018Q3 | AC2: 2018Q4 | AD2: 2019Q1 | AE2: 2019Q2 | AF2: 2019Q3 | AG2: 2019Q4 | AH2: 2020Q1 | AI2: 2020Q2 | AJ2: 2020Q3 | AK2: 2020Q4
A3: Bass Coast (S) | B3: =IFERROR(Volumes!B2/Customers!B3,0) -> 2.84870773 | C3: =IFERROR(Volumes!C2/Customers!C3,0) -> 9.995157115 | D3: =IFERROR(Volumes!D2/Customers!D3,0) -> 13.25444449 | E3: =IFERROR(Volumes!E2/Customers!E3,0) -> 4.977970649 | F3: =IFERROR(Volumes!F2/Customers!F3,0) -> 2.149343894 | G3: =IFERROR(Volumes!G2/Customers!G3,0) -> 7.756578327 | H3: =IFERROR(Volumes!H2/Customers!H3,0) -> 9.522422045 | I3: =IFERROR(Volumes!I2/Customers!I3,0) -> 12.33964584 | J3: =IFERROR(Volumes!J2/Customers!J3,0) -> 2.697005952 | K3: =IFERROR(Volumes!K2/Customers!K3,0) -> 7.822316418 | L3: =IFERROR(Volumes!L2/Customers!L3,0) -> 10.25587873 | M3: =IFERROR(Volumes!M2/Customers!M3,0) -> 10.0437195 | N3: =IFERROR(Volumes!N2/Customers!N3,0) -> 2.287731625 | O3: =IFERROR(Volumes!O2/Customers!O3,0) -> 10.07755947 | P3: =IFERROR(Volumes!P2/Customers!P3,0) -> 10.78169396 | Q3: =IFERROR(Volumes!Q2/Customers!Q3,0) -> 10.49805205 | R3: =IFERROR(Volumes!R2/Customers!R3,0) -> 2.052783289 | S3: =IFERROR(Volumes!S2/Customers!S3,0) -> 7.467349939 | T3: =IFERROR(Volumes!T2/Customers!T3,0) -> 10.72242361 | U3: =IFERROR(Volumes!U2/Customers!U3,0) -> 11.86058278 | V3: =IFERROR(Volumes!V2/Customers!V3,0) -> 2.26120222 | W3: =IFERROR(Volumes!W2/Customers!W3,0) -> 8.635059432 | X3: =IFERROR(Volumes!X2/Customers!X3,0) -> 11.20043915 | Y3: =IFERROR(Volumes!Y2/Customers!Y3,0) -> 11.03674318 | Z3: =IFERROR(Volumes!Z2/Customers!Z3,0) -> 1.944024363 | AA3: =IFERROR(Volumes!AA2/Customers!AA3,0) -> 9.006871438 | AB3: =IFERROR(Volumes!AB2/Customers!AB3,0) -> 10.80982151 | AC3: =IFERROR(Volumes!AC2/Customers!AC3,0) -> 10.1471218 | AD3: =IFERROR(Volumes!AD2/Customers!AD3,0) -> 1.98740457 | AE3: =IFERROR(Volumes!AE2/Customers!AE3,0) -> 8.721444103 | AF3: =IFERROR(Volumes!AF2/Customers!AF3,0) -> 10.95218384 | AG3: =IFERROR(Volumes!AG2/Customers!AG3,0) -> 11.1646415 | AH3: =IFERROR(Volumes!AH2/Customers!AH3,0) -> 1.847627013 | AI3: =IFERROR(Volumes!AI2/Customers!AI3,0) -> 10.15466629 | AJ3: =IFERROR(Volumes!AJ2/Customers!AJ3,0) -> 11.35631528 | AK3: =IFERROR(Volumes!AK2/Customers!AK3,0) -> 9.68900138
